{"text_format":"1","workbook":"xlsx","n_sheets":4,"sheets":["Instrucciones","Dias tomados","Auxiliar","Fiestas y días laborables"],"not_rendered":{"charts":0,"images":0,"macros":1,"external_links":0,"defined_names":31,"comments":0,"pivot_tables":0},"unopened":[],"bounds":{"document_bytes":16777216,"sheet_cells":100000,"rows_first":2000,"rows_last":500,"rows_between":2000,"halvings":0,"cell_chars":16384,"cell_head_chars":4096},"cells_cut":0,"cells_raw":0,"read":"whole","date_system":"1900"}

{"sheet":"Instrucciones","index":0,"n_rows":0,"n_cols":0,"rows_kept":0,"cut":false,"hidden":false,"merged":[]}

{"sheet":"Dias tomados","index":1,"n_rows":55,"n_cols":382,"rows_kept":55,"cut":false,"hidden":false,"merged":[[7,380,8,380],[7,381,8,381],[7,373,8,373],[7,374,8,374],[7,377,8,377],[7,378,8,378],[7,379,8,379],[7,375,8,375],[7,376,8,376]]}
[null,null,null,null,null,null,null,null,null,null,null,null,null,null,null,null,null,null,null,null,null,null,null,null,null,null,null,null,null,null,null,"x",null,null,null,null,null,null,null,null,null,null,null,null,null,null,null,null,null,null,null,null,null,null,null,null,null,null,null,null,null,null,null,null,null,null,null,null,null,null,null,null,null,null,null,null,null,null,null,null,null,null,null,null,null,null,null,null,null,null,null,null,null,null,null,null,null,null,null,null,null,null,null,null,null,null,null,null,null,null,null,null,null,null,null,null,null,null,null,null,null,null,null,null,null,null,null,null,null,null,null,null,null,null,null,null,null,null,null,null,null,null,null,null,null,null,null,null,null,null,null,null,null,null,null,null,null,null,null,null,null,null,null,null,null,null,null,null,null,null,null,null,null,null,null,null,null,null,null,null,null,null,null,null,null,null,null,null,null,null,null,null,null,null,null,null,null,null,null,null,null,null,null,null,null,null,null,null,null,null,null,null,null,null,null,null,null,null,null,null,null,null,null,null,null,null,null,null,null,null,null,null,null,null,null,null,null,null,null,null,null,null,null,null,null,null,null,null,null,null,null,null,null,null,null,null,null,null,null,null,null,null,null,null,null,null,null,null,null,null,null,null,null,null,null,null,null,null,null,null,null,null,null,null,null,null,null,null,null,null,null,null,null,null,null,null,null,null,null,null,null,null,null,null,null,null,null,null,null,null,null,null,null,null,null,null,null,null,null,null,null,null,null,null,null,null,null,null,null,null,null,null,null,null,null,null,null,null,null,null,null,null,null,null,null,null,null,null,null,null,null,null,null,null,null,null,null,null,null,null,null,null,null,null,null,null,null,null,null,null,null,null,"x"]
[null,null,null,null,null,null,null,null,null,null,null,null,null,null,null,null,null,null,null,null,null,null,null,null,null,null,null,null,null,null,null,null,null,null,null,null,null,null,null,null,null,null,null,null,null,null,null,null,null,null,null,null,null,null,null,null,null,null,null,null,null,null,null,null,null,null,null,null,null,null,null,null,null,null,null,null,null,null,null,null,null,null,null,null,null,null,null,null,null,null,null,null,null,null,null,null,null,null,null,null,null,null,null,null,null,null,null,null,null,null,null,null,null,null,null,null,null,null,null,null,null,null,null,null,null,null,null,null,null,null,null,null,null,null,null,null,null,null,null,null,null,null,null,null,null,null,null,null,null,null,null,null,null,null,null,null,null,null,null,null,null,null,null,null,null,null,null,null,null,null,null,null,null,null,null,null,null,null,null,null,null,null,null,null,null,null,null,null,null,null,null,null,null,null,null,null,null,null,null,null,null,null,null,null,null,null,null,null,null,null,null,null,null,null,null,null,null,null,null,null,null,null,null,null,null,null,null,null,null,null,null,null,null,null,null,null,null,null,null,null,null,null,null,null,null,null,null,null,null,null,null,null,null,null,null,null,null,null,null,null,null,null,null,null,null,null,null,null,null,null,null,null,null,null,null,null,null,null,null,null,null,null,null,null,null,null,null,null,null,null,null,null,null,null,null,null,null,null,null,null,null,null,null,null,null,null,null,null,null,null,null,null,null,null,null,null,null,null,null,null,null,null,null,null,null,null,null,null,null,null,null,null,null,null,null,null,null,null,null,null,null,null,null,null,null,null,null,null,null,null,null,null,null,null,null,null,null,null,null,null,null,null,null,null,null,null,null,null,null,null,null,null,null,"Enfermedad","E"]
[1,null,null,null,null,null,null,null,null,null,null,null,null,null,null,null,null,null,null,null,null,null,null,null,null,null,null,null,null,null,null,null,null,null,null,null,null,null,null,null,null,null,null,null,null,null,null,null,null,null,null,null,null,null,null,null,null,null,null,null,null,null,null,null,null,null,null,null,null,null,null,null,null,null,null,null,null,null,null,null,null,null,null,null,null,null,null,null,null,null,null,null,null,null,null,null,null,null,null,null,null,null,null,null,null,null,null,null,null,null,null,null,null,null,null,null,null,null,null,null,null,null,null,null,null,null,null,null,null,null,null,null,null,null,null,null,null,null,null,null,null,null,null,null,null,null,null,null,null,null,null,null,null,null,null,null,null,null,null,null,null,null,null,null,null,null,null,null,null,null,null,null,null,null,null,null,null,null,null,null,null,null,null,null,null,null,null,null,null,null,null,null,null,null,null,null,null,null,null,null,null,null,null,null,null,null,null,null,null,null,null,null,null,null,null,null,null,null,null,null,null,null,null,null,null,null,null,null,null,null,null,null,null,null,null,null,null,null,null,null,null,null,null,null,null,null,null,null,null,null,null,null,null,null,null,null,null,null,null,null,null,null,null,null,null,null,null,null,null,null,null,null,null,null,null,null,null,null,null,null,null,null,null,null,null,null,null,null,null,null,null,null,null,null,null,null,null,null,null,null,null,null,null,null,null,null,null,null,null,null,null,null,null,null,null,null,null,null,null,null,null,null,null,null,null,null,null,null,null,null,null,null,null,null,null,null,null,null,null,null,null,null,null,null,null,null,null,null,null,null,null,null,null,null,null,null,null,null,null,null,null,null,null,null,null,null,null,null,null,null,null,null,null,"Vacaciones","V"]
[2017,null,null,null,null,null,null,null,null,null,null,null,null,null,null,null,null,null,null,null,null,null,null,null,null,null,null,null,null,null,null,null,null,null,null,null,null,null,null,null,null,null,null,null,null,null,null,null,null,null,null,null,null,null,null,null,null,null,null,null,null,null,null,null,null,null,null,null,null,null,null,null,null,null,null,null,null,null,null,null,null,null,null,null,null,null,null,null,null,null,null,null,null,null,null,null,null,null,null,null,null,null,null,null,null,null,null,null,null,null,null,null,null,null,null,null,null,null,null,null,null,null,null,null,null,null,null,null,null,null,null,null,null,null,null,null,null,null,null,null,null,null,null,null,null,null,null,null,null,null,null,null,null,null,null,null,null,null,null,null,null,null,null,null,null,null,null,null,null,null,null,null,null,null,null,null,null,null,null,null,null,null,null,null,null,null,null,null,null,null,null,null,null,null,null,null,null,null,null,null,null,null,null,null,null,null,null,null,null,null,null,null,null,null,null,null,null,null,null,null,null,null,null,null,null,null,null,null,null,null,null,null,null,null,null,null,null,null,null,null,null,null,null,null,null,null,null,null,null,null,null,null,null,null,null,null,null,null,null,null,null,null,null,null,null,null,null,null,null,null,null,null,null,null,null,null,null,null,null,null,null,null,null,null,null,null,null,null,null,null,null,null,null,null,null,null,null,null,null,null,null,null,null,null,null,null,null,null,null,null,null,null,null,null,null,null,null,null,null,null,null,null,null,null,null,null,null,null,null,null,null,null,null,null,null,null,null,null,null,null,null,null,null,null,null,null,null,null,null,null,null,null,null,null,null,null,null,null,null,null,null,null,null,null,null,null,null,null,null,null,null,null,null,"Maternidad","M"]
[1,null,null,null,null,null,null,null,null,null,null,null,null,null,null,null,null,null,null,null,null,null,null,null,null,null,null,null,null,null,null,null,null,null,null,null,null,null,null,null,null,null,null,null,null,null,null,null,null,null,null,null,null,null,null,null,null,null,null,null,null,null,null,null,null,null,null,null,null,null,null,null,null,null,null,null,null,null,null,null,null,null,null,null,null,null,null,null,null,null,null,null,null,null,null,null,null,null,null,null,null,null,null,null,null,null,null,null,null,null,null,null,null,null,null,null,null,null,null,null,null,null,null,null,null,null,null,null,null,null,null,null,null,null,null,null,null,null,null,null,null,null,null,null,null,null,null,null,null,null,null,null,null,null,null,null,null,null,null,null,null,null,null,null,null,null,null,null,null,null,null,null,null,null,null,null,null,null,null,null,null,null,null,null,null,null,null,null,null,null,null,null,null,null,null,null,null,null,null,null,null,null,null,null,null,null,null,null,null,null,null,null,null,null,null,null,null,null,null,null,null,null,null,null,null,null,null,null,null,null,null,null,null,null,null,null,null,null,null,null,null,null,null,null,null,null,null,null,null,null,null,null,null,null,null,null,null,null,null,null,null,null,null,null,null,null,null,null,null,null,null,null,null,null,null,null,null,null,null,null,null,null,null,null,null,null,null,null,null,null,null,null,null,null,null,null,null,null,null,null,null,null,null,null,null,null,null,null,null,null,null,null,null,null,null,null,null,null,null,null,null,null,null,null,null,null,null,null,null,null,null,null,null,null,null,null,null,null,null,null,null,null,null,null,null,null,null,null,null,null,null,null,null,null,null,null,null,null,null,null,null,null,null,null,null,null,null,null,null,null,null,null,null,"Tramites","T"]
[1,{"$f":"AND(NOT(ISNUMBER(MATCH(DATE($A$4,INT((COLUMN()-1)/31.001)+$A$3,ROUNDUP(MOD(COLUMN()-1,31.001),0)),Feriados,0))),(VLOOKUP(VLOOKUP(WEEKDAY(DATE($A$4,INT((COLUMN()-1)/31.001)+$A$3,ROUNDUP(MOD(COLUMN()-1,31.001),0)),2),Auxiliar!$D$1:$E$7,2,0),'Fiestas y días laborables'!$D$3:$E$9,2,0)=\"Si\"))","v":false},{"$f":"AND(NOT(ISNUMBER(MATCH(DATE($A$4,INT((COLUMN()-1)/31.001)+$A$3,ROUNDUP(MOD(COLUMN()-1,31.001),0)),Feriados,0))),(VLOOKUP(VLOOKUP(WEEKDAY(DATE($A$4,INT((COLUMN()-1)/31.001)+$A$3,ROUNDUP(MOD(COLUMN()-1,31.001),0)),2),Auxiliar!$D$1:$E$7,2,0),'Fiestas y días laborables'!$D$3:$E$9,2,0)=\"Si\"))","v":true},{"$f":"AND(NOT(ISNUMBER(MATCH(DATE($A$4,INT((COLUMN()-1)/31.001)+$A$3,ROUNDUP(MOD(COLUMN()-1,31.001),0)),Feriados,0))),(VLOOKUP(VLOOKUP(WEEKDAY(DATE($A$4,INT((COLUMN()-1)/31.001)+$A$3,ROUNDUP(MOD(COLUMN()-1,31.001),0)),2),Auxiliar!$D$1:$E$7,2,0),'Fiestas y días laborables'!$D$3:$E$9,2,0)=\"Si\"))","v":true},{"$f":"AND(NOT(ISNUMBER(MATCH(DATE($A$4,INT((COLUMN()-1)/31.001)+$A$3,ROUNDUP(MOD(COLUMN()-1,31.001),0)),Feriados,0))),(VLOOKUP(VLOOKUP(WEEKDAY(DATE($A$4,INT((COLUMN()-1)/31.001)+$A$3,ROUNDUP(MOD(COLUMN()-1,31.001),0)),2),Auxiliar!$D$1:$E$7,2,0),'Fiestas y días laborables'!$D$3:$E$9,2,0)=\"Si\"))","v":true},{"$f":"AND(NOT(ISNUMBER(MATCH(DATE($A$4,INT((COLUMN()-1)/31.001)+$A$3,ROUNDUP(MOD(COLUMN()-1,31.001),0)),Feriados,0))),(VLOOKUP(VLOOKUP(WEEKDAY(DATE($A$4,INT((COLUMN()-1)/31.001)+$A$3,ROUNDUP(MOD(COLUMN()-1,31.001),0)),2),Auxiliar!$D$1:$E$7,2,0),'Fiestas y días laborables'!$D$3:$E$9,2,0)=\"Si\"))","v":true},{"$f":"AND(NOT(ISNUMBER(MATCH(DATE($A$4,INT((COLUMN()-1)/31.001)+$A$3,ROUNDUP(MOD(COLUMN()-1,31.001),0)),Feriados,0))),(VLOOKUP(VLOOKUP(WEEKDAY(DATE($A$4,INT((COLUMN()-1)/31.001)+$A$3,ROUNDUP(MOD(COLUMN()-1,31.001),0)),2),Auxiliar!$D$1:$E$7,2,0),'Fiestas y días laborables'!$D$3:$E$9,2,0)=\"Si\"))","v":true},{"$f":"AND(NOT(ISNUMBER(MATCH(DATE($A$4,INT((COLUMN()-1)/31.001)+$A$3,ROUNDUP(MOD(COLUMN()-1,31.001),0)),Feriados,0))),(VLOOKUP(VLOOKUP(WEEKDAY(DATE($A$4,INT((COLUMN()-1)/31.001)+$A$3,ROUNDUP(MOD(COLUMN()-1,31.001),0)),2),Auxiliar!$D$1:$E$7,2,0),'Fiestas y días laborables'!$D$3:$E$9,2,0)=\"Si\"))","v":false},{"$f":"AND(NOT(ISNUMBER(MATCH(DATE($A$4,INT((COLUMN()-1)/31.001)+$A$3,ROUNDUP(MOD(COLUMN()-1,31.001),0)),Feriados,0))),(VLOOKUP(VLOOKUP(WEEKDAY(DATE($A$4,INT((COLUMN()-1)/31.001)+$A$3,ROUNDUP(MOD(COLUMN()-1,31.001),0)),2),Auxiliar!$D$1:$E$7,2,0),'Fiestas y días laborables'!$D$3:$E$9,2,0)=\"Si\"))","v":false},{"$f":"AND(NOT(ISNUMBER(MATCH(DATE($A$4,INT((COLUMN()-1)/31.001)+$A$3,ROUNDUP(MOD(COLUMN()-1,31.001),0)),Feriados,0))),(VLOOKUP(VLOOKUP(WEEKDAY(DATE($A$4,INT((COLUMN()-1)/31.001)+$A$3,ROUNDUP(MOD(COLUMN()-1,31.001),0)),2),Auxiliar!$D$1:$E$7,2,0),'Fiestas y días laborables'!$D$3:$E$9,2,0)=\"Si\"))","v":true},{"$f":"AND(NOT(ISNUMBER(MATCH(DATE($A$4,INT((COLUMN()-1)/31.001)+$A$3,ROUNDUP(MOD(COLUMN()-1,31.001),0)),Feriados,0))),(VLOOKUP(VLOOKUP(WEEKDAY(DATE($A$4,INT((COLUMN()-1)/31.001)+$A$3,ROUNDUP(MOD(COLUMN()-1,31.001),0)),2),Auxiliar!$D$1:$E$7,2,0),'Fiestas y días laborables'!$D$3:$E$9,2,0)=\"Si\"))","v":true},{"$f":"AND(NOT(ISNUMBER(MATCH(DATE($A$4,INT((COLUMN()-1)/31.001)+$A$3,ROUNDUP(MOD(COLUMN()-1,31.001),0)),Feriados,0))),(VLOOKUP(VLOOKUP(WEEKDAY(DATE($A$4,INT((COLUMN()-1)/31.001)+$A$3,ROUNDUP(MOD(COLUMN()-1,31.001),0)),2),Auxiliar!$D$1:$E$7,2,0),'Fiestas y días laborables'!$D$3:$E$9,2,0)=\"Si\"))","v":true},{"$f":"AND(NOT(ISNUMBER(MATCH(DATE($A$4,INT((COLUMN()-1)/31.001)+$A$3,ROUNDUP(MOD(COLUMN()-1,31.001),0)),Feriados,0))),(VLOOKUP(VLOOKUP(WEEKDAY(DATE($A$4,INT((COLUMN()-1)/31.001)+$A$3,ROUNDUP(MOD(COLUMN()-1,31.001),0)),2),Auxiliar!$D$1:$E$7,2,0),'Fiestas y días laborables'!$D$3:$E$9,2,0)=\"Si\"))","v":true},{"$f":"AND(NOT(ISNUMBER(MATCH(DATE($A$4,INT((COLUMN()-1)/31.001)+$A$3,ROUNDUP(MOD(COLUMN()-1,31.001),0)),Feriados,0))),(VLOOKUP(VLOOKUP(WEEKDAY(DATE($A$4,INT((COLUMN()-1)/31.001)+$A$3,ROUNDUP(MOD(COLUMN()-1,31.001),0)),2),Auxiliar!$D$1:$E$7,2,0),'Fiestas y días laborables'!$D$3:$E$9,2,0)=\"Si\"))","v":true},{"$f":"AND(NOT(ISNUMBER(MATCH(DATE($A$4,INT((COLUMN()-1)/31.001)+$A$3,ROUNDUP(MOD(COLUMN()-1,31.001),0)),Feriados,0))),(VLOOKUP(VLOOKUP(WEEKDAY(DATE($A$4,INT((COLUMN()-1)/31.001)+$A$3,ROUNDUP(MOD(COLUMN()-1,31.001),0)),2),Auxiliar!$D$1:$E$7,2,0),'Fiestas y días laborables'!$D$3:$E$9,2,0)=\"Si\"))","v":false},{"$f":"AND(NOT(ISNUMBER(MATCH(DATE($A$4,INT((COLUMN()-1)/31.001)+$A$3,ROUNDUP(MOD(COLUMN()-1,31.001),0)),Feriados,0))),(VLOOKUP(VLOOKUP(WEEKDAY(DATE($A$4,INT((COLUMN()-1)/31.001)+$A$3,ROUNDUP(MOD(COLUMN()-1,31.001),0)),2),Auxiliar!$D$1:$E$7,2,0),'Fiestas y días laborables'!$D$3:$E$9,2,0)=\"Si\"))","v":false},{"$f":"AND(NOT(ISNUMBER(MATCH(DATE($A$4,INT((COLUMN()-1)/31.001)+$A$3,ROUNDUP(MOD(COLUMN()-1,31.001),0)),Feriados,0))),(VLOOKUP(VLOOKUP(WEEKDAY(DATE($A$4,INT((COLUMN()-1)/31.001)+$A$3,ROUNDUP(MOD(COLUMN()-1,31.001),0)),2),Auxiliar!$D$1:$E$7,2,0),'Fiestas y días laborables'!$D$3:$E$9,2,0)=\"Si\"))","v":true},{"$f":"AND(NOT(ISNUMBER(MATCH(DATE($A$4,INT((COLUMN()-1)/31.001)+$A$3,ROUNDUP(MOD(COLUMN()-1,31.001),0)),Feriados,0))),(VLOOKUP(VLOOKUP(WEEKDAY(DATE($A$4,INT((COLUMN()-1)/31.001)+$A$3,ROUNDUP(MOD(COLUMN()-1,31.001),0)),2),Auxiliar!$D$1:$E$7,2,0),'Fiestas y días laborables'!$D$3:$E$9,2,0)=\"Si\"))","v":true},{"$f":"AND(NOT(ISNUMBER(MATCH(DATE($A$4,INT((COLUMN()-1)/31.001)+$A$3,ROUNDUP(MOD(COLUMN()-1,31.001),0)),Feriados,0))),(VLOOKUP(VLOOKUP(WEEKDAY(DATE($A$4,INT((COLUMN()-1)/31.001)+$A$3,ROUNDUP(MOD(COLUMN()-1,31.001),0)),2),Auxiliar!$D$1:$E$7,2,0),'Fiestas y días laborables'!$D$3:$E$9,2,0)=\"Si\"))","v":true},{"$f":"AND(NOT(ISNUMBER(MATCH(DATE($A$4,INT((COLUMN()-1)/31.001)+$A$3,ROUNDUP(MOD(COLUMN()-1,31.001),0)),Feriados,0))),(VLOOKUP(VLOOKUP(WEEKDAY(DATE($A$4,INT((COLUMN()-1)/31.001)+$A$3,ROUNDUP(MOD(COLUMN()-1,31.001),0)),2),Auxiliar!$D$1:$E$7,2,0),'Fiestas y días laborables'!$D$3:$E$9,2,0)=\"Si\"))","v":true},{"$f":"AND(NOT(ISNUMBER(MATCH(DATE($A$4,INT((COLUMN()-1)/31.001)+$A$3,ROUNDUP(MOD(COLUMN()-1,31.001),0)),Feriados,0))),(VLOOKUP(VLOOKUP(WEEKDAY(DATE($A$4,INT((COLUMN()-1)/31.001)+$A$3,ROUNDUP(MOD(COLUMN()-1,31.001),0)),2),Auxiliar!$D$1:$E$7,2,0),'Fiestas y días laborables'!$D$3:$E$9,2,0)=\"Si\"))","v":true},{"$f":"AND(NOT(ISNUMBER(MATCH(DATE($A$4,INT((COLUMN()-1)/31.001)+$A$3,ROUNDUP(MOD(COLUMN()-1,31.001),0)),Feriados,0))),(VLOOKUP(VLOOKUP(WEEKDAY(DATE($A$4,INT((COLUMN()-1)/31.001)+$A$3,ROUNDUP(MOD(COLUMN()-1,31.001),0)),2),Auxiliar!$D$1:$E$7,2,0),'Fiestas y días laborables'!$D$3:$E$9,2,0)=\"Si\"))","v":false},{"$f":"AND(NOT(ISNUMBER(MATCH(DATE($A$4,INT((COLUMN()-1)/31.001)+$A$3,ROUNDUP(MOD(COLUMN()-1,31.001),0)),Feriados,0))),(VLOOKUP(VLOOKUP(WEEKDAY(DATE($A$4,INT((COLUMN()-1)/31.001)+$A$3,ROUNDUP(MOD(COLUMN()-1,31.001),0)),2),Auxiliar!$D$1:$E$7,2,0),'Fiestas y días laborables'!$D$3:$E$9,2,0)=\"Si\"))","v":false},{"$f":"AND(NOT(ISNUMBER(MATCH(DATE($A$4,INT((COLUMN()-1)/31.001)+$A$3,ROUNDUP(MOD(COLUMN()-1,31.001),0)),Feriados,0))),(VLOOKUP(VLOOKUP(WEEKDAY(DATE($A$4,INT((COLUMN()-1)/31.001)+$A$3,ROUNDUP(MOD(COLUMN()-1,31.001),0)),2),Auxiliar!$D$1:$E$7,2,0),'Fiestas y días laborables'!$D$3:$E$9,2,0)=\"Si\"))","v":true},{"$f":"AND(NOT(ISNUMBER(MATCH(DATE($A$4,INT((COLUMN()-1)/31.001)+$A$3,ROUNDUP(MOD(COLUMN()-1,31.001),0)),Feriados,0))),(VLOOKUP(VLOOKUP(WEEKDAY(DATE($A$4,INT((COLUMN()-1)/31.001)+$A$3,ROUNDUP(MOD(COLUMN()-1,31.001),0)),2),Auxiliar!$D$1:$E$7,2,0),'Fiestas y días laborables'!$D$3:$E$9,2,0)=\"Si\"))","v":true},{"$f":"AND(NOT(ISNUMBER(MATCH(DATE($A$4,INT((COLUMN()-1)/31.001)+$A$3,ROUNDUP(MOD(COLUMN()-1,31.001),0)),Feriados,0))),(VLOOKUP(VLOOKUP(WEEKDAY(DATE($A$4,INT((COLUMN()-1)/31.001)+$A$3,ROUNDUP(MOD(COLUMN()-1,31.001),0)),2),Auxiliar!$D$1:$E$7,2,0),'Fiestas y días laborables'!$D$3:$E$9,2,0)=\"Si\"))","v":true},{"$f":"AND(NOT(ISNUMBER(MATCH(DATE($A$4,INT((COLUMN()-1)/31.001)+$A$3,ROUNDUP(MOD(COLUMN()-1,31.001),0)),Feriados,0))),(VLOOKUP(VLOOKUP(WEEKDAY(DATE($A$4,INT((COLUMN()-1)/31.001)+$A$3,ROUNDUP(MOD(COLUMN()-1,31.001),0)),2),Auxiliar!$D$1:$E$7,2,0),'Fiestas y días laborables'!$D$3:$E$9,2,0)=\"Si\"))","v":true},{"$f":"AND(NOT(ISNUMBER(MATCH(DATE($A$4,INT((COLUMN()-1)/31.001)+$A$3,ROUNDUP(MOD(COLUMN()-1,31.001),0)),Feriados,0))),(VLOOKUP(VLOOKUP(WEEKDAY(DATE($A$4,INT((COLUMN()-1)/31.001)+$A$3,ROUNDUP(MOD(COLUMN()-1,31.001),0)),2),Auxiliar!$D$1:$E$7,2,0),'Fiestas y días laborables'!$D$3:$E$9,2,0)=\"Si\"))","v":true},{"$f":"AND(NOT(ISNUMBER(MATCH(DATE($A$4,INT((COLUMN()-1)/31.001)+$A$3,ROUNDUP(MOD(COLUMN()-1,31.001),0)),Feriados,0))),(VLOOKUP(VLOOKUP(WEEKDAY(DATE($A$4,INT((COLUMN()-1)/31.001)+$A$3,ROUNDUP(MOD(COLUMN()-1,31.001),0)),2),Auxiliar!$D$1:$E$7,2,0),'Fiestas y días laborables'!$D$3:$E$9,2,0)=\"Si\"))","v":false},{"$f":"AND(NOT(ISNUMBER(MATCH(DATE($A$4,INT((COLUMN()-1)/31.001)+$A$3,ROUNDUP(MOD(COLUMN()-1,31.001),0)),Feriados,0))),(VLOOKUP(VLOOKUP(WEEKDAY(DATE($A$4,INT((COLUMN()-1)/31.001)+$A$3,ROUNDUP(MOD(COLUMN()-1,31.001),0)),2),Auxiliar!$D$1:$E$7,2,0),'Fiestas y días laborables'!$D$3:$E$9,2,0)=\"Si\"))","v":false},{"$f":"AND(NOT(ISNUMBER(MATCH(DATE($A$4,INT((COLUMN()-1)/31.001)+$A$3,ROUNDUP(MOD(COLUMN()-1,31.001),0)),Feriados,0))),(VLOOKUP(VLOOKUP(WEEKDAY(DATE($A$4,INT((COLUMN()-1)/31.001)+$A$3,ROUNDUP(MOD(COLUMN()-1,31.001),0)),2),Auxiliar!$D$1:$E$7,2,0),'Fiestas y días laborables'!$D$3:$E$9,2,0)=\"Si\"))","v":true},{"$f":"AND(NOT(ISNUMBER(MATCH(DATE($A$4,INT((COLUMN()-1)/31.001)+$A$3,ROUNDUP(MOD(COLUMN()-1,31.001),0)),Feriados,0))),(VLOOKUP(VLOOKUP(WEEKDAY(DATE($A$4,INT((COLUMN()-1)/31.001)+$A$3,ROUNDUP(MOD(COLUMN()-1,31.001),0)),2),Auxiliar!$D$1:$E$7,2,0),'Fiestas y días laborables'!$D$3:$E$9,2,0)=\"Si\"))","v":true},{"$f":"AND(NOT(ISNUMBER(MATCH(DATE($A$4,INT((COLUMN()-1)/31.001)+$A$3,ROUNDUP(MOD(COLUMN()-1,31.001),0)),Feriados,0))),(VLOOKUP(VLOOKUP(WEEKDAY(DATE($A$4,INT((COLUMN()-1)/31.001)+$A$3,ROUNDUP(MOD(COLUMN()-1,31.001),0)),2),Auxiliar!$D$1:$E$7,2,0),'Fiestas y días laborables'!$D$3:$E$9,2,0)=\"Si\"))","v":true},{"$f":"AND(NOT(ISNUMBER(MATCH(DATE($A$4,INT((COLUMN()-1)/31.001)+$A$3,ROUNDUP(MOD(COLUMN()-1,31.001),0)),Feriados,0))),(VLOOKUP(VLOOKUP(WEEKDAY(DATE($A$4,INT((COLUMN()-1)/31.001)+$A$3,ROUNDUP(MOD(COLUMN()-1,31.001),0)),2),Auxiliar!$D$1:$E$7,2,0),'Fiestas y días laborables'!$D$3:$E$9,2,0)=\"Si\"))","v":true},{"$f":"AND(NOT(ISNUMBER(MATCH(DATE($A$4,INT((COLUMN()-1)/31.001)+$A$3,ROUNDUP(MOD(COLUMN()-1,31.001),0)),Feriados,0))),(VLOOKUP(VLOOKUP(WEEKDAY(DATE($A$4,INT((COLUMN()-1)/31.001)+$A$3,ROUNDUP(MOD(COLUMN()-1,31.001),0)),2),Auxiliar!$D$1:$E$7,2,0),'Fiestas y días laborables'!$D$3:$E$9,2,0)=\"Si\"))","v":true},{"$f":"AND(NOT(ISNUMBER(MATCH(DATE($A$4,INT((COLUMN()-1)/31.001)+$A$3,ROUNDUP(MOD(COLUMN()-1,31.001),0)),Feriados,0))),(VLOOKUP(VLOOKUP(WEEKDAY(DATE($A$4,INT((COLUMN()-1)/31.001)+$A$3,ROUNDUP(MOD(COLUMN()-1,31.001),0)),2),Auxiliar!$D$1:$E$7,2,0),'Fiestas y días laborables'!$D$3:$E$9,2,0)=\"Si\"))","v":false},{"$f":"AND(NOT(ISNUMBER(MATCH(DATE($A$4,INT((COLUMN()-1)/31.001)+$A$3,ROUNDUP(MOD(COLUMN()-1,31.001),0)),Feriados,0))),(VLOOKUP(VLOOKUP(WEEKDAY(DATE($A$4,INT((COLUMN()-1)/31.001)+$A$3,ROUNDUP(MOD(COLUMN()-1,31.001),0)),2),Auxiliar!$D$1:$E$7,2,0),'Fiestas y días laborables'!$D$3:$E$9,2,0)=\"Si\"))","v":false},{"$f":"AND(NOT(ISNUMBER(MATCH(DATE($A$4,INT((COLUMN()-1)/31.001)+$A$3,ROUNDUP(MOD(COLUMN()-1,31.001),0)),Feriados,0))),(VLOOKUP(VLOOKUP(WEEKDAY(DATE($A$4,INT((COLUMN()-1)/31.001)+$A$3,ROUNDUP(MOD(COLUMN()-1,31.001),0)),2),Auxiliar!$D$1:$E$7,2,0),'Fiestas y días laborables'!$D$3:$E$9,2,0)=\"Si\"))","v":true},{"$f":"AND(NOT(ISNUMBER(MATCH(DATE($A$4,INT((COLUMN()-1)/31.001)+$A$3,ROUNDUP(MOD(COLUMN()-1,31.001),0)),Feriados,0))),(VLOOKUP(VLOOKUP(WEEKDAY(DATE($A$4,INT((COLUMN()-1)/31.001)+$A$3,ROUNDUP(MOD(COLUMN()-1,31.001),0)),2),Auxiliar!$D$1:$E$7,2,0),'Fiestas y días laborables'!$D$3:$E$9,2,0)=\"Si\"))","v":true},{"$f":"AND(NOT(ISNUMBER(MATCH(DATE($A$4,INT((COLUMN()-1)/31.001)+$A$3,ROUNDUP(MOD(COLUMN()-1,31.001),0)),Feriados,0))),(VLOOKUP(VLOOKUP(WEEKDAY(DATE($A$4,INT((COLUMN()-1)/31.001)+$A$3,ROUNDUP(MOD(COLUMN()-1,31.001),0)),2),Auxiliar!$D$1:$E$7,2,0),'Fiestas y días laborables'!$D$3:$E$9,2,0)=\"Si\"))","v":true},{"$f":"AND(NOT(ISNUMBER(MATCH(DATE($A$4,INT((COLUMN()-1)/31.001)+$A$3,ROUNDUP(MOD(COLUMN()-1,31.001),0)),Feriados,0))),(VLOOKUP(VLOOKUP(WEEKDAY(DATE($A$4,INT((COLUMN()-1)/31.001)+$A$3,ROUNDUP(MOD(COLUMN()-1,31.001),0)),2),Auxiliar!$D$1:$E$7,2,0),'Fiestas y días laborables'!$D$3:$E$9,2,0)=\"Si\"))","v":true},{"$f":"AND(NOT(ISNUMBER(MATCH(DATE($A$4,INT((COLUMN()-1)/31.001)+$A$3,ROUNDUP(MOD(COLUMN()-1,31.001),0)),Feriados,0))),(VLOOKUP(VLOOKUP(WEEKDAY(DATE($A$4,INT((COLUMN()-1)/31.001)+$A$3,ROUNDUP(MOD(COLUMN()-1,31.001),0)),2),Auxiliar!$D$1:$E$7,2,0),'Fiestas y días laborables'!$D$3:$E$9,2,0)=\"Si\"))","v":true},{"$f":"AND(NOT(ISNUMBER(MATCH(DATE($A$4,INT((COLUMN()-1)/31.001)+$A$3,ROUNDUP(MOD(COLUMN()-1,31.001),0)),Feriados,0))),(VLOOKUP(VLOOKUP(WEEKDAY(DATE($A$4,INT((COLUMN()-1)/31.001)+$A$3,ROUNDUP(MOD(COLUMN()-1,31.001),0)),2),Auxiliar!$D$1:$E$7,2,0),'Fiestas y días laborables'!$D$3:$E$9,2,0)=\"Si\"))","v":false},{"$f":"AND(NOT(ISNUMBER(MATCH(DATE($A$4,INT((COLUMN()-1)/31.001)+$A$3,ROUNDUP(MOD(COLUMN()-1,31.001),0)),Feriados,0))),(VLOOKUP(VLOOKUP(WEEKDAY(DATE($A$4,INT((COLUMN()-1)/31.001)+$A$3,ROUNDUP(MOD(COLUMN()-1,31.001),0)),2),Auxiliar!$D$1:$E$7,2,0),'Fiestas y días laborables'!$D$3:$E$9,2,0)=\"Si\"))","v":false},{"$f":"AND(NOT(ISNUMBER(MATCH(DATE($A$4,INT((COLUMN()-1)/31.001)+$A$3,ROUNDUP(MOD(COLUMN()-1,31.001),0)),Feriados,0))),(VLOOKUP(VLOOKUP(WEEKDAY(DATE($A$4,INT((COLUMN()-1)/31.001)+$A$3,ROUNDUP(MOD(COLUMN()-1,31.001),0)),2),Auxiliar!$D$1:$E$7,2,0),'Fiestas y días laborables'!$D$3:$E$9,2,0)=\"Si\"))","v":true},{"$f":"AND(NOT(ISNUMBER(MATCH(DATE($A$4,INT((COLUMN()-1)/31.001)+$A$3,ROUNDUP(MOD(COLUMN()-1,31.001),0)),Feriados,0))),(VLOOKUP(VLOOKUP(WEEKDAY(DATE($A$4,INT((COLUMN()-1)/31.001)+$A$3,ROUNDUP(MOD(COLUMN()-1,31.001),0)),2),Auxiliar!$D$1:$E$7,2,0),'Fiestas y días laborables'!$D$3:$E$9,2,0)=\"Si\"))","v":true},{"$f":"AND(NOT(ISNUMBER(MATCH(DATE($A$4,INT((COLUMN()-1)/31.001)+$A$3,ROUNDUP(MOD(COLUMN()-1,31.001),0)),Feriados,0))),(VLOOKUP(VLOOKUP(WEEKDAY(DATE($A$4,INT((COLUMN()-1)/31.001)+$A$3,ROUNDUP(MOD(COLUMN()-1,31.001),0)),2),Auxiliar!$D$1:$E$7,2,0),'Fiestas y días laborables'!$D$3:$E$9,2,0)=\"Si\"))","v":true},{"$f":"AND(NOT(ISNUMBER(MATCH(DATE($A$4,INT((COLUMN()-1)/31.001)+$A$3,ROUNDUP(MOD(COLUMN()-1,31.001),0)),Feriados,0))),(VLOOKUP(VLOOKUP(WEEKDAY(DATE($A$4,INT((COLUMN()-1)/31.001)+$A$3,ROUNDUP(MOD(COLUMN()-1,31.001),0)),2),Auxiliar!$D$1:$E$7,2,0),'Fiestas y días laborables'!$D$3:$E$9,2,0)=\"Si\"))","v":true},{"$f":"AND(NOT(ISNUMBER(MATCH(DATE($A$4,INT((COLUMN()-1)/31.001)+$A$3,ROUNDUP(MOD(COLUMN()-1,31.001),0)),Feriados,0))),(VLOOKUP(VLOOKUP(WEEKDAY(DATE($A$4,INT((COLUMN()-1)/31.001)+$A$3,ROUNDUP(MOD(COLUMN()-1,31.001),0)),2),Auxiliar!$D$1:$E$7,2,0),'Fiestas y días laborables'!$D$3:$E$9,2,0)=\"Si\"))","v":true},{"$f":"AND(NOT(ISNUMBER(MATCH(DATE($A$4,INT((COLUMN()-1)/31.001)+$A$3,ROUNDUP(MOD(COLUMN()-1,31.001),0)),Feriados,0))),(VLOOKUP(VLOOKUP(WEEKDAY(DATE($A$4,INT((COLUMN()-1)/31.001)+$A$3,ROUNDUP(MOD(COLUMN()-1,31.001),0)),2),Auxiliar!$D$1:$E$7,2,0),'Fiestas y días laborables'!$D$3:$E$9,2,0)=\"Si\"))","v":false},{"$f":"AND(NOT(ISNUMBER(MATCH(DATE($A$4,INT((COLUMN()-1)/31.001)+$A$3,ROUNDUP(MOD(COLUMN()-1,31.001),0)),Feriados,0))),(VLOOKUP(VLOOKUP(WEEKDAY(DATE($A$4,INT((COLUMN()-1)/31.001)+$A$3,ROUNDUP(MOD(COLUMN()-1,31.001),0)),2),Auxiliar!$D$1:$E$7,2,0),'Fiestas y días laborables'!$D$3:$E$9,2,0)=\"Si\"))","v":false},{"$f":"AND(NOT(ISNUMBER(MATCH(DATE($A$4,INT((COLUMN()-1)/31.001)+$A$3,ROUNDUP(MOD(COLUMN()-1,31.001),0)),Feriados,0))),(VLOOKUP(VLOOKUP(WEEKDAY(DATE($A$4,INT((COLUMN()-1)/31.001)+$A$3,ROUNDUP(MOD(COLUMN()-1,31.001),0)),2),Auxiliar!$D$1:$E$7,2,0),'Fiestas y días laborables'!$D$3:$E$9,2,0)=\"Si\"))","v":true},{"$f":"AND(NOT(ISNUMBER(MATCH(DATE($A$4,INT((COLUMN()-1)/31.001)+$A$3,ROUNDUP(MOD(COLUMN()-1,31.001),0)),Feriados,0))),(VLOOKUP(VLOOKUP(WEEKDAY(DATE($A$4,INT((COLUMN()-1)/31.001)+$A$3,ROUNDUP(MOD(COLUMN()-1,31.001),0)),2),Auxiliar!$D$1:$E$7,2,0),'Fiestas y días laborables'!$D$3:$E$9,2,0)=\"Si\"))","v":true},{"$f":"AND(NOT(ISNUMBER(MATCH(DATE($A$4,INT((COLUMN()-1)/31.001)+$A$3,ROUNDUP(MOD(COLUMN()-1,31.001),0)),Feriados,0))),(VLOOKUP(VLOOKUP(WEEKDAY(DATE($A$4,INT((COLUMN()-1)/31.001)+$A$3,ROUNDUP(MOD(COLUMN()-1,31.001),0)),2),Auxiliar!$D$1:$E$7,2,0),'Fiestas y días laborables'!$D$3:$E$9,2,0)=\"Si\"))","v":true},{"$f":"AND(NOT(ISNUMBER(MATCH(DATE($A$4,INT((COLUMN()-1)/31.001)+$A$3,ROUNDUP(MOD(COLUMN()-1,31.001),0)),Feriados,0))),(VLOOKUP(VLOOKUP(WEEKDAY(DATE($A$4,INT((COLUMN()-1)/31.001)+$A$3,ROUNDUP(MOD(COLUMN()-1,31.001),0)),2),Auxiliar!$D$1:$E$7,2,0),'Fiestas y días laborables'!$D$3:$E$9,2,0)=\"Si\"))","v":true},{"$f":"AND(NOT(ISNUMBER(MATCH(DATE($A$4,INT((COLUMN()-1)/31.001)+$A$3,ROUNDUP(MOD(COLUMN()-1,31.001),0)),Feriados,0))),(VLOOKUP(VLOOKUP(WEEKDAY(DATE($A$4,INT((COLUMN()-1)/31.001)+$A$3,ROUNDUP(MOD(COLUMN()-1,31.001),0)),2),Auxiliar!$D$1:$E$7,2,0),'Fiestas y días laborables'!$D$3:$E$9,2,0)=\"Si\"))","v":true},{"$f":"AND(NOT(ISNUMBER(MATCH(DATE($A$4,INT((COLUMN()-1)/31.001)+$A$3,ROUNDUP(MOD(COLUMN()-1,31.001),0)),Feriados,0))),(VLOOKUP(VLOOKUP(WEEKDAY(DATE($A$4,INT((COLUMN()-1)/31.001)+$A$3,ROUNDUP(MOD(COLUMN()-1,31.001),0)),2),Auxiliar!$D$1:$E$7,2,0),'Fiestas y días laborables'!$D$3:$E$9,2,0)=\"Si\"))","v":false},{"$f":"AND(NOT(ISNUMBER(MATCH(DATE($A$4,INT((COLUMN()-1)/31.001)+$A$3,ROUNDUP(MOD(COLUMN()-1,31.001),0)),Feriados,0))),(VLOOKUP(VLOOKUP(WEEKDAY(DATE($A$4,INT((COLUMN()-1)/31.001)+$A$3,ROUNDUP(MOD(COLUMN()-1,31.001),0)),2),Auxiliar!$D$1:$E$7,2,0),'Fiestas y días laborables'!$D$3:$E$9,2,0)=\"Si\"))","v":false},{"$f":"AND(NOT(ISNUMBER(MATCH(DATE($A$4,INT((COLUMN()-1)/31.001)+$A$3,ROUNDUP(MOD(COLUMN()-1,31.001),0)),Feriados,0))),(VLOOKUP(VLOOKUP(WEEKDAY(DATE($A$4,INT((COLUMN()-1)/31.001)+$A$3,ROUNDUP(MOD(COLUMN()-1,31.001),0)),2),Auxiliar!$D$1:$E$7,2,0),'Fiestas y días laborables'!$D$3:$E$9,2,0)=\"Si\"))","v":true},{"$f":"AND(NOT(ISNUMBER(MATCH(DATE($A$4,INT((COLUMN()-1)/31.001)+$A$3,ROUNDUP(MOD(COLUMN()-1,31.001),0)),Feriados,0))),(VLOOKUP(VLOOKUP(WEEKDAY(DATE($A$4,INT((COLUMN()-1)/31.001)+$A$3,ROUNDUP(MOD(COLUMN()-1,31.001),0)),2),Auxiliar!$D$1:$E$7,2,0),'Fiestas y días laborables'!$D$3:$E$9,2,0)=\"Si\"))","v":true},{"$f":"AND(NOT(ISNUMBER(MATCH(DATE($A$4,INT((COLUMN()-1)/31.001)+$A$3,ROUNDUP(MOD(COLUMN()-1,31.001),0)),Feriados,0))),(VLOOKUP(VLOOKUP(WEEKDAY(DATE($A$4,INT((COLUMN()-1)/31.001)+$A$3,ROUNDUP(MOD(COLUMN()-1,31.001),0)),2),Auxiliar!$D$1:$E$7,2,0),'Fiestas y días laborables'!$D$3:$E$9,2,0)=\"Si\"))","v":true},{"$f":"AND(NOT(ISNUMBER(MATCH(DATE($A$4,INT((COLUMN()-1)/31.001)+$A$3,ROUNDUP(MOD(COLUMN()-1,31.001),0)),Feriados,0))),(VLOOKUP(VLOOKUP(WEEKDAY(DATE($A$4,INT((COLUMN()-1)/31.001)+$A$3,ROUNDUP(MOD(COLUMN()-1,31.001),0)),2),Auxiliar!$D$1:$E$7,2,0),'Fiestas y días laborables'!$D$3:$E$9,2,0)=\"Si\"))","v":true},{"$f":"AND(NOT(ISNUMBER(MATCH(DATE($A$4,INT((COLUMN()-1)/31.001)+$A$3,ROUNDUP(MOD(COLUMN()-1,31.001),0)),Feriados,0))),(VLOOKUP(VLOOKUP(WEEKDAY(DATE($A$4,INT((COLUMN()-1)/31.001)+$A$3,ROUNDUP(MOD(COLUMN()-1,31.001),0)),2),Auxiliar!$D$1:$E$7,2,0),'Fiestas y días laborables'!$D$3:$E$9,2,0)=\"Si\"))","v":true},{"$f":"AND(NOT(ISNUMBER(MATCH(DATE($A$4,INT((COLUMN()-1)/31.001)+$A$3,ROUNDUP(MOD(COLUMN()-1,31.001),0)),Feriados,0))),(VLOOKUP(VLOOKUP(WEEKDAY(DATE($A$4,INT((COLUMN()-1)/31.001)+$A$3,ROUNDUP(MOD(COLUMN()-1,31.001),0)),2),Auxiliar!$D$1:$E$7,2,0),'Fiestas y días laborables'!$D$3:$E$9,2,0)=\"Si\"))","v":true},{"$f":"AND(NOT(ISNUMBER(MATCH(DATE($A$4,INT((COLUMN()-1)/31.001)+$A$3,ROUNDUP(MOD(COLUMN()-1,31.001),0)),Feriados,0))),(VLOOKUP(VLOOKUP(WEEKDAY(DATE($A$4,INT((COLUMN()-1)/31.001)+$A$3,ROUNDUP(MOD(COLUMN()-1,31.001),0)),2),Auxiliar!$D$1:$E$7,2,0),'Fiestas y días laborables'!$D$3:$E$9,2,0)=\"Si\"))","v":true},{"$f":"AND(NOT(ISNUMBER(MATCH(DATE($A$4,INT((COLUMN()-1)/31.001)+$A$3,ROUNDUP(MOD(COLUMN()-1,31.001),0)),Feriados,0))),(VLOOKUP(VLOOKUP(WEEKDAY(DATE($A$4,INT((COLUMN()-1)/31.001)+$A$3,ROUNDUP(MOD(COLUMN()-1,31.001),0)),2),Auxiliar!$D$1:$E$7,2,0),'Fiestas y días laborables'!$D$3:$E$9,2,0)=\"Si\"))","v":true},{"$f":"AND(NOT(ISNUMBER(MATCH(DATE($A$4,INT((COLUMN()-1)/31.001)+$A$3,ROUNDUP(MOD(COLUMN()-1,31.001),0)),Feriados,0))),(VLOOKUP(VLOOKUP(WEEKDAY(DATE($A$4,INT((COLUMN()-1)/31.001)+$A$3,ROUNDUP(MOD(COLUMN()-1,31.001),0)),2),Auxiliar!$D$1:$E$7,2,0),'Fiestas y días laborables'!$D$3:$E$9,2,0)=\"Si\"))","v":false},{"$f":"AND(NOT(ISNUMBER(MATCH(DATE($A$4,INT((COLUMN()-1)/31.001)+$A$3,ROUNDUP(MOD(COLUMN()-1,31.001),0)),Feriados,0))),(VLOOKUP(VLOOKUP(WEEKDAY(DATE($A$4,INT((COLUMN()-1)/31.001)+$A$3,ROUNDUP(MOD(COLUMN()-1,31.001),0)),2),Auxiliar!$D$1:$E$7,2,0),'Fiestas y días laborables'!$D$3:$E$9,2,0)=\"Si\"))","v":false},{"$f":"AND(NOT(ISNUMBER(MATCH(DATE($A$4,INT((COLUMN()-1)/31.001)+$A$3,ROUNDUP(MOD(COLUMN()-1,31.001),0)),Feriados,0))),(VLOOKUP(VLOOKUP(WEEKDAY(DATE($A$4,INT((COLUMN()-1)/31.001)+$A$3,ROUNDUP(MOD(COLUMN()-1,31.001),0)),2),Auxiliar!$D$1:$E$7,2,0),'Fiestas y días laborables'!$D$3:$E$9,2,0)=\"Si\"))","v":true},{"$f":"AND(NOT(ISNUMBER(MATCH(DATE($A$4,INT((COLUMN()-1)/31.001)+$A$3,ROUNDUP(MOD(COLUMN()-1,31.001),0)),Feriados,0))),(VLOOKUP(VLOOKUP(WEEKDAY(DATE($A$4,INT((COLUMN()-1)/31.001)+$A$3,ROUNDUP(MOD(COLUMN()-1,31.001),0)),2),Auxiliar!$D$1:$E$7,2,0),'Fiestas y días laborables'!$D$3:$E$9,2,0)=\"Si\"))","v":true},{"$f":"AND(NOT(ISNUMBER(MATCH(DATE($A$4,INT((COLUMN()-1)/31.001)+$A$3,ROUNDUP(MOD(COLUMN()-1,31.001),0)),Feriados,0))),(VLOOKUP(VLOOKUP(WEEKDAY(DATE($A$4,INT((COLUMN()-1)/31.001)+$A$3,ROUNDUP(MOD(COLUMN()-1,31.001),0)),2),Auxiliar!$D$1:$E$7,2,0),'Fiestas y días laborables'!$D$3:$E$9,2,0)=\"Si\"))","v":true},{"$f":"AND(NOT(ISNUMBER(MATCH(DATE($A$4,INT((COLUMN()-1)/31.001)+$A$3,ROUNDUP(MOD(COLUMN()-1,31.001),0)),Feriados,0))),(VLOOKUP(VLOOKUP(WEEKDAY(DATE($A$4,INT((COLUMN()-1)/31.001)+$A$3,ROUNDUP(MOD(COLUMN()-1,31.001),0)),2),Auxiliar!$D$1:$E$7,2,0),'Fiestas y días laborables'!$D$3:$E$9,2,0)=\"Si\"))","v":true},{"$f":"AND(NOT(ISNUMBER(MATCH(DATE($A$4,INT((COLUMN()-1)/31.001)+$A$3,ROUNDUP(MOD(COLUMN()-1,31.001),0)),Feriados,0))),(VLOOKUP(VLOOKUP(WEEKDAY(DATE($A$4,INT((COLUMN()-1)/31.001)+$A$3,ROUNDUP(MOD(COLUMN()-1,31.001),0)),2),Auxiliar!$D$1:$E$7,2,0),'Fiestas y días laborables'!$D$3:$E$9,2,0)=\"Si\"))","v":true},{"$f":"AND(NOT(ISNUMBER(MATCH(DATE($A$4,INT((COLUMN()-1)/31.001)+$A$3,ROUNDUP(MOD(COLUMN()-1,31.001),0)),Feriados,0))),(VLOOKUP(VLOOKUP(WEEKDAY(DATE($A$4,INT((COLUMN()-1)/31.001)+$A$3,ROUNDUP(MOD(COLUMN()-1,31.001),0)),2),Auxiliar!$D$1:$E$7,2,0),'Fiestas y días laborables'!$D$3:$E$9,2,0)=\"Si\"))","v":false},{"$f":"AND(NOT(ISNUMBER(MATCH(DATE($A$4,INT((COLUMN()-1)/31.001)+$A$3,ROUNDUP(MOD(COLUMN()-1,31.001),0)),Feriados,0))),(VLOOKUP(VLOOKUP(WEEKDAY(DATE($A$4,INT((COLUMN()-1)/31.001)+$A$3,ROUNDUP(MOD(COLUMN()-1,31.001),0)),2),Auxiliar!$D$1:$E$7,2,0),'Fiestas y días laborables'!$D$3:$E$9,2,0)=\"Si\"))","v":false},{"$f":"AND(NOT(ISNUMBER(MATCH(DATE($A$4,INT((COLUMN()-1)/31.001)+$A$3,ROUNDUP(MOD(COLUMN()-1,31.001),0)),Feriados,0))),(VLOOKUP(VLOOKUP(WEEKDAY(DATE($A$4,INT((COLUMN()-1)/31.001)+$A$3,ROUNDUP(MOD(COLUMN()-1,31.001),0)),2),Auxiliar!$D$1:$E$7,2,0),'Fiestas y días laborables'!$D$3:$E$9,2,0)=\"Si\"))","v":true},{"$f":"AND(NOT(ISNUMBER(MATCH(DATE($A$4,INT((COLUMN()-1)/31.001)+$A$3,ROUNDUP(MOD(COLUMN()-1,31.001),0)),Feriados,0))),(VLOOKUP(VLOOKUP(WEEKDAY(DATE($A$4,INT((COLUMN()-1)/31.001)+$A$3,ROUNDUP(MOD(COLUMN()-1,31.001),0)),2),Auxiliar!$D$1:$E$7,2,0),'Fiestas y días laborables'!$D$3:$E$9,2,0)=\"Si\"))","v":true},{"$f":"AND(NOT(ISNUMBER(MATCH(DATE($A$4,INT((COLUMN()-1)/31.001)+$A$3,ROUNDUP(MOD(COLUMN()-1,31.001),0)),Feriados,0))),(VLOOKUP(VLOOKUP(WEEKDAY(DATE($A$4,INT((COLUMN()-1)/31.001)+$A$3,ROUNDUP(MOD(COLUMN()-1,31.001),0)),2),Auxiliar!$D$1:$E$7,2,0),'Fiestas y días laborables'!$D$3:$E$9,2,0)=\"Si\"))","v":true},{"$f":"AND(NOT(ISNUMBER(MATCH(DATE($A$4,INT((COLUMN()-1)/31.001)+$A$3,ROUNDUP(MOD(COLUMN()-1,31.001),0)),Feriados,0))),(VLOOKUP(VLOOKUP(WEEKDAY(DATE($A$4,INT((COLUMN()-1)/31.001)+$A$3,ROUNDUP(MOD(COLUMN()-1,31.001),0)),2),Auxiliar!$D$1:$E$7,2,0),'Fiestas y días laborables'!$D$3:$E$9,2,0)=\"Si\"))","v":true},{"$f":"AND(NOT(ISNUMBER(MATCH(DATE($A$4,INT((COLUMN()-1)/31.001)+$A$3,ROUNDUP(MOD(COLUMN()-1,31.001),0)),Feriados,0))),(VLOOKUP(VLOOKUP(WEEKDAY(DATE($A$4,INT((COLUMN()-1)/31.001)+$A$3,ROUNDUP(MOD(COLUMN()-1,31.001),0)),2),Auxiliar!$D$1:$E$7,2,0),'Fiestas y días laborables'!$D$3:$E$9,2,0)=\"Si\"))","v":true},{"$f":"AND(NOT(ISNUMBER(MATCH(DATE($A$4,INT((COLUMN()-1)/31.001)+$A$3,ROUNDUP(MOD(COLUMN()-1,31.001),0)),Feriados,0))),(VLOOKUP(VLOOKUP(WEEKDAY(DATE($A$4,INT((COLUMN()-1)/31.001)+$A$3,ROUNDUP(MOD(COLUMN()-1,31.001),0)),2),Auxiliar!$D$1:$E$7,2,0),'Fiestas y días laborables'!$D$3:$E$9,2,0)=\"Si\"))","v":false},{"$f":"AND(NOT(ISNUMBER(MATCH(DATE($A$4,INT((COLUMN()-1)/31.001)+$A$3,ROUNDUP(MOD(COLUMN()-1,31.001),0)),Feriados,0))),(VLOOKUP(VLOOKUP(WEEKDAY(DATE($A$4,INT((COLUMN()-1)/31.001)+$A$3,ROUNDUP(MOD(COLUMN()-1,31.001),0)),2),Auxiliar!$D$1:$E$7,2,0),'Fiestas y días laborables'!$D$3:$E$9,2,0)=\"Si\"))","v":false},{"$f":"AND(NOT(ISNUMBER(MATCH(DATE($A$4,INT((COLUMN()-1)/31.001)+$A$3,ROUNDUP(MOD(COLUMN()-1,31.001),0)),Feriados,0))),(VLOOKUP(VLOOKUP(WEEKDAY(DATE($A$4,INT((COLUMN()-1)/31.001)+$A$3,ROUNDUP(MOD(COLUMN()-1,31.001),0)),2),Auxiliar!$D$1:$E$7,2,0),'Fiestas y días laborables'!$D$3:$E$9,2,0)=\"Si\"))","v":true},{"$f":"AND(NOT(ISNUMBER(MATCH(DATE($A$4,INT((COLUMN()-1)/31.001)+$A$3,ROUNDUP(MOD(COLUMN()-1,31.001),0)),Feriados,0))),(VLOOKUP(VLOOKUP(WEEKDAY(DATE($A$4,INT((COLUMN()-1)/31.001)+$A$3,ROUNDUP(MOD(COLUMN()-1,31.001),0)),2),Auxiliar!$D$1:$E$7,2,0),'Fiestas y días laborables'!$D$3:$E$9,2,0)=\"Si\"))","v":true},{"$f":"AND(NOT(ISNUMBER(MATCH(DATE($A$4,INT((COLUMN()-1)/31.001)+$A$3,ROUNDUP(MOD(COLUMN()-1,31.001),0)),Feriados,0))),(VLOOKUP(VLOOKUP(WEEKDAY(DATE($A$4,INT((COLUMN()-1)/31.001)+$A$3,ROUNDUP(MOD(COLUMN()-1,31.001),0)),2),Auxiliar!$D$1:$E$7,2,0),'Fiestas y días laborables'!$D$3:$E$9,2,0)=\"Si\"))","v":true},{"$f":"AND(NOT(ISNUMBER(MATCH(DATE($A$4,INT((COLUMN()-1)/31.001)+$A$3,ROUNDUP(MOD(COLUMN()-1,31.001),0)),Feriados,0))),(VLOOKUP(VLOOKUP(WEEKDAY(DATE($A$4,INT((COLUMN()-1)/31.001)+$A$3,ROUNDUP(MOD(COLUMN()-1,31.001),0)),2),Auxiliar!$D$1:$E$7,2,0),'Fiestas y días laborables'!$D$3:$E$9,2,0)=\"Si\"))","v":true},{"$f":"AND(NOT(ISNUMBER(MATCH(DATE($A$4,INT((COLUMN()-1)/31.001)+$A$3,ROUNDUP(MOD(COLUMN()-1,31.001),0)),Feriados,0))),(VLOOKUP(VLOOKUP(WEEKDAY(DATE($A$4,INT((COLUMN()-1)/31.001)+$A$3,ROUNDUP(MOD(COLUMN()-1,31.001),0)),2),Auxiliar!$D$1:$E$7,2,0),'Fiestas y días laborables'!$D$3:$E$9,2,0)=\"Si\"))","v":true},{"$f":"AND(NOT(ISNUMBER(MATCH(DATE($A$4,INT((COLUMN()-1)/31.001)+$A$3,ROUNDUP(MOD(COLUMN()-1,31.001),0)),Feriados,0))),(VLOOKUP(VLOOKUP(WEEKDAY(DATE($A$4,INT((COLUMN()-1)/31.001)+$A$3,ROUNDUP(MOD(COLUMN()-1,31.001),0)),2),Auxiliar!$D$1:$E$7,2,0),'Fiestas y días laborables'!$D$3:$E$9,2,0)=\"Si\"))","v":false},{"$f":"AND(NOT(ISNUMBER(MATCH(DATE($A$4,INT((COLUMN()-1)/31.001)+$A$3,ROUNDUP(MOD(COLUMN()-1,31.001),0)),Feriados,0))),(VLOOKUP(VLOOKUP(WEEKDAY(DATE($A$4,INT((COLUMN()-1)/31.001)+$A$3,ROUNDUP(MOD(COLUMN()-1,31.001),0)),2),Auxiliar!$D$1:$E$7,2,0),'Fiestas y días laborables'!$D$3:$E$9,2,0)=\"Si\"))","v":false},{"$f":"AND(NOT(ISNUMBER(MATCH(DATE($A$4,INT((COLUMN()-1)/31.001)+$A$3,ROUNDUP(MOD(COLUMN()-1,31.001),0)),Feriados,0))),(VLOOKUP(VLOOKUP(WEEKDAY(DATE($A$4,INT((COLUMN()-1)/31.001)+$A$3,ROUNDUP(MOD(COLUMN()-1,31.001),0)),2),Auxiliar!$D$1:$E$7,2,0),'Fiestas y días laborables'!$D$3:$E$9,2,0)=\"Si\"))","v":true},{"$f":"AND(NOT(ISNUMBER(MATCH(DATE($A$4,INT((COLUMN()-1)/31.001)+$A$3,ROUNDUP(MOD(COLUMN()-1,31.001),0)),Feriados,0))),(VLOOKUP(VLOOKUP(WEEKDAY(DATE($A$4,INT((COLUMN()-1)/31.001)+$A$3,ROUNDUP(MOD(COLUMN()-1,31.001),0)),2),Auxiliar!$D$1:$E$7,2,0),'Fiestas y días laborables'!$D$3:$E$9,2,0)=\"Si\"))","v":true},{"$f":"AND(NOT(ISNUMBER(MATCH(DATE($A$4,INT((COLUMN()-1)/31.001)+$A$3,ROUNDUP(MOD(COLUMN()-1,31.001),0)),Feriados,0))),(VLOOKUP(VLOOKUP(WEEKDAY(DATE($A$4,INT((COLUMN()-1)/31.001)+$A$3,ROUNDUP(MOD(COLUMN()-1,31.001),0)),2),Auxiliar!$D$1:$E$7,2,0),'Fiestas y días laborables'!$D$3:$E$9,2,0)=\"Si\"))","v":true},{"$f":"AND(NOT(ISNUMBER(MATCH(DATE($A$4,INT((COLUMN()-1)/31.001)+$A$3,ROUNDUP(MOD(COLUMN()-1,31.001),0)),Feriados,0))),(VLOOKUP(VLOOKUP(WEEKDAY(DATE($A$4,INT((COLUMN()-1)/31.001)+$A$3,ROUNDUP(MOD(COLUMN()-1,31.001),0)),2),Auxiliar!$D$1:$E$7,2,0),'Fiestas y días laborables'!$D$3:$E$9,2,0)=\"Si\"))","v":true},{"$f":"AND(NOT(ISNUMBER(MATCH(DATE($A$4,INT((COLUMN()-1)/31.001)+$A$3,ROUNDUP(MOD(COLUMN()-1,31.001),0)),Feriados,0))),(VLOOKUP(VLOOKUP(WEEKDAY(DATE($A$4,INT((COLUMN()-1)/31.001)+$A$3,ROUNDUP(MOD(COLUMN()-1,31.001),0)),2),Auxiliar!$D$1:$E$7,2,0),'Fiestas y días laborables'!$D$3:$E$9,2,0)=\"Si\"))","v":true},{"$f":"AND(NOT(ISNUMBER(MATCH(DATE($A$4,INT((COLUMN()-1)/31.001)+$A$3,ROUNDUP(MOD(COLUMN()-1,31.001),0)),Feriados,0))),(VLOOKUP(VLOOKUP(WEEKDAY(DATE($A$4,INT((COLUMN()-1)/31.001)+$A$3,ROUNDUP(MOD(COLUMN()-1,31.001),0)),2),Auxiliar!$D$1:$E$7,2,0),'Fiestas y días laborables'!$D$3:$E$9,2,0)=\"Si\"))","v":false},{"$f":"AND(NOT(ISNUMBER(MATCH(DATE($A$4,INT((COLUMN()-1)/31.001)+$A$3,ROUNDUP(MOD(COLUMN()-1,31.001),0)),Feriados,0))),(VLOOKUP(VLOOKUP(WEEKDAY(DATE($A$4,INT((COLUMN()-1)/31.001)+$A$3,ROUNDUP(MOD(COLUMN()-1,31.001),0)),2),Auxiliar!$D$1:$E$7,2,0),'Fiestas y días laborables'!$D$3:$E$9,2,0)=\"Si\"))","v":false},{"$f":"AND(NOT(ISNUMBER(MATCH(DATE($A$4,INT((COLUMN()-1)/31.001)+$A$3,ROUNDUP(MOD(COLUMN()-1,31.001),0)),Feriados,0))),(VLOOKUP(VLOOKUP(WEEKDAY(DATE($A$4,INT((COLUMN()-1)/31.001)+$A$3,ROUNDUP(MOD(COLUMN()-1,31.001),0)),2),Auxiliar!$D$1:$E$7,2,0),'Fiestas y días laborables'!$D$3:$E$9,2,0)=\"Si\"))","v":true},{"$f":"AND(NOT(ISNUMBER(MATCH(DATE($A$4,INT((COLUMN()-1)/31.001)+$A$3,ROUNDUP(MOD(COLUMN()-1,31.001),0)),Feriados,0))),(VLOOKUP(VLOOKUP(WEEKDAY(DATE($A$4,INT((COLUMN()-1)/31.001)+$A$3,ROUNDUP(MOD(COLUMN()-1,31.001),0)),2),Auxiliar!$D$1:$E$7,2,0),'Fiestas y días laborables'!$D$3:$E$9,2,0)=\"Si\"))","v":true},{"$f":"AND(NOT(ISNUMBER(MATCH(DATE($A$4,INT((COLUMN()-1)/31.001)+$A$3,ROUNDUP(MOD(COLUMN()-1,31.001),0)),Feriados,0))),(VLOOKUP(VLOOKUP(WEEKDAY(DATE($A$4,INT((COLUMN()-1)/31.001)+$A$3,ROUNDUP(MOD(COLUMN()-1,31.001),0)),2),Auxiliar!$D$1:$E$7,2,0),'Fiestas y días laborables'!$D$3:$E$9,2,0)=\"Si\"))","v":true},{"$f":"AND(NOT(ISNUMBER(MATCH(DATE($A$4,INT((COLUMN()-1)/31.001)+$A$3,ROUNDUP(MOD(COLUMN()-1,31.001),0)),Feriados,0))),(VLOOKUP(VLOOKUP(WEEKDAY(DATE($A$4,INT((COLUMN()-1)/31.001)+$A$3,ROUNDUP(MOD(COLUMN()-1,31.001),0)),2),Auxiliar!$D$1:$E$7,2,0),'Fiestas y días laborables'!$D$3:$E$9,2,0)=\"Si\"))","v":true},{"$f":"AND(NOT(ISNUMBER(MATCH(DATE($A$4,INT((COLUMN()-1)/31.001)+$A$3,ROUNDUP(MOD(COLUMN()-1,31.001),0)),Feriados,0))),(VLOOKUP(VLOOKUP(WEEKDAY(DATE($A$4,INT((COLUMN()-1)/31.001)+$A$3,ROUNDUP(MOD(COLUMN()-1,31.001),0)),2),Auxiliar!$D$1:$E$7,2,0),'Fiestas y días laborables'!$D$3:$E$9,2,0)=\"Si\"))","v":true},{"$f":"AND(NOT(ISNUMBER(MATCH(DATE($A$4,INT((COLUMN()-1)/31.001)+$A$3,ROUNDUP(MOD(COLUMN()-1,31.001),0)),Feriados,0))),(VLOOKUP(VLOOKUP(WEEKDAY(DATE($A$4,INT((COLUMN()-1)/31.001)+$A$3,ROUNDUP(MOD(COLUMN()-1,31.001),0)),2),Auxiliar!$D$1:$E$7,2,0),'Fiestas y días laborables'!$D$3:$E$9,2,0)=\"Si\"))","v":false},{"$f":"AND(NOT(ISNUMBER(MATCH(DATE($A$4,INT((COLUMN()-1)/31.001)+$A$3,ROUNDUP(MOD(COLUMN()-1,31.001),0)),Feriados,0))),(VLOOKUP(VLOOKUP(WEEKDAY(DATE($A$4,INT((COLUMN()-1)/31.001)+$A$3,ROUNDUP(MOD(COLUMN()-1,31.001),0)),2),Auxiliar!$D$1:$E$7,2,0),'Fiestas y días laborables'!$D$3:$E$9,2,0)=\"Si\"))","v":false},{"$f":"AND(NOT(ISNUMBER(MATCH(DATE($A$4,INT((COLUMN()-1)/31.001)+$A$3,ROUNDUP(MOD(COLUMN()-1,31.001),0)),Feriados,0))),(VLOOKUP(VLOOKUP(WEEKDAY(DATE($A$4,INT((COLUMN()-1)/31.001)+$A$3,ROUNDUP(MOD(COLUMN()-1,31.001),0)),2),Auxiliar!$D$1:$E$7,2,0),'Fiestas y días laborables'!$D$3:$E$9,2,0)=\"Si\"))","v":true},{"$f":"AND(NOT(ISNUMBER(MATCH(DATE($A$4,INT((COLUMN()-1)/31.001)+$A$3,ROUNDUP(MOD(COLUMN()-1,31.001),0)),Feriados,0))),(VLOOKUP(VLOOKUP(WEEKDAY(DATE($A$4,INT((COLUMN()-1)/31.001)+$A$3,ROUNDUP(MOD(COLUMN()-1,31.001),0)),2),Auxiliar!$D$1:$E$7,2,0),'Fiestas y días laborables'!$D$3:$E$9,2,0)=\"Si\"))","v":true},{"$f":"AND(NOT(ISNUMBER(MATCH(DATE($A$4,INT((COLUMN()-1)/31.001)+$A$3,ROUNDUP(MOD(COLUMN()-1,31.001),0)),Feriados,0))),(VLOOKUP(VLOOKUP(WEEKDAY(DATE($A$4,INT((COLUMN()-1)/31.001)+$A$3,ROUNDUP(MOD(COLUMN()-1,31.001),0)),2),Auxiliar!$D$1:$E$7,2,0),'Fiestas y días laborables'!$D$3:$E$9,2,0)=\"Si\"))","v":true},{"$f":"AND(NOT(ISNUMBER(MATCH(DATE($A$4,INT((COLUMN()-1)/31.001)+$A$3,ROUNDUP(MOD(COLUMN()-1,31.001),0)),Feriados,0))),(VLOOKUP(VLOOKUP(WEEKDAY(DATE($A$4,INT((COLUMN()-1)/31.001)+$A$3,ROUNDUP(MOD(COLUMN()-1,31.001),0)),2),Auxiliar!$D$1:$E$7,2,0),'Fiestas y días laborables'!$D$3:$E$9,2,0)=\"Si\"))","v":true},{"$f":"AND(NOT(ISNUMBER(MATCH(DATE($A$4,INT((COLUMN()-1)/31.001)+$A$3,ROUNDUP(MOD(COLUMN()-1,31.001),0)),Feriados,0))),(VLOOKUP(VLOOKUP(WEEKDAY(DATE($A$4,INT((COLUMN()-1)/31.001)+$A$3,ROUNDUP(MOD(COLUMN()-1,31.001),0)),2),Auxiliar!$D$1:$E$7,2,0),'Fiestas y días laborables'!$D$3:$E$9,2,0)=\"Si\"))","v":true},{"$f":"AND(NOT(ISNUMBER(MATCH(DATE($A$4,INT((COLUMN()-1)/31.001)+$A$3,ROUNDUP(MOD(COLUMN()-1,31.001),0)),Feriados,0))),(VLOOKUP(VLOOKUP(WEEKDAY(DATE($A$4,INT((COLUMN()-1)/31.001)+$A$3,ROUNDUP(MOD(COLUMN()-1,31.001),0)),2),Auxiliar!$D$1:$E$7,2,0),'Fiestas y días laborables'!$D$3:$E$9,2,0)=\"Si\"))","v":false},{"$f":"AND(NOT(ISNUMBER(MATCH(DATE($A$4,INT((COLUMN()-1)/31.001)+$A$3,ROUNDUP(MOD(COLUMN()-1,31.001),0)),Feriados,0))),(VLOOKUP(VLOOKUP(WEEKDAY(DATE($A$4,INT((COLUMN()-1)/31.001)+$A$3,ROUNDUP(MOD(COLUMN()-1,31.001),0)),2),Auxiliar!$D$1:$E$7,2,0),'Fiestas y días laborables'!$D$3:$E$9,2,0)=\"Si\"))","v":false},{"$f":"AND(NOT(ISNUMBER(MATCH(DATE($A$4,INT((COLUMN()-1)/31.001)+$A$3,ROUNDUP(MOD(COLUMN()-1,31.001),0)),Feriados,0))),(VLOOKUP(VLOOKUP(WEEKDAY(DATE($A$4,INT((COLUMN()-1)/31.001)+$A$3,ROUNDUP(MOD(COLUMN()-1,31.001),0)),2),Auxiliar!$D$1:$E$7,2,0),'Fiestas y días laborables'!$D$3:$E$9,2,0)=\"Si\"))","v":true},{"$f":"AND(NOT(ISNUMBER(MATCH(DATE($A$4,INT((COLUMN()-1)/31.001)+$A$3,ROUNDUP(MOD(COLUMN()-1,31.001),0)),Feriados,0))),(VLOOKUP(VLOOKUP(WEEKDAY(DATE($A$4,INT((COLUMN()-1)/31.001)+$A$3,ROUNDUP(MOD(COLUMN()-1,31.001),0)),2),Auxiliar!$D$1:$E$7,2,0),'Fiestas y días laborables'!$D$3:$E$9,2,0)=\"Si\"))","v":true},{"$f":"AND(NOT(ISNUMBER(MATCH(DATE($A$4,INT((COLUMN()-1)/31.001)+$A$3,ROUNDUP(MOD(COLUMN()-1,31.001),0)),Feriados,0))),(VLOOKUP(VLOOKUP(WEEKDAY(DATE($A$4,INT((COLUMN()-1)/31.001)+$A$3,ROUNDUP(MOD(COLUMN()-1,31.001),0)),2),Auxiliar!$D$1:$E$7,2,0),'Fiestas y días laborables'!$D$3:$E$9,2,0)=\"Si\"))","v":true},{"$f":"AND(NOT(ISNUMBER(MATCH(DATE($A$4,INT((COLUMN()-1)/31.001)+$A$3,ROUNDUP(MOD(COLUMN()-1,31.001),0)),Feriados,0))),(VLOOKUP(VLOOKUP(WEEKDAY(DATE($A$4,INT((COLUMN()-1)/31.001)+$A$3,ROUNDUP(MOD(COLUMN()-1,31.001),0)),2),Auxiliar!$D$1:$E$7,2,0),'Fiestas y días laborables'!$D$3:$E$9,2,0)=\"Si\"))","v":true},{"$f":"AND(NOT(ISNUMBER(MATCH(DATE($A$4,INT((COLUMN()-1)/31.001)+$A$3,ROUNDUP(MOD(COLUMN()-1,31.001),0)),Feriados,0))),(VLOOKUP(VLOOKUP(WEEKDAY(DATE($A$4,INT((COLUMN()-1)/31.001)+$A$3,ROUNDUP(MOD(COLUMN()-1,31.001),0)),2),Auxiliar!$D$1:$E$7,2,0),'Fiestas y días laborables'!$D$3:$E$9,2,0)=\"Si\"))","v":true},{"$f":"AND(NOT(ISNUMBER(MATCH(DATE($A$4,INT((COLUMN()-1)/31.001)+$A$3,ROUNDUP(MOD(COLUMN()-1,31.001),0)),Feriados,0))),(VLOOKUP(VLOOKUP(WEEKDAY(DATE($A$4,INT((COLUMN()-1)/31.001)+$A$3,ROUNDUP(MOD(COLUMN()-1,31.001),0)),2),Auxiliar!$D$1:$E$7,2,0),'Fiestas y días laborables'!$D$3:$E$9,2,0)=\"Si\"))","v":false},{"$f":"AND(NOT(ISNUMBER(MATCH(DATE($A$4,INT((COLUMN()-1)/31.001)+$A$3,ROUNDUP(MOD(COLUMN()-1,31.001),0)),Feriados,0))),(VLOOKUP(VLOOKUP(WEEKDAY(DATE($A$4,INT((COLUMN()-1)/31.001)+$A$3,ROUNDUP(MOD(COLUMN()-1,31.001),0)),2),Auxiliar!$D$1:$E$7,2,0),'Fiestas y días laborables'!$D$3:$E$9,2,0)=\"Si\"))","v":false},{"$f":"AND(NOT(ISNUMBER(MATCH(DATE($A$4,INT((COLUMN()-1)/31.001)+$A$3,ROUNDUP(MOD(COLUMN()-1,31.001),0)),Feriados,0))),(VLOOKUP(VLOOKUP(WEEKDAY(DATE($A$4,INT((COLUMN()-1)/31.001)+$A$3,ROUNDUP(MOD(COLUMN()-1,31.001),0)),2),Auxiliar!$D$1:$E$7,2,0),'Fiestas y días laborables'!$D$3:$E$9,2,0)=\"Si\"))","v":true},{"$f":"AND(NOT(ISNUMBER(MATCH(DATE($A$4,INT((COLUMN()-1)/31.001)+$A$3,ROUNDUP(MOD(COLUMN()-1,31.001),0)),Feriados,0))),(VLOOKUP(VLOOKUP(WEEKDAY(DATE($A$4,INT((COLUMN()-1)/31.001)+$A$3,ROUNDUP(MOD(COLUMN()-1,31.001),0)),2),Auxiliar!$D$1:$E$7,2,0),'Fiestas y días laborables'!$D$3:$E$9,2,0)=\"Si\"))","v":true},{"$f":"AND(NOT(ISNUMBER(MATCH(DATE($A$4,INT((COLUMN()-1)/31.001)+$A$3,ROUNDUP(MOD(COLUMN()-1,31.001),0)),Feriados,0))),(VLOOKUP(VLOOKUP(WEEKDAY(DATE($A$4,INT((COLUMN()-1)/31.001)+$A$3,ROUNDUP(MOD(COLUMN()-1,31.001),0)),2),Auxiliar!$D$1:$E$7,2,0),'Fiestas y días laborables'!$D$3:$E$9,2,0)=\"Si\"))","v":true},{"$f":"AND(NOT(ISNUMBER(MATCH(DATE($A$4,INT((COLUMN()-1)/31.001)+$A$3,ROUNDUP(MOD(COLUMN()-1,31.001),0)),Feriados,0))),(VLOOKUP(VLOOKUP(WEEKDAY(DATE($A$4,INT((COLUMN()-1)/31.001)+$A$3,ROUNDUP(MOD(COLUMN()-1,31.001),0)),2),Auxiliar!$D$1:$E$7,2,0),'Fiestas y días laborables'!$D$3:$E$9,2,0)=\"Si\"))","v":true},{"$f":"AND(NOT(ISNUMBER(MATCH(DATE($A$4,INT((COLUMN()-1)/31.001)+$A$3,ROUNDUP(MOD(COLUMN()-1,31.001),0)),Feriados,0))),(VLOOKUP(VLOOKUP(WEEKDAY(DATE($A$4,INT((COLUMN()-1)/31.001)+$A$3,ROUNDUP(MOD(COLUMN()-1,31.001),0)),2),Auxiliar!$D$1:$E$7,2,0),'Fiestas y días laborables'!$D$3:$E$9,2,0)=\"Si\"))","v":true},{"$f":"AND(NOT(ISNUMBER(MATCH(DATE($A$4,INT((COLUMN()-1)/31.001)+$A$3,ROUNDUP(MOD(COLUMN()-1,31.001),0)),Feriados,0))),(VLOOKUP(VLOOKUP(WEEKDAY(DATE($A$4,INT((COLUMN()-1)/31.001)+$A$3,ROUNDUP(MOD(COLUMN()-1,31.001),0)),2),Auxiliar!$D$1:$E$7,2,0),'Fiestas y días laborables'!$D$3:$E$9,2,0)=\"Si\"))","v":false},{"$f":"AND(NOT(ISNUMBER(MATCH(DATE($A$4,INT((COLUMN()-1)/31.001)+$A$3,ROUNDUP(MOD(COLUMN()-1,31.001),0)),Feriados,0))),(VLOOKUP(VLOOKUP(WEEKDAY(DATE($A$4,INT((COLUMN()-1)/31.001)+$A$3,ROUNDUP(MOD(COLUMN()-1,31.001),0)),2),Auxiliar!$D$1:$E$7,2,0),'Fiestas y días laborables'!$D$3:$E$9,2,0)=\"Si\"))","v":false},{"$f":"AND(NOT(ISNUMBER(MATCH(DATE($A$4,INT((COLUMN()-1)/31.001)+$A$3,ROUNDUP(MOD(COLUMN()-1,31.001),0)),Feriados,0))),(VLOOKUP(VLOOKUP(WEEKDAY(DATE($A$4,INT((COLUMN()-1)/31.001)+$A$3,ROUNDUP(MOD(COLUMN()-1,31.001),0)),2),Auxiliar!$D$1:$E$7,2,0),'Fiestas y días laborables'!$D$3:$E$9,2,0)=\"Si\"))","v":true},{"$f":"AND(NOT(ISNUMBER(MATCH(DATE($A$4,INT((COLUMN()-1)/31.001)+$A$3,ROUNDUP(MOD(COLUMN()-1,31.001),0)),Feriados,0))),(VLOOKUP(VLOOKUP(WEEKDAY(DATE($A$4,INT((COLUMN()-1)/31.001)+$A$3,ROUNDUP(MOD(COLUMN()-1,31.001),0)),2),Auxiliar!$D$1:$E$7,2,0),'Fiestas y días laborables'!$D$3:$E$9,2,0)=\"Si\"))","v":true},{"$f":"AND(NOT(ISNUMBER(MATCH(DATE($A$4,INT((COLUMN()-1)/31.001)+$A$3,ROUNDUP(MOD(COLUMN()-1,31.001),0)),Feriados,0))),(VLOOKUP(VLOOKUP(WEEKDAY(DATE($A$4,INT((COLUMN()-1)/31.001)+$A$3,ROUNDUP(MOD(COLUMN()-1,31.001),0)),2),Auxiliar!$D$1:$E$7,2,0),'Fiestas y días laborables'!$D$3:$E$9,2,0)=\"Si\"))","v":true},{"$f":"AND(NOT(ISNUMBER(MATCH(DATE($A$4,INT((COLUMN()-1)/31.001)+$A$3,ROUNDUP(MOD(COLUMN()-1,31.001),0)),Feriados,0))),(VLOOKUP(VLOOKUP(WEEKDAY(DATE($A$4,INT((COLUMN()-1)/31.001)+$A$3,ROUNDUP(MOD(COLUMN()-1,31.001),0)),2),Auxiliar!$D$1:$E$7,2,0),'Fiestas y días laborables'!$D$3:$E$9,2,0)=\"Si\"))","v":true},{"$f":"AND(NOT(ISNUMBER(MATCH(DATE($A$4,INT((COLUMN()-1)/31.001)+$A$3,ROUNDUP(MOD(COLUMN()-1,31.001),0)),Feriados,0))),(VLOOKUP(VLOOKUP(WEEKDAY(DATE($A$4,INT((COLUMN()-1)/31.001)+$A$3,ROUNDUP(MOD(COLUMN()-1,31.001),0)),2),Auxiliar!$D$1:$E$7,2,0),'Fiestas y días laborables'!$D$3:$E$9,2,0)=\"Si\"))","v":true},{"$f":"AND(NOT(ISNUMBER(MATCH(DATE($A$4,INT((COLUMN()-1)/31.001)+$A$3,ROUNDUP(MOD(COLUMN()-1,31.001),0)),Feriados,0))),(VLOOKUP(VLOOKUP(WEEKDAY(DATE($A$4,INT((COLUMN()-1)/31.001)+$A$3,ROUNDUP(MOD(COLUMN()-1,31.001),0)),2),Auxiliar!$D$1:$E$7,2,0),'Fiestas y días laborables'!$D$3:$E$9,2,0)=\"Si\"))","v":true},{"$f":"AND(NOT(ISNUMBER(MATCH(DATE($A$4,INT((COLUMN()-1)/31.001)+$A$3,ROUNDUP(MOD(COLUMN()-1,31.001),0)),Feriados,0))),(VLOOKUP(VLOOKUP(WEEKDAY(DATE($A$4,INT((COLUMN()-1)/31.001)+$A$3,ROUNDUP(MOD(COLUMN()-1,31.001),0)),2),Auxiliar!$D$1:$E$7,2,0),'Fiestas y días laborables'!$D$3:$E$9,2,0)=\"Si\"))","v":false},{"$f":"AND(NOT(ISNUMBER(MATCH(DATE($A$4,INT((COLUMN()-1)/31.001)+$A$3,ROUNDUP(MOD(COLUMN()-1,31.001),0)),Feriados,0))),(VLOOKUP(VLOOKUP(WEEKDAY(DATE($A$4,INT((COLUMN()-1)/31.001)+$A$3,ROUNDUP(MOD(COLUMN()-1,31.001),0)),2),Auxiliar!$D$1:$E$7,2,0),'Fiestas y días laborables'!$D$3:$E$9,2,0)=\"Si\"))","v":false},{"$f":"AND(NOT(ISNUMBER(MATCH(DATE($A$4,INT((COLUMN()-1)/31.001)+$A$3,ROUNDUP(MOD(COLUMN()-1,31.001),0)),Feriados,0))),(VLOOKUP(VLOOKUP(WEEKDAY(DATE($A$4,INT((COLUMN()-1)/31.001)+$A$3,ROUNDUP(MOD(COLUMN()-1,31.001),0)),2),Auxiliar!$D$1:$E$7,2,0),'Fiestas y días laborables'!$D$3:$E$9,2,0)=\"Si\"))","v":true},{"$f":"AND(NOT(ISNUMBER(MATCH(DATE($A$4,INT((COLUMN()-1)/31.001)+$A$3,ROUNDUP(MOD(COLUMN()-1,31.001),0)),Feriados,0))),(VLOOKUP(VLOOKUP(WEEKDAY(DATE($A$4,INT((COLUMN()-1)/31.001)+$A$3,ROUNDUP(MOD(COLUMN()-1,31.001),0)),2),Auxiliar!$D$1:$E$7,2,0),'Fiestas y días laborables'!$D$3:$E$9,2,0)=\"Si\"))","v":true},{"$f":"AND(NOT(ISNUMBER(MATCH(DATE($A$4,INT((COLUMN()-1)/31.001)+$A$3,ROUNDUP(MOD(COLUMN()-1,31.001),0)),Feriados,0))),(VLOOKUP(VLOOKUP(WEEKDAY(DATE($A$4,INT((COLUMN()-1)/31.001)+$A$3,ROUNDUP(MOD(COLUMN()-1,31.001),0)),2),Auxiliar!$D$1:$E$7,2,0),'Fiestas y días laborables'!$D$3:$E$9,2,0)=\"Si\"))","v":true},{"$f":"AND(NOT(ISNUMBER(MATCH(DATE($A$4,INT((COLUMN()-1)/31.001)+$A$3,ROUNDUP(MOD(COLUMN()-1,31.001),0)),Feriados,0))),(VLOOKUP(VLOOKUP(WEEKDAY(DATE($A$4,INT((COLUMN()-1)/31.001)+$A$3,ROUNDUP(MOD(COLUMN()-1,31.001),0)),2),Auxiliar!$D$1:$E$7,2,0),'Fiestas y días laborables'!$D$3:$E$9,2,0)=\"Si\"))","v":true},{"$f":"AND(NOT(ISNUMBER(MATCH(DATE($A$4,INT((COLUMN()-1)/31.001)+$A$3,ROUNDUP(MOD(COLUMN()-1,31.001),0)),Feriados,0))),(VLOOKUP(VLOOKUP(WEEKDAY(DATE($A$4,INT((COLUMN()-1)/31.001)+$A$3,ROUNDUP(MOD(COLUMN()-1,31.001),0)),2),Auxiliar!$D$1:$E$7,2,0),'Fiestas y días laborables'!$D$3:$E$9,2,0)=\"Si\"))","v":true},{"$f":"AND(NOT(ISNUMBER(MATCH(DATE($A$4,INT((COLUMN()-1)/31.001)+$A$3,ROUNDUP(MOD(COLUMN()-1,31.001),0)),Feriados,0))),(VLOOKUP(VLOOKUP(WEEKDAY(DATE($A$4,INT((COLUMN()-1)/31.001)+$A$3,ROUNDUP(MOD(COLUMN()-1,31.001),0)),2),Auxiliar!$D$1:$E$7,2,0),'Fiestas y días laborables'!$D$3:$E$9,2,0)=\"Si\"))","v":false},{"$f":"AND(NOT(ISNUMBER(MATCH(DATE($A$4,INT((COLUMN()-1)/31.001)+$A$3,ROUNDUP(MOD(COLUMN()-1,31.001),0)),Feriados,0))),(VLOOKUP(VLOOKUP(WEEKDAY(DATE($A$4,INT((COLUMN()-1)/31.001)+$A$3,ROUNDUP(MOD(COLUMN()-1,31.001),0)),2),Auxiliar!$D$1:$E$7,2,0),'Fiestas y días laborables'!$D$3:$E$9,2,0)=\"Si\"))","v":false},{"$f":"AND(NOT(ISNUMBER(MATCH(DATE($A$4,INT((COLUMN()-1)/31.001)+$A$3,ROUNDUP(MOD(COLUMN()-1,31.001),0)),Feriados,0))),(VLOOKUP(VLOOKUP(WEEKDAY(DATE($A$4,INT((COLUMN()-1)/31.001)+$A$3,ROUNDUP(MOD(COLUMN()-1,31.001),0)),2),Auxiliar!$D$1:$E$7,2,0),'Fiestas y días laborables'!$D$3:$E$9,2,0)=\"Si\"))","v":true},{"$f":"AND(NOT(ISNUMBER(MATCH(DATE($A$4,INT((COLUMN()-1)/31.001)+$A$3,ROUNDUP(MOD(COLUMN()-1,31.001),0)),Feriados,0))),(VLOOKUP(VLOOKUP(WEEKDAY(DATE($A$4,INT((COLUMN()-1)/31.001)+$A$3,ROUNDUP(MOD(COLUMN()-1,31.001),0)),2),Auxiliar!$D$1:$E$7,2,0),'Fiestas y días laborables'!$D$3:$E$9,2,0)=\"Si\"))","v":true},{"$f":"AND(NOT(ISNUMBER(MATCH(DATE($A$4,INT((COLUMN()-1)/31.001)+$A$3,ROUNDUP(MOD(COLUMN()-1,31.001),0)),Feriados,0))),(VLOOKUP(VLOOKUP(WEEKDAY(DATE($A$4,INT((COLUMN()-1)/31.001)+$A$3,ROUNDUP(MOD(COLUMN()-1,31.001),0)),2),Auxiliar!$D$1:$E$7,2,0),'Fiestas y días laborables'!$D$3:$E$9,2,0)=\"Si\"))","v":true},{"$f":"AND(NOT(ISNUMBER(MATCH(DATE($A$4,INT((COLUMN()-1)/31.001)+$A$3,ROUNDUP(MOD(COLUMN()-1,31.001),0)),Feriados,0))),(VLOOKUP(VLOOKUP(WEEKDAY(DATE($A$4,INT((COLUMN()-1)/31.001)+$A$3,ROUNDUP(MOD(COLUMN()-1,31.001),0)),2),Auxiliar!$D$1:$E$7,2,0),'Fiestas y días laborables'!$D$3:$E$9,2,0)=\"Si\"))","v":true},{"$f":"AND(NOT(ISNUMBER(MATCH(DATE($A$4,INT((COLUMN()-1)/31.001)+$A$3,ROUNDUP(MOD(COLUMN()-1,31.001),0)),Feriados,0))),(VLOOKUP(VLOOKUP(WEEKDAY(DATE($A$4,INT((COLUMN()-1)/31.001)+$A$3,ROUNDUP(MOD(COLUMN()-1,31.001),0)),2),Auxiliar!$D$1:$E$7,2,0),'Fiestas y días laborables'!$D$3:$E$9,2,0)=\"Si\"))","v":true},{"$f":"AND(NOT(ISNUMBER(MATCH(DATE($A$4,INT((COLUMN()-1)/31.001)+$A$3,ROUNDUP(MOD(COLUMN()-1,31.001),0)),Feriados,0))),(VLOOKUP(VLOOKUP(WEEKDAY(DATE($A$4,INT((COLUMN()-1)/31.001)+$A$3,ROUNDUP(MOD(COLUMN()-1,31.001),0)),2),Auxiliar!$D$1:$E$7,2,0),'Fiestas y días laborables'!$D$3:$E$9,2,0)=\"Si\"))","v":false},{"$f":"AND(NOT(ISNUMBER(MATCH(DATE($A$4,INT((COLUMN()-1)/31.001)+$A$3,ROUNDUP(MOD(COLUMN()-1,31.001),0)),Feriados,0))),(VLOOKUP(VLOOKUP(WEEKDAY(DATE($A$4,INT((COLUMN()-1)/31.001)+$A$3,ROUNDUP(MOD(COLUMN()-1,31.001),0)),2),Auxiliar!$D$1:$E$7,2,0),'Fiestas y días laborables'!$D$3:$E$9,2,0)=\"Si\"))","v":false},{"$f":"AND(NOT(ISNUMBER(MATCH(DATE($A$4,INT((COLUMN()-1)/31.001)+$A$3,ROUNDUP(MOD(COLUMN()-1,31.001),0)),Feriados,0))),(VLOOKUP(VLOOKUP(WEEKDAY(DATE($A$4,INT((COLUMN()-1)/31.001)+$A$3,ROUNDUP(MOD(COLUMN()-1,31.001),0)),2),Auxiliar!$D$1:$E$7,2,0),'Fiestas y días laborables'!$D$3:$E$9,2,0)=\"Si\"))","v":true},{"$f":"AND(NOT(ISNUMBER(MATCH(DATE($A$4,INT((COLUMN()-1)/31.001)+$A$3,ROUNDUP(MOD(COLUMN()-1,31.001),0)),Feriados,0))),(VLOOKUP(VLOOKUP(WEEKDAY(DATE($A$4,INT((COLUMN()-1)/31.001)+$A$3,ROUNDUP(MOD(COLUMN()-1,31.001),0)),2),Auxiliar!$D$1:$E$7,2,0),'Fiestas y días laborables'!$D$3:$E$9,2,0)=\"Si\"))","v":true},{"$f":"AND(NOT(ISNUMBER(MATCH(DATE($A$4,INT((COLUMN()-1)/31.001)+$A$3,ROUNDUP(MOD(COLUMN()-1,31.001),0)),Feriados,0))),(VLOOKUP(VLOOKUP(WEEKDAY(DATE($A$4,INT((COLUMN()-1)/31.001)+$A$3,ROUNDUP(MOD(COLUMN()-1,31.001),0)),2),Auxiliar!$D$1:$E$7,2,0),'Fiestas y días laborables'!$D$3:$E$9,2,0)=\"Si\"))","v":true},{"$f":"AND(NOT(ISNUMBER(MATCH(DATE($A$4,INT((COLUMN()-1)/31.001)+$A$3,ROUNDUP(MOD(COLUMN()-1,31.001),0)),Feriados,0))),(VLOOKUP(VLOOKUP(WEEKDAY(DATE($A$4,INT((COLUMN()-1)/31.001)+$A$3,ROUNDUP(MOD(COLUMN()-1,31.001),0)),2),Auxiliar!$D$1:$E$7,2,0),'Fiestas y días laborables'!$D$3:$E$9,2,0)=\"Si\"))","v":true},{"$f":"AND(NOT(ISNUMBER(MATCH(DATE($A$4,INT((COLUMN()-1)/31.001)+$A$3,ROUNDUP(MOD(COLUMN()-1,31.001),0)),Feriados,0))),(VLOOKUP(VLOOKUP(WEEKDAY(DATE($A$4,INT((COLUMN()-1)/31.001)+$A$3,ROUNDUP(MOD(COLUMN()-1,31.001),0)),2),Auxiliar!$D$1:$E$7,2,0),'Fiestas y días laborables'!$D$3:$E$9,2,0)=\"Si\"))","v":true},{"$f":"AND(NOT(ISNUMBER(MATCH(DATE($A$4,INT((COLUMN()-1)/31.001)+$A$3,ROUNDUP(MOD(COLUMN()-1,31.001),0)),Feriados,0))),(VLOOKUP(VLOOKUP(WEEKDAY(DATE($A$4,INT((COLUMN()-1)/31.001)+$A$3,ROUNDUP(MOD(COLUMN()-1,31.001),0)),2),Auxiliar!$D$1:$E$7,2,0),'Fiestas y días laborables'!$D$3:$E$9,2,0)=\"Si\"))","v":false},{"$f":"AND(NOT(ISNUMBER(MATCH(DATE($A$4,INT((COLUMN()-1)/31.001)+$A$3,ROUNDUP(MOD(COLUMN()-1,31.001),0)),Feriados,0))),(VLOOKUP(VLOOKUP(WEEKDAY(DATE($A$4,INT((COLUMN()-1)/31.001)+$A$3,ROUNDUP(MOD(COLUMN()-1,31.001),0)),2),Auxiliar!$D$1:$E$7,2,0),'Fiestas y días laborables'!$D$3:$E$9,2,0)=\"Si\"))","v":false},{"$f":"AND(NOT(ISNUMBER(MATCH(DATE($A$4,INT((COLUMN()-1)/31.001)+$A$3,ROUNDUP(MOD(COLUMN()-1,31.001),0)),Feriados,0))),(VLOOKUP(VLOOKUP(WEEKDAY(DATE($A$4,INT((COLUMN()-1)/31.001)+$A$3,ROUNDUP(MOD(COLUMN()-1,31.001),0)),2),Auxiliar!$D$1:$E$7,2,0),'Fiestas y días laborables'!$D$3:$E$9,2,0)=\"Si\"))","v":true},{"$f":"AND(NOT(ISNUMBER(MATCH(DATE($A$4,INT((COLUMN()-1)/31.001)+$A$3,ROUNDUP(MOD(COLUMN()-1,31.001),0)),Feriados,0))),(VLOOKUP(VLOOKUP(WEEKDAY(DATE($A$4,INT((COLUMN()-1)/31.001)+$A$3,ROUNDUP(MOD(COLUMN()-1,31.001),0)),2),Auxiliar!$D$1:$E$7,2,0),'Fiestas y días laborables'!$D$3:$E$9,2,0)=\"Si\"))","v":true},{"$f":"AND(NOT(ISNUMBER(MATCH(DATE($A$4,INT((COLUMN()-1)/31.001)+$A$3,ROUNDUP(MOD(COLUMN()-1,31.001),0)),Feriados,0))),(VLOOKUP(VLOOKUP(WEEKDAY(DATE($A$4,INT((COLUMN()-1)/31.001)+$A$3,ROUNDUP(MOD(COLUMN()-1,31.001),0)),2),Auxiliar!$D$1:$E$7,2,0),'Fiestas y días laborables'!$D$3:$E$9,2,0)=\"Si\"))","v":true},{"$f":"AND(NOT(ISNUMBER(MATCH(DATE($A$4,INT((COLUMN()-1)/31.001)+$A$3,ROUNDUP(MOD(COLUMN()-1,31.001),0)),Feriados,0))),(VLOOKUP(VLOOKUP(WEEKDAY(DATE($A$4,INT((COLUMN()-1)/31.001)+$A$3,ROUNDUP(MOD(COLUMN()-1,31.001),0)),2),Auxiliar!$D$1:$E$7,2,0),'Fiestas y días laborables'!$D$3:$E$9,2,0)=\"Si\"))","v":true},{"$f":"AND(NOT(ISNUMBER(MATCH(DATE($A$4,INT((COLUMN()-1)/31.001)+$A$3,ROUNDUP(MOD(COLUMN()-1,31.001),0)),Feriados,0))),(VLOOKUP(VLOOKUP(WEEKDAY(DATE($A$4,INT((COLUMN()-1)/31.001)+$A$3,ROUNDUP(MOD(COLUMN()-1,31.001),0)),2),Auxiliar!$D$1:$E$7,2,0),'Fiestas y días laborables'!$D$3:$E$9,2,0)=\"Si\"))","v":true},{"$f":"AND(NOT(ISNUMBER(MATCH(DATE($A$4,INT((COLUMN()-1)/31.001)+$A$3,ROUNDUP(MOD(COLUMN()-1,31.001),0)),Feriados,0))),(VLOOKUP(VLOOKUP(WEEKDAY(DATE($A$4,INT((COLUMN()-1)/31.001)+$A$3,ROUNDUP(MOD(COLUMN()-1,31.001),0)),2),Auxiliar!$D$1:$E$7,2,0),'Fiestas y días laborables'!$D$3:$E$9,2,0)=\"Si\"))","v":false},{"$f":"AND(NOT(ISNUMBER(MATCH(DATE($A$4,INT((COLUMN()-1)/31.001)+$A$3,ROUNDUP(MOD(COLUMN()-1,31.001),0)),Feriados,0))),(VLOOKUP(VLOOKUP(WEEKDAY(DATE($A$4,INT((COLUMN()-1)/31.001)+$A$3,ROUNDUP(MOD(COLUMN()-1,31.001),0)),2),Auxiliar!$D$1:$E$7,2,0),'Fiestas y días laborables'!$D$3:$E$9,2,0)=\"Si\"))","v":false},{"$f":"AND(NOT(ISNUMBER(MATCH(DATE($A$4,INT((COLUMN()-1)/31.001)+$A$3,ROUNDUP(MOD(COLUMN()-1,31.001),0)),Feriados,0))),(VLOOKUP(VLOOKUP(WEEKDAY(DATE($A$4,INT((COLUMN()-1)/31.001)+$A$3,ROUNDUP(MOD(COLUMN()-1,31.001),0)),2),Auxiliar!$D$1:$E$7,2,0),'Fiestas y días laborables'!$D$3:$E$9,2,0)=\"Si\"))","v":true},{"$f":"AND(NOT(ISNUMBER(MATCH(DATE($A$4,INT((COLUMN()-1)/31.001)+$A$3,ROUNDUP(MOD(COLUMN()-1,31.001),0)),Feriados,0))),(VLOOKUP(VLOOKUP(WEEKDAY(DATE($A$4,INT((COLUMN()-1)/31.001)+$A$3,ROUNDUP(MOD(COLUMN()-1,31.001),0)),2),Auxiliar!$D$1:$E$7,2,0),'Fiestas y días laborables'!$D$3:$E$9,2,0)=\"Si\"))","v":true},{"$f":"AND(NOT(ISNUMBER(MATCH(DATE($A$4,INT((COLUMN()-1)/31.001)+$A$3,ROUNDUP(MOD(COLUMN()-1,31.001),0)),Feriados,0))),(VLOOKUP(VLOOKUP(WEEKDAY(DATE($A$4,INT((COLUMN()-1)/31.001)+$A$3,ROUNDUP(MOD(COLUMN()-1,31.001),0)),2),Auxiliar!$D$1:$E$7,2,0),'Fiestas y días laborables'!$D$3:$E$9,2,0)=\"Si\"))","v":true},{"$f":"AND(NOT(ISNUMBER(MATCH(DATE($A$4,INT((COLUMN()-1)/31.001)+$A$3,ROUNDUP(MOD(COLUMN()-1,31.001),0)),Feriados,0))),(VLOOKUP(VLOOKUP(WEEKDAY(DATE($A$4,INT((COLUMN()-1)/31.001)+$A$3,ROUNDUP(MOD(COLUMN()-1,31.001),0)),2),Auxiliar!$D$1:$E$7,2,0),'Fiestas y días laborables'!$D$3:$E$9,2,0)=\"Si\"))","v":true},{"$f":"AND(NOT(ISNUMBER(MATCH(DATE($A$4,INT((COLUMN()-1)/31.001)+$A$3,ROUNDUP(MOD(COLUMN()-1,31.001),0)),Feriados,0))),(VLOOKUP(VLOOKUP(WEEKDAY(DATE($A$4,INT((COLUMN()-1)/31.001)+$A$3,ROUNDUP(MOD(COLUMN()-1,31.001),0)),2),Auxiliar!$D$1:$E$7,2,0),'Fiestas y días laborables'!$D$3:$E$9,2,0)=\"Si\"))","v":true},{"$f":"AND(NOT(ISNUMBER(MATCH(DATE($A$4,INT((COLUMN()-1)/31.001)+$A$3,ROUNDUP(MOD(COLUMN()-1,31.001),0)),Feriados,0))),(VLOOKUP(VLOOKUP(WEEKDAY(DATE($A$4,INT((COLUMN()-1)/31.001)+$A$3,ROUNDUP(MOD(COLUMN()-1,31.001),0)),2),Auxiliar!$D$1:$E$7,2,0),'Fiestas y días laborables'!$D$3:$E$9,2,0)=\"Si\"))","v":false},{"$f":"AND(NOT(ISNUMBER(MATCH(DATE($A$4,INT((COLUMN()-1)/31.001)+$A$3,ROUNDUP(MOD(COLUMN()-1,31.001),0)),Feriados,0))),(VLOOKUP(VLOOKUP(WEEKDAY(DATE($A$4,INT((COLUMN()-1)/31.001)+$A$3,ROUNDUP(MOD(COLUMN()-1,31.001),0)),2),Auxiliar!$D$1:$E$7,2,0),'Fiestas y días laborables'!$D$3:$E$9,2,0)=\"Si\"))","v":false},{"$f":"AND(NOT(ISNUMBER(MATCH(DATE($A$4,INT((COLUMN()-1)/31.001)+$A$3,ROUNDUP(MOD(COLUMN()-1,31.001),0)),Feriados,0))),(VLOOKUP(VLOOKUP(WEEKDAY(DATE($A$4,INT((COLUMN()-1)/31.001)+$A$3,ROUNDUP(MOD(COLUMN()-1,31.001),0)),2),Auxiliar!$D$1:$E$7,2,0),'Fiestas y días laborables'!$D$3:$E$9,2,0)=\"Si\"))","v":true},{"$f":"AND(NOT(ISNUMBER(MATCH(DATE($A$4,INT((COLUMN()-1)/31.001)+$A$3,ROUNDUP(MOD(COLUMN()-1,31.001),0)),Feriados,0))),(VLOOKUP(VLOOKUP(WEEKDAY(DATE($A$4,INT((COLUMN()-1)/31.001)+$A$3,ROUNDUP(MOD(COLUMN()-1,31.001),0)),2),Auxiliar!$D$1:$E$7,2,0),'Fiestas y días laborables'!$D$3:$E$9,2,0)=\"Si\"))","v":true},{"$f":"AND(NOT(ISNUMBER(MATCH(DATE($A$4,INT((COLUMN()-1)/31.001)+$A$3,ROUNDUP(MOD(COLUMN()-1,31.001),0)),Feriados,0))),(VLOOKUP(VLOOKUP(WEEKDAY(DATE($A$4,INT((COLUMN()-1)/31.001)+$A$3,ROUNDUP(MOD(COLUMN()-1,31.001),0)),2),Auxiliar!$D$1:$E$7,2,0),'Fiestas y días laborables'!$D$3:$E$9,2,0)=\"Si\"))","v":true},{"$f":"AND(NOT(ISNUMBER(MATCH(DATE($A$4,INT((COLUMN()-1)/31.001)+$A$3,ROUNDUP(MOD(COLUMN()-1,31.001),0)),Feriados,0))),(VLOOKUP(VLOOKUP(WEEKDAY(DATE($A$4,INT((COLUMN()-1)/31.001)+$A$3,ROUNDUP(MOD(COLUMN()-1,31.001),0)),2),Auxiliar!$D$1:$E$7,2,0),'Fiestas y días laborables'!$D$3:$E$9,2,0)=\"Si\"))","v":true},{"$f":"AND(NOT(ISNUMBER(MATCH(DATE($A$4,INT((COLUMN()-1)/31.001)+$A$3,ROUNDUP(MOD(COLUMN()-1,31.001),0)),Feriados,0))),(VLOOKUP(VLOOKUP(WEEKDAY(DATE($A$4,INT((COLUMN()-1)/31.001)+$A$3,ROUNDUP(MOD(COLUMN()-1,31.001),0)),2),Auxiliar!$D$1:$E$7,2,0),'Fiestas y días laborables'!$D$3:$E$9,2,0)=\"Si\"))","v":true},{"$f":"AND(NOT(ISNUMBER(MATCH(DATE($A$4,INT((COLUMN()-1)/31.001)+$A$3,ROUNDUP(MOD(COLUMN()-1,31.001),0)),Feriados,0))),(VLOOKUP(VLOOKUP(WEEKDAY(DATE($A$4,INT((COLUMN()-1)/31.001)+$A$3,ROUNDUP(MOD(COLUMN()-1,31.001),0)),2),Auxiliar!$D$1:$E$7,2,0),'Fiestas y días laborables'!$D$3:$E$9,2,0)=\"Si\"))","v":false},{"$f":"AND(NOT(ISNUMBER(MATCH(DATE($A$4,INT((COLUMN()-1)/31.001)+$A$3,ROUNDUP(MOD(COLUMN()-1,31.001),0)),Feriados,0))),(VLOOKUP(VLOOKUP(WEEKDAY(DATE($A$4,INT((COLUMN()-1)/31.001)+$A$3,ROUNDUP(MOD(COLUMN()-1,31.001),0)),2),Auxiliar!$D$1:$E$7,2,0),'Fiestas y días laborables'!$D$3:$E$9,2,0)=\"Si\"))","v":false},{"$f":"AND(NOT(ISNUMBER(MATCH(DATE($A$4,INT((COLUMN()-1)/31.001)+$A$3,ROUNDUP(MOD(COLUMN()-1,31.001),0)),Feriados,0))),(VLOOKUP(VLOOKUP(WEEKDAY(DATE($A$4,INT((COLUMN()-1)/31.001)+$A$3,ROUNDUP(MOD(COLUMN()-1,31.001),0)),2),Auxiliar!$D$1:$E$7,2,0),'Fiestas y días laborables'!$D$3:$E$9,2,0)=\"Si\"))","v":true},{"$f":"AND(NOT(ISNUMBER(MATCH(DATE($A$4,INT((COLUMN()-1)/31.001)+$A$3,ROUNDUP(MOD(COLUMN()-1,31.001),0)),Feriados,0))),(VLOOKUP(VLOOKUP(WEEKDAY(DATE($A$4,INT((COLUMN()-1)/31.001)+$A$3,ROUNDUP(MOD(COLUMN()-1,31.001),0)),2),Auxiliar!$D$1:$E$7,2,0),'Fiestas y días laborables'!$D$3:$E$9,2,0)=\"Si\"))","v":true},{"$f":"AND(NOT(ISNUMBER(MATCH(DATE($A$4,INT((COLUMN()-1)/31.001)+$A$3,ROUNDUP(MOD(COLUMN()-1,31.001),0)),Feriados,0))),(VLOOKUP(VLOOKUP(WEEKDAY(DATE($A$4,INT((COLUMN()-1)/31.001)+$A$3,ROUNDUP(MOD(COLUMN()-1,31.001),0)),2),Auxiliar!$D$1:$E$7,2,0),'Fiestas y días laborables'!$D$3:$E$9,2,0)=\"Si\"))","v":true},{"$f":"AND(NOT(ISNUMBER(MATCH(DATE($A$4,INT((COLUMN()-1)/31.001)+$A$3,ROUNDUP(MOD(COLUMN()-1,31.001),0)),Feriados,0))),(VLOOKUP(VLOOKUP(WEEKDAY(DATE($A$4,INT((COLUMN()-1)/31.001)+$A$3,ROUNDUP(MOD(COLUMN()-1,31.001),0)),2),Auxiliar!$D$1:$E$7,2,0),'Fiestas y días laborables'!$D$3:$E$9,2,0)=\"Si\"))","v":true},{"$f":"AND(NOT(ISNUMBER(MATCH(DATE($A$4,INT((COLUMN()-1)/31.001)+$A$3,ROUNDUP(MOD(COLUMN()-1,31.001),0)),Feriados,0))),(VLOOKUP(VLOOKUP(WEEKDAY(DATE($A$4,INT((COLUMN()-1)/31.001)+$A$3,ROUNDUP(MOD(COLUMN()-1,31.001),0)),2),Auxiliar!$D$1:$E$7,2,0),'Fiestas y días laborables'!$D$3:$E$9,2,0)=\"Si\"))","v":true},{"$f":"AND(NOT(ISNUMBER(MATCH(DATE($A$4,INT((COLUMN()-1)/31.001)+$A$3,ROUNDUP(MOD(COLUMN()-1,31.001),0)),Feriados,0))),(VLOOKUP(VLOOKUP(WEEKDAY(DATE($A$4,INT((COLUMN()-1)/31.001)+$A$3,ROUNDUP(MOD(COLUMN()-1,31.001),0)),2),Auxiliar!$D$1:$E$7,2,0),'Fiestas y días laborables'!$D$3:$E$9,2,0)=\"Si\"))","v":false},{"$f":"AND(NOT(ISNUMBER(MATCH(DATE($A$4,INT((COLUMN()-1)/31.001)+$A$3,ROUNDUP(MOD(COLUMN()-1,31.001),0)),Feriados,0))),(VLOOKUP(VLOOKUP(WEEKDAY(DATE($A$4,INT((COLUMN()-1)/31.001)+$A$3,ROUNDUP(MOD(COLUMN()-1,31.001),0)),2),Auxiliar!$D$1:$E$7,2,0),'Fiestas y días laborables'!$D$3:$E$9,2,0)=\"Si\"))","v":false},{"$f":"AND(NOT(ISNUMBER(MATCH(DATE($A$4,INT((COLUMN()-1)/31.001)+$A$3,ROUNDUP(MOD(COLUMN()-1,31.001),0)),Feriados,0))),(VLOOKUP(VLOOKUP(WEEKDAY(DATE($A$4,INT((COLUMN()-1)/31.001)+$A$3,ROUNDUP(MOD(COLUMN()-1,31.001),0)),2),Auxiliar!$D$1:$E$7,2,0),'Fiestas y días laborables'!$D$3:$E$9,2,0)=\"Si\"))","v":true},{"$f":"AND(NOT(ISNUMBER(MATCH(DATE($A$4,INT((COLUMN()-1)/31.001)+$A$3,ROUNDUP(MOD(COLUMN()-1,31.001),0)),Feriados,0))),(VLOOKUP(VLOOKUP(WEEKDAY(DATE($A$4,INT((COLUMN()-1)/31.001)+$A$3,ROUNDUP(MOD(COLUMN()-1,31.001),0)),2),Auxiliar!$D$1:$E$7,2,0),'Fiestas y días laborables'!$D$3:$E$9,2,0)=\"Si\"))","v":true},{"$f":"AND(NOT(ISNUMBER(MATCH(DATE($A$4,INT((COLUMN()-1)/31.001)+$A$3,ROUNDUP(MOD(COLUMN()-1,31.001),0)),Feriados,0))),(VLOOKUP(VLOOKUP(WEEKDAY(DATE($A$4,INT((COLUMN()-1)/31.001)+$A$3,ROUNDUP(MOD(COLUMN()-1,31.001),0)),2),Auxiliar!$D$1:$E$7,2,0),'Fiestas y días laborables'!$D$3:$E$9,2,0)=\"Si\"))","v":true},{"$f":"AND(NOT(ISNUMBER(MATCH(DATE($A$4,INT((COLUMN()-1)/31.001)+$A$3,ROUNDUP(MOD(COLUMN()-1,31.001),0)),Feriados,0))),(VLOOKUP(VLOOKUP(WEEKDAY(DATE($A$4,INT((COLUMN()-1)/31.001)+$A$3,ROUNDUP(MOD(COLUMN()-1,31.001),0)),2),Auxiliar!$D$1:$E$7,2,0),'Fiestas y días laborables'!$D$3:$E$9,2,0)=\"Si\"))","v":true},{"$f":"AND(NOT(ISNUMBER(MATCH(DATE($A$4,INT((COLUMN()-1)/31.001)+$A$3,ROUNDUP(MOD(COLUMN()-1,31.001),0)),Feriados,0))),(VLOOKUP(VLOOKUP(WEEKDAY(DATE($A$4,INT((COLUMN()-1)/31.001)+$A$3,ROUNDUP(MOD(COLUMN()-1,31.001),0)),2),Auxiliar!$D$1:$E$7,2,0),'Fiestas y días laborables'!$D$3:$E$9,2,0)=\"Si\"))","v":true},{"$f":"AND(NOT(ISNUMBER(MATCH(DATE($A$4,INT((COLUMN()-1)/31.001)+$A$3,ROUNDUP(MOD(COLUMN()-1,31.001),0)),Feriados,0))),(VLOOKUP(VLOOKUP(WEEKDAY(DATE($A$4,INT((COLUMN()-1)/31.001)+$A$3,ROUNDUP(MOD(COLUMN()-1,31.001),0)),2),Auxiliar!$D$1:$E$7,2,0),'Fiestas y días laborables'!$D$3:$E$9,2,0)=\"Si\"))","v":false},{"$f":"AND(NOT(ISNUMBER(MATCH(DATE($A$4,INT((COLUMN()-1)/31.001)+$A$3,ROUNDUP(MOD(COLUMN()-1,31.001),0)),Feriados,0))),(VLOOKUP(VLOOKUP(WEEKDAY(DATE($A$4,INT((COLUMN()-1)/31.001)+$A$3,ROUNDUP(MOD(COLUMN()-1,31.001),0)),2),Auxiliar!$D$1:$E$7,2,0),'Fiestas y días laborables'!$D$3:$E$9,2,0)=\"Si\"))","v":false},{"$f":"AND(NOT(ISNUMBER(MATCH(DATE($A$4,INT((COLUMN()-1)/31.001)+$A$3,ROUNDUP(MOD(COLUMN()-1,31.001),0)),Feriados,0))),(VLOOKUP(VLOOKUP(WEEKDAY(DATE($A$4,INT((COLUMN()-1)/31.001)+$A$3,ROUNDUP(MOD(COLUMN()-1,31.001),0)),2),Auxiliar!$D$1:$E$7,2,0),'Fiestas y días laborables'!$D$3:$E$9,2,0)=\"Si\"))","v":false},{"$f":"AND(NOT(ISNUMBER(MATCH(DATE($A$4,INT((COLUMN()-1)/31.001)+$A$3,ROUNDUP(MOD(COLUMN()-1,31.001),0)),Feriados,0))),(VLOOKUP(VLOOKUP(WEEKDAY(DATE($A$4,INT((COLUMN()-1)/31.001)+$A$3,ROUNDUP(MOD(COLUMN()-1,31.001),0)),2),Auxiliar!$D$1:$E$7,2,0),'Fiestas y días laborables'!$D$3:$E$9,2,0)=\"Si\"))","v":true},{"$f":"AND(NOT(ISNUMBER(MATCH(DATE($A$4,INT((COLUMN()-1)/31.001)+$A$3,ROUNDUP(MOD(COLUMN()-1,31.001),0)),Feriados,0))),(VLOOKUP(VLOOKUP(WEEKDAY(DATE($A$4,INT((COLUMN()-1)/31.001)+$A$3,ROUNDUP(MOD(COLUMN()-1,31.001),0)),2),Auxiliar!$D$1:$E$7,2,0),'Fiestas y días laborables'!$D$3:$E$9,2,0)=\"Si\"))","v":true},{"$f":"AND(NOT(ISNUMBER(MATCH(DATE($A$4,INT((COLUMN()-1)/31.001)+$A$3,ROUNDUP(MOD(COLUMN()-1,31.001),0)),Feriados,0))),(VLOOKUP(VLOOKUP(WEEKDAY(DATE($A$4,INT((COLUMN()-1)/31.001)+$A$3,ROUNDUP(MOD(COLUMN()-1,31.001),0)),2),Auxiliar!$D$1:$E$7,2,0),'Fiestas y días laborables'!$D$3:$E$9,2,0)=\"Si\"))","v":true},{"$f":"AND(NOT(ISNUMBER(MATCH(DATE($A$4,INT((COLUMN()-1)/31.001)+$A$3,ROUNDUP(MOD(COLUMN()-1,31.001),0)),Feriados,0))),(VLOOKUP(VLOOKUP(WEEKDAY(DATE($A$4,INT((COLUMN()-1)/31.001)+$A$3,ROUNDUP(MOD(COLUMN()-1,31.001),0)),2),Auxiliar!$D$1:$E$7,2,0),'Fiestas y días laborables'!$D$3:$E$9,2,0)=\"Si\"))","v":true},{"$f":"AND(NOT(ISNUMBER(MATCH(DATE($A$4,INT((COLUMN()-1)/31.001)+$A$3,ROUNDUP(MOD(COLUMN()-1,31.001),0)),Feriados,0))),(VLOOKUP(VLOOKUP(WEEKDAY(DATE($A$4,INT((COLUMN()-1)/31.001)+$A$3,ROUNDUP(MOD(COLUMN()-1,31.001),0)),2),Auxiliar!$D$1:$E$7,2,0),'Fiestas y días laborables'!$D$3:$E$9,2,0)=\"Si\"))","v":true},{"$f":"AND(NOT(ISNUMBER(MATCH(DATE($A$4,INT((COLUMN()-1)/31.001)+$A$3,ROUNDUP(MOD(COLUMN()-1,31.001),0)),Feriados,0))),(VLOOKUP(VLOOKUP(WEEKDAY(DATE($A$4,INT((COLUMN()-1)/31.001)+$A$3,ROUNDUP(MOD(COLUMN()-1,31.001),0)),2),Auxiliar!$D$1:$E$7,2,0),'Fiestas y días laborables'!$D$3:$E$9,2,0)=\"Si\"))","v":false},{"$f":"AND(NOT(ISNUMBER(MATCH(DATE($A$4,INT((COLUMN()-1)/31.001)+$A$3,ROUNDUP(MOD(COLUMN()-1,31.001),0)),Feriados,0))),(VLOOKUP(VLOOKUP(WEEKDAY(DATE($A$4,INT((COLUMN()-1)/31.001)+$A$3,ROUNDUP(MOD(COLUMN()-1,31.001),0)),2),Auxiliar!$D$1:$E$7,2,0),'Fiestas y días laborables'!$D$3:$E$9,2,0)=\"Si\"))","v":false},{"$f":"AND(NOT(ISNUMBER(MATCH(DATE($A$4,INT((COLUMN()-1)/31.001)+$A$3,ROUNDUP(MOD(COLUMN()-1,31.001),0)),Feriados,0))),(VLOOKUP(VLOOKUP(WEEKDAY(DATE($A$4,INT((COLUMN()-1)/31.001)+$A$3,ROUNDUP(MOD(COLUMN()-1,31.001),0)),2),Auxiliar!$D$1:$E$7,2,0),'Fiestas y días laborables'!$D$3:$E$9,2,0)=\"Si\"))","v":true},{"$f":"AND(NOT(ISNUMBER(MATCH(DATE($A$4,INT((COLUMN()-1)/31.001)+$A$3,ROUNDUP(MOD(COLUMN()-1,31.001),0)),Feriados,0))),(VLOOKUP(VLOOKUP(WEEKDAY(DATE($A$4,INT((COLUMN()-1)/31.001)+$A$3,ROUNDUP(MOD(COLUMN()-1,31.001),0)),2),Auxiliar!$D$1:$E$7,2,0),'Fiestas y días laborables'!$D$3:$E$9,2,0)=\"Si\"))","v":true},{"$f":"AND(NOT(ISNUMBER(MATCH(DATE($A$4,INT((COLUMN()-1)/31.001)+$A$3,ROUNDUP(MOD(COLUMN()-1,31.001),0)),Feriados,0))),(VLOOKUP(VLOOKUP(WEEKDAY(DATE($A$4,INT((COLUMN()-1)/31.001)+$A$3,ROUNDUP(MOD(COLUMN()-1,31.001),0)),2),Auxiliar!$D$1:$E$7,2,0),'Fiestas y días laborables'!$D$3:$E$9,2,0)=\"Si\"))","v":true},{"$f":"AND(NOT(ISNUMBER(MATCH(DATE($A$4,INT((COLUMN()-1)/31.001)+$A$3,ROUNDUP(MOD(COLUMN()-1,31.001),0)),Feriados,0))),(VLOOKUP(VLOOKUP(WEEKDAY(DATE($A$4,INT((COLUMN()-1)/31.001)+$A$3,ROUNDUP(MOD(COLUMN()-1,31.001),0)),2),Auxiliar!$D$1:$E$7,2,0),'Fiestas y días laborables'!$D$3:$E$9,2,0)=\"Si\"))","v":true},{"$f":"AND(NOT(ISNUMBER(MATCH(DATE($A$4,INT((COLUMN()-1)/31.001)+$A$3,ROUNDUP(MOD(COLUMN()-1,31.001),0)),Feriados,0))),(VLOOKUP(VLOOKUP(WEEKDAY(DATE($A$4,INT((COLUMN()-1)/31.001)+$A$3,ROUNDUP(MOD(COLUMN()-1,31.001),0)),2),Auxiliar!$D$1:$E$7,2,0),'Fiestas y días laborables'!$D$3:$E$9,2,0)=\"Si\"))","v":true},{"$f":"AND(NOT(ISNUMBER(MATCH(DATE($A$4,INT((COLUMN()-1)/31.001)+$A$3,ROUNDUP(MOD(COLUMN()-1,31.001),0)),Feriados,0))),(VLOOKUP(VLOOKUP(WEEKDAY(DATE($A$4,INT((COLUMN()-1)/31.001)+$A$3,ROUNDUP(MOD(COLUMN()-1,31.001),0)),2),Auxiliar!$D$1:$E$7,2,0),'Fiestas y días laborables'!$D$3:$E$9,2,0)=\"Si\"))","v":false},{"$f":"AND(NOT(ISNUMBER(MATCH(DATE($A$4,INT((COLUMN()-1)/31.001)+$A$3,ROUNDUP(MOD(COLUMN()-1,31.001),0)),Feriados,0))),(VLOOKUP(VLOOKUP(WEEKDAY(DATE($A$4,INT((COLUMN()-1)/31.001)+$A$3,ROUNDUP(MOD(COLUMN()-1,31.001),0)),2),Auxiliar!$D$1:$E$7,2,0),'Fiestas y días laborables'!$D$3:$E$9,2,0)=\"Si\"))","v":false},{"$f":"AND(NOT(ISNUMBER(MATCH(DATE($A$4,INT((COLUMN()-1)/31.001)+$A$3,ROUNDUP(MOD(COLUMN()-1,31.001),0)),Feriados,0))),(VLOOKUP(VLOOKUP(WEEKDAY(DATE($A$4,INT((COLUMN()-1)/31.001)+$A$3,ROUNDUP(MOD(COLUMN()-1,31.001),0)),2),Auxiliar!$D$1:$E$7,2,0),'Fiestas y días laborables'!$D$3:$E$9,2,0)=\"Si\"))","v":true},{"$f":"AND(NOT(ISNUMBER(MATCH(DATE($A$4,INT((COLUMN()-1)/31.001)+$A$3,ROUNDUP(MOD(COLUMN()-1,31.001),0)),Feriados,0))),(VLOOKUP(VLOOKUP(WEEKDAY(DATE($A$4,INT((COLUMN()-1)/31.001)+$A$3,ROUNDUP(MOD(COLUMN()-1,31.001),0)),2),Auxiliar!$D$1:$E$7,2,0),'Fiestas y días laborables'!$D$3:$E$9,2,0)=\"Si\"))","v":true},{"$f":"AND(NOT(ISNUMBER(MATCH(DATE($A$4,INT((COLUMN()-1)/31.001)+$A$3,ROUNDUP(MOD(COLUMN()-1,31.001),0)),Feriados,0))),(VLOOKUP(VLOOKUP(WEEKDAY(DATE($A$4,INT((COLUMN()-1)/31.001)+$A$3,ROUNDUP(MOD(COLUMN()-1,31.001),0)),2),Auxiliar!$D$1:$E$7,2,0),'Fiestas y días laborables'!$D$3:$E$9,2,0)=\"Si\"))","v":true},{"$f":"AND(NOT(ISNUMBER(MATCH(DATE($A$4,INT((COLUMN()-1)/31.001)+$A$3,ROUNDUP(MOD(COLUMN()-1,31.001),0)),Feriados,0))),(VLOOKUP(VLOOKUP(WEEKDAY(DATE($A$4,INT((COLUMN()-1)/31.001)+$A$3,ROUNDUP(MOD(COLUMN()-1,31.001),0)),2),Auxiliar!$D$1:$E$7,2,0),'Fiestas y días laborables'!$D$3:$E$9,2,0)=\"Si\"))","v":true},{"$f":"AND(NOT(ISNUMBER(MATCH(DATE($A$4,INT((COLUMN()-1)/31.001)+$A$3,ROUNDUP(MOD(COLUMN()-1,31.001),0)),Feriados,0))),(VLOOKUP(VLOOKUP(WEEKDAY(DATE($A$4,INT((COLUMN()-1)/31.001)+$A$3,ROUNDUP(MOD(COLUMN()-1,31.001),0)),2),Auxiliar!$D$1:$E$7,2,0),'Fiestas y días laborables'!$D$3:$E$9,2,0)=\"Si\"))","v":true},{"$f":"AND(NOT(ISNUMBER(MATCH(DATE($A$4,INT((COLUMN()-1)/31.001)+$A$3,ROUNDUP(MOD(COLUMN()-1,31.001),0)),Feriados,0))),(VLOOKUP(VLOOKUP(WEEKDAY(DATE($A$4,INT((COLUMN()-1)/31.001)+$A$3,ROUNDUP(MOD(COLUMN()-1,31.001),0)),2),Auxiliar!$D$1:$E$7,2,0),'Fiestas y días laborables'!$D$3:$E$9,2,0)=\"Si\"))","v":false},{"$f":"AND(NOT(ISNUMBER(MATCH(DATE($A$4,INT((COLUMN()-1)/31.001)+$A$3,ROUNDUP(MOD(COLUMN()-1,31.001),0)),Feriados,0))),(VLOOKUP(VLOOKUP(WEEKDAY(DATE($A$4,INT((COLUMN()-1)/31.001)+$A$3,ROUNDUP(MOD(COLUMN()-1,31.001),0)),2),Auxiliar!$D$1:$E$7,2,0),'Fiestas y días laborables'!$D$3:$E$9,2,0)=\"Si\"))","v":false},{"$f":"AND(NOT(ISNUMBER(MATCH(DATE($A$4,INT((COLUMN()-1)/31.001)+$A$3,ROUNDUP(MOD(COLUMN()-1,31.001),0)),Feriados,0))),(VLOOKUP(VLOOKUP(WEEKDAY(DATE($A$4,INT((COLUMN()-1)/31.001)+$A$3,ROUNDUP(MOD(COLUMN()-1,31.001),0)),2),Auxiliar!$D$1:$E$7,2,0),'Fiestas y días laborables'!$D$3:$E$9,2,0)=\"Si\"))","v":true},{"$f":"AND(NOT(ISNUMBER(MATCH(DATE($A$4,INT((COLUMN()-1)/31.001)+$A$3,ROUNDUP(MOD(COLUMN()-1,31.001),0)),Feriados,0))),(VLOOKUP(VLOOKUP(WEEKDAY(DATE($A$4,INT((COLUMN()-1)/31.001)+$A$3,ROUNDUP(MOD(COLUMN()-1,31.001),0)),2),Auxiliar!$D$1:$E$7,2,0),'Fiestas y días laborables'!$D$3:$E$9,2,0)=\"Si\"))","v":true},{"$f":"AND(NOT(ISNUMBER(MATCH(DATE($A$4,INT((COLUMN()-1)/31.001)+$A$3,ROUNDUP(MOD(COLUMN()-1,31.001),0)),Feriados,0))),(VLOOKUP(VLOOKUP(WEEKDAY(DATE($A$4,INT((COLUMN()-1)/31.001)+$A$3,ROUNDUP(MOD(COLUMN()-1,31.001),0)),2),Auxiliar!$D$1:$E$7,2,0),'Fiestas y días laborables'!$D$3:$E$9,2,0)=\"Si\"))","v":true},{"$f":"AND(NOT(ISNUMBER(MATCH(DATE($A$4,INT((COLUMN()-1)/31.001)+$A$3,ROUNDUP(MOD(COLUMN()-1,31.001),0)),Feriados,0))),(VLOOKUP(VLOOKUP(WEEKDAY(DATE($A$4,INT((COLUMN()-1)/31.001)+$A$3,ROUNDUP(MOD(COLUMN()-1,31.001),0)),2),Auxiliar!$D$1:$E$7,2,0),'Fiestas y días laborables'!$D$3:$E$9,2,0)=\"Si\"))","v":true},{"$f":"AND(NOT(ISNUMBER(MATCH(DATE($A$4,INT((COLUMN()-1)/31.001)+$A$3,ROUNDUP(MOD(COLUMN()-1,31.001),0)),Feriados,0))),(VLOOKUP(VLOOKUP(WEEKDAY(DATE($A$4,INT((COLUMN()-1)/31.001)+$A$3,ROUNDUP(MOD(COLUMN()-1,31.001),0)),2),Auxiliar!$D$1:$E$7,2,0),'Fiestas y días laborables'!$D$3:$E$9,2,0)=\"Si\"))","v":true},{"$f":"AND(NOT(ISNUMBER(MATCH(DATE($A$4,INT((COLUMN()-1)/31.001)+$A$3,ROUNDUP(MOD(COLUMN()-1,31.001),0)),Feriados,0))),(VLOOKUP(VLOOKUP(WEEKDAY(DATE($A$4,INT((COLUMN()-1)/31.001)+$A$3,ROUNDUP(MOD(COLUMN()-1,31.001),0)),2),Auxiliar!$D$1:$E$7,2,0),'Fiestas y días laborables'!$D$3:$E$9,2,0)=\"Si\"))","v":false},{"$f":"AND(NOT(ISNUMBER(MATCH(DATE($A$4,INT((COLUMN()-1)/31.001)+$A$3,ROUNDUP(MOD(COLUMN()-1,31.001),0)),Feriados,0))),(VLOOKUP(VLOOKUP(WEEKDAY(DATE($A$4,INT((COLUMN()-1)/31.001)+$A$3,ROUNDUP(MOD(COLUMN()-1,31.001),0)),2),Auxiliar!$D$1:$E$7,2,0),'Fiestas y días laborables'!$D$3:$E$9,2,0)=\"Si\"))","v":false},{"$f":"AND(NOT(ISNUMBER(MATCH(DATE($A$4,INT((COLUMN()-1)/31.001)+$A$3,ROUNDUP(MOD(COLUMN()-1,31.001),0)),Feriados,0))),(VLOOKUP(VLOOKUP(WEEKDAY(DATE($A$4,INT((COLUMN()-1)/31.001)+$A$3,ROUNDUP(MOD(COLUMN()-1,31.001),0)),2),Auxiliar!$D$1:$E$7,2,0),'Fiestas y días laborables'!$D$3:$E$9,2,0)=\"Si\"))","v":true},{"$f":"AND(NOT(ISNUMBER(MATCH(DATE($A$4,INT((COLUMN()-1)/31.001)+$A$3,ROUNDUP(MOD(COLUMN()-1,31.001),0)),Feriados,0))),(VLOOKUP(VLOOKUP(WEEKDAY(DATE($A$4,INT((COLUMN()-1)/31.001)+$A$3,ROUNDUP(MOD(COLUMN()-1,31.001),0)),2),Auxiliar!$D$1:$E$7,2,0),'Fiestas y días laborables'!$D$3:$E$9,2,0)=\"Si\"))","v":true},{"$f":"AND(NOT(ISNUMBER(MATCH(DATE($A$4,INT((COLUMN()-1)/31.001)+$A$3,ROUNDUP(MOD(COLUMN()-1,31.001),0)),Feriados,0))),(VLOOKUP(VLOOKUP(WEEKDAY(DATE($A$4,INT((COLUMN()-1)/31.001)+$A$3,ROUNDUP(MOD(COLUMN()-1,31.001),0)),2),Auxiliar!$D$1:$E$7,2,0),'Fiestas y días laborables'!$D$3:$E$9,2,0)=\"Si\"))","v":true},{"$f":"AND(NOT(ISNUMBER(MATCH(DATE($A$4,INT((COLUMN()-1)/31.001)+$A$3,ROUNDUP(MOD(COLUMN()-1,31.001),0)),Feriados,0))),(VLOOKUP(VLOOKUP(WEEKDAY(DATE($A$4,INT((COLUMN()-1)/31.001)+$A$3,ROUNDUP(MOD(COLUMN()-1,31.001),0)),2),Auxiliar!$D$1:$E$7,2,0),'Fiestas y días laborables'!$D$3:$E$9,2,0)=\"Si\"))","v":true},{"$f":"AND(NOT(ISNUMBER(MATCH(DATE($A$4,INT((COLUMN()-1)/31.001)+$A$3,ROUNDUP(MOD(COLUMN()-1,31.001),0)),Feriados,0))),(VLOOKUP(VLOOKUP(WEEKDAY(DATE($A$4,INT((COLUMN()-1)/31.001)+$A$3,ROUNDUP(MOD(COLUMN()-1,31.001),0)),2),Auxiliar!$D$1:$E$7,2,0),'Fiestas y días laborables'!$D$3:$E$9,2,0)=\"Si\"))","v":true},{"$f":"AND(NOT(ISNUMBER(MATCH(DATE($A$4,INT((COLUMN()-1)/31.001)+$A$3,ROUNDUP(MOD(COLUMN()-1,31.001),0)),Feriados,0))),(VLOOKUP(VLOOKUP(WEEKDAY(DATE($A$4,INT((COLUMN()-1)/31.001)+$A$3,ROUNDUP(MOD(COLUMN()-1,31.001),0)),2),Auxiliar!$D$1:$E$7,2,0),'Fiestas y días laborables'!$D$3:$E$9,2,0)=\"Si\"))","v":false},{"$f":"AND(NOT(ISNUMBER(MATCH(DATE($A$4,INT((COLUMN()-1)/31.001)+$A$3,ROUNDUP(MOD(COLUMN()-1,31.001),0)),Feriados,0))),(VLOOKUP(VLOOKUP(WEEKDAY(DATE($A$4,INT((COLUMN()-1)/31.001)+$A$3,ROUNDUP(MOD(COLUMN()-1,31.001),0)),2),Auxiliar!$D$1:$E$7,2,0),'Fiestas y días laborables'!$D$3:$E$9,2,0)=\"Si\"))","v":false},{"$f":"AND(NOT(ISNUMBER(MATCH(DATE($A$4,INT((COLUMN()-1)/31.001)+$A$3,ROUNDUP(MOD(COLUMN()-1,31.001),0)),Feriados,0))),(VLOOKUP(VLOOKUP(WEEKDAY(DATE($A$4,INT((COLUMN()-1)/31.001)+$A$3,ROUNDUP(MOD(COLUMN()-1,31.001),0)),2),Auxiliar!$D$1:$E$7,2,0),'Fiestas y días laborables'!$D$3:$E$9,2,0)=\"Si\"))","v":true},{"$f":"AND(NOT(ISNUMBER(MATCH(DATE($A$4,INT((COLUMN()-1)/31.001)+$A$3,ROUNDUP(MOD(COLUMN()-1,31.001),0)),Feriados,0))),(VLOOKUP(VLOOKUP(WEEKDAY(DATE($A$4,INT((COLUMN()-1)/31.001)+$A$3,ROUNDUP(MOD(COLUMN()-1,31.001),0)),2),Auxiliar!$D$1:$E$7,2,0),'Fiestas y días laborables'!$D$3:$E$9,2,0)=\"Si\"))","v":true},{"$f":"AND(NOT(ISNUMBER(MATCH(DATE($A$4,INT((COLUMN()-1)/31.001)+$A$3,ROUNDUP(MOD(COLUMN()-1,31.001),0)),Feriados,0))),(VLOOKUP(VLOOKUP(WEEKDAY(DATE($A$4,INT((COLUMN()-1)/31.001)+$A$3,ROUNDUP(MOD(COLUMN()-1,31.001),0)),2),Auxiliar!$D$1:$E$7,2,0),'Fiestas y días laborables'!$D$3:$E$9,2,0)=\"Si\"))","v":true},{"$f":"AND(NOT(ISNUMBER(MATCH(DATE($A$4,INT((COLUMN()-1)/31.001)+$A$3,ROUNDUP(MOD(COLUMN()-1,31.001),0)),Feriados,0))),(VLOOKUP(VLOOKUP(WEEKDAY(DATE($A$4,INT((COLUMN()-1)/31.001)+$A$3,ROUNDUP(MOD(COLUMN()-1,31.001),0)),2),Auxiliar!$D$1:$E$7,2,0),'Fiestas y días laborables'!$D$3:$E$9,2,0)=\"Si\"))","v":true},{"$f":"AND(NOT(ISNUMBER(MATCH(DATE($A$4,INT((COLUMN()-1)/31.001)+$A$3,ROUNDUP(MOD(COLUMN()-1,31.001),0)),Feriados,0))),(VLOOKUP(VLOOKUP(WEEKDAY(DATE($A$4,INT((COLUMN()-1)/31.001)+$A$3,ROUNDUP(MOD(COLUMN()-1,31.001),0)),2),Auxiliar!$D$1:$E$7,2,0),'Fiestas y días laborables'!$D$3:$E$9,2,0)=\"Si\"))","v":true},{"$f":"AND(NOT(ISNUMBER(MATCH(DATE($A$4,INT((COLUMN()-1)/31.001)+$A$3,ROUNDUP(MOD(COLUMN()-1,31.001),0)),Feriados,0))),(VLOOKUP(VLOOKUP(WEEKDAY(DATE($A$4,INT((COLUMN()-1)/31.001)+$A$3,ROUNDUP(MOD(COLUMN()-1,31.001),0)),2),Auxiliar!$D$1:$E$7,2,0),'Fiestas y días laborables'!$D$3:$E$9,2,0)=\"Si\"))","v":false},{"$f":"AND(NOT(ISNUMBER(MATCH(DATE($A$4,INT((COLUMN()-1)/31.001)+$A$3,ROUNDUP(MOD(COLUMN()-1,31.001),0)),Feriados,0))),(VLOOKUP(VLOOKUP(WEEKDAY(DATE($A$4,INT((COLUMN()-1)/31.001)+$A$3,ROUNDUP(MOD(COLUMN()-1,31.001),0)),2),Auxiliar!$D$1:$E$7,2,0),'Fiestas y días laborables'!$D$3:$E$9,2,0)=\"Si\"))","v":false},{"$f":"AND(NOT(ISNUMBER(MATCH(DATE($A$4,INT((COLUMN()-1)/31.001)+$A$3,ROUNDUP(MOD(COLUMN()-1,31.001),0)),Feriados,0))),(VLOOKUP(VLOOKUP(WEEKDAY(DATE($A$4,INT((COLUMN()-1)/31.001)+$A$3,ROUNDUP(MOD(COLUMN()-1,31.001),0)),2),Auxiliar!$D$1:$E$7,2,0),'Fiestas y días laborables'!$D$3:$E$9,2,0)=\"Si\"))","v":true},{"$f":"AND(NOT(ISNUMBER(MATCH(DATE($A$4,INT((COLUMN()-1)/31.001)+$A$3,ROUNDUP(MOD(COLUMN()-1,31.001),0)),Feriados,0))),(VLOOKUP(VLOOKUP(WEEKDAY(DATE($A$4,INT((COLUMN()-1)/31.001)+$A$3,ROUNDUP(MOD(COLUMN()-1,31.001),0)),2),Auxiliar!$D$1:$E$7,2,0),'Fiestas y días laborables'!$D$3:$E$9,2,0)=\"Si\"))","v":true},{"$f":"AND(NOT(ISNUMBER(MATCH(DATE($A$4,INT((COLUMN()-1)/31.001)+$A$3,ROUNDUP(MOD(COLUMN()-1,31.001),0)),Feriados,0))),(VLOOKUP(VLOOKUP(WEEKDAY(DATE($A$4,INT((COLUMN()-1)/31.001)+$A$3,ROUNDUP(MOD(COLUMN()-1,31.001),0)),2),Auxiliar!$D$1:$E$7,2,0),'Fiestas y días laborables'!$D$3:$E$9,2,0)=\"Si\"))","v":true},{"$f":"AND(NOT(ISNUMBER(MATCH(DATE($A$4,INT((COLUMN()-1)/31.001)+$A$3,ROUNDUP(MOD(COLUMN()-1,31.001),0)),Feriados,0))),(VLOOKUP(VLOOKUP(WEEKDAY(DATE($A$4,INT((COLUMN()-1)/31.001)+$A$3,ROUNDUP(MOD(COLUMN()-1,31.001),0)),2),Auxiliar!$D$1:$E$7,2,0),'Fiestas y días laborables'!$D$3:$E$9,2,0)=\"Si\"))","v":true},{"$f":"AND(NOT(ISNUMBER(MATCH(DATE($A$4,INT((COLUMN()-1)/31.001)+$A$3,ROUNDUP(MOD(COLUMN()-1,31.001),0)),Feriados,0))),(VLOOKUP(VLOOKUP(WEEKDAY(DATE($A$4,INT((COLUMN()-1)/31.001)+$A$3,ROUNDUP(MOD(COLUMN()-1,31.001),0)),2),Auxiliar!$D$1:$E$7,2,0),'Fiestas y días laborables'!$D$3:$E$9,2,0)=\"Si\"))","v":true},{"$f":"AND(NOT(ISNUMBER(MATCH(DATE($A$4,INT((COLUMN()-1)/31.001)+$A$3,ROUNDUP(MOD(COLUMN()-1,31.001),0)),Feriados,0))),(VLOOKUP(VLOOKUP(WEEKDAY(DATE($A$4,INT((COLUMN()-1)/31.001)+$A$3,ROUNDUP(MOD(COLUMN()-1,31.001),0)),2),Auxiliar!$D$1:$E$7,2,0),'Fiestas y días laborables'!$D$3:$E$9,2,0)=\"Si\"))","v":false},{"$f":"AND(NOT(ISNUMBER(MATCH(DATE($A$4,INT((COLUMN()-1)/31.001)+$A$3,ROUNDUP(MOD(COLUMN()-1,31.001),0)),Feriados,0))),(VLOOKUP(VLOOKUP(WEEKDAY(DATE($A$4,INT((COLUMN()-1)/31.001)+$A$3,ROUNDUP(MOD(COLUMN()-1,31.001),0)),2),Auxiliar!$D$1:$E$7,2,0),'Fiestas y días laborables'!$D$3:$E$9,2,0)=\"Si\"))","v":false},{"$f":"AND(NOT(ISNUMBER(MATCH(DATE($A$4,INT((COLUMN()-1)/31.001)+$A$3,ROUNDUP(MOD(COLUMN()-1,31.001),0)),Feriados,0))),(VLOOKUP(VLOOKUP(WEEKDAY(DATE($A$4,INT((COLUMN()-1)/31.001)+$A$3,ROUNDUP(MOD(COLUMN()-1,31.001),0)),2),Auxiliar!$D$1:$E$7,2,0),'Fiestas y días laborables'!$D$3:$E$9,2,0)=\"Si\"))","v":true},{"$f":"AND(NOT(ISNUMBER(MATCH(DATE($A$4,INT((COLUMN()-1)/31.001)+$A$3,ROUNDUP(MOD(COLUMN()-1,31.001),0)),Feriados,0))),(VLOOKUP(VLOOKUP(WEEKDAY(DATE($A$4,INT((COLUMN()-1)/31.001)+$A$3,ROUNDUP(MOD(COLUMN()-1,31.001),0)),2),Auxiliar!$D$1:$E$7,2,0),'Fiestas y días laborables'!$D$3:$E$9,2,0)=\"Si\"))","v":true},{"$f":"AND(NOT(ISNUMBER(MATCH(DATE($A$4,INT((COLUMN()-1)/31.001)+$A$3,ROUNDUP(MOD(COLUMN()-1,31.001),0)),Feriados,0))),(VLOOKUP(VLOOKUP(WEEKDAY(DATE($A$4,INT((COLUMN()-1)/31.001)+$A$3,ROUNDUP(MOD(COLUMN()-1,31.001),0)),2),Auxiliar!$D$1:$E$7,2,0),'Fiestas y días laborables'!$D$3:$E$9,2,0)=\"Si\"))","v":true},{"$f":"AND(NOT(ISNUMBER(MATCH(DATE($A$4,INT((COLUMN()-1)/31.001)+$A$3,ROUNDUP(MOD(COLUMN()-1,31.001),0)),Feriados,0))),(VLOOKUP(VLOOKUP(WEEKDAY(DATE($A$4,INT((COLUMN()-1)/31.001)+$A$3,ROUNDUP(MOD(COLUMN()-1,31.001),0)),2),Auxiliar!$D$1:$E$7,2,0),'Fiestas y días laborables'!$D$3:$E$9,2,0)=\"Si\"))","v":true},{"$f":"AND(NOT(ISNUMBER(MATCH(DATE($A$4,INT((COLUMN()-1)/31.001)+$A$3,ROUNDUP(MOD(COLUMN()-1,31.001),0)),Feriados,0))),(VLOOKUP(VLOOKUP(WEEKDAY(DATE($A$4,INT((COLUMN()-1)/31.001)+$A$3,ROUNDUP(MOD(COLUMN()-1,31.001),0)),2),Auxiliar!$D$1:$E$7,2,0),'Fiestas y días laborables'!$D$3:$E$9,2,0)=\"Si\"))","v":true},{"$f":"AND(NOT(ISNUMBER(MATCH(DATE($A$4,INT((COLUMN()-1)/31.001)+$A$3,ROUNDUP(MOD(COLUMN()-1,31.001),0)),Feriados,0))),(VLOOKUP(VLOOKUP(WEEKDAY(DATE($A$4,INT((COLUMN()-1)/31.001)+$A$3,ROUNDUP(MOD(COLUMN()-1,31.001),0)),2),Auxiliar!$D$1:$E$7,2,0),'Fiestas y días laborables'!$D$3:$E$9,2,0)=\"Si\"))","v":false},{"$f":"AND(NOT(ISNUMBER(MATCH(DATE($A$4,INT((COLUMN()-1)/31.001)+$A$3,ROUNDUP(MOD(COLUMN()-1,31.001),0)),Feriados,0))),(VLOOKUP(VLOOKUP(WEEKDAY(DATE($A$4,INT((COLUMN()-1)/31.001)+$A$3,ROUNDUP(MOD(COLUMN()-1,31.001),0)),2),Auxiliar!$D$1:$E$7,2,0),'Fiestas y días laborables'!$D$3:$E$9,2,0)=\"Si\"))","v":false},{"$f":"AND(NOT(ISNUMBER(MATCH(DATE($A$4,INT((COLUMN()-1)/31.001)+$A$3,ROUNDUP(MOD(COLUMN()-1,31.001),0)),Feriados,0))),(VLOOKUP(VLOOKUP(WEEKDAY(DATE($A$4,INT((COLUMN()-1)/31.001)+$A$3,ROUNDUP(MOD(COLUMN()-1,31.001),0)),2),Auxiliar!$D$1:$E$7,2,0),'Fiestas y días laborables'!$D$3:$E$9,2,0)=\"Si\"))","v":true},{"$f":"AND(NOT(ISNUMBER(MATCH(DATE($A$4,INT((COLUMN()-1)/31.001)+$A$3,ROUNDUP(MOD(COLUMN()-1,31.001),0)),Feriados,0))),(VLOOKUP(VLOOKUP(WEEKDAY(DATE($A$4,INT((COLUMN()-1)/31.001)+$A$3,ROUNDUP(MOD(COLUMN()-1,31.001),0)),2),Auxiliar!$D$1:$E$7,2,0),'Fiestas y días laborables'!$D$3:$E$9,2,0)=\"Si\"))","v":true},{"$f":"AND(NOT(ISNUMBER(MATCH(DATE($A$4,INT((COLUMN()-1)/31.001)+$A$3,ROUNDUP(MOD(COLUMN()-1,31.001),0)),Feriados,0))),(VLOOKUP(VLOOKUP(WEEKDAY(DATE($A$4,INT((COLUMN()-1)/31.001)+$A$3,ROUNDUP(MOD(COLUMN()-1,31.001),0)),2),Auxiliar!$D$1:$E$7,2,0),'Fiestas y días laborables'!$D$3:$E$9,2,0)=\"Si\"))","v":true},{"$f":"AND(NOT(ISNUMBER(MATCH(DATE($A$4,INT((COLUMN()-1)/31.001)+$A$3,ROUNDUP(MOD(COLUMN()-1,31.001),0)),Feriados,0))),(VLOOKUP(VLOOKUP(WEEKDAY(DATE($A$4,INT((COLUMN()-1)/31.001)+$A$3,ROUNDUP(MOD(COLUMN()-1,31.001),0)),2),Auxiliar!$D$1:$E$7,2,0),'Fiestas y días laborables'!$D$3:$E$9,2,0)=\"Si\"))","v":true},{"$f":"AND(NOT(ISNUMBER(MATCH(DATE($A$4,INT((COLUMN()-1)/31.001)+$A$3,ROUNDUP(MOD(COLUMN()-1,31.001),0)),Feriados,0))),(VLOOKUP(VLOOKUP(WEEKDAY(DATE($A$4,INT((COLUMN()-1)/31.001)+$A$3,ROUNDUP(MOD(COLUMN()-1,31.001),0)),2),Auxiliar!$D$1:$E$7,2,0),'Fiestas y días laborables'!$D$3:$E$9,2,0)=\"Si\"))","v":true},{"$f":"AND(NOT(ISNUMBER(MATCH(DATE($A$4,INT((COLUMN()-1)/31.001)+$A$3,ROUNDUP(MOD(COLUMN()-1,31.001),0)),Feriados,0))),(VLOOKUP(VLOOKUP(WEEKDAY(DATE($A$4,INT((COLUMN()-1)/31.001)+$A$3,ROUNDUP(MOD(COLUMN()-1,31.001),0)),2),Auxiliar!$D$1:$E$7,2,0),'Fiestas y días laborables'!$D$3:$E$9,2,0)=\"Si\"))","v":false},{"$f":"AND(NOT(ISNUMBER(MATCH(DATE($A$4,INT((COLUMN()-1)/31.001)+$A$3,ROUNDUP(MOD(COLUMN()-1,31.001),0)),Feriados,0))),(VLOOKUP(VLOOKUP(WEEKDAY(DATE($A$4,INT((COLUMN()-1)/31.001)+$A$3,ROUNDUP(MOD(COLUMN()-1,31.001),0)),2),Auxiliar!$D$1:$E$7,2,0),'Fiestas y días laborables'!$D$3:$E$9,2,0)=\"Si\"))","v":false},{"$f":"AND(NOT(ISNUMBER(MATCH(DATE($A$4,INT((COLUMN()-1)/31.001)+$A$3,ROUNDUP(MOD(COLUMN()-1,31.001),0)),Feriados,0))),(VLOOKUP(VLOOKUP(WEEKDAY(DATE($A$4,INT((COLUMN()-1)/31.001)+$A$3,ROUNDUP(MOD(COLUMN()-1,31.001),0)),2),Auxiliar!$D$1:$E$7,2,0),'Fiestas y días laborables'!$D$3:$E$9,2,0)=\"Si\"))","v":true},{"$f":"AND(NOT(ISNUMBER(MATCH(DATE($A$4,INT((COLUMN()-1)/31.001)+$A$3,ROUNDUP(MOD(COLUMN()-1,31.001),0)),Feriados,0))),(VLOOKUP(VLOOKUP(WEEKDAY(DATE($A$4,INT((COLUMN()-1)/31.001)+$A$3,ROUNDUP(MOD(COLUMN()-1,31.001),0)),2),Auxiliar!$D$1:$E$7,2,0),'Fiestas y días laborables'!$D$3:$E$9,2,0)=\"Si\"))","v":true},{"$f":"AND(NOT(ISNUMBER(MATCH(DATE($A$4,INT((COLUMN()-1)/31.001)+$A$3,ROUNDUP(MOD(COLUMN()-1,31.001),0)),Feriados,0))),(VLOOKUP(VLOOKUP(WEEKDAY(DATE($A$4,INT((COLUMN()-1)/31.001)+$A$3,ROUNDUP(MOD(COLUMN()-1,31.001),0)),2),Auxiliar!$D$1:$E$7,2,0),'Fiestas y días laborables'!$D$3:$E$9,2,0)=\"Si\"))","v":true},{"$f":"AND(NOT(ISNUMBER(MATCH(DATE($A$4,INT((COLUMN()-1)/31.001)+$A$3,ROUNDUP(MOD(COLUMN()-1,31.001),0)),Feriados,0))),(VLOOKUP(VLOOKUP(WEEKDAY(DATE($A$4,INT((COLUMN()-1)/31.001)+$A$3,ROUNDUP(MOD(COLUMN()-1,31.001),0)),2),Auxiliar!$D$1:$E$7,2,0),'Fiestas y días laborables'!$D$3:$E$9,2,0)=\"Si\"))","v":true},{"$f":"AND(NOT(ISNUMBER(MATCH(DATE($A$4,INT((COLUMN()-1)/31.001)+$A$3,ROUNDUP(MOD(COLUMN()-1,31.001),0)),Feriados,0))),(VLOOKUP(VLOOKUP(WEEKDAY(DATE($A$4,INT((COLUMN()-1)/31.001)+$A$3,ROUNDUP(MOD(COLUMN()-1,31.001),0)),2),Auxiliar!$D$1:$E$7,2,0),'Fiestas y días laborables'!$D$3:$E$9,2,0)=\"Si\"))","v":true},{"$f":"AND(NOT(ISNUMBER(MATCH(DATE($A$4,INT((COLUMN()-1)/31.001)+$A$3,ROUNDUP(MOD(COLUMN()-1,31.001),0)),Feriados,0))),(VLOOKUP(VLOOKUP(WEEKDAY(DATE($A$4,INT((COLUMN()-1)/31.001)+$A$3,ROUNDUP(MOD(COLUMN()-1,31.001),0)),2),Auxiliar!$D$1:$E$7,2,0),'Fiestas y días laborables'!$D$3:$E$9,2,0)=\"Si\"))","v":false},{"$f":"AND(NOT(ISNUMBER(MATCH(DATE($A$4,INT((COLUMN()-1)/31.001)+$A$3,ROUNDUP(MOD(COLUMN()-1,31.001),0)),Feriados,0))),(VLOOKUP(VLOOKUP(WEEKDAY(DATE($A$4,INT((COLUMN()-1)/31.001)+$A$3,ROUNDUP(MOD(COLUMN()-1,31.001),0)),2),Auxiliar!$D$1:$E$7,2,0),'Fiestas y días laborables'!$D$3:$E$9,2,0)=\"Si\"))","v":false},{"$f":"AND(NOT(ISNUMBER(MATCH(DATE($A$4,INT((COLUMN()-1)/31.001)+$A$3,ROUNDUP(MOD(COLUMN()-1,31.001),0)),Feriados,0))),(VLOOKUP(VLOOKUP(WEEKDAY(DATE($A$4,INT((COLUMN()-1)/31.001)+$A$3,ROUNDUP(MOD(COLUMN()-1,31.001),0)),2),Auxiliar!$D$1:$E$7,2,0),'Fiestas y días laborables'!$D$3:$E$9,2,0)=\"Si\"))","v":true},{"$f":"AND(NOT(ISNUMBER(MATCH(DATE($A$4,INT((COLUMN()-1)/31.001)+$A$3,ROUNDUP(MOD(COLUMN()-1,31.001),0)),Feriados,0))),(VLOOKUP(VLOOKUP(WEEKDAY(DATE($A$4,INT((COLUMN()-1)/31.001)+$A$3,ROUNDUP(MOD(COLUMN()-1,31.001),0)),2),Auxiliar!$D$1:$E$7,2,0),'Fiestas y días laborables'!$D$3:$E$9,2,0)=\"Si\"))","v":true},{"$f":"AND(NOT(ISNUMBER(MATCH(DATE($A$4,INT((COLUMN()-1)/31.001)+$A$3,ROUNDUP(MOD(COLUMN()-1,31.001),0)),Feriados,0))),(VLOOKUP(VLOOKUP(WEEKDAY(DATE($A$4,INT((COLUMN()-1)/31.001)+$A$3,ROUNDUP(MOD(COLUMN()-1,31.001),0)),2),Auxiliar!$D$1:$E$7,2,0),'Fiestas y días laborables'!$D$3:$E$9,2,0)=\"Si\"))","v":true},{"$f":"AND(NOT(ISNUMBER(MATCH(DATE($A$4,INT((COLUMN()-1)/31.001)+$A$3,ROUNDUP(MOD(COLUMN()-1,31.001),0)),Feriados,0))),(VLOOKUP(VLOOKUP(WEEKDAY(DATE($A$4,INT((COLUMN()-1)/31.001)+$A$3,ROUNDUP(MOD(COLUMN()-1,31.001),0)),2),Auxiliar!$D$1:$E$7,2,0),'Fiestas y días laborables'!$D$3:$E$9,2,0)=\"Si\"))","v":true},{"$f":"AND(NOT(ISNUMBER(MATCH(DATE($A$4,INT((COLUMN()-1)/31.001)+$A$3,ROUNDUP(MOD(COLUMN()-1,31.001),0)),Feriados,0))),(VLOOKUP(VLOOKUP(WEEKDAY(DATE($A$4,INT((COLUMN()-1)/31.001)+$A$3,ROUNDUP(MOD(COLUMN()-1,31.001),0)),2),Auxiliar!$D$1:$E$7,2,0),'Fiestas y días laborables'!$D$3:$E$9,2,0)=\"Si\"))","v":true},{"$f":"AND(NOT(ISNUMBER(MATCH(DATE($A$4,INT((COLUMN()-1)/31.001)+$A$3,ROUNDUP(MOD(COLUMN()-1,31.001),0)),Feriados,0))),(VLOOKUP(VLOOKUP(WEEKDAY(DATE($A$4,INT((COLUMN()-1)/31.001)+$A$3,ROUNDUP(MOD(COLUMN()-1,31.001),0)),2),Auxiliar!$D$1:$E$7,2,0),'Fiestas y días laborables'!$D$3:$E$9,2,0)=\"Si\"))","v":false},{"$f":"AND(NOT(ISNUMBER(MATCH(DATE($A$4,INT((COLUMN()-1)/31.001)+$A$3,ROUNDUP(MOD(COLUMN()-1,31.001),0)),Feriados,0))),(VLOOKUP(VLOOKUP(WEEKDAY(DATE($A$4,INT((COLUMN()-1)/31.001)+$A$3,ROUNDUP(MOD(COLUMN()-1,31.001),0)),2),Auxiliar!$D$1:$E$7,2,0),'Fiestas y días laborables'!$D$3:$E$9,2,0)=\"Si\"))","v":false},{"$f":"AND(NOT(ISNUMBER(MATCH(DATE($A$4,INT((COLUMN()-1)/31.001)+$A$3,ROUNDUP(MOD(COLUMN()-1,31.001),0)),Feriados,0))),(VLOOKUP(VLOOKUP(WEEKDAY(DATE($A$4,INT((COLUMN()-1)/31.001)+$A$3,ROUNDUP(MOD(COLUMN()-1,31.001),0)),2),Auxiliar!$D$1:$E$7,2,0),'Fiestas y días laborables'!$D$3:$E$9,2,0)=\"Si\"))","v":true},{"$f":"AND(NOT(ISNUMBER(MATCH(DATE($A$4,INT((COLUMN()-1)/31.001)+$A$3,ROUNDUP(MOD(COLUMN()-1,31.001),0)),Feriados,0))),(VLOOKUP(VLOOKUP(WEEKDAY(DATE($A$4,INT((COLUMN()-1)/31.001)+$A$3,ROUNDUP(MOD(COLUMN()-1,31.001),0)),2),Auxiliar!$D$1:$E$7,2,0),'Fiestas y días laborables'!$D$3:$E$9,2,0)=\"Si\"))","v":true},{"$f":"AND(NOT(ISNUMBER(MATCH(DATE($A$4,INT((COLUMN()-1)/31.001)+$A$3,ROUNDUP(MOD(COLUMN()-1,31.001),0)),Feriados,0))),(VLOOKUP(VLOOKUP(WEEKDAY(DATE($A$4,INT((COLUMN()-1)/31.001)+$A$3,ROUNDUP(MOD(COLUMN()-1,31.001),0)),2),Auxiliar!$D$1:$E$7,2,0),'Fiestas y días laborables'!$D$3:$E$9,2,0)=\"Si\"))","v":true},{"$f":"AND(NOT(ISNUMBER(MATCH(DATE($A$4,INT((COLUMN()-1)/31.001)+$A$3,ROUNDUP(MOD(COLUMN()-1,31.001),0)),Feriados,0))),(VLOOKUP(VLOOKUP(WEEKDAY(DATE($A$4,INT((COLUMN()-1)/31.001)+$A$3,ROUNDUP(MOD(COLUMN()-1,31.001),0)),2),Auxiliar!$D$1:$E$7,2,0),'Fiestas y días laborables'!$D$3:$E$9,2,0)=\"Si\"))","v":true},{"$f":"AND(NOT(ISNUMBER(MATCH(DATE($A$4,INT((COLUMN()-1)/31.001)+$A$3,ROUNDUP(MOD(COLUMN()-1,31.001),0)),Feriados,0))),(VLOOKUP(VLOOKUP(WEEKDAY(DATE($A$4,INT((COLUMN()-1)/31.001)+$A$3,ROUNDUP(MOD(COLUMN()-1,31.001),0)),2),Auxiliar!$D$1:$E$7,2,0),'Fiestas y días laborables'!$D$3:$E$9,2,0)=\"Si\"))","v":true},{"$f":"AND(NOT(ISNUMBER(MATCH(DATE($A$4,INT((COLUMN()-1)/31.001)+$A$3,ROUNDUP(MOD(COLUMN()-1,31.001),0)),Feriados,0))),(VLOOKUP(VLOOKUP(WEEKDAY(DATE($A$4,INT((COLUMN()-1)/31.001)+$A$3,ROUNDUP(MOD(COLUMN()-1,31.001),0)),2),Auxiliar!$D$1:$E$7,2,0),'Fiestas y días laborables'!$D$3:$E$9,2,0)=\"Si\"))","v":false},{"$f":"AND(NOT(ISNUMBER(MATCH(DATE($A$4,INT((COLUMN()-1)/31.001)+$A$3,ROUNDUP(MOD(COLUMN()-1,31.001),0)),Feriados,0))),(VLOOKUP(VLOOKUP(WEEKDAY(DATE($A$4,INT((COLUMN()-1)/31.001)+$A$3,ROUNDUP(MOD(COLUMN()-1,31.001),0)),2),Auxiliar!$D$1:$E$7,2,0),'Fiestas y días laborables'!$D$3:$E$9,2,0)=\"Si\"))","v":false},{"$f":"AND(NOT(ISNUMBER(MATCH(DATE($A$4,INT((COLUMN()-1)/31.001)+$A$3,ROUNDUP(MOD(COLUMN()-1,31.001),0)),Feriados,0))),(VLOOKUP(VLOOKUP(WEEKDAY(DATE($A$4,INT((COLUMN()-1)/31.001)+$A$3,ROUNDUP(MOD(COLUMN()-1,31.001),0)),2),Auxiliar!$D$1:$E$7,2,0),'Fiestas y días laborables'!$D$3:$E$9,2,0)=\"Si\"))","v":true},{"$f":"AND(NOT(ISNUMBER(MATCH(DATE($A$4,INT((COLUMN()-1)/31.001)+$A$3,ROUNDUP(MOD(COLUMN()-1,31.001),0)),Feriados,0))),(VLOOKUP(VLOOKUP(WEEKDAY(DATE($A$4,INT((COLUMN()-1)/31.001)+$A$3,ROUNDUP(MOD(COLUMN()-1,31.001),0)),2),Auxiliar!$D$1:$E$7,2,0),'Fiestas y días laborables'!$D$3:$E$9,2,0)=\"Si\"))","v":true},{"$f":"AND(NOT(ISNUMBER(MATCH(DATE($A$4,INT((COLUMN()-1)/31.001)+$A$3,ROUNDUP(MOD(COLUMN()-1,31.001),0)),Feriados,0))),(VLOOKUP(VLOOKUP(WEEKDAY(DATE($A$4,INT((COLUMN()-1)/31.001)+$A$3,ROUNDUP(MOD(COLUMN()-1,31.001),0)),2),Auxiliar!$D$1:$E$7,2,0),'Fiestas y días laborables'!$D$3:$E$9,2,0)=\"Si\"))","v":true},{"$f":"AND(NOT(ISNUMBER(MATCH(DATE($A$4,INT((COLUMN()-1)/31.001)+$A$3,ROUNDUP(MOD(COLUMN()-1,31.001),0)),Feriados,0))),(VLOOKUP(VLOOKUP(WEEKDAY(DATE($A$4,INT((COLUMN()-1)/31.001)+$A$3,ROUNDUP(MOD(COLUMN()-1,31.001),0)),2),Auxiliar!$D$1:$E$7,2,0),'Fiestas y días laborables'!$D$3:$E$9,2,0)=\"Si\"))","v":true},{"$f":"AND(NOT(ISNUMBER(MATCH(DATE($A$4,INT((COLUMN()-1)/31.001)+$A$3,ROUNDUP(MOD(COLUMN()-1,31.001),0)),Feriados,0))),(VLOOKUP(VLOOKUP(WEEKDAY(DATE($A$4,INT((COLUMN()-1)/31.001)+$A$3,ROUNDUP(MOD(COLUMN()-1,31.001),0)),2),Auxiliar!$D$1:$E$7,2,0),'Fiestas y días laborables'!$D$3:$E$9,2,0)=\"Si\"))","v":true},{"$f":"AND(NOT(ISNUMBER(MATCH(DATE($A$4,INT((COLUMN()-1)/31.001)+$A$3,ROUNDUP(MOD(COLUMN()-1,31.001),0)),Feriados,0))),(VLOOKUP(VLOOKUP(WEEKDAY(DATE($A$4,INT((COLUMN()-1)/31.001)+$A$3,ROUNDUP(MOD(COLUMN()-1,31.001),0)),2),Auxiliar!$D$1:$E$7,2,0),'Fiestas y días laborables'!$D$3:$E$9,2,0)=\"Si\"))","v":false},{"$f":"AND(NOT(ISNUMBER(MATCH(DATE($A$4,INT((COLUMN()-1)/31.001)+$A$3,ROUNDUP(MOD(COLUMN()-1,31.001),0)),Feriados,0))),(VLOOKUP(VLOOKUP(WEEKDAY(DATE($A$4,INT((COLUMN()-1)/31.001)+$A$3,ROUNDUP(MOD(COLUMN()-1,31.001),0)),2),Auxiliar!$D$1:$E$7,2,0),'Fiestas y días laborables'!$D$3:$E$9,2,0)=\"Si\"))","v":false},{"$f":"AND(NOT(ISNUMBER(MATCH(DATE($A$4,INT((COLUMN()-1)/31.001)+$A$3,ROUNDUP(MOD(COLUMN()-1,31.001),0)),Feriados,0))),(VLOOKUP(VLOOKUP(WEEKDAY(DATE($A$4,INT((COLUMN()-1)/31.001)+$A$3,ROUNDUP(MOD(COLUMN()-1,31.001),0)),2),Auxiliar!$D$1:$E$7,2,0),'Fiestas y días laborables'!$D$3:$E$9,2,0)=\"Si\"))","v":false},{"$f":"AND(NOT(ISNUMBER(MATCH(DATE($A$4,INT((COLUMN()-1)/31.001)+$A$3,ROUNDUP(MOD(COLUMN()-1,31.001),0)),Feriados,0))),(VLOOKUP(VLOOKUP(WEEKDAY(DATE($A$4,INT((COLUMN()-1)/31.001)+$A$3,ROUNDUP(MOD(COLUMN()-1,31.001),0)),2),Auxiliar!$D$1:$E$7,2,0),'Fiestas y días laborables'!$D$3:$E$9,2,0)=\"Si\"))","v":true},{"$f":"AND(NOT(ISNUMBER(MATCH(DATE($A$4,INT((COLUMN()-1)/31.001)+$A$3,ROUNDUP(MOD(COLUMN()-1,31.001),0)),Feriados,0))),(VLOOKUP(VLOOKUP(WEEKDAY(DATE($A$4,INT((COLUMN()-1)/31.001)+$A$3,ROUNDUP(MOD(COLUMN()-1,31.001),0)),2),Auxiliar!$D$1:$E$7,2,0),'Fiestas y días laborables'!$D$3:$E$9,2,0)=\"Si\"))","v":true},{"$f":"AND(NOT(ISNUMBER(MATCH(DATE($A$4,INT((COLUMN()-1)/31.001)+$A$3,ROUNDUP(MOD(COLUMN()-1,31.001),0)),Feriados,0))),(VLOOKUP(VLOOKUP(WEEKDAY(DATE($A$4,INT((COLUMN()-1)/31.001)+$A$3,ROUNDUP(MOD(COLUMN()-1,31.001),0)),2),Auxiliar!$D$1:$E$7,2,0),'Fiestas y días laborables'!$D$3:$E$9,2,0)=\"Si\"))","v":true},{"$f":"AND(NOT(ISNUMBER(MATCH(DATE($A$4,INT((COLUMN()-1)/31.001)+$A$3,ROUNDUP(MOD(COLUMN()-1,31.001),0)),Feriados,0))),(VLOOKUP(VLOOKUP(WEEKDAY(DATE($A$4,INT((COLUMN()-1)/31.001)+$A$3,ROUNDUP(MOD(COLUMN()-1,31.001),0)),2),Auxiliar!$D$1:$E$7,2,0),'Fiestas y días laborables'!$D$3:$E$9,2,0)=\"Si\"))","v":true},{"$f":"AND(NOT(ISNUMBER(MATCH(DATE($A$4,INT((COLUMN()-1)/31.001)+$A$3,ROUNDUP(MOD(COLUMN()-1,31.001),0)),Feriados,0))),(VLOOKUP(VLOOKUP(WEEKDAY(DATE($A$4,INT((COLUMN()-1)/31.001)+$A$3,ROUNDUP(MOD(COLUMN()-1,31.001),0)),2),Auxiliar!$D$1:$E$7,2,0),'Fiestas y días laborables'!$D$3:$E$9,2,0)=\"Si\"))","v":true},{"$f":"AND(NOT(ISNUMBER(MATCH(DATE($A$4,INT((COLUMN()-1)/31.001)+$A$3,ROUNDUP(MOD(COLUMN()-1,31.001),0)),Feriados,0))),(VLOOKUP(VLOOKUP(WEEKDAY(DATE($A$4,INT((COLUMN()-1)/31.001)+$A$3,ROUNDUP(MOD(COLUMN()-1,31.001),0)),2),Auxiliar!$D$1:$E$7,2,0),'Fiestas y días laborables'!$D$3:$E$9,2,0)=\"Si\"))","v":false},{"$f":"AND(NOT(ISNUMBER(MATCH(DATE($A$4,INT((COLUMN()-1)/31.001)+$A$3,ROUNDUP(MOD(COLUMN()-1,31.001),0)),Feriados,0))),(VLOOKUP(VLOOKUP(WEEKDAY(DATE($A$4,INT((COLUMN()-1)/31.001)+$A$3,ROUNDUP(MOD(COLUMN()-1,31.001),0)),2),Auxiliar!$D$1:$E$7,2,0),'Fiestas y días laborables'!$D$3:$E$9,2,0)=\"Si\"))","v":false},{"$f":"AND(NOT(ISNUMBER(MATCH(DATE($A$4,INT((COLUMN()-1)/31.001)+$A$3,ROUNDUP(MOD(COLUMN()-1,31.001),0)),Feriados,0))),(VLOOKUP(VLOOKUP(WEEKDAY(DATE($A$4,INT((COLUMN()-1)/31.001)+$A$3,ROUNDUP(MOD(COLUMN()-1,31.001),0)),2),Auxiliar!$D$1:$E$7,2,0),'Fiestas y días laborables'!$D$3:$E$9,2,0)=\"Si\"))","v":true},{"$f":"AND(NOT(ISNUMBER(MATCH(DATE($A$4,INT((COLUMN()-1)/31.001)+$A$3,ROUNDUP(MOD(COLUMN()-1,31.001),0)),Feriados,0))),(VLOOKUP(VLOOKUP(WEEKDAY(DATE($A$4,INT((COLUMN()-1)/31.001)+$A$3,ROUNDUP(MOD(COLUMN()-1,31.001),0)),2),Auxiliar!$D$1:$E$7,2,0),'Fiestas y días laborables'!$D$3:$E$9,2,0)=\"Si\"))","v":true},{"$f":"AND(NOT(ISNUMBER(MATCH(DATE($A$4,INT((COLUMN()-1)/31.001)+$A$3,ROUNDUP(MOD(COLUMN()-1,31.001),0)),Feriados,0))),(VLOOKUP(VLOOKUP(WEEKDAY(DATE($A$4,INT((COLUMN()-1)/31.001)+$A$3,ROUNDUP(MOD(COLUMN()-1,31.001),0)),2),Auxiliar!$D$1:$E$7,2,0),'Fiestas y días laborables'!$D$3:$E$9,2,0)=\"Si\"))","v":true},{"$f":"AND(NOT(ISNUMBER(MATCH(DATE($A$4,INT((COLUMN()-1)/31.001)+$A$3,ROUNDUP(MOD(COLUMN()-1,31.001),0)),Feriados,0))),(VLOOKUP(VLOOKUP(WEEKDAY(DATE($A$4,INT((COLUMN()-1)/31.001)+$A$3,ROUNDUP(MOD(COLUMN()-1,31.001),0)),2),Auxiliar!$D$1:$E$7,2,0),'Fiestas y días laborables'!$D$3:$E$9,2,0)=\"Si\"))","v":true},{"$f":"AND(NOT(ISNUMBER(MATCH(DATE($A$4,INT((COLUMN()-1)/31.001)+$A$3,ROUNDUP(MOD(COLUMN()-1,31.001),0)),Feriados,0))),(VLOOKUP(VLOOKUP(WEEKDAY(DATE($A$4,INT((COLUMN()-1)/31.001)+$A$3,ROUNDUP(MOD(COLUMN()-1,31.001),0)),2),Auxiliar!$D$1:$E$7,2,0),'Fiestas y días laborables'!$D$3:$E$9,2,0)=\"Si\"))","v":true},{"$f":"AND(NOT(ISNUMBER(MATCH(DATE($A$4,INT((COLUMN()-1)/31.001)+$A$3,ROUNDUP(MOD(COLUMN()-1,31.001),0)),Feriados,0))),(VLOOKUP(VLOOKUP(WEEKDAY(DATE($A$4,INT((COLUMN()-1)/31.001)+$A$3,ROUNDUP(MOD(COLUMN()-1,31.001),0)),2),Auxiliar!$D$1:$E$7,2,0),'Fiestas y días laborables'!$D$3:$E$9,2,0)=\"Si\"))","v":false},{"$f":"AND(NOT(ISNUMBER(MATCH(DATE($A$4,INT((COLUMN()-1)/31.001)+$A$3,ROUNDUP(MOD(COLUMN()-1,31.001),0)),Feriados,0))),(VLOOKUP(VLOOKUP(WEEKDAY(DATE($A$4,INT((COLUMN()-1)/31.001)+$A$3,ROUNDUP(MOD(COLUMN()-1,31.001),0)),2),Auxiliar!$D$1:$E$7,2,0),'Fiestas y días laborables'!$D$3:$E$9,2,0)=\"Si\"))","v":false},{"$f":"AND(NOT(ISNUMBER(MATCH(DATE($A$4,INT((COLUMN()-1)/31.001)+$A$3,ROUNDUP(MOD(COLUMN()-1,31.001),0)),Feriados,0))),(VLOOKUP(VLOOKUP(WEEKDAY(DATE($A$4,INT((COLUMN()-1)/31.001)+$A$3,ROUNDUP(MOD(COLUMN()-1,31.001),0)),2),Auxiliar!$D$1:$E$7,2,0),'Fiestas y días laborables'!$D$3:$E$9,2,0)=\"Si\"))","v":true},{"$f":"AND(NOT(ISNUMBER(MATCH(DATE($A$4,INT((COLUMN()-1)/31.001)+$A$3,ROUNDUP(MOD(COLUMN()-1,31.001),0)),Feriados,0))),(VLOOKUP(VLOOKUP(WEEKDAY(DATE($A$4,INT((COLUMN()-1)/31.001)+$A$3,ROUNDUP(MOD(COLUMN()-1,31.001),0)),2),Auxiliar!$D$1:$E$7,2,0),'Fiestas y días laborables'!$D$3:$E$9,2,0)=\"Si\"))","v":true},{"$f":"AND(NOT(ISNUMBER(MATCH(DATE($A$4,INT((COLUMN()-1)/31.001)+$A$3,ROUNDUP(MOD(COLUMN()-1,31.001),0)),Feriados,0))),(VLOOKUP(VLOOKUP(WEEKDAY(DATE($A$4,INT((COLUMN()-1)/31.001)+$A$3,ROUNDUP(MOD(COLUMN()-1,31.001),0)),2),Auxiliar!$D$1:$E$7,2,0),'Fiestas y días laborables'!$D$3:$E$9,2,0)=\"Si\"))","v":true},{"$f":"AND(NOT(ISNUMBER(MATCH(DATE($A$4,INT((COLUMN()-1)/31.001)+$A$3,ROUNDUP(MOD(COLUMN()-1,31.001),0)),Feriados,0))),(VLOOKUP(VLOOKUP(WEEKDAY(DATE($A$4,INT((COLUMN()-1)/31.001)+$A$3,ROUNDUP(MOD(COLUMN()-1,31.001),0)),2),Auxiliar!$D$1:$E$7,2,0),'Fiestas y días laborables'!$D$3:$E$9,2,0)=\"Si\"))","v":true},{"$f":"AND(NOT(ISNUMBER(MATCH(DATE($A$4,INT((COLUMN()-1)/31.001)+$A$3,ROUNDUP(MOD(COLUMN()-1,31.001),0)),Feriados,0))),(VLOOKUP(VLOOKUP(WEEKDAY(DATE($A$4,INT((COLUMN()-1)/31.001)+$A$3,ROUNDUP(MOD(COLUMN()-1,31.001),0)),2),Auxiliar!$D$1:$E$7,2,0),'Fiestas y días laborables'!$D$3:$E$9,2,0)=\"Si\"))","v":true},{"$f":"AND(NOT(ISNUMBER(MATCH(DATE($A$4,INT((COLUMN()-1)/31.001)+$A$3,ROUNDUP(MOD(COLUMN()-1,31.001),0)),Feriados,0))),(VLOOKUP(VLOOKUP(WEEKDAY(DATE($A$4,INT((COLUMN()-1)/31.001)+$A$3,ROUNDUP(MOD(COLUMN()-1,31.001),0)),2),Auxiliar!$D$1:$E$7,2,0),'Fiestas y días laborables'!$D$3:$E$9,2,0)=\"Si\"))","v":false},{"$f":"AND(NOT(ISNUMBER(MATCH(DATE($A$4,INT((COLUMN()-1)/31.001)+$A$3,ROUNDUP(MOD(COLUMN()-1,31.001),0)),Feriados,0))),(VLOOKUP(VLOOKUP(WEEKDAY(DATE($A$4,INT((COLUMN()-1)/31.001)+$A$3,ROUNDUP(MOD(COLUMN()-1,31.001),0)),2),Auxiliar!$D$1:$E$7,2,0),'Fiestas y días laborables'!$D$3:$E$9,2,0)=\"Si\"))","v":false},{"$f":"AND(NOT(ISNUMBER(MATCH(DATE($A$4,INT((COLUMN()-1)/31.001)+$A$3,ROUNDUP(MOD(COLUMN()-1,31.001),0)),Feriados,0))),(VLOOKUP(VLOOKUP(WEEKDAY(DATE($A$4,INT((COLUMN()-1)/31.001)+$A$3,ROUNDUP(MOD(COLUMN()-1,31.001),0)),2),Auxiliar!$D$1:$E$7,2,0),'Fiestas y días laborables'!$D$3:$E$9,2,0)=\"Si\"))","v":true},{"$f":"AND(NOT(ISNUMBER(MATCH(DATE($A$4,INT((COLUMN()-1)/31.001)+$A$3,ROUNDUP(MOD(COLUMN()-1,31.001),0)),Feriados,0))),(VLOOKUP(VLOOKUP(WEEKDAY(DATE($A$4,INT((COLUMN()-1)/31.001)+$A$3,ROUNDUP(MOD(COLUMN()-1,31.001),0)),2),Auxiliar!$D$1:$E$7,2,0),'Fiestas y días laborables'!$D$3:$E$9,2,0)=\"Si\"))","v":true},{"$f":"AND(NOT(ISNUMBER(MATCH(DATE($A$4,INT((COLUMN()-1)/31.001)+$A$3,ROUNDUP(MOD(COLUMN()-1,31.001),0)),Feriados,0))),(VLOOKUP(VLOOKUP(WEEKDAY(DATE($A$4,INT((COLUMN()-1)/31.001)+$A$3,ROUNDUP(MOD(COLUMN()-1,31.001),0)),2),Auxiliar!$D$1:$E$7,2,0),'Fiestas y días laborables'!$D$3:$E$9,2,0)=\"Si\"))","v":true},{"$f":"AND(NOT(ISNUMBER(MATCH(DATE($A$4,INT((COLUMN()-1)/31.001)+$A$3,ROUNDUP(MOD(COLUMN()-1,31.001),0)),Feriados,0))),(VLOOKUP(VLOOKUP(WEEKDAY(DATE($A$4,INT((COLUMN()-1)/31.001)+$A$3,ROUNDUP(MOD(COLUMN()-1,31.001),0)),2),Auxiliar!$D$1:$E$7,2,0),'Fiestas y días laborables'!$D$3:$E$9,2,0)=\"Si\"))","v":true},{"$f":"AND(NOT(ISNUMBER(MATCH(DATE($A$4,INT((COLUMN()-1)/31.001)+$A$3,ROUNDUP(MOD(COLUMN()-1,31.001),0)),Feriados,0))),(VLOOKUP(VLOOKUP(WEEKDAY(DATE($A$4,INT((COLUMN()-1)/31.001)+$A$3,ROUNDUP(MOD(COLUMN()-1,31.001),0)),2),Auxiliar!$D$1:$E$7,2,0),'Fiestas y días laborables'!$D$3:$E$9,2,0)=\"Si\"))","v":true},{"$f":"AND(NOT(ISNUMBER(MATCH(DATE($A$4,INT((COLUMN()-1)/31.001)+$A$3,ROUNDUP(MOD(COLUMN()-1,31.001),0)),Feriados,0))),(VLOOKUP(VLOOKUP(WEEKDAY(DATE($A$4,INT((COLUMN()-1)/31.001)+$A$3,ROUNDUP(MOD(COLUMN()-1,31.001),0)),2),Auxiliar!$D$1:$E$7,2,0),'Fiestas y días laborables'!$D$3:$E$9,2,0)=\"Si\"))","v":false},{"$f":"AND(NOT(ISNUMBER(MATCH(DATE($A$4,INT((COLUMN()-1)/31.001)+$A$3,ROUNDUP(MOD(COLUMN()-1,31.001),0)),Feriados,0))),(VLOOKUP(VLOOKUP(WEEKDAY(DATE($A$4,INT((COLUMN()-1)/31.001)+$A$3,ROUNDUP(MOD(COLUMN()-1,31.001),0)),2),Auxiliar!$D$1:$E$7,2,0),'Fiestas y días laborables'!$D$3:$E$9,2,0)=\"Si\"))","v":false},{"$f":"AND(NOT(ISNUMBER(MATCH(DATE($A$4,INT((COLUMN()-1)/31.001)+$A$3,ROUNDUP(MOD(COLUMN()-1,31.001),0)),Feriados,0))),(VLOOKUP(VLOOKUP(WEEKDAY(DATE($A$4,INT((COLUMN()-1)/31.001)+$A$3,ROUNDUP(MOD(COLUMN()-1,31.001),0)),2),Auxiliar!$D$1:$E$7,2,0),'Fiestas y días laborables'!$D$3:$E$9,2,0)=\"Si\"))","v":true},{"$f":"AND(NOT(ISNUMBER(MATCH(DATE($A$4,INT((COLUMN()-1)/31.001)+$A$3,ROUNDUP(MOD(COLUMN()-1,31.001),0)),Feriados,0))),(VLOOKUP(VLOOKUP(WEEKDAY(DATE($A$4,INT((COLUMN()-1)/31.001)+$A$3,ROUNDUP(MOD(COLUMN()-1,31.001),0)),2),Auxiliar!$D$1:$E$7,2,0),'Fiestas y días laborables'!$D$3:$E$9,2,0)=\"Si\"))","v":true},{"$f":"AND(NOT(ISNUMBER(MATCH(DATE($A$4,INT((COLUMN()-1)/31.001)+$A$3,ROUNDUP(MOD(COLUMN()-1,31.001),0)),Feriados,0))),(VLOOKUP(VLOOKUP(WEEKDAY(DATE($A$4,INT((COLUMN()-1)/31.001)+$A$3,ROUNDUP(MOD(COLUMN()-1,31.001),0)),2),Auxiliar!$D$1:$E$7,2,0),'Fiestas y días laborables'!$D$3:$E$9,2,0)=\"Si\"))","v":true},{"$f":"AND(NOT(ISNUMBER(MATCH(DATE($A$4,INT((COLUMN()-1)/31.001)+$A$3,ROUNDUP(MOD(COLUMN()-1,31.001),0)),Feriados,0))),(VLOOKUP(VLOOKUP(WEEKDAY(DATE($A$4,INT((COLUMN()-1)/31.001)+$A$3,ROUNDUP(MOD(COLUMN()-1,31.001),0)),2),Auxiliar!$D$1:$E$7,2,0),'Fiestas y días laborables'!$D$3:$E$9,2,0)=\"Si\"))","v":true},{"$f":"AND(NOT(ISNUMBER(MATCH(DATE($A$4,INT((COLUMN()-1)/31.001)+$A$3,ROUNDUP(MOD(COLUMN()-1,31.001),0)),Feriados,0))),(VLOOKUP(VLOOKUP(WEEKDAY(DATE($A$4,INT((COLUMN()-1)/31.001)+$A$3,ROUNDUP(MOD(COLUMN()-1,31.001),0)),2),Auxiliar!$D$1:$E$7,2,0),'Fiestas y días laborables'!$D$3:$E$9,2,0)=\"Si\"))","v":true},{"$f":"AND(NOT(ISNUMBER(MATCH(DATE($A$4,INT((COLUMN()-1)/31.001)+$A$3,ROUNDUP(MOD(COLUMN()-1,31.001),0)),Feriados,0))),(VLOOKUP(VLOOKUP(WEEKDAY(DATE($A$4,INT((COLUMN()-1)/31.001)+$A$3,ROUNDUP(MOD(COLUMN()-1,31.001),0)),2),Auxiliar!$D$1:$E$7,2,0),'Fiestas y días laborables'!$D$3:$E$9,2,0)=\"Si\"))","v":false},{"$f":"AND(NOT(ISNUMBER(MATCH(DATE($A$4,INT((COLUMN()-1)/31.001)+$A$3,ROUNDUP(MOD(COLUMN()-1,31.001),0)),Feriados,0))),(VLOOKUP(VLOOKUP(WEEKDAY(DATE($A$4,INT((COLUMN()-1)/31.001)+$A$3,ROUNDUP(MOD(COLUMN()-1,31.001),0)),2),Auxiliar!$D$1:$E$7,2,0),'Fiestas y días laborables'!$D$3:$E$9,2,0)=\"Si\"))","v":false},{"$f":"AND(NOT(ISNUMBER(MATCH(DATE($A$4,INT((COLUMN()-1)/31.001)+$A$3,ROUNDUP(MOD(COLUMN()-1,31.001),0)),Feriados,0))),(VLOOKUP(VLOOKUP(WEEKDAY(DATE($A$4,INT((COLUMN()-1)/31.001)+$A$3,ROUNDUP(MOD(COLUMN()-1,31.001),0)),2),Auxiliar!$D$1:$E$7,2,0),'Fiestas y días laborables'!$D$3:$E$9,2,0)=\"Si\"))","v":true},{"$f":"AND(NOT(ISNUMBER(MATCH(DATE($A$4,INT((COLUMN()-1)/31.001)+$A$3,ROUNDUP(MOD(COLUMN()-1,31.001),0)),Feriados,0))),(VLOOKUP(VLOOKUP(WEEKDAY(DATE($A$4,INT((COLUMN()-1)/31.001)+$A$3,ROUNDUP(MOD(COLUMN()-1,31.001),0)),2),Auxiliar!$D$1:$E$7,2,0),'Fiestas y días laborables'!$D$3:$E$9,2,0)=\"Si\"))","v":true},{"$f":"AND(NOT(ISNUMBER(MATCH(DATE($A$4,INT((COLUMN()-1)/31.001)+$A$3,ROUNDUP(MOD(COLUMN()-1,31.001),0)),Feriados,0))),(VLOOKUP(VLOOKUP(WEEKDAY(DATE($A$4,INT((COLUMN()-1)/31.001)+$A$3,ROUNDUP(MOD(COLUMN()-1,31.001),0)),2),Auxiliar!$D$1:$E$7,2,0),'Fiestas y días laborables'!$D$3:$E$9,2,0)=\"Si\"))","v":true},{"$f":"AND(NOT(ISNUMBER(MATCH(DATE($A$4,INT((COLUMN()-1)/31.001)+$A$3,ROUNDUP(MOD(COLUMN()-1,31.001),0)),Feriados,0))),(VLOOKUP(VLOOKUP(WEEKDAY(DATE($A$4,INT((COLUMN()-1)/31.001)+$A$3,ROUNDUP(MOD(COLUMN()-1,31.001),0)),2),Auxiliar!$D$1:$E$7,2,0),'Fiestas y días laborables'!$D$3:$E$9,2,0)=\"Si\"))","v":true},{"$f":"AND(NOT(ISNUMBER(MATCH(DATE($A$4,INT((COLUMN()-1)/31.001)+$A$3,ROUNDUP(MOD(COLUMN()-1,31.001),0)),Feriados,0))),(VLOOKUP(VLOOKUP(WEEKDAY(DATE($A$4,INT((COLUMN()-1)/31.001)+$A$3,ROUNDUP(MOD(COLUMN()-1,31.001),0)),2),Auxiliar!$D$1:$E$7,2,0),'Fiestas y días laborables'!$D$3:$E$9,2,0)=\"Si\"))","v":true},{"$f":"AND(NOT(ISNUMBER(MATCH(DATE($A$4,INT((COLUMN()-1)/31.001)+$A$3,ROUNDUP(MOD(COLUMN()-1,31.001),0)),Feriados,0))),(VLOOKUP(VLOOKUP(WEEKDAY(DATE($A$4,INT((COLUMN()-1)/31.001)+$A$3,ROUNDUP(MOD(COLUMN()-1,31.001),0)),2),Auxiliar!$D$1:$E$7,2,0),'Fiestas y días laborables'!$D$3:$E$9,2,0)=\"Si\"))","v":false},{"$f":"AND(NOT(ISNUMBER(MATCH(DATE($A$4,INT((COLUMN()-1)/31.001)+$A$3,ROUNDUP(MOD(COLUMN()-1,31.001),0)),Feriados,0))),(VLOOKUP(VLOOKUP(WEEKDAY(DATE($A$4,INT((COLUMN()-1)/31.001)+$A$3,ROUNDUP(MOD(COLUMN()-1,31.001),0)),2),Auxiliar!$D$1:$E$7,2,0),'Fiestas y días laborables'!$D$3:$E$9,2,0)=\"Si\"))","v":false},{"$f":"AND(NOT(ISNUMBER(MATCH(DATE($A$4,INT((COLUMN()-1)/31.001)+$A$3,ROUNDUP(MOD(COLUMN()-1,31.001),0)),Feriados,0))),(VLOOKUP(VLOOKUP(WEEKDAY(DATE($A$4,INT((COLUMN()-1)/31.001)+$A$3,ROUNDUP(MOD(COLUMN()-1,31.001),0)),2),Auxiliar!$D$1:$E$7,2,0),'Fiestas y días laborables'!$D$3:$E$9,2,0)=\"Si\"))","v":true},{"$f":"AND(NOT(ISNUMBER(MATCH(DATE($A$4,INT((COLUMN()-1)/31.001)+$A$3,ROUNDUP(MOD(COLUMN()-1,31.001),0)),Feriados,0))),(VLOOKUP(VLOOKUP(WEEKDAY(DATE($A$4,INT((COLUMN()-1)/31.001)+$A$3,ROUNDUP(MOD(COLUMN()-1,31.001),0)),2),Auxiliar!$D$1:$E$7,2,0),'Fiestas y días laborables'!$D$3:$E$9,2,0)=\"Si\"))","v":true},{"$f":"AND(NOT(ISNUMBER(MATCH(DATE($A$4,INT((COLUMN()-1)/31.001)+$A$3,ROUNDUP(MOD(COLUMN()-1,31.001),0)),Feriados,0))),(VLOOKUP(VLOOKUP(WEEKDAY(DATE($A$4,INT((COLUMN()-1)/31.001)+$A$3,ROUNDUP(MOD(COLUMN()-1,31.001),0)),2),Auxiliar!$D$1:$E$7,2,0),'Fiestas y días laborables'!$D$3:$E$9,2,0)=\"Si\"))","v":true},{"$f":"AND(NOT(ISNUMBER(MATCH(DATE($A$4,INT((COLUMN()-1)/31.001)+$A$3,ROUNDUP(MOD(COLUMN()-1,31.001),0)),Feriados,0))),(VLOOKUP(VLOOKUP(WEEKDAY(DATE($A$4,INT((COLUMN()-1)/31.001)+$A$3,ROUNDUP(MOD(COLUMN()-1,31.001),0)),2),Auxiliar!$D$1:$E$7,2,0),'Fiestas y días laborables'!$D$3:$E$9,2,0)=\"Si\"))","v":true},{"$f":"AND(NOT(ISNUMBER(MATCH(DATE($A$4,INT((COLUMN()-1)/31.001)+$A$3,ROUNDUP(MOD(COLUMN()-1,31.001),0)),Feriados,0))),(VLOOKUP(VLOOKUP(WEEKDAY(DATE($A$4,INT((COLUMN()-1)/31.001)+$A$3,ROUNDUP(MOD(COLUMN()-1,31.001),0)),2),Auxiliar!$D$1:$E$7,2,0),'Fiestas y días laborables'!$D$3:$E$9,2,0)=\"Si\"))","v":true},{"$f":"AND(NOT(ISNUMBER(MATCH(DATE($A$4,INT((COLUMN()-1)/31.001)+$A$3,ROUNDUP(MOD(COLUMN()-1,31.001),0)),Feriados,0))),(VLOOKUP(VLOOKUP(WEEKDAY(DATE($A$4,INT((COLUMN()-1)/31.001)+$A$3,ROUNDUP(MOD(COLUMN()-1,31.001),0)),2),Auxiliar!$D$1:$E$7,2,0),'Fiestas y días laborables'!$D$3:$E$9,2,0)=\"Si\"))","v":false},{"$f":"AND(NOT(ISNUMBER(MATCH(DATE($A$4,INT((COLUMN()-1)/31.001)+$A$3,ROUNDUP(MOD(COLUMN()-1,31.001),0)),Feriados,0))),(VLOOKUP(VLOOKUP(WEEKDAY(DATE($A$4,INT((COLUMN()-1)/31.001)+$A$3,ROUNDUP(MOD(COLUMN()-1,31.001),0)),2),Auxiliar!$D$1:$E$7,2,0),'Fiestas y días laborables'!$D$3:$E$9,2,0)=\"Si\"))","v":false},{"$f":"AND(NOT(ISNUMBER(MATCH(DATE($A$4,INT((COLUMN()-1)/31.001)+$A$3,ROUNDUP(MOD(COLUMN()-1,31.001),0)),Feriados,0))),(VLOOKUP(VLOOKUP(WEEKDAY(DATE($A$4,INT((COLUMN()-1)/31.001)+$A$3,ROUNDUP(MOD(COLUMN()-1,31.001),0)),2),Auxiliar!$D$1:$E$7,2,0),'Fiestas y días laborables'!$D$3:$E$9,2,0)=\"Si\"))","v":true},{"$f":"AND(NOT(ISNUMBER(MATCH(DATE($A$4,INT((COLUMN()-1)/31.001)+$A$3,ROUNDUP(MOD(COLUMN()-1,31.001),0)),Feriados,0))),(VLOOKUP(VLOOKUP(WEEKDAY(DATE($A$4,INT((COLUMN()-1)/31.001)+$A$3,ROUNDUP(MOD(COLUMN()-1,31.001),0)),2),Auxiliar!$D$1:$E$7,2,0),'Fiestas y días laborables'!$D$3:$E$9,2,0)=\"Si\"))","v":true},{"$f":"AND(NOT(ISNUMBER(MATCH(DATE($A$4,INT((COLUMN()-1)/31.001)+$A$3,ROUNDUP(MOD(COLUMN()-1,31.001),0)),Feriados,0))),(VLOOKUP(VLOOKUP(WEEKDAY(DATE($A$4,INT((COLUMN()-1)/31.001)+$A$3,ROUNDUP(MOD(COLUMN()-1,31.001),0)),2),Auxiliar!$D$1:$E$7,2,0),'Fiestas y días laborables'!$D$3:$E$9,2,0)=\"Si\"))","v":true},{"$f":"AND(NOT(ISNUMBER(MATCH(DATE($A$4,INT((COLUMN()-1)/31.001)+$A$3,ROUNDUP(MOD(COLUMN()-1,31.001),0)),Feriados,0))),(VLOOKUP(VLOOKUP(WEEKDAY(DATE($A$4,INT((COLUMN()-1)/31.001)+$A$3,ROUNDUP(MOD(COLUMN()-1,31.001),0)),2),Auxiliar!$D$1:$E$7,2,0),'Fiestas y días laborables'!$D$3:$E$9,2,0)=\"Si\"))","v":true},{"$f":"AND(NOT(ISNUMBER(MATCH(DATE($A$4,INT((COLUMN()-1)/31.001)+$A$3,ROUNDUP(MOD(COLUMN()-1,31.001),0)),Feriados,0))),(VLOOKUP(VLOOKUP(WEEKDAY(DATE($A$4,INT((COLUMN()-1)/31.001)+$A$3,ROUNDUP(MOD(COLUMN()-1,31.001),0)),2),Auxiliar!$D$1:$E$7,2,0),'Fiestas y días laborables'!$D$3:$E$9,2,0)=\"Si\"))","v":true},{"$f":"AND(NOT(ISNUMBER(MATCH(DATE($A$4,INT((COLUMN()-1)/31.001)+$A$3,ROUNDUP(MOD(COLUMN()-1,31.001),0)),Feriados,0))),(VLOOKUP(VLOOKUP(WEEKDAY(DATE($A$4,INT((COLUMN()-1)/31.001)+$A$3,ROUNDUP(MOD(COLUMN()-1,31.001),0)),2),Auxiliar!$D$1:$E$7,2,0),'Fiestas y días laborables'!$D$3:$E$9,2,0)=\"Si\"))","v":false},{"$f":"AND(NOT(ISNUMBER(MATCH(DATE($A$4,INT((COLUMN()-1)/31.001)+$A$3,ROUNDUP(MOD(COLUMN()-1,31.001),0)),Feriados,0))),(VLOOKUP(VLOOKUP(WEEKDAY(DATE($A$4,INT((COLUMN()-1)/31.001)+$A$3,ROUNDUP(MOD(COLUMN()-1,31.001),0)),2),Auxiliar!$D$1:$E$7,2,0),'Fiestas y días laborables'!$D$3:$E$9,2,0)=\"Si\"))","v":false},{"$f":"AND(NOT(ISNUMBER(MATCH(DATE($A$4,INT((COLUMN()-1)/31.001)+$A$3,ROUNDUP(MOD(COLUMN()-1,31.001),0)),Feriados,0))),(VLOOKUP(VLOOKUP(WEEKDAY(DATE($A$4,INT((COLUMN()-1)/31.001)+$A$3,ROUNDUP(MOD(COLUMN()-1,31.001),0)),2),Auxiliar!$D$1:$E$7,2,0),'Fiestas y días laborables'!$D$3:$E$9,2,0)=\"Si\"))","v":true},{"$f":"AND(NOT(ISNUMBER(MATCH(DATE($A$4,INT((COLUMN()-1)/31.001)+$A$3,ROUNDUP(MOD(COLUMN()-1,31.001),0)),Feriados,0))),(VLOOKUP(VLOOKUP(WEEKDAY(DATE($A$4,INT((COLUMN()-1)/31.001)+$A$3,ROUNDUP(MOD(COLUMN()-1,31.001),0)),2),Auxiliar!$D$1:$E$7,2,0),'Fiestas y días laborables'!$D$3:$E$9,2,0)=\"Si\"))","v":true},{"$f":"AND(NOT(ISNUMBER(MATCH(DATE($A$4,INT((COLUMN()-1)/31.001)+$A$3,ROUNDUP(MOD(COLUMN()-1,31.001),0)),Feriados,0))),(VLOOKUP(VLOOKUP(WEEKDAY(DATE($A$4,INT((COLUMN()-1)/31.001)+$A$3,ROUNDUP(MOD(COLUMN()-1,31.001),0)),2),Auxiliar!$D$1:$E$7,2,0),'Fiestas y días laborables'!$D$3:$E$9,2,0)=\"Si\"))","v":true},{"$f":"AND(NOT(ISNUMBER(MATCH(DATE($A$4,INT((COLUMN()-1)/31.001)+$A$3,ROUNDUP(MOD(COLUMN()-1,31.001),0)),Feriados,0))),(VLOOKUP(VLOOKUP(WEEKDAY(DATE($A$4,INT((COLUMN()-1)/31.001)+$A$3,ROUNDUP(MOD(COLUMN()-1,31.001),0)),2),Auxiliar!$D$1:$E$7,2,0),'Fiestas y días laborables'!$D$3:$E$9,2,0)=\"Si\"))","v":true},{"$f":"AND(NOT(ISNUMBER(MATCH(DATE($A$4,INT((COLUMN()-1)/31.001)+$A$3,ROUNDUP(MOD(COLUMN()-1,31.001),0)),Feriados,0))),(VLOOKUP(VLOOKUP(WEEKDAY(DATE($A$4,INT((COLUMN()-1)/31.001)+$A$3,ROUNDUP(MOD(COLUMN()-1,31.001),0)),2),Auxiliar!$D$1:$E$7,2,0),'Fiestas y días laborables'!$D$3:$E$9,2,0)=\"Si\"))","v":true},{"$f":"AND(NOT(ISNUMBER(MATCH(DATE($A$4,INT((COLUMN()-1)/31.001)+$A$3,ROUNDUP(MOD(COLUMN()-1,31.001),0)),Feriados,0))),(VLOOKUP(VLOOKUP(WEEKDAY(DATE($A$4,INT((COLUMN()-1)/31.001)+$A$3,ROUNDUP(MOD(COLUMN()-1,31.001),0)),2),Auxiliar!$D$1:$E$7,2,0),'Fiestas y días laborables'!$D$3:$E$9,2,0)=\"Si\"))","v":true},{"$f":"AND(NOT(ISNUMBER(MATCH(DATE($A$4,INT((COLUMN()-1)/31.001)+$A$3,ROUNDUP(MOD(COLUMN()-1,31.001),0)),Feriados,0))),(VLOOKUP(VLOOKUP(WEEKDAY(DATE($A$4,INT((COLUMN()-1)/31.001)+$A$3,ROUNDUP(MOD(COLUMN()-1,31.001),0)),2),Auxiliar!$D$1:$E$7,2,0),'Fiestas y días laborables'!$D$3:$E$9,2,0)=\"Si\"))","v":false},{"$f":"AND(NOT(ISNUMBER(MATCH(DATE($A$4,INT((COLUMN()-1)/31.001)+$A$3,ROUNDUP(MOD(COLUMN()-1,31.001),0)),Feriados,0))),(VLOOKUP(VLOOKUP(WEEKDAY(DATE($A$4,INT((COLUMN()-1)/31.001)+$A$3,ROUNDUP(MOD(COLUMN()-1,31.001),0)),2),Auxiliar!$D$1:$E$7,2,0),'Fiestas y días laborables'!$D$3:$E$9,2,0)=\"Si\"))","v":false},{"$f":"AND(NOT(ISNUMBER(MATCH(DATE($A$4,INT((COLUMN()-1)/31.001)+$A$3,ROUNDUP(MOD(COLUMN()-1,31.001),0)),Feriados,0))),(VLOOKUP(VLOOKUP(WEEKDAY(DATE($A$4,INT((COLUMN()-1)/31.001)+$A$3,ROUNDUP(MOD(COLUMN()-1,31.001),0)),2),Auxiliar!$D$1:$E$7,2,0),'Fiestas y días laborables'!$D$3:$E$9,2,0)=\"Si\"))","v":true},{"$f":"AND(NOT(ISNUMBER(MATCH(DATE($A$4,INT((COLUMN()-1)/31.001)+$A$3,ROUNDUP(MOD(COLUMN()-1,31.001),0)),Feriados,0))),(VLOOKUP(VLOOKUP(WEEKDAY(DATE($A$4,INT((COLUMN()-1)/31.001)+$A$3,ROUNDUP(MOD(COLUMN()-1,31.001),0)),2),Auxiliar!$D$1:$E$7,2,0),'Fiestas y días laborables'!$D$3:$E$9,2,0)=\"Si\"))","v":true},{"$f":"AND(NOT(ISNUMBER(MATCH(DATE($A$4,INT((COLUMN()-1)/31.001)+$A$3,ROUNDUP(MOD(COLUMN()-1,31.001),0)),Feriados,0))),(VLOOKUP(VLOOKUP(WEEKDAY(DATE($A$4,INT((COLUMN()-1)/31.001)+$A$3,ROUNDUP(MOD(COLUMN()-1,31.001),0)),2),Auxiliar!$D$1:$E$7,2,0),'Fiestas y días laborables'!$D$3:$E$9,2,0)=\"Si\"))","v":true},{"$f":"AND(NOT(ISNUMBER(MATCH(DATE($A$4,INT((COLUMN()-1)/31.001)+$A$3,ROUNDUP(MOD(COLUMN()-1,31.001),0)),Feriados,0))),(VLOOKUP(VLOOKUP(WEEKDAY(DATE($A$4,INT((COLUMN()-1)/31.001)+$A$3,ROUNDUP(MOD(COLUMN()-1,31.001),0)),2),Auxiliar!$D$1:$E$7,2,0),'Fiestas y días laborables'!$D$3:$E$9,2,0)=\"Si\"))","v":true},{"$f":"AND(NOT(ISNUMBER(MATCH(DATE($A$4,INT((COLUMN()-1)/31.001)+$A$3,ROUNDUP(MOD(COLUMN()-1,31.001),0)),Feriados,0))),(VLOOKUP(VLOOKUP(WEEKDAY(DATE($A$4,INT((COLUMN()-1)/31.001)+$A$3,ROUNDUP(MOD(COLUMN()-1,31.001),0)),2),Auxiliar!$D$1:$E$7,2,0),'Fiestas y días laborables'!$D$3:$E$9,2,0)=\"Si\"))","v":true},{"$f":"AND(NOT(ISNUMBER(MATCH(DATE($A$4,INT((COLUMN()-1)/31.001)+$A$3,ROUNDUP(MOD(COLUMN()-1,31.001),0)),Feriados,0))),(VLOOKUP(VLOOKUP(WEEKDAY(DATE($A$4,INT((COLUMN()-1)/31.001)+$A$3,ROUNDUP(MOD(COLUMN()-1,31.001),0)),2),Auxiliar!$D$1:$E$7,2,0),'Fiestas y días laborables'!$D$3:$E$9,2,0)=\"Si\"))","v":false},{"$f":"AND(NOT(ISNUMBER(MATCH(DATE($A$4,INT((COLUMN()-1)/31.001)+$A$3,ROUNDUP(MOD(COLUMN()-1,31.001),0)),Feriados,0))),(VLOOKUP(VLOOKUP(WEEKDAY(DATE($A$4,INT((COLUMN()-1)/31.001)+$A$3,ROUNDUP(MOD(COLUMN()-1,31.001),0)),2),Auxiliar!$D$1:$E$7,2,0),'Fiestas y días laborables'!$D$3:$E$9,2,0)=\"Si\"))","v":false},{"$f":"AND(NOT(ISNUMBER(MATCH(DATE($A$4,INT((COLUMN()-1)/31.001)+$A$3,ROUNDUP(MOD(COLUMN()-1,31.001),0)),Feriados,0))),(VLOOKUP(VLOOKUP(WEEKDAY(DATE($A$4,INT((COLUMN()-1)/31.001)+$A$3,ROUNDUP(MOD(COLUMN()-1,31.001),0)),2),Auxiliar!$D$1:$E$7,2,0),'Fiestas y días laborables'!$D$3:$E$9,2,0)=\"Si\"))","v":true},{"$f":"AND(NOT(ISNUMBER(MATCH(DATE($A$4,INT((COLUMN()-1)/31.001)+$A$3,ROUNDUP(MOD(COLUMN()-1,31.001),0)),Feriados,0))),(VLOOKUP(VLOOKUP(WEEKDAY(DATE($A$4,INT((COLUMN()-1)/31.001)+$A$3,ROUNDUP(MOD(COLUMN()-1,31.001),0)),2),Auxiliar!$D$1:$E$7,2,0),'Fiestas y días laborables'!$D$3:$E$9,2,0)=\"Si\"))","v":true},{"$f":"AND(NOT(ISNUMBER(MATCH(DATE($A$4,INT((COLUMN()-1)/31.001)+$A$3,ROUNDUP(MOD(COLUMN()-1,31.001),0)),Feriados,0))),(VLOOKUP(VLOOKUP(WEEKDAY(DATE($A$4,INT((COLUMN()-1)/31.001)+$A$3,ROUNDUP(MOD(COLUMN()-1,31.001),0)),2),Auxiliar!$D$1:$E$7,2,0),'Fiestas y días laborables'!$D$3:$E$9,2,0)=\"Si\"))","v":true},{"$f":"AND(NOT(ISNUMBER(MATCH(DATE($A$4,INT((COLUMN()-1)/31.001)+$A$3,ROUNDUP(MOD(COLUMN()-1,31.001),0)),Feriados,0))),(VLOOKUP(VLOOKUP(WEEKDAY(DATE($A$4,INT((COLUMN()-1)/31.001)+$A$3,ROUNDUP(MOD(COLUMN()-1,31.001),0)),2),Auxiliar!$D$1:$E$7,2,0),'Fiestas y días laborables'!$D$3:$E$9,2,0)=\"Si\"))","v":true},{"$f":"AND(NOT(ISNUMBER(MATCH(DATE($A$4,INT((COLUMN()-1)/31.001)+$A$3,ROUNDUP(MOD(COLUMN()-1,31.001),0)),Feriados,0))),(VLOOKUP(VLOOKUP(WEEKDAY(DATE($A$4,INT((COLUMN()-1)/31.001)+$A$3,ROUNDUP(MOD(COLUMN()-1,31.001),0)),2),Auxiliar!$D$1:$E$7,2,0),'Fiestas y días laborables'!$D$3:$E$9,2,0)=\"Si\"))","v":true},{"$f":"AND(NOT(ISNUMBER(MATCH(DATE($A$4,INT((COLUMN()-1)/31.001)+$A$3,ROUNDUP(MOD(COLUMN()-1,31.001),0)),Feriados,0))),(VLOOKUP(VLOOKUP(WEEKDAY(DATE($A$4,INT((COLUMN()-1)/31.001)+$A$3,ROUNDUP(MOD(COLUMN()-1,31.001),0)),2),Auxiliar!$D$1:$E$7,2,0),'Fiestas y días laborables'!$D$3:$E$9,2,0)=\"Si\"))","v":false},{"$f":"AND(NOT(ISNUMBER(MATCH(DATE($A$4,INT((COLUMN()-1)/31.001)+$A$3,ROUNDUP(MOD(COLUMN()-1,31.001),0)),Feriados,0))),(VLOOKUP(VLOOKUP(WEEKDAY(DATE($A$4,INT((COLUMN()-1)/31.001)+$A$3,ROUNDUP(MOD(COLUMN()-1,31.001),0)),2),Auxiliar!$D$1:$E$7,2,0),'Fiestas y días laborables'!$D$3:$E$9,2,0)=\"Si\"))","v":false},{"$f":"AND(NOT(ISNUMBER(MATCH(DATE($A$4,INT((COLUMN()-1)/31.001)+$A$3,ROUNDUP(MOD(COLUMN()-1,31.001),0)),Feriados,0))),(VLOOKUP(VLOOKUP(WEEKDAY(DATE($A$4,INT((COLUMN()-1)/31.001)+$A$3,ROUNDUP(MOD(COLUMN()-1,31.001),0)),2),Auxiliar!$D$1:$E$7,2,0),'Fiestas y días laborables'!$D$3:$E$9,2,0)=\"Si\"))","v":true},{"$f":"AND(NOT(ISNUMBER(MATCH(DATE($A$4,INT((COLUMN()-1)/31.001)+$A$3,ROUNDUP(MOD(COLUMN()-1,31.001),0)),Feriados,0))),(VLOOKUP(VLOOKUP(WEEKDAY(DATE($A$4,INT((COLUMN()-1)/31.001)+$A$3,ROUNDUP(MOD(COLUMN()-1,31.001),0)),2),Auxiliar!$D$1:$E$7,2,0),'Fiestas y días laborables'!$D$3:$E$9,2,0)=\"Si\"))","v":true},{"$f":"AND(NOT(ISNUMBER(MATCH(DATE($A$4,INT((COLUMN()-1)/31.001)+$A$3,ROUNDUP(MOD(COLUMN()-1,31.001),0)),Feriados,0))),(VLOOKUP(VLOOKUP(WEEKDAY(DATE($A$4,INT((COLUMN()-1)/31.001)+$A$3,ROUNDUP(MOD(COLUMN()-1,31.001),0)),2),Auxiliar!$D$1:$E$7,2,0),'Fiestas y días laborables'!$D$3:$E$9,2,0)=\"Si\"))","v":true},{"$f":"AND(NOT(ISNUMBER(MATCH(DATE($A$4,INT((COLUMN()-1)/31.001)+$A$3,ROUNDUP(MOD(COLUMN()-1,31.001),0)),Feriados,0))),(VLOOKUP(VLOOKUP(WEEKDAY(DATE($A$4,INT((COLUMN()-1)/31.001)+$A$3,ROUNDUP(MOD(COLUMN()-1,31.001),0)),2),Auxiliar!$D$1:$E$7,2,0),'Fiestas y días laborables'!$D$3:$E$9,2,0)=\"Si\"))","v":true},{"$f":"AND(NOT(ISNUMBER(MATCH(DATE($A$4,INT((COLUMN()-1)/31.001)+$A$3,ROUNDUP(MOD(COLUMN()-1,31.001),0)),Feriados,0))),(VLOOKUP(VLOOKUP(WEEKDAY(DATE($A$4,INT((COLUMN()-1)/31.001)+$A$3,ROUNDUP(MOD(COLUMN()-1,31.001),0)),2),Auxiliar!$D$1:$E$7,2,0),'Fiestas y días laborables'!$D$3:$E$9,2,0)=\"Si\"))","v":true},{"$f":"AND(NOT(ISNUMBER(MATCH(DATE($A$4,INT((COLUMN()-1)/31.001)+$A$3,ROUNDUP(MOD(COLUMN()-1,31.001),0)),Feriados,0))),(VLOOKUP(VLOOKUP(WEEKDAY(DATE($A$4,INT((COLUMN()-1)/31.001)+$A$3,ROUNDUP(MOD(COLUMN()-1,31.001),0)),2),Auxiliar!$D$1:$E$7,2,0),'Fiestas y días laborables'!$D$3:$E$9,2,0)=\"Si\"))","v":false},{"$f":"AND(NOT(ISNUMBER(MATCH(DATE($A$4,INT((COLUMN()-1)/31.001)+$A$3,ROUNDUP(MOD(COLUMN()-1,31.001),0)),Feriados,0))),(VLOOKUP(VLOOKUP(WEEKDAY(DATE($A$4,INT((COLUMN()-1)/31.001)+$A$3,ROUNDUP(MOD(COLUMN()-1,31.001),0)),2),Auxiliar!$D$1:$E$7,2,0),'Fiestas y días laborables'!$D$3:$E$9,2,0)=\"Si\"))","v":false},{"$f":"AND(NOT(ISNUMBER(MATCH(DATE($A$4,INT((COLUMN()-1)/31.001)+$A$3,ROUNDUP(MOD(COLUMN()-1,31.001),0)),Feriados,0))),(VLOOKUP(VLOOKUP(WEEKDAY(DATE($A$4,INT((COLUMN()-1)/31.001)+$A$3,ROUNDUP(MOD(COLUMN()-1,31.001),0)),2),Auxiliar!$D$1:$E$7,2,0),'Fiestas y días laborables'!$D$3:$E$9,2,0)=\"Si\"))","v":true},{"$f":"AND(NOT(ISNUMBER(MATCH(DATE($A$4,INT((COLUMN()-1)/31.001)+$A$3,ROUNDUP(MOD(COLUMN()-1,31.001),0)),Feriados,0))),(VLOOKUP(VLOOKUP(WEEKDAY(DATE($A$4,INT((COLUMN()-1)/31.001)+$A$3,ROUNDUP(MOD(COLUMN()-1,31.001),0)),2),Auxiliar!$D$1:$E$7,2,0),'Fiestas y días laborables'!$D$3:$E$9,2,0)=\"Si\"))","v":true},{"$f":"AND(NOT(ISNUMBER(MATCH(DATE($A$4,INT((COLUMN()-1)/31.001)+$A$3,ROUNDUP(MOD(COLUMN()-1,31.001),0)),Feriados,0))),(VLOOKUP(VLOOKUP(WEEKDAY(DATE($A$4,INT((COLUMN()-1)/31.001)+$A$3,ROUNDUP(MOD(COLUMN()-1,31.001),0)),2),Auxiliar!$D$1:$E$7,2,0),'Fiestas y días laborables'!$D$3:$E$9,2,0)=\"Si\"))","v":true},{"$f":"AND(NOT(ISNUMBER(MATCH(DATE($A$4,INT((COLUMN()-1)/31.001)+$A$3,ROUNDUP(MOD(COLUMN()-1,31.001),0)),Feriados,0))),(VLOOKUP(VLOOKUP(WEEKDAY(DATE($A$4,INT((COLUMN()-1)/31.001)+$A$3,ROUNDUP(MOD(COLUMN()-1,31.001),0)),2),Auxiliar!$D$1:$E$7,2,0),'Fiestas y días laborables'!$D$3:$E$9,2,0)=\"Si\"))","v":true},{"$f":"AND(NOT(ISNUMBER(MATCH(DATE($A$4,INT((COLUMN()-1)/31.001)+$A$3,ROUNDUP(MOD(COLUMN()-1,31.001),0)),Feriados,0))),(VLOOKUP(VLOOKUP(WEEKDAY(DATE($A$4,INT((COLUMN()-1)/31.001)+$A$3,ROUNDUP(MOD(COLUMN()-1,31.001),0)),2),Auxiliar!$D$1:$E$7,2,0),'Fiestas y días laborables'!$D$3:$E$9,2,0)=\"Si\"))","v":true},{"$f":"AND(NOT(ISNUMBER(MATCH(DATE($A$4,INT((COLUMN()-1)/31.001)+$A$3,ROUNDUP(MOD(COLUMN()-1,31.001),0)),Feriados,0))),(VLOOKUP(VLOOKUP(WEEKDAY(DATE($A$4,INT((COLUMN()-1)/31.001)+$A$3,ROUNDUP(MOD(COLUMN()-1,31.001),0)),2),Auxiliar!$D$1:$E$7,2,0),'Fiestas y días laborables'!$D$3:$E$9,2,0)=\"Si\"))","v":false},{"$f":"AND(NOT(ISNUMBER(MATCH(DATE($A$4,INT((COLUMN()-1)/31.001)+$A$3,ROUNDUP(MOD(COLUMN()-1,31.001),0)),Feriados,0))),(VLOOKUP(VLOOKUP(WEEKDAY(DATE($A$4,INT((COLUMN()-1)/31.001)+$A$3,ROUNDUP(MOD(COLUMN()-1,31.001),0)),2),Auxiliar!$D$1:$E$7,2,0),'Fiestas y días laborables'!$D$3:$E$9,2,0)=\"Si\"))","v":false},"Medio día","MD"]
[null,{"$f":"IFERROR(IF(AND(VLOOKUP(B9,'Fiestas y días laborables'!$D$3:$E$9,2,0)=\"Si\",NOT(ISNUMBER(VLOOKUP(DATE($A$4,$A$5+$A$3-1,B8),Feriados,1,0)))),TRUE,FALSE),FALSE)","v":false},{"$f":"IFERROR(IF(AND(VLOOKUP(C9,'Fiestas y días laborables'!$D$3:$E$9,2,0)=\"Si\",NOT(ISNUMBER(VLOOKUP(DATE($A$4,$A$5+$A$3-1,C8),Feriados,1,0)))),TRUE,FALSE),FALSE)","v":true},{"$f":"IFERROR(IF(AND(VLOOKUP(D9,'Fiestas y días laborables'!$D$3:$E$9,2,0)=\"Si\",NOT(ISNUMBER(VLOOKUP(DATE($A$4,$A$5+$A$3-1,D8),Feriados,1,0)))),TRUE,FALSE),FALSE)","v":true},{"$f":"IFERROR(IF(AND(VLOOKUP(E9,'Fiestas y días laborables'!$D$3:$E$9,2,0)=\"Si\",NOT(ISNUMBER(VLOOKUP(DATE($A$4,$A$5+$A$3-1,E8),Feriados,1,0)))),TRUE,FALSE),FALSE)","v":true},{"$f":"IFERROR(IF(AND(VLOOKUP(F9,'Fiestas y días laborables'!$D$3:$E$9,2,0)=\"Si\",NOT(ISNUMBER(VLOOKUP(DATE($A$4,$A$5+$A$3-1,F8),Feriados,1,0)))),TRUE,FALSE),FALSE)","v":true},{"$f":"IFERROR(IF(AND(VLOOKUP(G9,'Fiestas y días laborables'!$D$3:$E$9,2,0)=\"Si\",NOT(ISNUMBER(VLOOKUP(DATE($A$4,$A$5+$A$3-1,G8),Feriados,1,0)))),TRUE,FALSE),FALSE)","v":true},{"$f":"IFERROR(IF(AND(VLOOKUP(H9,'Fiestas y días laborables'!$D$3:$E$9,2,0)=\"Si\",NOT(ISNUMBER(VLOOKUP(DATE($A$4,$A$5+$A$3-1,H8),Feriados,1,0)))),TRUE,FALSE),FALSE)","v":false},{"$f":"IFERROR(IF(AND(VLOOKUP(I9,'Fiestas y días laborables'!$D$3:$E$9,2,0)=\"Si\",NOT(ISNUMBER(VLOOKUP(DATE($A$4,$A$5+$A$3-1,I8),Feriados,1,0)))),TRUE,FALSE),FALSE)","v":false},{"$f":"IFERROR(IF(AND(VLOOKUP(J9,'Fiestas y días laborables'!$D$3:$E$9,2,0)=\"Si\",NOT(ISNUMBER(VLOOKUP(DATE($A$4,$A$5+$A$3-1,J8),Feriados,1,0)))),TRUE,FALSE),FALSE)","v":true},{"$f":"IFERROR(IF(AND(VLOOKUP(K9,'Fiestas y días laborables'!$D$3:$E$9,2,0)=\"Si\",NOT(ISNUMBER(VLOOKUP(DATE($A$4,$A$5+$A$3-1,K8),Feriados,1,0)))),TRUE,FALSE),FALSE)","v":true},{"$f":"IFERROR(IF(AND(VLOOKUP(L9,'Fiestas y días laborables'!$D$3:$E$9,2,0)=\"Si\",NOT(ISNUMBER(VLOOKUP(DATE($A$4,$A$5+$A$3-1,L8),Feriados,1,0)))),TRUE,FALSE),FALSE)","v":true},{"$f":"IFERROR(IF(AND(VLOOKUP(M9,'Fiestas y días laborables'!$D$3:$E$9,2,0)=\"Si\",NOT(ISNUMBER(VLOOKUP(DATE($A$4,$A$5+$A$3-1,M8),Feriados,1,0)))),TRUE,FALSE),FALSE)","v":true},{"$f":"IFERROR(IF(AND(VLOOKUP(N9,'Fiestas y días laborables'!$D$3:$E$9,2,0)=\"Si\",NOT(ISNUMBER(VLOOKUP(DATE($A$4,$A$5+$A$3-1,N8),Feriados,1,0)))),TRUE,FALSE),FALSE)","v":true},{"$f":"IFERROR(IF(AND(VLOOKUP(O9,'Fiestas y días laborables'!$D$3:$E$9,2,0)=\"Si\",NOT(ISNUMBER(VLOOKUP(DATE($A$4,$A$5+$A$3-1,O8),Feriados,1,0)))),TRUE,FALSE),FALSE)","v":false},{"$f":"IFERROR(IF(AND(VLOOKUP(P9,'Fiestas y días laborables'!$D$3:$E$9,2,0)=\"Si\",NOT(ISNUMBER(VLOOKUP(DATE($A$4,$A$5+$A$3-1,P8),Feriados,1,0)))),TRUE,FALSE),FALSE)","v":false},{"$f":"IFERROR(IF(AND(VLOOKUP(Q9,'Fiestas y días laborables'!$D$3:$E$9,2,0)=\"Si\",NOT(ISNUMBER(VLOOKUP(DATE($A$4,$A$5+$A$3-1,Q8),Feriados,1,0)))),TRUE,FALSE),FALSE)","v":true},{"$f":"IFERROR(IF(AND(VLOOKUP(R9,'Fiestas y días laborables'!$D$3:$E$9,2,0)=\"Si\",NOT(ISNUMBER(VLOOKUP(DATE($A$4,$A$5+$A$3-1,R8),Feriados,1,0)))),TRUE,FALSE),FALSE)","v":true},{"$f":"IFERROR(IF(AND(VLOOKUP(S9,'Fiestas y días laborables'!$D$3:$E$9,2,0)=\"Si\",NOT(ISNUMBER(VLOOKUP(DATE($A$4,$A$5+$A$3-1,S8),Feriados,1,0)))),TRUE,FALSE),FALSE)","v":true},{"$f":"IFERROR(IF(AND(VLOOKUP(T9,'Fiestas y días laborables'!$D$3:$E$9,2,0)=\"Si\",NOT(ISNUMBER(VLOOKUP(DATE($A$4,$A$5+$A$3-1,T8),Feriados,1,0)))),TRUE,FALSE),FALSE)","v":true},{"$f":"IFERROR(IF(AND(VLOOKUP(U9,'Fiestas y días laborables'!$D$3:$E$9,2,0)=\"Si\",NOT(ISNUMBER(VLOOKUP(DATE($A$4,$A$5+$A$3-1,U8),Feriados,1,0)))),TRUE,FALSE),FALSE)","v":true},{"$f":"IFERROR(IF(AND(VLOOKUP(V9,'Fiestas y días laborables'!$D$3:$E$9,2,0)=\"Si\",NOT(ISNUMBER(VLOOKUP(DATE($A$4,$A$5+$A$3-1,V8),Feriados,1,0)))),TRUE,FALSE),FALSE)","v":false},{"$f":"IFERROR(IF(AND(VLOOKUP(W9,'Fiestas y días laborables'!$D$3:$E$9,2,0)=\"Si\",NOT(ISNUMBER(VLOOKUP(DATE($A$4,$A$5+$A$3-1,W8),Feriados,1,0)))),TRUE,FALSE),FALSE)","v":false},{"$f":"IFERROR(IF(AND(VLOOKUP(X9,'Fiestas y días laborables'!$D$3:$E$9,2,0)=\"Si\",NOT(ISNUMBER(VLOOKUP(DATE($A$4,$A$5+$A$3-1,X8),Feriados,1,0)))),TRUE,FALSE),FALSE)","v":true},{"$f":"IFERROR(IF(AND(VLOOKUP(Y9,'Fiestas y días laborables'!$D$3:$E$9,2,0)=\"Si\",NOT(ISNUMBER(VLOOKUP(DATE($A$4,$A$5+$A$3-1,Y8),Feriados,1,0)))),TRUE,FALSE),FALSE)","v":true},{"$f":"IFERROR(IF(AND(VLOOKUP(Z9,'Fiestas y días laborables'!$D$3:$E$9,2,0)=\"Si\",NOT(ISNUMBER(VLOOKUP(DATE($A$4,$A$5+$A$3-1,Z8),Feriados,1,0)))),TRUE,FALSE),FALSE)","v":true},{"$f":"IFERROR(IF(AND(VLOOKUP(AA9,'Fiestas y días laborables'!$D$3:$E$9,2,0)=\"Si\",NOT(ISNUMBER(VLOOKUP(DATE($A$4,$A$5+$A$3-1,AA8),Feriados,1,0)))),TRUE,FALSE),FALSE)","v":true},{"$f":"IFERROR(IF(AND(VLOOKUP(AB9,'Fiestas y días laborables'!$D$3:$E$9,2,0)=\"Si\",NOT(ISNUMBER(VLOOKUP(DATE($A$4,$A$5+$A$3-1,AB8),Feriados,1,0)))),TRUE,FALSE),FALSE)","v":true},{"$f":"IFERROR(IF(AND(VLOOKUP(AC9,'Fiestas y días laborables'!$D$3:$E$9,2,0)=\"Si\",NOT(ISNUMBER(VLOOKUP(DATE($A$4,$A$5+$A$3-1,AC8),Feriados,1,0)))),TRUE,FALSE),FALSE)","v":false},{"$f":"IFERROR(IF(AND(VLOOKUP(AD9,'Fiestas y días laborables'!$D$3:$E$9,2,0)=\"Si\",NOT(ISNUMBER(VLOOKUP(DATE($A$4,$A$5+$A$3-1,AD8),Feriados,1,0)))),TRUE,FALSE),FALSE)","v":false},{"$f":"IFERROR(IF(AND(VLOOKUP(AE9,'Fiestas y días laborables'!$D$3:$E$9,2,0)=\"Si\",NOT(ISNUMBER(VLOOKUP(DATE($A$4,$A$5+$A$3-1,AE8),Feriados,1,0)))),TRUE,FALSE),FALSE)","v":true},{"$f":"IFERROR(IF(AND(VLOOKUP(AF9,'Fiestas y días laborables'!$D$3:$E$9,2,0)=\"Si\",NOT(ISNUMBER(VLOOKUP(DATE($A$4,$A$5+$A$3-1,AF8),Feriados,1,0)))),TRUE,FALSE),FALSE)","v":true},{"$f":"IFERROR(IF(AND(VLOOKUP(AG9,'Fiestas y días laborables'!$D$3:$E$9,2,0)=\"Si\",NOT(ISNUMBER(VLOOKUP(DATE($A$4,$A$5+$A$3-1,AG8),Feriados,1,0)))),TRUE,FALSE),FALSE)","v":false},{"$f":"IFERROR(IF(AND(VLOOKUP(AH9,'Fiestas y días laborables'!$D$3:$E$9,2,0)=\"Si\",NOT(ISNUMBER(VLOOKUP(DATE($A$4,$A$5+$A$3-1,AH8),Feriados,1,0)))),TRUE,FALSE),FALSE)","v":false},{"$f":"IFERROR(IF(AND(VLOOKUP(AI9,'Fiestas y días laborables'!$D$3:$E$9,2,0)=\"Si\",NOT(ISNUMBER(VLOOKUP(DATE($A$4,$A$5+$A$3-1,AI8),Feriados,1,0)))),TRUE,FALSE),FALSE)","v":false},{"$f":"IFERROR(IF(AND(VLOOKUP(AJ9,'Fiestas y días laborables'!$D$3:$E$9,2,0)=\"Si\",NOT(ISNUMBER(VLOOKUP(DATE($A$4,$A$5+$A$3-1,AJ8),Feriados,1,0)))),TRUE,FALSE),FALSE)","v":false},{"$f":"IFERROR(IF(AND(VLOOKUP(AK9,'Fiestas y días laborables'!$D$3:$E$9,2,0)=\"Si\",NOT(ISNUMBER(VLOOKUP(DATE($A$4,$A$5+$A$3-1,AK8),Feriados,1,0)))),TRUE,FALSE),FALSE)","v":false},{"$f":"IFERROR(IF(AND(VLOOKUP(AL9,'Fiestas y días laborables'!$D$3:$E$9,2,0)=\"Si\",NOT(ISNUMBER(VLOOKUP(DATE($A$4,$A$5+$A$3-1,AL8),Feriados,1,0)))),TRUE,FALSE),FALSE)","v":false},{"$f":"IFERROR(IF(AND(VLOOKUP(AM9,'Fiestas y días laborables'!$D$3:$E$9,2,0)=\"Si\",NOT(ISNUMBER(VLOOKUP(DATE($A$4,$A$5+$A$3-1,AM8),Feriados,1,0)))),TRUE,FALSE),FALSE)","v":false},{"$f":"IFERROR(IF(AND(VLOOKUP(AN9,'Fiestas y días laborables'!$D$3:$E$9,2,0)=\"Si\",NOT(ISNUMBER(VLOOKUP(DATE($A$4,$A$5+$A$3-1,AN8),Feriados,1,0)))),TRUE,FALSE),FALSE)","v":false},{"$f":"IFERROR(IF(AND(VLOOKUP(AO9,'Fiestas y días laborables'!$D$3:$E$9,2,0)=\"Si\",NOT(ISNUMBER(VLOOKUP(DATE($A$4,$A$5+$A$3-1,AO8),Feriados,1,0)))),TRUE,FALSE),FALSE)","v":false},{"$f":"IFERROR(IF(AND(VLOOKUP(AP9,'Fiestas y días laborables'!$D$3:$E$9,2,0)=\"Si\",NOT(ISNUMBER(VLOOKUP(DATE($A$4,$A$5+$A$3-1,AP8),Feriados,1,0)))),TRUE,FALSE),FALSE)","v":false},{"$f":"IFERROR(IF(AND(VLOOKUP(AQ9,'Fiestas y días laborables'!$D$3:$E$9,2,0)=\"Si\",NOT(ISNUMBER(VLOOKUP(DATE($A$4,$A$5+$A$3-1,AQ8),Feriados,1,0)))),TRUE,FALSE),FALSE)","v":false},{"$f":"IFERROR(IF(AND(VLOOKUP(AR9,'Fiestas y días laborables'!$D$3:$E$9,2,0)=\"Si\",NOT(ISNUMBER(VLOOKUP(DATE($A$4,$A$5+$A$3-1,AR8),Feriados,1,0)))),TRUE,FALSE),FALSE)","v":false},{"$f":"IFERROR(IF(AND(VLOOKUP(AS9,'Fiestas y días laborables'!$D$3:$E$9,2,0)=\"Si\",NOT(ISNUMBER(VLOOKUP(DATE($A$4,$A$5+$A$3-1,AS8),Feriados,1,0)))),TRUE,FALSE),FALSE)","v":false},{"$f":"IFERROR(IF(AND(VLOOKUP(AT9,'Fiestas y días laborables'!$D$3:$E$9,2,0)=\"Si\",NOT(ISNUMBER(VLOOKUP(DATE($A$4,$A$5+$A$3-1,AT8),Feriados,1,0)))),TRUE,FALSE),FALSE)","v":false},{"$f":"IFERROR(IF(AND(VLOOKUP(AU9,'Fiestas y días laborables'!$D$3:$E$9,2,0)=\"Si\",NOT(ISNUMBER(VLOOKUP(DATE($A$4,$A$5+$A$3-1,AU8),Feriados,1,0)))),TRUE,FALSE),FALSE)","v":false},{"$f":"IFERROR(IF(AND(VLOOKUP(AV9,'Fiestas y días laborables'!$D$3:$E$9,2,0)=\"Si\",NOT(ISNUMBER(VLOOKUP(DATE($A$4,$A$5+$A$3-1,AV8),Feriados,1,0)))),TRUE,FALSE),FALSE)","v":false},{"$f":"IFERROR(IF(AND(VLOOKUP(AW9,'Fiestas y días laborables'!$D$3:$E$9,2,0)=\"Si\",NOT(ISNUMBER(VLOOKUP(DATE($A$4,$A$5+$A$3-1,AW8),Feriados,1,0)))),TRUE,FALSE),FALSE)","v":false},{"$f":"IFERROR(IF(AND(VLOOKUP(AX9,'Fiestas y días laborables'!$D$3:$E$9,2,0)=\"Si\",NOT(ISNUMBER(VLOOKUP(DATE($A$4,$A$5+$A$3-1,AX8),Feriados,1,0)))),TRUE,FALSE),FALSE)","v":false},{"$f":"IFERROR(IF(AND(VLOOKUP(AY9,'Fiestas y días laborables'!$D$3:$E$9,2,0)=\"Si\",NOT(ISNUMBER(VLOOKUP(DATE($A$4,$A$5+$A$3-1,AY8),Feriados,1,0)))),TRUE,FALSE),FALSE)","v":false},{"$f":"IFERROR(IF(AND(VLOOKUP(AZ9,'Fiestas y días laborables'!$D$3:$E$9,2,0)=\"Si\",NOT(ISNUMBER(VLOOKUP(DATE($A$4,$A$5+$A$3-1,AZ8),Feriados,1,0)))),TRUE,FALSE),FALSE)","v":false},{"$f":"IFERROR(IF(AND(VLOOKUP(BA9,'Fiestas y días laborables'!$D$3:$E$9,2,0)=\"Si\",NOT(ISNUMBER(VLOOKUP(DATE($A$4,$A$5+$A$3-1,BA8),Feriados,1,0)))),TRUE,FALSE),FALSE)","v":false},{"$f":"IFERROR(IF(AND(VLOOKUP(BB9,'Fiestas y días laborables'!$D$3:$E$9,2,0)=\"Si\",NOT(ISNUMBER(VLOOKUP(DATE($A$4,$A$5+$A$3-1,BB8),Feriados,1,0)))),TRUE,FALSE),FALSE)","v":false},{"$f":"IFERROR(IF(AND(VLOOKUP(BC9,'Fiestas y días laborables'!$D$3:$E$9,2,0)=\"Si\",NOT(ISNUMBER(VLOOKUP(DATE($A$4,$A$5+$A$3-1,BC8),Feriados,1,0)))),TRUE,FALSE),FALSE)","v":false},{"$f":"IFERROR(IF(AND(VLOOKUP(BD9,'Fiestas y días laborables'!$D$3:$E$9,2,0)=\"Si\",NOT(ISNUMBER(VLOOKUP(DATE($A$4,$A$5+$A$3-1,BD8),Feriados,1,0)))),TRUE,FALSE),FALSE)","v":false},{"$f":"IFERROR(IF(AND(VLOOKUP(BE9,'Fiestas y días laborables'!$D$3:$E$9,2,0)=\"Si\",NOT(ISNUMBER(VLOOKUP(DATE($A$4,$A$5+$A$3-1,BE8),Feriados,1,0)))),TRUE,FALSE),FALSE)","v":false},{"$f":"IFERROR(IF(AND(VLOOKUP(BF9,'Fiestas y días laborables'!$D$3:$E$9,2,0)=\"Si\",NOT(ISNUMBER(VLOOKUP(DATE($A$4,$A$5+$A$3-1,BF8),Feriados,1,0)))),TRUE,FALSE),FALSE)","v":false},{"$f":"IFERROR(IF(AND(VLOOKUP(BG9,'Fiestas y días laborables'!$D$3:$E$9,2,0)=\"Si\",NOT(ISNUMBER(VLOOKUP(DATE($A$4,$A$5+$A$3-1,BG8),Feriados,1,0)))),TRUE,FALSE),FALSE)","v":false},{"$f":"IFERROR(IF(AND(VLOOKUP(BH9,'Fiestas y días laborables'!$D$3:$E$9,2,0)=\"Si\",NOT(ISNUMBER(VLOOKUP(DATE($A$4,$A$5+$A$3-1,BH8),Feriados,1,0)))),TRUE,FALSE),FALSE)","v":false},{"$f":"IFERROR(IF(AND(VLOOKUP(BI9,'Fiestas y días laborables'!$D$3:$E$9,2,0)=\"Si\",NOT(ISNUMBER(VLOOKUP(DATE($A$4,$A$5+$A$3-1,BI8),Feriados,1,0)))),TRUE,FALSE),FALSE)","v":false},{"$f":"IFERROR(IF(AND(VLOOKUP(BJ9,'Fiestas y días laborables'!$D$3:$E$9,2,0)=\"Si\",NOT(ISNUMBER(VLOOKUP(DATE($A$4,$A$5+$A$3-1,BJ8),Feriados,1,0)))),TRUE,FALSE),FALSE)","v":false},{"$f":"IFERROR(IF(AND(VLOOKUP(BK9,'Fiestas y días laborables'!$D$3:$E$9,2,0)=\"Si\",NOT(ISNUMBER(VLOOKUP(DATE($A$4,$A$5+$A$3-1,BK8),Feriados,1,0)))),TRUE,FALSE),FALSE)","v":false},{"$f":"IFERROR(IF(AND(VLOOKUP(BL9,'Fiestas y días laborables'!$D$3:$E$9,2,0)=\"Si\",NOT(ISNUMBER(VLOOKUP(DATE($A$4,$A$5+$A$3-1,BL8),Feriados,1,0)))),TRUE,FALSE),FALSE)","v":false},{"$f":"IFERROR(IF(AND(VLOOKUP(BM9,'Fiestas y días laborables'!$D$3:$E$9,2,0)=\"Si\",NOT(ISNUMBER(VLOOKUP(DATE($A$4,$A$5+$A$3-1,BM8),Feriados,1,0)))),TRUE,FALSE),FALSE)","v":false},{"$f":"IFERROR(IF(AND(VLOOKUP(BN9,'Fiestas y días laborables'!$D$3:$E$9,2,0)=\"Si\",NOT(ISNUMBER(VLOOKUP(DATE($A$4,$A$5+$A$3-1,BN8),Feriados,1,0)))),TRUE,FALSE),FALSE)","v":false},{"$f":"IFERROR(IF(AND(VLOOKUP(BO9,'Fiestas y días laborables'!$D$3:$E$9,2,0)=\"Si\",NOT(ISNUMBER(VLOOKUP(DATE($A$4,$A$5+$A$3-1,BO8),Feriados,1,0)))),TRUE,FALSE),FALSE)","v":false},{"$f":"IFERROR(IF(AND(VLOOKUP(BP9,'Fiestas y días laborables'!$D$3:$E$9,2,0)=\"Si\",NOT(ISNUMBER(VLOOKUP(DATE($A$4,$A$5+$A$3-1,BP8),Feriados,1,0)))),TRUE,FALSE),FALSE)","v":false},{"$f":"IFERROR(IF(AND(VLOOKUP(BQ9,'Fiestas y días laborables'!$D$3:$E$9,2,0)=\"Si\",NOT(ISNUMBER(VLOOKUP(DATE($A$4,$A$5+$A$3-1,BQ8),Feriados,1,0)))),TRUE,FALSE),FALSE)","v":false},{"$f":"IFERROR(IF(AND(VLOOKUP(BR9,'Fiestas y días laborables'!$D$3:$E$9,2,0)=\"Si\",NOT(ISNUMBER(VLOOKUP(DATE($A$4,$A$5+$A$3-1,BR8),Feriados,1,0)))),TRUE,FALSE),FALSE)","v":false},{"$f":"IFERROR(IF(AND(VLOOKUP(BS9,'Fiestas y días laborables'!$D$3:$E$9,2,0)=\"Si\",NOT(ISNUMBER(VLOOKUP(DATE($A$4,$A$5+$A$3-1,BS8),Feriados,1,0)))),TRUE,FALSE),FALSE)","v":false},{"$f":"IFERROR(IF(AND(VLOOKUP(BT9,'Fiestas y días laborables'!$D$3:$E$9,2,0)=\"Si\",NOT(ISNUMBER(VLOOKUP(DATE($A$4,$A$5+$A$3-1,BT8),Feriados,1,0)))),TRUE,FALSE),FALSE)","v":false},{"$f":"IFERROR(IF(AND(VLOOKUP(BU9,'Fiestas y días laborables'!$D$3:$E$9,2,0)=\"Si\",NOT(ISNUMBER(VLOOKUP(DATE($A$4,$A$5+$A$3-1,BU8),Feriados,1,0)))),TRUE,FALSE),FALSE)","v":false},{"$f":"IFERROR(IF(AND(VLOOKUP(BV9,'Fiestas y días laborables'!$D$3:$E$9,2,0)=\"Si\",NOT(ISNUMBER(VLOOKUP(DATE($A$4,$A$5+$A$3-1,BV8),Feriados,1,0)))),TRUE,FALSE),FALSE)","v":false},{"$f":"IFERROR(IF(AND(VLOOKUP(BW9,'Fiestas y días laborables'!$D$3:$E$9,2,0)=\"Si\",NOT(ISNUMBER(VLOOKUP(DATE($A$4,$A$5+$A$3-1,BW8),Feriados,1,0)))),TRUE,FALSE),FALSE)","v":false},{"$f":"IFERROR(IF(AND(VLOOKUP(BX9,'Fiestas y días laborables'!$D$3:$E$9,2,0)=\"Si\",NOT(ISNUMBER(VLOOKUP(DATE($A$4,$A$5+$A$3-1,BX8),Feriados,1,0)))),TRUE,FALSE),FALSE)","v":false},{"$f":"IFERROR(IF(AND(VLOOKUP(BY9,'Fiestas y días laborables'!$D$3:$E$9,2,0)=\"Si\",NOT(ISNUMBER(VLOOKUP(DATE($A$4,$A$5+$A$3-1,BY8),Feriados,1,0)))),TRUE,FALSE),FALSE)","v":false},{"$f":"IFERROR(IF(AND(VLOOKUP(BZ9,'Fiestas y días laborables'!$D$3:$E$9,2,0)=\"Si\",NOT(ISNUMBER(VLOOKUP(DATE($A$4,$A$5+$A$3-1,BZ8),Feriados,1,0)))),TRUE,FALSE),FALSE)","v":false},{"$f":"IFERROR(IF(AND(VLOOKUP(CA9,'Fiestas y días laborables'!$D$3:$E$9,2,0)=\"Si\",NOT(ISNUMBER(VLOOKUP(DATE($A$4,$A$5+$A$3-1,CA8),Feriados,1,0)))),TRUE,FALSE),FALSE)","v":false},{"$f":"IFERROR(IF(AND(VLOOKUP(CB9,'Fiestas y días laborables'!$D$3:$E$9,2,0)=\"Si\",NOT(ISNUMBER(VLOOKUP(DATE($A$4,$A$5+$A$3-1,CB8),Feriados,1,0)))),TRUE,FALSE),FALSE)","v":false},{"$f":"IFERROR(IF(AND(VLOOKUP(CC9,'Fiestas y días laborables'!$D$3:$E$9,2,0)=\"Si\",NOT(ISNUMBER(VLOOKUP(DATE($A$4,$A$5+$A$3-1,CC8),Feriados,1,0)))),TRUE,FALSE),FALSE)","v":false},{"$f":"IFERROR(IF(AND(VLOOKUP(CD9,'Fiestas y días laborables'!$D$3:$E$9,2,0)=\"Si\",NOT(ISNUMBER(VLOOKUP(DATE($A$4,$A$5+$A$3-1,CD8),Feriados,1,0)))),TRUE,FALSE),FALSE)","v":false},{"$f":"IFERROR(IF(AND(VLOOKUP(CE9,'Fiestas y días laborables'!$D$3:$E$9,2,0)=\"Si\",NOT(ISNUMBER(VLOOKUP(DATE($A$4,$A$5+$A$3-1,CE8),Feriados,1,0)))),TRUE,FALSE),FALSE)","v":false},{"$f":"IFERROR(IF(AND(VLOOKUP(CF9,'Fiestas y días laborables'!$D$3:$E$9,2,0)=\"Si\",NOT(ISNUMBER(VLOOKUP(DATE($A$4,$A$5+$A$3-1,CF8),Feriados,1,0)))),TRUE,FALSE),FALSE)","v":false},{"$f":"IFERROR(IF(AND(VLOOKUP(CG9,'Fiestas y días laborables'!$D$3:$E$9,2,0)=\"Si\",NOT(ISNUMBER(VLOOKUP(DATE($A$4,$A$5+$A$3-1,CG8),Feriados,1,0)))),TRUE,FALSE),FALSE)","v":false},{"$f":"IFERROR(IF(AND(VLOOKUP(CH9,'Fiestas y días laborables'!$D$3:$E$9,2,0)=\"Si\",NOT(ISNUMBER(VLOOKUP(DATE($A$4,$A$5+$A$3-1,CH8),Feriados,1,0)))),TRUE,FALSE),FALSE)","v":false},{"$f":"IFERROR(IF(AND(VLOOKUP(CI9,'Fiestas y días laborables'!$D$3:$E$9,2,0)=\"Si\",NOT(ISNUMBER(VLOOKUP(DATE($A$4,$A$5+$A$3-1,CI8),Feriados,1,0)))),TRUE,FALSE),FALSE)","v":false},{"$f":"IFERROR(IF(AND(VLOOKUP(CJ9,'Fiestas y días laborables'!$D$3:$E$9,2,0)=\"Si\",NOT(ISNUMBER(VLOOKUP(DATE($A$4,$A$5+$A$3-1,CJ8),Feriados,1,0)))),TRUE,FALSE),FALSE)","v":false},{"$f":"IFERROR(IF(AND(VLOOKUP(CK9,'Fiestas y días laborables'!$D$3:$E$9,2,0)=\"Si\",NOT(ISNUMBER(VLOOKUP(DATE($A$4,$A$5+$A$3-1,CK8),Feriados,1,0)))),TRUE,FALSE),FALSE)","v":false},{"$f":"IFERROR(IF(AND(VLOOKUP(CL9,'Fiestas y días laborables'!$D$3:$E$9,2,0)=\"Si\",NOT(ISNUMBER(VLOOKUP(DATE($A$4,$A$5+$A$3-1,CL8),Feriados,1,0)))),TRUE,FALSE),FALSE)","v":false},{"$f":"IFERROR(IF(AND(VLOOKUP(CM9,'Fiestas y días laborables'!$D$3:$E$9,2,0)=\"Si\",NOT(ISNUMBER(VLOOKUP(DATE($A$4,$A$5+$A$3-1,CM8),Feriados,1,0)))),TRUE,FALSE),FALSE)","v":false},{"$f":"IFERROR(IF(AND(VLOOKUP(CN9,'Fiestas y días laborables'!$D$3:$E$9,2,0)=\"Si\",NOT(ISNUMBER(VLOOKUP(DATE($A$4,$A$5+$A$3-1,CN8),Feriados,1,0)))),TRUE,FALSE),FALSE)","v":false},{"$f":"IFERROR(IF(AND(VLOOKUP(CO9,'Fiestas y días laborables'!$D$3:$E$9,2,0)=\"Si\",NOT(ISNUMBER(VLOOKUP(DATE($A$4,$A$5+$A$3-1,CO8),Feriados,1,0)))),TRUE,FALSE),FALSE)","v":false},{"$f":"IFERROR(IF(AND(VLOOKUP(CP9,'Fiestas y días laborables'!$D$3:$E$9,2,0)=\"Si\",NOT(ISNUMBER(VLOOKUP(DATE($A$4,$A$5+$A$3-1,CP8),Feriados,1,0)))),TRUE,FALSE),FALSE)","v":false},{"$f":"IFERROR(IF(AND(VLOOKUP(CQ9,'Fiestas y días laborables'!$D$3:$E$9,2,0)=\"Si\",NOT(ISNUMBER(VLOOKUP(DATE($A$4,$A$5+$A$3-1,CQ8),Feriados,1,0)))),TRUE,FALSE),FALSE)","v":false},{"$f":"IFERROR(IF(AND(VLOOKUP(CR9,'Fiestas y días laborables'!$D$3:$E$9,2,0)=\"Si\",NOT(ISNUMBER(VLOOKUP(DATE($A$4,$A$5+$A$3-1,CR8),Feriados,1,0)))),TRUE,FALSE),FALSE)","v":false},{"$f":"IFERROR(IF(AND(VLOOKUP(CS9,'Fiestas y días laborables'!$D$3:$E$9,2,0)=\"Si\",NOT(ISNUMBER(VLOOKUP(DATE($A$4,$A$5+$A$3-1,CS8),Feriados,1,0)))),TRUE,FALSE),FALSE)","v":false},{"$f":"IFERROR(IF(AND(VLOOKUP(CT9,'Fiestas y días laborables'!$D$3:$E$9,2,0)=\"Si\",NOT(ISNUMBER(VLOOKUP(DATE($A$4,$A$5+$A$3-1,CT8),Feriados,1,0)))),TRUE,FALSE),FALSE)","v":false},{"$f":"IFERROR(IF(AND(VLOOKUP(CU9,'Fiestas y días laborables'!$D$3:$E$9,2,0)=\"Si\",NOT(ISNUMBER(VLOOKUP(DATE($A$4,$A$5+$A$3-1,CU8),Feriados,1,0)))),TRUE,FALSE),FALSE)","v":false},{"$f":"IFERROR(IF(AND(VLOOKUP(CV9,'Fiestas y días laborables'!$D$3:$E$9,2,0)=\"Si\",NOT(ISNUMBER(VLOOKUP(DATE($A$4,$A$5+$A$3-1,CV8),Feriados,1,0)))),TRUE,FALSE),FALSE)","v":false},{"$f":"IFERROR(IF(AND(VLOOKUP(CW9,'Fiestas y días laborables'!$D$3:$E$9,2,0)=\"Si\",NOT(ISNUMBER(VLOOKUP(DATE($A$4,$A$5+$A$3-1,CW8),Feriados,1,0)))),TRUE,FALSE),FALSE)","v":false},{"$f":"IFERROR(IF(AND(VLOOKUP(CX9,'Fiestas y días laborables'!$D$3:$E$9,2,0)=\"Si\",NOT(ISNUMBER(VLOOKUP(DATE($A$4,$A$5+$A$3-1,CX8),Feriados,1,0)))),TRUE,FALSE),FALSE)","v":false},{"$f":"IFERROR(IF(AND(VLOOKUP(CY9,'Fiestas y días laborables'!$D$3:$E$9,2,0)=\"Si\",NOT(ISNUMBER(VLOOKUP(DATE($A$4,$A$5+$A$3-1,CY8),Feriados,1,0)))),TRUE,FALSE),FALSE)","v":false},{"$f":"IFERROR(IF(AND(VLOOKUP(CZ9,'Fiestas y días laborables'!$D$3:$E$9,2,0)=\"Si\",NOT(ISNUMBER(VLOOKUP(DATE($A$4,$A$5+$A$3-1,CZ8),Feriados,1,0)))),TRUE,FALSE),FALSE)","v":false},{"$f":"IFERROR(IF(AND(VLOOKUP(DA9,'Fiestas y días laborables'!$D$3:$E$9,2,0)=\"Si\",NOT(ISNUMBER(VLOOKUP(DATE($A$4,$A$5+$A$3-1,DA8),Feriados,1,0)))),TRUE,FALSE),FALSE)","v":false},{"$f":"IFERROR(IF(AND(VLOOKUP(DB9,'Fiestas y días laborables'!$D$3:$E$9,2,0)=\"Si\",NOT(ISNUMBER(VLOOKUP(DATE($A$4,$A$5+$A$3-1,DB8),Feriados,1,0)))),TRUE,FALSE),FALSE)","v":false},{"$f":"IFERROR(IF(AND(VLOOKUP(DC9,'Fiestas y días laborables'!$D$3:$E$9,2,0)=\"Si\",NOT(ISNUMBER(VLOOKUP(DATE($A$4,$A$5+$A$3-1,DC8),Feriados,1,0)))),TRUE,FALSE),FALSE)","v":false},{"$f":"IFERROR(IF(AND(VLOOKUP(DD9,'Fiestas y días laborables'!$D$3:$E$9,2,0)=\"Si\",NOT(ISNUMBER(VLOOKUP(DATE($A$4,$A$5+$A$3-1,DD8),Feriados,1,0)))),TRUE,FALSE),FALSE)","v":false},{"$f":"IFERROR(IF(AND(VLOOKUP(DE9,'Fiestas y días laborables'!$D$3:$E$9,2,0)=\"Si\",NOT(ISNUMBER(VLOOKUP(DATE($A$4,$A$5+$A$3-1,DE8),Feriados,1,0)))),TRUE,FALSE),FALSE)","v":false},{"$f":"IFERROR(IF(AND(VLOOKUP(DF9,'Fiestas y días laborables'!$D$3:$E$9,2,0)=\"Si\",NOT(ISNUMBER(VLOOKUP(DATE($A$4,$A$5+$A$3-1,DF8),Feriados,1,0)))),TRUE,FALSE),FALSE)","v":false},{"$f":"IFERROR(IF(AND(VLOOKUP(DG9,'Fiestas y días laborables'!$D$3:$E$9,2,0)=\"Si\",NOT(ISNUMBER(VLOOKUP(DATE($A$4,$A$5+$A$3-1,DG8),Feriados,1,0)))),TRUE,FALSE),FALSE)","v":false},{"$f":"IFERROR(IF(AND(VLOOKUP(DH9,'Fiestas y días laborables'!$D$3:$E$9,2,0)=\"Si\",NOT(ISNUMBER(VLOOKUP(DATE($A$4,$A$5+$A$3-1,DH8),Feriados,1,0)))),TRUE,FALSE),FALSE)","v":false},{"$f":"IFERROR(IF(AND(VLOOKUP(DI9,'Fiestas y días laborables'!$D$3:$E$9,2,0)=\"Si\",NOT(ISNUMBER(VLOOKUP(DATE($A$4,$A$5+$A$3-1,DI8),Feriados,1,0)))),TRUE,FALSE),FALSE)","v":false},{"$f":"IFERROR(IF(AND(VLOOKUP(DJ9,'Fiestas y días laborables'!$D$3:$E$9,2,0)=\"Si\",NOT(ISNUMBER(VLOOKUP(DATE($A$4,$A$5+$A$3-1,DJ8),Feriados,1,0)))),TRUE,FALSE),FALSE)","v":false},{"$f":"IFERROR(IF(AND(VLOOKUP(DK9,'Fiestas y días laborables'!$D$3:$E$9,2,0)=\"Si\",NOT(ISNUMBER(VLOOKUP(DATE($A$4,$A$5+$A$3-1,DK8),Feriados,1,0)))),TRUE,FALSE),FALSE)","v":false},{"$f":"IFERROR(IF(AND(VLOOKUP(DL9,'Fiestas y días laborables'!$D$3:$E$9,2,0)=\"Si\",NOT(ISNUMBER(VLOOKUP(DATE($A$4,$A$5+$A$3-1,DL8),Feriados,1,0)))),TRUE,FALSE),FALSE)","v":false},{"$f":"IFERROR(IF(AND(VLOOKUP(DM9,'Fiestas y días laborables'!$D$3:$E$9,2,0)=\"Si\",NOT(ISNUMBER(VLOOKUP(DATE($A$4,$A$5+$A$3-1,DM8),Feriados,1,0)))),TRUE,FALSE),FALSE)","v":false},{"$f":"IFERROR(IF(AND(VLOOKUP(DN9,'Fiestas y días laborables'!$D$3:$E$9,2,0)=\"Si\",NOT(ISNUMBER(VLOOKUP(DATE($A$4,$A$5+$A$3-1,DN8),Feriados,1,0)))),TRUE,FALSE),FALSE)","v":false},{"$f":"IFERROR(IF(AND(VLOOKUP(DO9,'Fiestas y días laborables'!$D$3:$E$9,2,0)=\"Si\",NOT(ISNUMBER(VLOOKUP(DATE($A$4,$A$5+$A$3-1,DO8),Feriados,1,0)))),TRUE,FALSE),FALSE)","v":false},{"$f":"IFERROR(IF(AND(VLOOKUP(DP9,'Fiestas y días laborables'!$D$3:$E$9,2,0)=\"Si\",NOT(ISNUMBER(VLOOKUP(DATE($A$4,$A$5+$A$3-1,DP8),Feriados,1,0)))),TRUE,FALSE),FALSE)","v":false},{"$f":"IFERROR(IF(AND(VLOOKUP(DQ9,'Fiestas y días laborables'!$D$3:$E$9,2,0)=\"Si\",NOT(ISNUMBER(VLOOKUP(DATE($A$4,$A$5+$A$3-1,DQ8),Feriados,1,0)))),TRUE,FALSE),FALSE)","v":false},{"$f":"IFERROR(IF(AND(VLOOKUP(DR9,'Fiestas y días laborables'!$D$3:$E$9,2,0)=\"Si\",NOT(ISNUMBER(VLOOKUP(DATE($A$4,$A$5+$A$3-1,DR8),Feriados,1,0)))),TRUE,FALSE),FALSE)","v":false},{"$f":"IFERROR(IF(AND(VLOOKUP(DS9,'Fiestas y días laborables'!$D$3:$E$9,2,0)=\"Si\",NOT(ISNUMBER(VLOOKUP(DATE($A$4,$A$5+$A$3-1,DS8),Feriados,1,0)))),TRUE,FALSE),FALSE)","v":false},{"$f":"IFERROR(IF(AND(VLOOKUP(DT9,'Fiestas y días laborables'!$D$3:$E$9,2,0)=\"Si\",NOT(ISNUMBER(VLOOKUP(DATE($A$4,$A$5+$A$3-1,DT8),Feriados,1,0)))),TRUE,FALSE),FALSE)","v":false},{"$f":"IFERROR(IF(AND(VLOOKUP(DU9,'Fiestas y días laborables'!$D$3:$E$9,2,0)=\"Si\",NOT(ISNUMBER(VLOOKUP(DATE($A$4,$A$5+$A$3-1,DU8),Feriados,1,0)))),TRUE,FALSE),FALSE)","v":false},{"$f":"IFERROR(IF(AND(VLOOKUP(DV9,'Fiestas y días laborables'!$D$3:$E$9,2,0)=\"Si\",NOT(ISNUMBER(VLOOKUP(DATE($A$4,$A$5+$A$3-1,DV8),Feriados,1,0)))),TRUE,FALSE),FALSE)","v":false},{"$f":"IFERROR(IF(AND(VLOOKUP(DW9,'Fiestas y días laborables'!$D$3:$E$9,2,0)=\"Si\",NOT(ISNUMBER(VLOOKUP(DATE($A$4,$A$5+$A$3-1,DW8),Feriados,1,0)))),TRUE,FALSE),FALSE)","v":false},{"$f":"IFERROR(IF(AND(VLOOKUP(DX9,'Fiestas y días laborables'!$D$3:$E$9,2,0)=\"Si\",NOT(ISNUMBER(VLOOKUP(DATE($A$4,$A$5+$A$3-1,DX8),Feriados,1,0)))),TRUE,FALSE),FALSE)","v":false},{"$f":"IFERROR(IF(AND(VLOOKUP(DY9,'Fiestas y días laborables'!$D$3:$E$9,2,0)=\"Si\",NOT(ISNUMBER(VLOOKUP(DATE($A$4,$A$5+$A$3-1,DY8),Feriados,1,0)))),TRUE,FALSE),FALSE)","v":false},{"$f":"IFERROR(IF(AND(VLOOKUP(DZ9,'Fiestas y días laborables'!$D$3:$E$9,2,0)=\"Si\",NOT(ISNUMBER(VLOOKUP(DATE($A$4,$A$5+$A$3-1,DZ8),Feriados,1,0)))),TRUE,FALSE),FALSE)","v":false},{"$f":"IFERROR(IF(AND(VLOOKUP(EA9,'Fiestas y días laborables'!$D$3:$E$9,2,0)=\"Si\",NOT(ISNUMBER(VLOOKUP(DATE($A$4,$A$5+$A$3-1,EA8),Feriados,1,0)))),TRUE,FALSE),FALSE)","v":false},{"$f":"IFERROR(IF(AND(VLOOKUP(EB9,'Fiestas y días laborables'!$D$3:$E$9,2,0)=\"Si\",NOT(ISNUMBER(VLOOKUP(DATE($A$4,$A$5+$A$3-1,EB8),Feriados,1,0)))),TRUE,FALSE),FALSE)","v":false},{"$f":"IFERROR(IF(AND(VLOOKUP(EC9,'Fiestas y días laborables'!$D$3:$E$9,2,0)=\"Si\",NOT(ISNUMBER(VLOOKUP(DATE($A$4,$A$5+$A$3-1,EC8),Feriados,1,0)))),TRUE,FALSE),FALSE)","v":false},{"$f":"IFERROR(IF(AND(VLOOKUP(ED9,'Fiestas y días laborables'!$D$3:$E$9,2,0)=\"Si\",NOT(ISNUMBER(VLOOKUP(DATE($A$4,$A$5+$A$3-1,ED8),Feriados,1,0)))),TRUE,FALSE),FALSE)","v":false},{"$f":"IFERROR(IF(AND(VLOOKUP(EE9,'Fiestas y días laborables'!$D$3:$E$9,2,0)=\"Si\",NOT(ISNUMBER(VLOOKUP(DATE($A$4,$A$5+$A$3-1,EE8),Feriados,1,0)))),TRUE,FALSE),FALSE)","v":false},{"$f":"IFERROR(IF(AND(VLOOKUP(EF9,'Fiestas y días laborables'!$D$3:$E$9,2,0)=\"Si\",NOT(ISNUMBER(VLOOKUP(DATE($A$4,$A$5+$A$3-1,EF8),Feriados,1,0)))),TRUE,FALSE),FALSE)","v":false},{"$f":"IFERROR(IF(AND(VLOOKUP(EG9,'Fiestas y días laborables'!$D$3:$E$9,2,0)=\"Si\",NOT(ISNUMBER(VLOOKUP(DATE($A$4,$A$5+$A$3-1,EG8),Feriados,1,0)))),TRUE,FALSE),FALSE)","v":false},{"$f":"IFERROR(IF(AND(VLOOKUP(EH9,'Fiestas y días laborables'!$D$3:$E$9,2,0)=\"Si\",NOT(ISNUMBER(VLOOKUP(DATE($A$4,$A$5+$A$3-1,EH8),Feriados,1,0)))),TRUE,FALSE),FALSE)","v":false},{"$f":"IFERROR(IF(AND(VLOOKUP(EI9,'Fiestas y días laborables'!$D$3:$E$9,2,0)=\"Si\",NOT(ISNUMBER(VLOOKUP(DATE($A$4,$A$5+$A$3-1,EI8),Feriados,1,0)))),TRUE,FALSE),FALSE)","v":false},{"$f":"IFERROR(IF(AND(VLOOKUP(EJ9,'Fiestas y días laborables'!$D$3:$E$9,2,0)=\"Si\",NOT(ISNUMBER(VLOOKUP(DATE($A$4,$A$5+$A$3-1,EJ8),Feriados,1,0)))),TRUE,FALSE),FALSE)","v":false},{"$f":"IFERROR(IF(AND(VLOOKUP(EK9,'Fiestas y días laborables'!$D$3:$E$9,2,0)=\"Si\",NOT(ISNUMBER(VLOOKUP(DATE($A$4,$A$5+$A$3-1,EK8),Feriados,1,0)))),TRUE,FALSE),FALSE)","v":false},{"$f":"IFERROR(IF(AND(VLOOKUP(EL9,'Fiestas y días laborables'!$D$3:$E$9,2,0)=\"Si\",NOT(ISNUMBER(VLOOKUP(DATE($A$4,$A$5+$A$3-1,EL8),Feriados,1,0)))),TRUE,FALSE),FALSE)","v":false},{"$f":"IFERROR(IF(AND(VLOOKUP(EM9,'Fiestas y días laborables'!$D$3:$E$9,2,0)=\"Si\",NOT(ISNUMBER(VLOOKUP(DATE($A$4,$A$5+$A$3-1,EM8),Feriados,1,0)))),TRUE,FALSE),FALSE)","v":false},{"$f":"IFERROR(IF(AND(VLOOKUP(EN9,'Fiestas y días laborables'!$D$3:$E$9,2,0)=\"Si\",NOT(ISNUMBER(VLOOKUP(DATE($A$4,$A$5+$A$3-1,EN8),Feriados,1,0)))),TRUE,FALSE),FALSE)","v":false},{"$f":"IFERROR(IF(AND(VLOOKUP(EO9,'Fiestas y días laborables'!$D$3:$E$9,2,0)=\"Si\",NOT(ISNUMBER(VLOOKUP(DATE($A$4,$A$5+$A$3-1,EO8),Feriados,1,0)))),TRUE,FALSE),FALSE)","v":false},{"$f":"IFERROR(IF(AND(VLOOKUP(EP9,'Fiestas y días laborables'!$D$3:$E$9,2,0)=\"Si\",NOT(ISNUMBER(VLOOKUP(DATE($A$4,$A$5+$A$3-1,EP8),Feriados,1,0)))),TRUE,FALSE),FALSE)","v":false},{"$f":"IFERROR(IF(AND(VLOOKUP(EQ9,'Fiestas y días laborables'!$D$3:$E$9,2,0)=\"Si\",NOT(ISNUMBER(VLOOKUP(DATE($A$4,$A$5+$A$3-1,EQ8),Feriados,1,0)))),TRUE,FALSE),FALSE)","v":false},{"$f":"IFERROR(IF(AND(VLOOKUP(ER9,'Fiestas y días laborables'!$D$3:$E$9,2,0)=\"Si\",NOT(ISNUMBER(VLOOKUP(DATE($A$4,$A$5+$A$3-1,ER8),Feriados,1,0)))),TRUE,FALSE),FALSE)","v":false},{"$f":"IFERROR(IF(AND(VLOOKUP(ES9,'Fiestas y días laborables'!$D$3:$E$9,2,0)=\"Si\",NOT(ISNUMBER(VLOOKUP(DATE($A$4,$A$5+$A$3-1,ES8),Feriados,1,0)))),TRUE,FALSE),FALSE)","v":false},{"$f":"IFERROR(IF(AND(VLOOKUP(ET9,'Fiestas y días laborables'!$D$3:$E$9,2,0)=\"Si\",NOT(ISNUMBER(VLOOKUP(DATE($A$4,$A$5+$A$3-1,ET8),Feriados,1,0)))),TRUE,FALSE),FALSE)","v":false},{"$f":"IFERROR(IF(AND(VLOOKUP(EU9,'Fiestas y días laborables'!$D$3:$E$9,2,0)=\"Si\",NOT(ISNUMBER(VLOOKUP(DATE($A$4,$A$5+$A$3-1,EU8),Feriados,1,0)))),TRUE,FALSE),FALSE)","v":false},{"$f":"IFERROR(IF(AND(VLOOKUP(EV9,'Fiestas y días laborables'!$D$3:$E$9,2,0)=\"Si\",NOT(ISNUMBER(VLOOKUP(DATE($A$4,$A$5+$A$3-1,EV8),Feriados,1,0)))),TRUE,FALSE),FALSE)","v":false},{"$f":"IFERROR(IF(AND(VLOOKUP(EW9,'Fiestas y días laborables'!$D$3:$E$9,2,0)=\"Si\",NOT(ISNUMBER(VLOOKUP(DATE($A$4,$A$5+$A$3-1,EW8),Feriados,1,0)))),TRUE,FALSE),FALSE)","v":false},{"$f":"IFERROR(IF(AND(VLOOKUP(EX9,'Fiestas y días laborables'!$D$3:$E$9,2,0)=\"Si\",NOT(ISNUMBER(VLOOKUP(DATE($A$4,$A$5+$A$3-1,EX8),Feriados,1,0)))),TRUE,FALSE),FALSE)","v":false},{"$f":"IFERROR(IF(AND(VLOOKUP(EY9,'Fiestas y días laborables'!$D$3:$E$9,2,0)=\"Si\",NOT(ISNUMBER(VLOOKUP(DATE($A$4,$A$5+$A$3-1,EY8),Feriados,1,0)))),TRUE,FALSE),FALSE)","v":false},{"$f":"IFERROR(IF(AND(VLOOKUP(EZ9,'Fiestas y días laborables'!$D$3:$E$9,2,0)=\"Si\",NOT(ISNUMBER(VLOOKUP(DATE($A$4,$A$5+$A$3-1,EZ8),Feriados,1,0)))),TRUE,FALSE),FALSE)","v":false},{"$f":"IFERROR(IF(AND(VLOOKUP(FA9,'Fiestas y días laborables'!$D$3:$E$9,2,0)=\"Si\",NOT(ISNUMBER(VLOOKUP(DATE($A$4,$A$5+$A$3-1,FA8),Feriados,1,0)))),TRUE,FALSE),FALSE)","v":false},{"$f":"IFERROR(IF(AND(VLOOKUP(FB9,'Fiestas y días laborables'!$D$3:$E$9,2,0)=\"Si\",NOT(ISNUMBER(VLOOKUP(DATE($A$4,$A$5+$A$3-1,FB8),Feriados,1,0)))),TRUE,FALSE),FALSE)","v":false},{"$f":"IFERROR(IF(AND(VLOOKUP(FC9,'Fiestas y días laborables'!$D$3:$E$9,2,0)=\"Si\",NOT(ISNUMBER(VLOOKUP(DATE($A$4,$A$5+$A$3-1,FC8),Feriados,1,0)))),TRUE,FALSE),FALSE)","v":false},{"$f":"IFERROR(IF(AND(VLOOKUP(FD9,'Fiestas y días laborables'!$D$3:$E$9,2,0)=\"Si\",NOT(ISNUMBER(VLOOKUP(DATE($A$4,$A$5+$A$3-1,FD8),Feriados,1,0)))),TRUE,FALSE),FALSE)","v":false},{"$f":"IFERROR(IF(AND(VLOOKUP(FE9,'Fiestas y días laborables'!$D$3:$E$9,2,0)=\"Si\",NOT(ISNUMBER(VLOOKUP(DATE($A$4,$A$5+$A$3-1,FE8),Feriados,1,0)))),TRUE,FALSE),FALSE)","v":false},{"$f":"IFERROR(IF(AND(VLOOKUP(FF9,'Fiestas y días laborables'!$D$3:$E$9,2,0)=\"Si\",NOT(ISNUMBER(VLOOKUP(DATE($A$4,$A$5+$A$3-1,FF8),Feriados,1,0)))),TRUE,FALSE),FALSE)","v":false},{"$f":"IFERROR(IF(AND(VLOOKUP(FG9,'Fiestas y días laborables'!$D$3:$E$9,2,0)=\"Si\",NOT(ISNUMBER(VLOOKUP(DATE($A$4,$A$5+$A$3-1,FG8),Feriados,1,0)))),TRUE,FALSE),FALSE)","v":false},{"$f":"IFERROR(IF(AND(VLOOKUP(FH9,'Fiestas y días laborables'!$D$3:$E$9,2,0)=\"Si\",NOT(ISNUMBER(VLOOKUP(DATE($A$4,$A$5+$A$3-1,FH8),Feriados,1,0)))),TRUE,FALSE),FALSE)","v":false},{"$f":"IFERROR(IF(AND(VLOOKUP(FI9,'Fiestas y días laborables'!$D$3:$E$9,2,0)=\"Si\",NOT(ISNUMBER(VLOOKUP(DATE($A$4,$A$5+$A$3-1,FI8),Feriados,1,0)))),TRUE,FALSE),FALSE)","v":false},{"$f":"IFERROR(IF(AND(VLOOKUP(FJ9,'Fiestas y días laborables'!$D$3:$E$9,2,0)=\"Si\",NOT(ISNUMBER(VLOOKUP(DATE($A$4,$A$5+$A$3-1,FJ8),Feriados,1,0)))),TRUE,FALSE),FALSE)","v":false},{"$f":"IFERROR(IF(AND(VLOOKUP(FK9,'Fiestas y días laborables'!$D$3:$E$9,2,0)=\"Si\",NOT(ISNUMBER(VLOOKUP(DATE($A$4,$A$5+$A$3-1,FK8),Feriados,1,0)))),TRUE,FALSE),FALSE)","v":false},{"$f":"IFERROR(IF(AND(VLOOKUP(FL9,'Fiestas y días laborables'!$D$3:$E$9,2,0)=\"Si\",NOT(ISNUMBER(VLOOKUP(DATE($A$4,$A$5+$A$3-1,FL8),Feriados,1,0)))),TRUE,FALSE),FALSE)","v":false},{"$f":"IFERROR(IF(AND(VLOOKUP(FM9,'Fiestas y días laborables'!$D$3:$E$9,2,0)=\"Si\",NOT(ISNUMBER(VLOOKUP(DATE($A$4,$A$5+$A$3-1,FM8),Feriados,1,0)))),TRUE,FALSE),FALSE)","v":false},{"$f":"IFERROR(IF(AND(VLOOKUP(FN9,'Fiestas y días laborables'!$D$3:$E$9,2,0)=\"Si\",NOT(ISNUMBER(VLOOKUP(DATE($A$4,$A$5+$A$3-1,FN8),Feriados,1,0)))),TRUE,FALSE),FALSE)","v":false},{"$f":"IFERROR(IF(AND(VLOOKUP(FO9,'Fiestas y días laborables'!$D$3:$E$9,2,0)=\"Si\",NOT(ISNUMBER(VLOOKUP(DATE($A$4,$A$5+$A$3-1,FO8),Feriados,1,0)))),TRUE,FALSE),FALSE)","v":false},{"$f":"IFERROR(IF(AND(VLOOKUP(FP9,'Fiestas y días laborables'!$D$3:$E$9,2,0)=\"Si\",NOT(ISNUMBER(VLOOKUP(DATE($A$4,$A$5+$A$3-1,FP8),Feriados,1,0)))),TRUE,FALSE),FALSE)","v":false},{"$f":"IFERROR(IF(AND(VLOOKUP(FQ9,'Fiestas y días laborables'!$D$3:$E$9,2,0)=\"Si\",NOT(ISNUMBER(VLOOKUP(DATE($A$4,$A$5+$A$3-1,FQ8),Feriados,1,0)))),TRUE,FALSE),FALSE)","v":false},{"$f":"IFERROR(IF(AND(VLOOKUP(FR9,'Fiestas y días laborables'!$D$3:$E$9,2,0)=\"Si\",NOT(ISNUMBER(VLOOKUP(DATE($A$4,$A$5+$A$3-1,FR8),Feriados,1,0)))),TRUE,FALSE),FALSE)","v":false},{"$f":"IFERROR(IF(AND(VLOOKUP(FS9,'Fiestas y días laborables'!$D$3:$E$9,2,0)=\"Si\",NOT(ISNUMBER(VLOOKUP(DATE($A$4,$A$5+$A$3-1,FS8),Feriados,1,0)))),TRUE,FALSE),FALSE)","v":false},{"$f":"IFERROR(IF(AND(VLOOKUP(FT9,'Fiestas y días laborables'!$D$3:$E$9,2,0)=\"Si\",NOT(ISNUMBER(VLOOKUP(DATE($A$4,$A$5+$A$3-1,FT8),Feriados,1,0)))),TRUE,FALSE),FALSE)","v":false},{"$f":"IFERROR(IF(AND(VLOOKUP(FU9,'Fiestas y días laborables'!$D$3:$E$9,2,0)=\"Si\",NOT(ISNUMBER(VLOOKUP(DATE($A$4,$A$5+$A$3-1,FU8),Feriados,1,0)))),TRUE,FALSE),FALSE)","v":false},{"$f":"IFERROR(IF(AND(VLOOKUP(FV9,'Fiestas y días laborables'!$D$3:$E$9,2,0)=\"Si\",NOT(ISNUMBER(VLOOKUP(DATE($A$4,$A$5+$A$3-1,FV8),Feriados,1,0)))),TRUE,FALSE),FALSE)","v":false},{"$f":"IFERROR(IF(AND(VLOOKUP(FW9,'Fiestas y días laborables'!$D$3:$E$9,2,0)=\"Si\",NOT(ISNUMBER(VLOOKUP(DATE($A$4,$A$5+$A$3-1,FW8),Feriados,1,0)))),TRUE,FALSE),FALSE)","v":false},{"$f":"IFERROR(IF(AND(VLOOKUP(FX9,'Fiestas y días laborables'!$D$3:$E$9,2,0)=\"Si\",NOT(ISNUMBER(VLOOKUP(DATE($A$4,$A$5+$A$3-1,FX8),Feriados,1,0)))),TRUE,FALSE),FALSE)","v":false},{"$f":"IFERROR(IF(AND(VLOOKUP(FY9,'Fiestas y días laborables'!$D$3:$E$9,2,0)=\"Si\",NOT(ISNUMBER(VLOOKUP(DATE($A$4,$A$5+$A$3-1,FY8),Feriados,1,0)))),TRUE,FALSE),FALSE)","v":false},{"$f":"IFERROR(IF(AND(VLOOKUP(FZ9,'Fiestas y días laborables'!$D$3:$E$9,2,0)=\"Si\",NOT(ISNUMBER(VLOOKUP(DATE($A$4,$A$5+$A$3-1,FZ8),Feriados,1,0)))),TRUE,FALSE),FALSE)","v":false},{"$f":"IFERROR(IF(AND(VLOOKUP(GA9,'Fiestas y días laborables'!$D$3:$E$9,2,0)=\"Si\",NOT(ISNUMBER(VLOOKUP(DATE($A$4,$A$5+$A$3-1,GA8),Feriados,1,0)))),TRUE,FALSE),FALSE)","v":false},{"$f":"IFERROR(IF(AND(VLOOKUP(GB9,'Fiestas y días laborables'!$D$3:$E$9,2,0)=\"Si\",NOT(ISNUMBER(VLOOKUP(DATE($A$4,$A$5+$A$3-1,GB8),Feriados,1,0)))),TRUE,FALSE),FALSE)","v":false},{"$f":"IFERROR(IF(AND(VLOOKUP(GC9,'Fiestas y días laborables'!$D$3:$E$9,2,0)=\"Si\",NOT(ISNUMBER(VLOOKUP(DATE($A$4,$A$5+$A$3-1,GC8),Feriados,1,0)))),TRUE,FALSE),FALSE)","v":false},{"$f":"IFERROR(IF(AND(VLOOKUP(GD9,'Fiestas y días laborables'!$D$3:$E$9,2,0)=\"Si\",NOT(ISNUMBER(VLOOKUP(DATE($A$4,$A$5+$A$3-1,GD8),Feriados,1,0)))),TRUE,FALSE),FALSE)","v":false},{"$f":"IFERROR(IF(AND(VLOOKUP(GE9,'Fiestas y días laborables'!$D$3:$E$9,2,0)=\"Si\",NOT(ISNUMBER(VLOOKUP(DATE($A$4,$A$5+$A$3-1,GE8),Feriados,1,0)))),TRUE,FALSE),FALSE)","v":false},{"$f":"IFERROR(IF(AND(VLOOKUP(GF9,'Fiestas y días laborables'!$D$3:$E$9,2,0)=\"Si\",NOT(ISNUMBER(VLOOKUP(DATE($A$4,$A$5+$A$3-1,GF8),Feriados,1,0)))),TRUE,FALSE),FALSE)","v":false},{"$f":"IFERROR(IF(AND(VLOOKUP(GG9,'Fiestas y días laborables'!$D$3:$E$9,2,0)=\"Si\",NOT(ISNUMBER(VLOOKUP(DATE($A$4,$A$5+$A$3-1,GG8),Feriados,1,0)))),TRUE,FALSE),FALSE)","v":false},{"$f":"IFERROR(IF(AND(VLOOKUP(GH9,'Fiestas y días laborables'!$D$3:$E$9,2,0)=\"Si\",NOT(ISNUMBER(VLOOKUP(DATE($A$4,$A$5+$A$3-1,GH8),Feriados,1,0)))),TRUE,FALSE),FALSE)","v":false},{"$f":"IFERROR(IF(AND(VLOOKUP(GI9,'Fiestas y días laborables'!$D$3:$E$9,2,0)=\"Si\",NOT(ISNUMBER(VLOOKUP(DATE($A$4,$A$5+$A$3-1,GI8),Feriados,1,0)))),TRUE,FALSE),FALSE)","v":false},{"$f":"IFERROR(IF(AND(VLOOKUP(GJ9,'Fiestas y días laborables'!$D$3:$E$9,2,0)=\"Si\",NOT(ISNUMBER(VLOOKUP(DATE($A$4,$A$5+$A$3-1,GJ8),Feriados,1,0)))),TRUE,FALSE),FALSE)","v":false},{"$f":"IFERROR(IF(AND(VLOOKUP(GK9,'Fiestas y días laborables'!$D$3:$E$9,2,0)=\"Si\",NOT(ISNUMBER(VLOOKUP(DATE($A$4,$A$5+$A$3-1,GK8),Feriados,1,0)))),TRUE,FALSE),FALSE)","v":false},{"$f":"IFERROR(IF(AND(VLOOKUP(GL9,'Fiestas y días laborables'!$D$3:$E$9,2,0)=\"Si\",NOT(ISNUMBER(VLOOKUP(DATE($A$4,$A$5+$A$3-1,GL8),Feriados,1,0)))),TRUE,FALSE),FALSE)","v":false},{"$f":"IFERROR(IF(AND(VLOOKUP(GM9,'Fiestas y días laborables'!$D$3:$E$9,2,0)=\"Si\",NOT(ISNUMBER(VLOOKUP(DATE($A$4,$A$5+$A$3-1,GM8),Feriados,1,0)))),TRUE,FALSE),FALSE)","v":false},{"$f":"IFERROR(IF(AND(VLOOKUP(GN9,'Fiestas y días laborables'!$D$3:$E$9,2,0)=\"Si\",NOT(ISNUMBER(VLOOKUP(DATE($A$4,$A$5+$A$3-1,GN8),Feriados,1,0)))),TRUE,FALSE),FALSE)","v":false},{"$f":"IFERROR(IF(AND(VLOOKUP(GO9,'Fiestas y días laborables'!$D$3:$E$9,2,0)=\"Si\",NOT(ISNUMBER(VLOOKUP(DATE($A$4,$A$5+$A$3-1,GO8),Feriados,1,0)))),TRUE,FALSE),FALSE)","v":false},{"$f":"IFERROR(IF(AND(VLOOKUP(GP9,'Fiestas y días laborables'!$D$3:$E$9,2,0)=\"Si\",NOT(ISNUMBER(VLOOKUP(DATE($A$4,$A$5+$A$3-1,GP8),Feriados,1,0)))),TRUE,FALSE),FALSE)","v":false},{"$f":"IFERROR(IF(AND(VLOOKUP(GQ9,'Fiestas y días laborables'!$D$3:$E$9,2,0)=\"Si\",NOT(ISNUMBER(VLOOKUP(DATE($A$4,$A$5+$A$3-1,GQ8),Feriados,1,0)))),TRUE,FALSE),FALSE)","v":false},{"$f":"IFERROR(IF(AND(VLOOKUP(GR9,'Fiestas y días laborables'!$D$3:$E$9,2,0)=\"Si\",NOT(ISNUMBER(VLOOKUP(DATE($A$4,$A$5+$A$3-1,GR8),Feriados,1,0)))),TRUE,FALSE),FALSE)","v":false},{"$f":"IFERROR(IF(AND(VLOOKUP(GS9,'Fiestas y días laborables'!$D$3:$E$9,2,0)=\"Si\",NOT(ISNUMBER(VLOOKUP(DATE($A$4,$A$5+$A$3-1,GS8),Feriados,1,0)))),TRUE,FALSE),FALSE)","v":false},{"$f":"IFERROR(IF(AND(VLOOKUP(GT9,'Fiestas y días laborables'!$D$3:$E$9,2,0)=\"Si\",NOT(ISNUMBER(VLOOKUP(DATE($A$4,$A$5+$A$3-1,GT8),Feriados,1,0)))),TRUE,FALSE),FALSE)","v":false},{"$f":"IFERROR(IF(AND(VLOOKUP(GU9,'Fiestas y días laborables'!$D$3:$E$9,2,0)=\"Si\",NOT(ISNUMBER(VLOOKUP(DATE($A$4,$A$5+$A$3-1,GU8),Feriados,1,0)))),TRUE,FALSE),FALSE)","v":false},{"$f":"IFERROR(IF(AND(VLOOKUP(GV9,'Fiestas y días laborables'!$D$3:$E$9,2,0)=\"Si\",NOT(ISNUMBER(VLOOKUP(DATE($A$4,$A$5+$A$3-1,GV8),Feriados,1,0)))),TRUE,FALSE),FALSE)","v":false},{"$f":"IFERROR(IF(AND(VLOOKUP(GW9,'Fiestas y días laborables'!$D$3:$E$9,2,0)=\"Si\",NOT(ISNUMBER(VLOOKUP(DATE($A$4,$A$5+$A$3-1,GW8),Feriados,1,0)))),TRUE,FALSE),FALSE)","v":false},{"$f":"IFERROR(IF(AND(VLOOKUP(GX9,'Fiestas y días laborables'!$D$3:$E$9,2,0)=\"Si\",NOT(ISNUMBER(VLOOKUP(DATE($A$4,$A$5+$A$3-1,GX8),Feriados,1,0)))),TRUE,FALSE),FALSE)","v":false},{"$f":"IFERROR(IF(AND(VLOOKUP(GY9,'Fiestas y días laborables'!$D$3:$E$9,2,0)=\"Si\",NOT(ISNUMBER(VLOOKUP(DATE($A$4,$A$5+$A$3-1,GY8),Feriados,1,0)))),TRUE,FALSE),FALSE)","v":false},{"$f":"IFERROR(IF(AND(VLOOKUP(GZ9,'Fiestas y días laborables'!$D$3:$E$9,2,0)=\"Si\",NOT(ISNUMBER(VLOOKUP(DATE($A$4,$A$5+$A$3-1,GZ8),Feriados,1,0)))),TRUE,FALSE),FALSE)","v":false},{"$f":"IFERROR(IF(AND(VLOOKUP(HA9,'Fiestas y días laborables'!$D$3:$E$9,2,0)=\"Si\",NOT(ISNUMBER(VLOOKUP(DATE($A$4,$A$5+$A$3-1,HA8),Feriados,1,0)))),TRUE,FALSE),FALSE)","v":false},{"$f":"IFERROR(IF(AND(VLOOKUP(HB9,'Fiestas y días laborables'!$D$3:$E$9,2,0)=\"Si\",NOT(ISNUMBER(VLOOKUP(DATE($A$4,$A$5+$A$3-1,HB8),Feriados,1,0)))),TRUE,FALSE),FALSE)","v":false},{"$f":"IFERROR(IF(AND(VLOOKUP(HC9,'Fiestas y días laborables'!$D$3:$E$9,2,0)=\"Si\",NOT(ISNUMBER(VLOOKUP(DATE($A$4,$A$5+$A$3-1,HC8),Feriados,1,0)))),TRUE,FALSE),FALSE)","v":false},{"$f":"IFERROR(IF(AND(VLOOKUP(HD9,'Fiestas y días laborables'!$D$3:$E$9,2,0)=\"Si\",NOT(ISNUMBER(VLOOKUP(DATE($A$4,$A$5+$A$3-1,HD8),Feriados,1,0)))),TRUE,FALSE),FALSE)","v":false},{"$f":"IFERROR(IF(AND(VLOOKUP(HE9,'Fiestas y días laborables'!$D$3:$E$9,2,0)=\"Si\",NOT(ISNUMBER(VLOOKUP(DATE($A$4,$A$5+$A$3-1,HE8),Feriados,1,0)))),TRUE,FALSE),FALSE)","v":false},{"$f":"IFERROR(IF(AND(VLOOKUP(HF9,'Fiestas y días laborables'!$D$3:$E$9,2,0)=\"Si\",NOT(ISNUMBER(VLOOKUP(DATE($A$4,$A$5+$A$3-1,HF8),Feriados,1,0)))),TRUE,FALSE),FALSE)","v":false},{"$f":"IFERROR(IF(AND(VLOOKUP(HG9,'Fiestas y días laborables'!$D$3:$E$9,2,0)=\"Si\",NOT(ISNUMBER(VLOOKUP(DATE($A$4,$A$5+$A$3-1,HG8),Feriados,1,0)))),TRUE,FALSE),FALSE)","v":false},{"$f":"IFERROR(IF(AND(VLOOKUP(HH9,'Fiestas y días laborables'!$D$3:$E$9,2,0)=\"Si\",NOT(ISNUMBER(VLOOKUP(DATE($A$4,$A$5+$A$3-1,HH8),Feriados,1,0)))),TRUE,FALSE),FALSE)","v":false},{"$f":"IFERROR(IF(AND(VLOOKUP(HI9,'Fiestas y días laborables'!$D$3:$E$9,2,0)=\"Si\",NOT(ISNUMBER(VLOOKUP(DATE($A$4,$A$5+$A$3-1,HI8),Feriados,1,0)))),TRUE,FALSE),FALSE)","v":false},{"$f":"IFERROR(IF(AND(VLOOKUP(HJ9,'Fiestas y días laborables'!$D$3:$E$9,2,0)=\"Si\",NOT(ISNUMBER(VLOOKUP(DATE($A$4,$A$5+$A$3-1,HJ8),Feriados,1,0)))),TRUE,FALSE),FALSE)","v":false},{"$f":"IFERROR(IF(AND(VLOOKUP(HK9,'Fiestas y días laborables'!$D$3:$E$9,2,0)=\"Si\",NOT(ISNUMBER(VLOOKUP(DATE($A$4,$A$5+$A$3-1,HK8),Feriados,1,0)))),TRUE,FALSE),FALSE)","v":false},{"$f":"IFERROR(IF(AND(VLOOKUP(HL9,'Fiestas y días laborables'!$D$3:$E$9,2,0)=\"Si\",NOT(ISNUMBER(VLOOKUP(DATE($A$4,$A$5+$A$3-1,HL8),Feriados,1,0)))),TRUE,FALSE),FALSE)","v":false},{"$f":"IFERROR(IF(AND(VLOOKUP(HM9,'Fiestas y días laborables'!$D$3:$E$9,2,0)=\"Si\",NOT(ISNUMBER(VLOOKUP(DATE($A$4,$A$5+$A$3-1,HM8),Feriados,1,0)))),TRUE,FALSE),FALSE)","v":false},{"$f":"IFERROR(IF(AND(VLOOKUP(HN9,'Fiestas y días laborables'!$D$3:$E$9,2,0)=\"Si\",NOT(ISNUMBER(VLOOKUP(DATE($A$4,$A$5+$A$3-1,HN8),Feriados,1,0)))),TRUE,FALSE),FALSE)","v":false},{"$f":"IFERROR(IF(AND(VLOOKUP(HO9,'Fiestas y días laborables'!$D$3:$E$9,2,0)=\"Si\",NOT(ISNUMBER(VLOOKUP(DATE($A$4,$A$5+$A$3-1,HO8),Feriados,1,0)))),TRUE,FALSE),FALSE)","v":false},{"$f":"IFERROR(IF(AND(VLOOKUP(HP9,'Fiestas y días laborables'!$D$3:$E$9,2,0)=\"Si\",NOT(ISNUMBER(VLOOKUP(DATE($A$4,$A$5+$A$3-1,HP8),Feriados,1,0)))),TRUE,FALSE),FALSE)","v":false},{"$f":"IFERROR(IF(AND(VLOOKUP(HQ9,'Fiestas y días laborables'!$D$3:$E$9,2,0)=\"Si\",NOT(ISNUMBER(VLOOKUP(DATE($A$4,$A$5+$A$3-1,HQ8),Feriados,1,0)))),TRUE,FALSE),FALSE)","v":false},{"$f":"IFERROR(IF(AND(VLOOKUP(HR9,'Fiestas y días laborables'!$D$3:$E$9,2,0)=\"Si\",NOT(ISNUMBER(VLOOKUP(DATE($A$4,$A$5+$A$3-1,HR8),Feriados,1,0)))),TRUE,FALSE),FALSE)","v":false},{"$f":"IFERROR(IF(AND(VLOOKUP(HS9,'Fiestas y días laborables'!$D$3:$E$9,2,0)=\"Si\",NOT(ISNUMBER(VLOOKUP(DATE($A$4,$A$5+$A$3-1,HS8),Feriados,1,0)))),TRUE,FALSE),FALSE)","v":false},{"$f":"IFERROR(IF(AND(VLOOKUP(HT9,'Fiestas y días laborables'!$D$3:$E$9,2,0)=\"Si\",NOT(ISNUMBER(VLOOKUP(DATE($A$4,$A$5+$A$3-1,HT8),Feriados,1,0)))),TRUE,FALSE),FALSE)","v":false},{"$f":"IFERROR(IF(AND(VLOOKUP(HU9,'Fiestas y días laborables'!$D$3:$E$9,2,0)=\"Si\",NOT(ISNUMBER(VLOOKUP(DATE($A$4,$A$5+$A$3-1,HU8),Feriados,1,0)))),TRUE,FALSE),FALSE)","v":false},{"$f":"IFERROR(IF(AND(VLOOKUP(HV9,'Fiestas y días laborables'!$D$3:$E$9,2,0)=\"Si\",NOT(ISNUMBER(VLOOKUP(DATE($A$4,$A$5+$A$3-1,HV8),Feriados,1,0)))),TRUE,FALSE),FALSE)","v":false},{"$f":"IFERROR(IF(AND(VLOOKUP(HW9,'Fiestas y días laborables'!$D$3:$E$9,2,0)=\"Si\",NOT(ISNUMBER(VLOOKUP(DATE($A$4,$A$5+$A$3-1,HW8),Feriados,1,0)))),TRUE,FALSE),FALSE)","v":false},{"$f":"IFERROR(IF(AND(VLOOKUP(HX9,'Fiestas y días laborables'!$D$3:$E$9,2,0)=\"Si\",NOT(ISNUMBER(VLOOKUP(DATE($A$4,$A$5+$A$3-1,HX8),Feriados,1,0)))),TRUE,FALSE),FALSE)","v":false},{"$f":"IFERROR(IF(AND(VLOOKUP(HY9,'Fiestas y días laborables'!$D$3:$E$9,2,0)=\"Si\",NOT(ISNUMBER(VLOOKUP(DATE($A$4,$A$5+$A$3-1,HY8),Feriados,1,0)))),TRUE,FALSE),FALSE)","v":false},{"$f":"IFERROR(IF(AND(VLOOKUP(HZ9,'Fiestas y días laborables'!$D$3:$E$9,2,0)=\"Si\",NOT(ISNUMBER(VLOOKUP(DATE($A$4,$A$5+$A$3-1,HZ8),Feriados,1,0)))),TRUE,FALSE),FALSE)","v":false},{"$f":"IFERROR(IF(AND(VLOOKUP(IA9,'Fiestas y días laborables'!$D$3:$E$9,2,0)=\"Si\",NOT(ISNUMBER(VLOOKUP(DATE($A$4,$A$5+$A$3-1,IA8),Feriados,1,0)))),TRUE,FALSE),FALSE)","v":false},{"$f":"IFERROR(IF(AND(VLOOKUP(IB9,'Fiestas y días laborables'!$D$3:$E$9,2,0)=\"Si\",NOT(ISNUMBER(VLOOKUP(DATE($A$4,$A$5+$A$3-1,IB8),Feriados,1,0)))),TRUE,FALSE),FALSE)","v":false},{"$f":"IFERROR(IF(AND(VLOOKUP(IC9,'Fiestas y días laborables'!$D$3:$E$9,2,0)=\"Si\",NOT(ISNUMBER(VLOOKUP(DATE($A$4,$A$5+$A$3-1,IC8),Feriados,1,0)))),TRUE,FALSE),FALSE)","v":false},{"$f":"IFERROR(IF(AND(VLOOKUP(ID9,'Fiestas y días laborables'!$D$3:$E$9,2,0)=\"Si\",NOT(ISNUMBER(VLOOKUP(DATE($A$4,$A$5+$A$3-1,ID8),Feriados,1,0)))),TRUE,FALSE),FALSE)","v":false},{"$f":"IFERROR(IF(AND(VLOOKUP(IE9,'Fiestas y días laborables'!$D$3:$E$9,2,0)=\"Si\",NOT(ISNUMBER(VLOOKUP(DATE($A$4,$A$5+$A$3-1,IE8),Feriados,1,0)))),TRUE,FALSE),FALSE)","v":false},{"$f":"IFERROR(IF(AND(VLOOKUP(IF9,'Fiestas y días laborables'!$D$3:$E$9,2,0)=\"Si\",NOT(ISNUMBER(VLOOKUP(DATE($A$4,$A$5+$A$3-1,IF8),Feriados,1,0)))),TRUE,FALSE),FALSE)","v":false},{"$f":"IFERROR(IF(AND(VLOOKUP(IG9,'Fiestas y días laborables'!$D$3:$E$9,2,0)=\"Si\",NOT(ISNUMBER(VLOOKUP(DATE($A$4,$A$5+$A$3-1,IG8),Feriados,1,0)))),TRUE,FALSE),FALSE)","v":false},{"$f":"IFERROR(IF(AND(VLOOKUP(IH9,'Fiestas y días laborables'!$D$3:$E$9,2,0)=\"Si\",NOT(ISNUMBER(VLOOKUP(DATE($A$4,$A$5+$A$3-1,IH8),Feriados,1,0)))),TRUE,FALSE),FALSE)","v":false},{"$f":"IFERROR(IF(AND(VLOOKUP(II9,'Fiestas y días laborables'!$D$3:$E$9,2,0)=\"Si\",NOT(ISNUMBER(VLOOKUP(DATE($A$4,$A$5+$A$3-1,II8),Feriados,1,0)))),TRUE,FALSE),FALSE)","v":false},{"$f":"IFERROR(IF(AND(VLOOKUP(IJ9,'Fiestas y días laborables'!$D$3:$E$9,2,0)=\"Si\",NOT(ISNUMBER(VLOOKUP(DATE($A$4,$A$5+$A$3-1,IJ8),Feriados,1,0)))),TRUE,FALSE),FALSE)","v":false},{"$f":"IFERROR(IF(AND(VLOOKUP(IK9,'Fiestas y días laborables'!$D$3:$E$9,2,0)=\"Si\",NOT(ISNUMBER(VLOOKUP(DATE($A$4,$A$5+$A$3-1,IK8),Feriados,1,0)))),TRUE,FALSE),FALSE)","v":false},{"$f":"IFERROR(IF(AND(VLOOKUP(IL9,'Fiestas y días laborables'!$D$3:$E$9,2,0)=\"Si\",NOT(ISNUMBER(VLOOKUP(DATE($A$4,$A$5+$A$3-1,IL8),Feriados,1,0)))),TRUE,FALSE),FALSE)","v":false},{"$f":"IFERROR(IF(AND(VLOOKUP(IM9,'Fiestas y días laborables'!$D$3:$E$9,2,0)=\"Si\",NOT(ISNUMBER(VLOOKUP(DATE($A$4,$A$5+$A$3-1,IM8),Feriados,1,0)))),TRUE,FALSE),FALSE)","v":false},{"$f":"IFERROR(IF(AND(VLOOKUP(IN9,'Fiestas y días laborables'!$D$3:$E$9,2,0)=\"Si\",NOT(ISNUMBER(VLOOKUP(DATE($A$4,$A$5+$A$3-1,IN8),Feriados,1,0)))),TRUE,FALSE),FALSE)","v":false},{"$f":"IFERROR(IF(AND(VLOOKUP(IO9,'Fiestas y días laborables'!$D$3:$E$9,2,0)=\"Si\",NOT(ISNUMBER(VLOOKUP(DATE($A$4,$A$5+$A$3-1,IO8),Feriados,1,0)))),TRUE,FALSE),FALSE)","v":false},{"$f":"IFERROR(IF(AND(VLOOKUP(IP9,'Fiestas y días laborables'!$D$3:$E$9,2,0)=\"Si\",NOT(ISNUMBER(VLOOKUP(DATE($A$4,$A$5+$A$3-1,IP8),Feriados,1,0)))),TRUE,FALSE),FALSE)","v":false},{"$f":"IFERROR(IF(AND(VLOOKUP(IQ9,'Fiestas y días laborables'!$D$3:$E$9,2,0)=\"Si\",NOT(ISNUMBER(VLOOKUP(DATE($A$4,$A$5+$A$3-1,IQ8),Feriados,1,0)))),TRUE,FALSE),FALSE)","v":false},{"$f":"IFERROR(IF(AND(VLOOKUP(IR9,'Fiestas y días laborables'!$D$3:$E$9,2,0)=\"Si\",NOT(ISNUMBER(VLOOKUP(DATE($A$4,$A$5+$A$3-1,IR8),Feriados,1,0)))),TRUE,FALSE),FALSE)","v":false},{"$f":"IFERROR(IF(AND(VLOOKUP(IS9,'Fiestas y días laborables'!$D$3:$E$9,2,0)=\"Si\",NOT(ISNUMBER(VLOOKUP(DATE($A$4,$A$5+$A$3-1,IS8),Feriados,1,0)))),TRUE,FALSE),FALSE)","v":false},{"$f":"IFERROR(IF(AND(VLOOKUP(IT9,'Fiestas y días laborables'!$D$3:$E$9,2,0)=\"Si\",NOT(ISNUMBER(VLOOKUP(DATE($A$4,$A$5+$A$3-1,IT8),Feriados,1,0)))),TRUE,FALSE),FALSE)","v":false},{"$f":"IFERROR(IF(AND(VLOOKUP(IU9,'Fiestas y días laborables'!$D$3:$E$9,2,0)=\"Si\",NOT(ISNUMBER(VLOOKUP(DATE($A$4,$A$5+$A$3-1,IU8),Feriados,1,0)))),TRUE,FALSE),FALSE)","v":false},{"$f":"IFERROR(IF(AND(VLOOKUP(IV9,'Fiestas y días laborables'!$D$3:$E$9,2,0)=\"Si\",NOT(ISNUMBER(VLOOKUP(DATE($A$4,$A$5+$A$3-1,IV8),Feriados,1,0)))),TRUE,FALSE),FALSE)","v":false},{"$f":"IFERROR(IF(AND(VLOOKUP(IW9,'Fiestas y días laborables'!$D$3:$E$9,2,0)=\"Si\",NOT(ISNUMBER(VLOOKUP(DATE($A$4,$A$5+$A$3-1,IW8),Feriados,1,0)))),TRUE,FALSE),FALSE)","v":false},{"$f":"IFERROR(IF(AND(VLOOKUP(IX9,'Fiestas y días laborables'!$D$3:$E$9,2,0)=\"Si\",NOT(ISNUMBER(VLOOKUP(DATE($A$4,$A$5+$A$3-1,IX8),Feriados,1,0)))),TRUE,FALSE),FALSE)","v":false},{"$f":"IFERROR(IF(AND(VLOOKUP(IY9,'Fiestas y días laborables'!$D$3:$E$9,2,0)=\"Si\",NOT(ISNUMBER(VLOOKUP(DATE($A$4,$A$5+$A$3-1,IY8),Feriados,1,0)))),TRUE,FALSE),FALSE)","v":false},{"$f":"IFERROR(IF(AND(VLOOKUP(IZ9,'Fiestas y días laborables'!$D$3:$E$9,2,0)=\"Si\",NOT(ISNUMBER(VLOOKUP(DATE($A$4,$A$5+$A$3-1,IZ8),Feriados,1,0)))),TRUE,FALSE),FALSE)","v":false},{"$f":"IFERROR(IF(AND(VLOOKUP(JA9,'Fiestas y días laborables'!$D$3:$E$9,2,0)=\"Si\",NOT(ISNUMBER(VLOOKUP(DATE($A$4,$A$5+$A$3-1,JA8),Feriados,1,0)))),TRUE,FALSE),FALSE)","v":false},{"$f":"IFERROR(IF(AND(VLOOKUP(JB9,'Fiestas y días laborables'!$D$3:$E$9,2,0)=\"Si\",NOT(ISNUMBER(VLOOKUP(DATE($A$4,$A$5+$A$3-1,JB8),Feriados,1,0)))),TRUE,FALSE),FALSE)","v":false},{"$f":"IFERROR(IF(AND(VLOOKUP(JC9,'Fiestas y días laborables'!$D$3:$E$9,2,0)=\"Si\",NOT(ISNUMBER(VLOOKUP(DATE($A$4,$A$5+$A$3-1,JC8),Feriados,1,0)))),TRUE,FALSE),FALSE)","v":false},{"$f":"IFERROR(IF(AND(VLOOKUP(JD9,'Fiestas y días laborables'!$D$3:$E$9,2,0)=\"Si\",NOT(ISNUMBER(VLOOKUP(DATE($A$4,$A$5+$A$3-1,JD8),Feriados,1,0)))),TRUE,FALSE),FALSE)","v":false},{"$f":"IFERROR(IF(AND(VLOOKUP(JE9,'Fiestas y días laborables'!$D$3:$E$9,2,0)=\"Si\",NOT(ISNUMBER(VLOOKUP(DATE($A$4,$A$5+$A$3-1,JE8),Feriados,1,0)))),TRUE,FALSE),FALSE)","v":false},{"$f":"IFERROR(IF(AND(VLOOKUP(JF9,'Fiestas y días laborables'!$D$3:$E$9,2,0)=\"Si\",NOT(ISNUMBER(VLOOKUP(DATE($A$4,$A$5+$A$3-1,JF8),Feriados,1,0)))),TRUE,FALSE),FALSE)","v":false},{"$f":"IFERROR(IF(AND(VLOOKUP(JG9,'Fiestas y días laborables'!$D$3:$E$9,2,0)=\"Si\",NOT(ISNUMBER(VLOOKUP(DATE($A$4,$A$5+$A$3-1,JG8),Feriados,1,0)))),TRUE,FALSE),FALSE)","v":false},{"$f":"IFERROR(IF(AND(VLOOKUP(JH9,'Fiestas y días laborables'!$D$3:$E$9,2,0)=\"Si\",NOT(ISNUMBER(VLOOKUP(DATE($A$4,$A$5+$A$3-1,JH8),Feriados,1,0)))),TRUE,FALSE),FALSE)","v":false},{"$f":"IFERROR(IF(AND(VLOOKUP(JI9,'Fiestas y días laborables'!$D$3:$E$9,2,0)=\"Si\",NOT(ISNUMBER(VLOOKUP(DATE($A$4,$A$5+$A$3-1,JI8),Feriados,1,0)))),TRUE,FALSE),FALSE)","v":false},{"$f":"IFERROR(IF(AND(VLOOKUP(JJ9,'Fiestas y días laborables'!$D$3:$E$9,2,0)=\"Si\",NOT(ISNUMBER(VLOOKUP(DATE($A$4,$A$5+$A$3-1,JJ8),Feriados,1,0)))),TRUE,FALSE),FALSE)","v":false},{"$f":"IFERROR(IF(AND(VLOOKUP(JK9,'Fiestas y días laborables'!$D$3:$E$9,2,0)=\"Si\",NOT(ISNUMBER(VLOOKUP(DATE($A$4,$A$5+$A$3-1,JK8),Feriados,1,0)))),TRUE,FALSE),FALSE)","v":false},{"$f":"IFERROR(IF(AND(VLOOKUP(JL9,'Fiestas y días laborables'!$D$3:$E$9,2,0)=\"Si\",NOT(ISNUMBER(VLOOKUP(DATE($A$4,$A$5+$A$3-1,JL8),Feriados,1,0)))),TRUE,FALSE),FALSE)","v":false},{"$f":"IFERROR(IF(AND(VLOOKUP(JM9,'Fiestas y días laborables'!$D$3:$E$9,2,0)=\"Si\",NOT(ISNUMBER(VLOOKUP(DATE($A$4,$A$5+$A$3-1,JM8),Feriados,1,0)))),TRUE,FALSE),FALSE)","v":false},{"$f":"IFERROR(IF(AND(VLOOKUP(JN9,'Fiestas y días laborables'!$D$3:$E$9,2,0)=\"Si\",NOT(ISNUMBER(VLOOKUP(DATE($A$4,$A$5+$A$3-1,JN8),Feriados,1,0)))),TRUE,FALSE),FALSE)","v":false},{"$f":"IFERROR(IF(AND(VLOOKUP(JO9,'Fiestas y días laborables'!$D$3:$E$9,2,0)=\"Si\",NOT(ISNUMBER(VLOOKUP(DATE($A$4,$A$5+$A$3-1,JO8),Feriados,1,0)))),TRUE,FALSE),FALSE)","v":false},{"$f":"IFERROR(IF(AND(VLOOKUP(JP9,'Fiestas y días laborables'!$D$3:$E$9,2,0)=\"Si\",NOT(ISNUMBER(VLOOKUP(DATE($A$4,$A$5+$A$3-1,JP8),Feriados,1,0)))),TRUE,FALSE),FALSE)","v":false},{"$f":"IFERROR(IF(AND(VLOOKUP(JQ9,'Fiestas y días laborables'!$D$3:$E$9,2,0)=\"Si\",NOT(ISNUMBER(VLOOKUP(DATE($A$4,$A$5+$A$3-1,JQ8),Feriados,1,0)))),TRUE,FALSE),FALSE)","v":false},{"$f":"IFERROR(IF(AND(VLOOKUP(JR9,'Fiestas y días laborables'!$D$3:$E$9,2,0)=\"Si\",NOT(ISNUMBER(VLOOKUP(DATE($A$4,$A$5+$A$3-1,JR8),Feriados,1,0)))),TRUE,FALSE),FALSE)","v":false},{"$f":"IFERROR(IF(AND(VLOOKUP(JS9,'Fiestas y días laborables'!$D$3:$E$9,2,0)=\"Si\",NOT(ISNUMBER(VLOOKUP(DATE($A$4,$A$5+$A$3-1,JS8),Feriados,1,0)))),TRUE,FALSE),FALSE)","v":false},{"$f":"IFERROR(IF(AND(VLOOKUP(JT9,'Fiestas y días laborables'!$D$3:$E$9,2,0)=\"Si\",NOT(ISNUMBER(VLOOKUP(DATE($A$4,$A$5+$A$3-1,JT8),Feriados,1,0)))),TRUE,FALSE),FALSE)","v":false},{"$f":"IFERROR(IF(AND(VLOOKUP(JU9,'Fiestas y días laborables'!$D$3:$E$9,2,0)=\"Si\",NOT(ISNUMBER(VLOOKUP(DATE($A$4,$A$5+$A$3-1,JU8),Feriados,1,0)))),TRUE,FALSE),FALSE)","v":false},{"$f":"IFERROR(IF(AND(VLOOKUP(JV9,'Fiestas y días laborables'!$D$3:$E$9,2,0)=\"Si\",NOT(ISNUMBER(VLOOKUP(DATE($A$4,$A$5+$A$3-1,JV8),Feriados,1,0)))),TRUE,FALSE),FALSE)","v":false},{"$f":"IFERROR(IF(AND(VLOOKUP(JW9,'Fiestas y días laborables'!$D$3:$E$9,2,0)=\"Si\",NOT(ISNUMBER(VLOOKUP(DATE($A$4,$A$5+$A$3-1,JW8),Feriados,1,0)))),TRUE,FALSE),FALSE)","v":false},{"$f":"IFERROR(IF(AND(VLOOKUP(JX9,'Fiestas y días laborables'!$D$3:$E$9,2,0)=\"Si\",NOT(ISNUMBER(VLOOKUP(DATE($A$4,$A$5+$A$3-1,JX8),Feriados,1,0)))),TRUE,FALSE),FALSE)","v":false},{"$f":"IFERROR(IF(AND(VLOOKUP(JY9,'Fiestas y días laborables'!$D$3:$E$9,2,0)=\"Si\",NOT(ISNUMBER(VLOOKUP(DATE($A$4,$A$5+$A$3-1,JY8),Feriados,1,0)))),TRUE,FALSE),FALSE)","v":false},{"$f":"IFERROR(IF(AND(VLOOKUP(JZ9,'Fiestas y días laborables'!$D$3:$E$9,2,0)=\"Si\",NOT(ISNUMBER(VLOOKUP(DATE($A$4,$A$5+$A$3-1,JZ8),Feriados,1,0)))),TRUE,FALSE),FALSE)","v":false},{"$f":"IFERROR(IF(AND(VLOOKUP(KA9,'Fiestas y días laborables'!$D$3:$E$9,2,0)=\"Si\",NOT(ISNUMBER(VLOOKUP(DATE($A$4,$A$5+$A$3-1,KA8),Feriados,1,0)))),TRUE,FALSE),FALSE)","v":false},{"$f":"IFERROR(IF(AND(VLOOKUP(KB9,'Fiestas y días laborables'!$D$3:$E$9,2,0)=\"Si\",NOT(ISNUMBER(VLOOKUP(DATE($A$4,$A$5+$A$3-1,KB8),Feriados,1,0)))),TRUE,FALSE),FALSE)","v":false},{"$f":"IFERROR(IF(AND(VLOOKUP(KC9,'Fiestas y días laborables'!$D$3:$E$9,2,0)=\"Si\",NOT(ISNUMBER(VLOOKUP(DATE($A$4,$A$5+$A$3-1,KC8),Feriados,1,0)))),TRUE,FALSE),FALSE)","v":false},{"$f":"IFERROR(IF(AND(VLOOKUP(KD9,'Fiestas y días laborables'!$D$3:$E$9,2,0)=\"Si\",NOT(ISNUMBER(VLOOKUP(DATE($A$4,$A$5+$A$3-1,KD8),Feriados,1,0)))),TRUE,FALSE),FALSE)","v":false},{"$f":"IFERROR(IF(AND(VLOOKUP(KE9,'Fiestas y días laborables'!$D$3:$E$9,2,0)=\"Si\",NOT(ISNUMBER(VLOOKUP(DATE($A$4,$A$5+$A$3-1,KE8),Feriados,1,0)))),TRUE,FALSE),FALSE)","v":false},{"$f":"IFERROR(IF(AND(VLOOKUP(KF9,'Fiestas y días laborables'!$D$3:$E$9,2,0)=\"Si\",NOT(ISNUMBER(VLOOKUP(DATE($A$4,$A$5+$A$3-1,KF8),Feriados,1,0)))),TRUE,FALSE),FALSE)","v":false},{"$f":"IFERROR(IF(AND(VLOOKUP(KG9,'Fiestas y días laborables'!$D$3:$E$9,2,0)=\"Si\",NOT(ISNUMBER(VLOOKUP(DATE($A$4,$A$5+$A$3-1,KG8),Feriados,1,0)))),TRUE,FALSE),FALSE)","v":false},{"$f":"IFERROR(IF(AND(VLOOKUP(KH9,'Fiestas y días laborables'!$D$3:$E$9,2,0)=\"Si\",NOT(ISNUMBER(VLOOKUP(DATE($A$4,$A$5+$A$3-1,KH8),Feriados,1,0)))),TRUE,FALSE),FALSE)","v":false},{"$f":"IFERROR(IF(AND(VLOOKUP(KI9,'Fiestas y días laborables'!$D$3:$E$9,2,0)=\"Si\",NOT(ISNUMBER(VLOOKUP(DATE($A$4,$A$5+$A$3-1,KI8),Feriados,1,0)))),TRUE,FALSE),FALSE)","v":false},{"$f":"IFERROR(IF(AND(VLOOKUP(KJ9,'Fiestas y días laborables'!$D$3:$E$9,2,0)=\"Si\",NOT(ISNUMBER(VLOOKUP(DATE($A$4,$A$5+$A$3-1,KJ8),Feriados,1,0)))),TRUE,FALSE),FALSE)","v":false},{"$f":"IFERROR(IF(AND(VLOOKUP(KK9,'Fiestas y días laborables'!$D$3:$E$9,2,0)=\"Si\",NOT(ISNUMBER(VLOOKUP(DATE($A$4,$A$5+$A$3-1,KK8),Feriados,1,0)))),TRUE,FALSE),FALSE)","v":false},{"$f":"IFERROR(IF(AND(VLOOKUP(KL9,'Fiestas y días laborables'!$D$3:$E$9,2,0)=\"Si\",NOT(ISNUMBER(VLOOKUP(DATE($A$4,$A$5+$A$3-1,KL8),Feriados,1,0)))),TRUE,FALSE),FALSE)","v":false},{"$f":"IFERROR(IF(AND(VLOOKUP(KM9,'Fiestas y días laborables'!$D$3:$E$9,2,0)=\"Si\",NOT(ISNUMBER(VLOOKUP(DATE($A$4,$A$5+$A$3-1,KM8),Feriados,1,0)))),TRUE,FALSE),FALSE)","v":false},{"$f":"IFERROR(IF(AND(VLOOKUP(KN9,'Fiestas y días laborables'!$D$3:$E$9,2,0)=\"Si\",NOT(ISNUMBER(VLOOKUP(DATE($A$4,$A$5+$A$3-1,KN8),Feriados,1,0)))),TRUE,FALSE),FALSE)","v":false},{"$f":"IFERROR(IF(AND(VLOOKUP(KO9,'Fiestas y días laborables'!$D$3:$E$9,2,0)=\"Si\",NOT(ISNUMBER(VLOOKUP(DATE($A$4,$A$5+$A$3-1,KO8),Feriados,1,0)))),TRUE,FALSE),FALSE)","v":false},{"$f":"IFERROR(IF(AND(VLOOKUP(KP9,'Fiestas y días laborables'!$D$3:$E$9,2,0)=\"Si\",NOT(ISNUMBER(VLOOKUP(DATE($A$4,$A$5+$A$3-1,KP8),Feriados,1,0)))),TRUE,FALSE),FALSE)","v":false},{"$f":"IFERROR(IF(AND(VLOOKUP(KQ9,'Fiestas y días laborables'!$D$3:$E$9,2,0)=\"Si\",NOT(ISNUMBER(VLOOKUP(DATE($A$4,$A$5+$A$3-1,KQ8),Feriados,1,0)))),TRUE,FALSE),FALSE)","v":false},{"$f":"IFERROR(IF(AND(VLOOKUP(KR9,'Fiestas y días laborables'!$D$3:$E$9,2,0)=\"Si\",NOT(ISNUMBER(VLOOKUP(DATE($A$4,$A$5+$A$3-1,KR8),Feriados,1,0)))),TRUE,FALSE),FALSE)","v":false},{"$f":"IFERROR(IF(AND(VLOOKUP(KS9,'Fiestas y días laborables'!$D$3:$E$9,2,0)=\"Si\",NOT(ISNUMBER(VLOOKUP(DATE($A$4,$A$5+$A$3-1,KS8),Feriados,1,0)))),TRUE,FALSE),FALSE)","v":false},{"$f":"IFERROR(IF(AND(VLOOKUP(KT9,'Fiestas y días laborables'!$D$3:$E$9,2,0)=\"Si\",NOT(ISNUMBER(VLOOKUP(DATE($A$4,$A$5+$A$3-1,KT8),Feriados,1,0)))),TRUE,FALSE),FALSE)","v":false},{"$f":"IFERROR(IF(AND(VLOOKUP(KU9,'Fiestas y días laborables'!$D$3:$E$9,2,0)=\"Si\",NOT(ISNUMBER(VLOOKUP(DATE($A$4,$A$5+$A$3-1,KU8),Feriados,1,0)))),TRUE,FALSE),FALSE)","v":false},{"$f":"IFERROR(IF(AND(VLOOKUP(KV9,'Fiestas y días laborables'!$D$3:$E$9,2,0)=\"Si\",NOT(ISNUMBER(VLOOKUP(DATE($A$4,$A$5+$A$3-1,KV8),Feriados,1,0)))),TRUE,FALSE),FALSE)","v":false},{"$f":"IFERROR(IF(AND(VLOOKUP(KW9,'Fiestas y días laborables'!$D$3:$E$9,2,0)=\"Si\",NOT(ISNUMBER(VLOOKUP(DATE($A$4,$A$5+$A$3-1,KW8),Feriados,1,0)))),TRUE,FALSE),FALSE)","v":false},{"$f":"IFERROR(IF(AND(VLOOKUP(KX9,'Fiestas y días laborables'!$D$3:$E$9,2,0)=\"Si\",NOT(ISNUMBER(VLOOKUP(DATE($A$4,$A$5+$A$3-1,KX8),Feriados,1,0)))),TRUE,FALSE),FALSE)","v":false},{"$f":"IFERROR(IF(AND(VLOOKUP(KY9,'Fiestas y días laborables'!$D$3:$E$9,2,0)=\"Si\",NOT(ISNUMBER(VLOOKUP(DATE($A$4,$A$5+$A$3-1,KY8),Feriados,1,0)))),TRUE,FALSE),FALSE)","v":false},{"$f":"IFERROR(IF(AND(VLOOKUP(KZ9,'Fiestas y días laborables'!$D$3:$E$9,2,0)=\"Si\",NOT(ISNUMBER(VLOOKUP(DATE($A$4,$A$5+$A$3-1,KZ8),Feriados,1,0)))),TRUE,FALSE),FALSE)","v":false},{"$f":"IFERROR(IF(AND(VLOOKUP(LA9,'Fiestas y días laborables'!$D$3:$E$9,2,0)=\"Si\",NOT(ISNUMBER(VLOOKUP(DATE($A$4,$A$5+$A$3-1,LA8),Feriados,1,0)))),TRUE,FALSE),FALSE)","v":false},{"$f":"IFERROR(IF(AND(VLOOKUP(LB9,'Fiestas y días laborables'!$D$3:$E$9,2,0)=\"Si\",NOT(ISNUMBER(VLOOKUP(DATE($A$4,$A$5+$A$3-1,LB8),Feriados,1,0)))),TRUE,FALSE),FALSE)","v":false},{"$f":"IFERROR(IF(AND(VLOOKUP(LC9,'Fiestas y días laborables'!$D$3:$E$9,2,0)=\"Si\",NOT(ISNUMBER(VLOOKUP(DATE($A$4,$A$5+$A$3-1,LC8),Feriados,1,0)))),TRUE,FALSE),FALSE)","v":false},{"$f":"IFERROR(IF(AND(VLOOKUP(LD9,'Fiestas y días laborables'!$D$3:$E$9,2,0)=\"Si\",NOT(ISNUMBER(VLOOKUP(DATE($A$4,$A$5+$A$3-1,LD8),Feriados,1,0)))),TRUE,FALSE),FALSE)","v":false},{"$f":"IFERROR(IF(AND(VLOOKUP(LE9,'Fiestas y días laborables'!$D$3:$E$9,2,0)=\"Si\",NOT(ISNUMBER(VLOOKUP(DATE($A$4,$A$5+$A$3-1,LE8),Feriados,1,0)))),TRUE,FALSE),FALSE)","v":false},{"$f":"IFERROR(IF(AND(VLOOKUP(LF9,'Fiestas y días laborables'!$D$3:$E$9,2,0)=\"Si\",NOT(ISNUMBER(VLOOKUP(DATE($A$4,$A$5+$A$3-1,LF8),Feriados,1,0)))),TRUE,FALSE),FALSE)","v":false},{"$f":"IFERROR(IF(AND(VLOOKUP(LG9,'Fiestas y días laborables'!$D$3:$E$9,2,0)=\"Si\",NOT(ISNUMBER(VLOOKUP(DATE($A$4,$A$5+$A$3-1,LG8),Feriados,1,0)))),TRUE,FALSE),FALSE)","v":false},{"$f":"IFERROR(IF(AND(VLOOKUP(LH9,'Fiestas y días laborables'!$D$3:$E$9,2,0)=\"Si\",NOT(ISNUMBER(VLOOKUP(DATE($A$4,$A$5+$A$3-1,LH8),Feriados,1,0)))),TRUE,FALSE),FALSE)","v":false},{"$f":"IFERROR(IF(AND(VLOOKUP(LI9,'Fiestas y días laborables'!$D$3:$E$9,2,0)=\"Si\",NOT(ISNUMBER(VLOOKUP(DATE($A$4,$A$5+$A$3-1,LI8),Feriados,1,0)))),TRUE,FALSE),FALSE)","v":false},{"$f":"IFERROR(IF(AND(VLOOKUP(LJ9,'Fiestas y días laborables'!$D$3:$E$9,2,0)=\"Si\",NOT(ISNUMBER(VLOOKUP(DATE($A$4,$A$5+$A$3-1,LJ8),Feriados,1,0)))),TRUE,FALSE),FALSE)","v":false},{"$f":"IFERROR(IF(AND(VLOOKUP(LK9,'Fiestas y días laborables'!$D$3:$E$9,2,0)=\"Si\",NOT(ISNUMBER(VLOOKUP(DATE($A$4,$A$5+$A$3-1,LK8),Feriados,1,0)))),TRUE,FALSE),FALSE)","v":false},{"$f":"IFERROR(IF(AND(VLOOKUP(LL9,'Fiestas y días laborables'!$D$3:$E$9,2,0)=\"Si\",NOT(ISNUMBER(VLOOKUP(DATE($A$4,$A$5+$A$3-1,LL8),Feriados,1,0)))),TRUE,FALSE),FALSE)","v":false},{"$f":"IFERROR(IF(AND(VLOOKUP(LM9,'Fiestas y días laborables'!$D$3:$E$9,2,0)=\"Si\",NOT(ISNUMBER(VLOOKUP(DATE($A$4,$A$5+$A$3-1,LM8),Feriados,1,0)))),TRUE,FALSE),FALSE)","v":false},{"$f":"IFERROR(IF(AND(VLOOKUP(LN9,'Fiestas y días laborables'!$D$3:$E$9,2,0)=\"Si\",NOT(ISNUMBER(VLOOKUP(DATE($A$4,$A$5+$A$3-1,LN8),Feriados,1,0)))),TRUE,FALSE),FALSE)","v":false},{"$f":"IFERROR(IF(AND(VLOOKUP(LO9,'Fiestas y días laborables'!$D$3:$E$9,2,0)=\"Si\",NOT(ISNUMBER(VLOOKUP(DATE($A$4,$A$5+$A$3-1,LO8),Feriados,1,0)))),TRUE,FALSE),FALSE)","v":false},{"$f":"IFERROR(IF(AND(VLOOKUP(LP9,'Fiestas y días laborables'!$D$3:$E$9,2,0)=\"Si\",NOT(ISNUMBER(VLOOKUP(DATE($A$4,$A$5+$A$3-1,LP8),Feriados,1,0)))),TRUE,FALSE),FALSE)","v":false},{"$f":"IFERROR(IF(AND(VLOOKUP(LQ9,'Fiestas y días laborables'!$D$3:$E$9,2,0)=\"Si\",NOT(ISNUMBER(VLOOKUP(DATE($A$4,$A$5+$A$3-1,LQ8),Feriados,1,0)))),TRUE,FALSE),FALSE)","v":false},{"$f":"IFERROR(IF(AND(VLOOKUP(LR9,'Fiestas y días laborables'!$D$3:$E$9,2,0)=\"Si\",NOT(ISNUMBER(VLOOKUP(DATE($A$4,$A$5+$A$3-1,LR8),Feriados,1,0)))),TRUE,FALSE),FALSE)","v":false},{"$f":"IFERROR(IF(AND(VLOOKUP(LS9,'Fiestas y días laborables'!$D$3:$E$9,2,0)=\"Si\",NOT(ISNUMBER(VLOOKUP(DATE($A$4,$A$5+$A$3-1,LS8),Feriados,1,0)))),TRUE,FALSE),FALSE)","v":false},{"$f":"IFERROR(IF(AND(VLOOKUP(LT9,'Fiestas y días laborables'!$D$3:$E$9,2,0)=\"Si\",NOT(ISNUMBER(VLOOKUP(DATE($A$4,$A$5+$A$3-1,LT8),Feriados,1,0)))),TRUE,FALSE),FALSE)","v":false},{"$f":"IFERROR(IF(AND(VLOOKUP(LU9,'Fiestas y días laborables'!$D$3:$E$9,2,0)=\"Si\",NOT(ISNUMBER(VLOOKUP(DATE($A$4,$A$5+$A$3-1,LU8),Feriados,1,0)))),TRUE,FALSE),FALSE)","v":false},{"$f":"IFERROR(IF(AND(VLOOKUP(LV9,'Fiestas y días laborables'!$D$3:$E$9,2,0)=\"Si\",NOT(ISNUMBER(VLOOKUP(DATE($A$4,$A$5+$A$3-1,LV8),Feriados,1,0)))),TRUE,FALSE),FALSE)","v":false},{"$f":"IFERROR(IF(AND(VLOOKUP(LW9,'Fiestas y días laborables'!$D$3:$E$9,2,0)=\"Si\",NOT(ISNUMBER(VLOOKUP(DATE($A$4,$A$5+$A$3-1,LW8),Feriados,1,0)))),TRUE,FALSE),FALSE)","v":false},{"$f":"IFERROR(IF(AND(VLOOKUP(LX9,'Fiestas y días laborables'!$D$3:$E$9,2,0)=\"Si\",NOT(ISNUMBER(VLOOKUP(DATE($A$4,$A$5+$A$3-1,LX8),Feriados,1,0)))),TRUE,FALSE),FALSE)","v":false},{"$f":"IFERROR(IF(AND(VLOOKUP(LY9,'Fiestas y días laborables'!$D$3:$E$9,2,0)=\"Si\",NOT(ISNUMBER(VLOOKUP(DATE($A$4,$A$5+$A$3-1,LY8),Feriados,1,0)))),TRUE,FALSE),FALSE)","v":false},{"$f":"IFERROR(IF(AND(VLOOKUP(LZ9,'Fiestas y días laborables'!$D$3:$E$9,2,0)=\"Si\",NOT(ISNUMBER(VLOOKUP(DATE($A$4,$A$5+$A$3-1,LZ8),Feriados,1,0)))),TRUE,FALSE),FALSE)","v":false},{"$f":"IFERROR(IF(AND(VLOOKUP(MA9,'Fiestas y días laborables'!$D$3:$E$9,2,0)=\"Si\",NOT(ISNUMBER(VLOOKUP(DATE($A$4,$A$5+$A$3-1,MA8),Feriados,1,0)))),TRUE,FALSE),FALSE)","v":false},{"$f":"IFERROR(IF(AND(VLOOKUP(MB9,'Fiestas y días laborables'!$D$3:$E$9,2,0)=\"Si\",NOT(ISNUMBER(VLOOKUP(DATE($A$4,$A$5+$A$3-1,MB8),Feriados,1,0)))),TRUE,FALSE),FALSE)","v":false},{"$f":"IFERROR(IF(AND(VLOOKUP(MC9,'Fiestas y días laborables'!$D$3:$E$9,2,0)=\"Si\",NOT(ISNUMBER(VLOOKUP(DATE($A$4,$A$5+$A$3-1,MC8),Feriados,1,0)))),TRUE,FALSE),FALSE)","v":false},{"$f":"IFERROR(IF(AND(VLOOKUP(MD9,'Fiestas y días laborables'!$D$3:$E$9,2,0)=\"Si\",NOT(ISNUMBER(VLOOKUP(DATE($A$4,$A$5+$A$3-1,MD8),Feriados,1,0)))),TRUE,FALSE),FALSE)","v":false},{"$f":"IFERROR(IF(AND(VLOOKUP(ME9,'Fiestas y días laborables'!$D$3:$E$9,2,0)=\"Si\",NOT(ISNUMBER(VLOOKUP(DATE($A$4,$A$5+$A$3-1,ME8),Feriados,1,0)))),TRUE,FALSE),FALSE)","v":false},{"$f":"IFERROR(IF(AND(VLOOKUP(MF9,'Fiestas y días laborables'!$D$3:$E$9,2,0)=\"Si\",NOT(ISNUMBER(VLOOKUP(DATE($A$4,$A$5+$A$3-1,MF8),Feriados,1,0)))),TRUE,FALSE),FALSE)","v":false},{"$f":"IFERROR(IF(AND(VLOOKUP(MG9,'Fiestas y días laborables'!$D$3:$E$9,2,0)=\"Si\",NOT(ISNUMBER(VLOOKUP(DATE($A$4,$A$5+$A$3-1,MG8),Feriados,1,0)))),TRUE,FALSE),FALSE)","v":false},{"$f":"IFERROR(IF(AND(VLOOKUP(MH9,'Fiestas y días laborables'!$D$3:$E$9,2,0)=\"Si\",NOT(ISNUMBER(VLOOKUP(DATE($A$4,$A$5+$A$3-1,MH8),Feriados,1,0)))),TRUE,FALSE),FALSE)","v":false},{"$f":"IFERROR(IF(AND(VLOOKUP(MI9,'Fiestas y días laborables'!$D$3:$E$9,2,0)=\"Si\",NOT(ISNUMBER(VLOOKUP(DATE($A$4,$A$5+$A$3-1,MI8),Feriados,1,0)))),TRUE,FALSE),FALSE)","v":false},{"$f":"IFERROR(IF(AND(VLOOKUP(MJ9,'Fiestas y días laborables'!$D$3:$E$9,2,0)=\"Si\",NOT(ISNUMBER(VLOOKUP(DATE($A$4,$A$5+$A$3-1,MJ8),Feriados,1,0)))),TRUE,FALSE),FALSE)","v":false},{"$f":"IFERROR(IF(AND(VLOOKUP(MK9,'Fiestas y días laborables'!$D$3:$E$9,2,0)=\"Si\",NOT(ISNUMBER(VLOOKUP(DATE($A$4,$A$5+$A$3-1,MK8),Feriados,1,0)))),TRUE,FALSE),FALSE)","v":false},{"$f":"IFERROR(IF(AND(VLOOKUP(ML9,'Fiestas y días laborables'!$D$3:$E$9,2,0)=\"Si\",NOT(ISNUMBER(VLOOKUP(DATE($A$4,$A$5+$A$3-1,ML8),Feriados,1,0)))),TRUE,FALSE),FALSE)","v":false},{"$f":"IFERROR(IF(AND(VLOOKUP(MM9,'Fiestas y días laborables'!$D$3:$E$9,2,0)=\"Si\",NOT(ISNUMBER(VLOOKUP(DATE($A$4,$A$5+$A$3-1,MM8),Feriados,1,0)))),TRUE,FALSE),FALSE)","v":false},{"$f":"IFERROR(IF(AND(VLOOKUP(MN9,'Fiestas y días laborables'!$D$3:$E$9,2,0)=\"Si\",NOT(ISNUMBER(VLOOKUP(DATE($A$4,$A$5+$A$3-1,MN8),Feriados,1,0)))),TRUE,FALSE),FALSE)","v":false},{"$f":"IFERROR(IF(AND(VLOOKUP(MO9,'Fiestas y días laborables'!$D$3:$E$9,2,0)=\"Si\",NOT(ISNUMBER(VLOOKUP(DATE($A$4,$A$5+$A$3-1,MO8),Feriados,1,0)))),TRUE,FALSE),FALSE)","v":false},{"$f":"IFERROR(IF(AND(VLOOKUP(MP9,'Fiestas y días laborables'!$D$3:$E$9,2,0)=\"Si\",NOT(ISNUMBER(VLOOKUP(DATE($A$4,$A$5+$A$3-1,MP8),Feriados,1,0)))),TRUE,FALSE),FALSE)","v":false},{"$f":"IFERROR(IF(AND(VLOOKUP(MQ9,'Fiestas y días laborables'!$D$3:$E$9,2,0)=\"Si\",NOT(ISNUMBER(VLOOKUP(DATE($A$4,$A$5+$A$3-1,MQ8),Feriados,1,0)))),TRUE,FALSE),FALSE)","v":false},{"$f":"IFERROR(IF(AND(VLOOKUP(MR9,'Fiestas y días laborables'!$D$3:$E$9,2,0)=\"Si\",NOT(ISNUMBER(VLOOKUP(DATE($A$4,$A$5+$A$3-1,MR8),Feriados,1,0)))),TRUE,FALSE),FALSE)","v":false},{"$f":"IFERROR(IF(AND(VLOOKUP(MS9,'Fiestas y días laborables'!$D$3:$E$9,2,0)=\"Si\",NOT(ISNUMBER(VLOOKUP(DATE($A$4,$A$5+$A$3-1,MS8),Feriados,1,0)))),TRUE,FALSE),FALSE)","v":false},{"$f":"IFERROR(IF(AND(VLOOKUP(MT9,'Fiestas y días laborables'!$D$3:$E$9,2,0)=\"Si\",NOT(ISNUMBER(VLOOKUP(DATE($A$4,$A$5+$A$3-1,MT8),Feriados,1,0)))),TRUE,FALSE),FALSE)","v":false},{"$f":"IFERROR(IF(AND(VLOOKUP(MU9,'Fiestas y días laborables'!$D$3:$E$9,2,0)=\"Si\",NOT(ISNUMBER(VLOOKUP(DATE($A$4,$A$5+$A$3-1,MU8),Feriados,1,0)))),TRUE,FALSE),FALSE)","v":false},{"$f":"IFERROR(IF(AND(VLOOKUP(MV9,'Fiestas y días laborables'!$D$3:$E$9,2,0)=\"Si\",NOT(ISNUMBER(VLOOKUP(DATE($A$4,$A$5+$A$3-1,MV8),Feriados,1,0)))),TRUE,FALSE),FALSE)","v":false},{"$f":"IFERROR(IF(AND(VLOOKUP(MW9,'Fiestas y días laborables'!$D$3:$E$9,2,0)=\"Si\",NOT(ISNUMBER(VLOOKUP(DATE($A$4,$A$5+$A$3-1,MW8),Feriados,1,0)))),TRUE,FALSE),FALSE)","v":false},{"$f":"IFERROR(IF(AND(VLOOKUP(MX9,'Fiestas y días laborables'!$D$3:$E$9,2,0)=\"Si\",NOT(ISNUMBER(VLOOKUP(DATE($A$4,$A$5+$A$3-1,MX8),Feriados,1,0)))),TRUE,FALSE),FALSE)","v":false},{"$f":"IFERROR(IF(AND(VLOOKUP(MY9,'Fiestas y días laborables'!$D$3:$E$9,2,0)=\"Si\",NOT(ISNUMBER(VLOOKUP(DATE($A$4,$A$5+$A$3-1,MY8),Feriados,1,0)))),TRUE,FALSE),FALSE)","v":false},{"$f":"IFERROR(IF(AND(VLOOKUP(MZ9,'Fiestas y días laborables'!$D$3:$E$9,2,0)=\"Si\",NOT(ISNUMBER(VLOOKUP(DATE($A$4,$A$5+$A$3-1,MZ8),Feriados,1,0)))),TRUE,FALSE),FALSE)","v":false},{"$f":"IFERROR(IF(AND(VLOOKUP(NA9,'Fiestas y días laborables'!$D$3:$E$9,2,0)=\"Si\",NOT(ISNUMBER(VLOOKUP(DATE($A$4,$A$5+$A$3-1,NA8),Feriados,1,0)))),TRUE,FALSE),FALSE)","v":false},{"$f":"IFERROR(IF(AND(VLOOKUP(NB9,'Fiestas y días laborables'!$D$3:$E$9,2,0)=\"Si\",NOT(ISNUMBER(VLOOKUP(DATE($A$4,$A$5+$A$3-1,NB8),Feriados,1,0)))),TRUE,FALSE),FALSE)","v":false},{"$f":"IFERROR(IF(AND(VLOOKUP(NC9,'Fiestas y días laborables'!$D$3:$E$9,2,0)=\"Si\",NOT(ISNUMBER(VLOOKUP(DATE($A$4,$A$5+$A$3-1,NC8),Feriados,1,0)))),TRUE,FALSE),FALSE)","v":false},{"$f":"IFERROR(IF(AND(VLOOKUP(ND9,'Fiestas y días laborables'!$D$3:$E$9,2,0)=\"Si\",NOT(ISNUMBER(VLOOKUP(DATE($A$4,$A$5+$A$3-1,ND8),Feriados,1,0)))),TRUE,FALSE),FALSE)","v":false},{"$f":"IFERROR(IF(AND(VLOOKUP(NE9,'Fiestas y días laborables'!$D$3:$E$9,2,0)=\"Si\",NOT(ISNUMBER(VLOOKUP(DATE($A$4,$A$5+$A$3-1,NE8),Feriados,1,0)))),TRUE,FALSE),FALSE)","v":false},{"$f":"IFERROR(IF(AND(VLOOKUP(NF9,'Fiestas y días laborables'!$D$3:$E$9,2,0)=\"Si\",NOT(ISNUMBER(VLOOKUP(DATE($A$4,$A$5+$A$3-1,NF8),Feriados,1,0)))),TRUE,FALSE),FALSE)","v":false},{"$f":"IFERROR(IF(AND(VLOOKUP(NG9,'Fiestas y días laborables'!$D$3:$E$9,2,0)=\"Si\",NOT(ISNUMBER(VLOOKUP(DATE($A$4,$A$5+$A$3-1,NG8),Feriados,1,0)))),TRUE,FALSE),FALSE)","v":false},{"$f":"IFERROR(IF(AND(VLOOKUP(NH9,'Fiestas y días laborables'!$D$3:$E$9,2,0)=\"Si\",NOT(ISNUMBER(VLOOKUP(DATE($A$4,$A$5+$A$3-1,NH8),Feriados,1,0)))),TRUE,FALSE),FALSE)","v":false},{"$f":"IFERROR(IF(AND(VLOOKUP(NI9,'Fiestas y días laborables'!$D$3:$E$9,2,0)=\"Si\",NOT(ISNUMBER(VLOOKUP(DATE($A$4,$A$5+$A$3-1,NI8),Feriados,1,0)))),TRUE,FALSE),FALSE)","v":false},null,null,null,null,"Razón de Salida"]
[null,{"$f":"IF(AND((COLUMN()-1)>31*($A$5-1),MONTH(DATE($A$4+INT(($A$5+$A$3)/12),INT((COLUMN()-1)/31.001)+$A$3,ROUNDUP(MOD(COLUMN()-1,31.001),0)))=ROUNDUP(MOD($A$3+$A$5-1,12.01),0)),ROUNDUP(MOD(COLUMN()-1,31.001),0),\"\")","v":"1900-01-01"},{"$f":"IF(AND((COLUMN()-1)>31*($A$5-1),MONTH(DATE($A$4+INT(($A$5+$A$3)/12),INT((COLUMN()-1)/31.001)+$A$3,ROUNDUP(MOD(COLUMN()-1,31.001),0)))=ROUNDUP(MOD($A$3+$A$5-1,12.01),0)),ROUNDUP(MOD(COLUMN()-1,31.001),0),\"\")","v":"1900-01-02"},"1900-01-03","1900-01-04","1900-01-05","1900-01-06","1900-01-07","1900-01-08","1900-01-09","1900-01-10","1900-01-11","1900-01-12","1900-01-13","1900-01-14","1900-01-15","1900-01-16","1900-01-17","1900-01-18","1900-01-19","1900-01-20","1900-01-21","1900-01-22","1900-01-23","1900-01-24","1900-01-25","1900-01-26","1900-01-27","1900-01-28","1900-01-29","1900-01-30","1900-01-31","","","","","","","","","","","","","","","","","","","","","","","","","","","","","","","","","","",{"$f":"IF(AND((COLUMN()-1)>31*($A$5-1),MONTH(DATE($A$4+INT(($A$5+$A$3)/12),INT((COLUMN()-1)/31.001)+$A$3,ROUNDUP(MOD(COLUMN()-1,31.001),0)))=ROUNDUP(MOD($A$3+$A$5-1,12.01),0)),ROUNDUP(MOD(COLUMN()-1,31.001),0),\"\")","v":""},"","","","","","","","","","","","","","","","","","","","","","","","","","","","","","","","","","","","","","","","","","","","","","","","","","","","","","","","","","","","","","","",{"$f":"IF(AND((COLUMN()-1)>31*($A$5-1),MONTH(DATE($A$4+INT(($A$5+$A$3)/12),INT((COLUMN()-1)/31.001)+$A$3,ROUNDUP(MOD(COLUMN()-1,31.001),0)))=ROUNDUP(MOD($A$3+$A$5-1,12.01),0)),ROUNDUP(MOD(COLUMN()-1,31.001),0),\"\")","v":""},{"$f":"IF(AND((COLUMN()-1)>31*($A$5-1),MONTH(DATE($A$4+INT(($A$5+$A$3)/12),INT((COLUMN()-1)/31.001)+$A$3,ROUNDUP(MOD(COLUMN()-1,31.001),0)))=ROUNDUP(MOD($A$3+$A$5-1,12.01),0)),ROUNDUP(MOD(COLUMN()-1,31.001),0),\"\")","v":""},"","","","","","","","","","","","","","","","","","","","","","","","","","","","","","","","","","","","","","","","","","","","","","","","","","","","","","","","","","","","","","",{"$f":"IF(AND((COLUMN()-1)>31*($A$5-1),MONTH(DATE($A$4+INT(($A$5+$A$3)/12),INT((COLUMN()-1)/31.001)+$A$3,ROUNDUP(MOD(COLUMN()-1,31.001),0)))=ROUNDUP(MOD($A$3+$A$5-1,12.01),0)),ROUNDUP(MOD(COLUMN()-1,31.001),0),\"\")","v":""},"","","","","","","","","","","","","","","","","","","","","","","","","","","","","","","","","","","","","","","","","","","","","","","","","","","","","","","","","","","","","","","",{"$f":"IF(AND((COLUMN()-1)>31*($A$5-1),MONTH(DATE($A$4+INT(($A$5+$A$3)/12),INT((COLUMN()-1)/31.001)+$A$3,ROUNDUP(MOD(COLUMN()-1,31.001),0)))=ROUNDUP(MOD($A$3+$A$5-1,12.01),0)),ROUNDUP(MOD(COLUMN()-1,31.001),0),\"\")","v":""},"","","","","","","","","","","","","","","","","","","","","","","","","","","","","","","","","","","","","","","","","","","","","","","","","","","","","","","","","","","","","","","",{"$f":"IF(AND((COLUMN()-1)>31*($A$5-1),MONTH(DATE($A$4+INT(($A$5+$A$3)/12),INT((COLUMN()-1)/31.001)+$A$3,ROUNDUP(MOD(COLUMN()-1,31.001),0)))=ROUNDUP(MOD($A$3+$A$5-1,12.01),0)),ROUNDUP(MOD(COLUMN()-1,31.001),0),\"\")","v":""},"","","","","","","","","","","","","","","","","","","","","","","","","","","","","","","","","","","","","","","","","","","","","","","","","","","Días tomados en el mes","Días tomados en el año","Días por año","Días pendientes","E","V","M","T","MD"]
["Nombre",{"$f":"IF(B$8=\"\",\"\",VLOOKUP(WEEKDAY(DATE($A$4,$A$5+$A$3-1,B8),2),Auxiliar!$D$1:$E$7,2,0))","v":"Dom"},{"$f":"IF(C$8=\"\",\"\",VLOOKUP(WEEKDAY(DATE($A$4,$A$5+$A$3-1,C8),2),Auxiliar!$D$1:$E$7,2,0))","v":"Lun"},{"$f":"IF(D$8=\"\",\"\",VLOOKUP(WEEKDAY(DATE($A$4,$A$5+$A$3-1,D8),2),Auxiliar!$D$1:$E$7,2,0))","v":"Mar"},{"$f":"IF(E$8=\"\",\"\",VLOOKUP(WEEKDAY(DATE($A$4,$A$5+$A$3-1,E8),2),Auxiliar!$D$1:$E$7,2,0))","v":"Mie"},{"$f":"IF(F$8=\"\",\"\",VLOOKUP(WEEKDAY(DATE($A$4,$A$5+$A$3-1,F8),2),Auxiliar!$D$1:$E$7,2,0))","v":"Jue"},{"$f":"IF(G$8=\"\",\"\",VLOOKUP(WEEKDAY(DATE($A$4,$A$5+$A$3-1,G8),2),Auxiliar!$D$1:$E$7,2,0))","v":"Vie"},{"$f":"IF(H$8=\"\",\"\",VLOOKUP(WEEKDAY(DATE($A$4,$A$5+$A$3-1,H8),2),Auxiliar!$D$1:$E$7,2,0))","v":"Sab"},{"$f":"IF(I$8=\"\",\"\",VLOOKUP(WEEKDAY(DATE($A$4,$A$5+$A$3-1,I8),2),Auxiliar!$D$1:$E$7,2,0))","v":"Dom"},{"$f":"IF(J$8=\"\",\"\",VLOOKUP(WEEKDAY(DATE($A$4,$A$5+$A$3-1,J8),2),Auxiliar!$D$1:$E$7,2,0))","v":"Lun"},{"$f":"IF(K$8=\"\",\"\",VLOOKUP(WEEKDAY(DATE($A$4,$A$5+$A$3-1,K8),2),Auxiliar!$D$1:$E$7,2,0))","v":"Mar"},{"$f":"IF(L$8=\"\",\"\",VLOOKUP(WEEKDAY(DATE($A$4,$A$5+$A$3-1,L8),2),Auxiliar!$D$1:$E$7,2,0))","v":"Mie"},{"$f":"IF(M$8=\"\",\"\",VLOOKUP(WEEKDAY(DATE($A$4,$A$5+$A$3-1,M8),2),Auxiliar!$D$1:$E$7,2,0))","v":"Jue"},{"$f":"IF(N$8=\"\",\"\",VLOOKUP(WEEKDAY(DATE($A$4,$A$5+$A$3-1,N8),2),Auxiliar!$D$1:$E$7,2,0))","v":"Vie"},{"$f":"IF(O$8=\"\",\"\",VLOOKUP(WEEKDAY(DATE($A$4,$A$5+$A$3-1,O8),2),Auxiliar!$D$1:$E$7,2,0))","v":"Sab"},{"$f":"IF(P$8=\"\",\"\",VLOOKUP(WEEKDAY(DATE($A$4,$A$5+$A$3-1,P8),2),Auxiliar!$D$1:$E$7,2,0))","v":"Dom"},{"$f":"IF(Q$8=\"\",\"\",VLOOKUP(WEEKDAY(DATE($A$4,$A$5+$A$3-1,Q8),2),Auxiliar!$D$1:$E$7,2,0))","v":"Lun"},{"$f":"IF(R$8=\"\",\"\",VLOOKUP(WEEKDAY(DATE($A$4,$A$5+$A$3-1,R8),2),Auxiliar!$D$1:$E$7,2,0))","v":"Mar"},{"$f":"IF(S$8=\"\",\"\",VLOOKUP(WEEKDAY(DATE($A$4,$A$5+$A$3-1,S8),2),Auxiliar!$D$1:$E$7,2,0))","v":"Mie"},{"$f":"IF(T$8=\"\",\"\",VLOOKUP(WEEKDAY(DATE($A$4,$A$5+$A$3-1,T8),2),Auxiliar!$D$1:$E$7,2,0))","v":"Jue"},{"$f":"IF(U$8=\"\",\"\",VLOOKUP(WEEKDAY(DATE($A$4,$A$5+$A$3-1,U8),2),Auxiliar!$D$1:$E$7,2,0))","v":"Vie"},{"$f":"IF(V$8=\"\",\"\",VLOOKUP(WEEKDAY(DATE($A$4,$A$5+$A$3-1,V8),2),Auxiliar!$D$1:$E$7,2,0))","v":"Sab"},{"$f":"IF(W$8=\"\",\"\",VLOOKUP(WEEKDAY(DATE($A$4,$A$5+$A$3-1,W8),2),Auxiliar!$D$1:$E$7,2,0))","v":"Dom"},{"$f":"IF(X$8=\"\",\"\",VLOOKUP(WEEKDAY(DATE($A$4,$A$5+$A$3-1,X8),2),Auxiliar!$D$1:$E$7,2,0))","v":"Lun"},{"$f":"IF(Y$8=\"\",\"\",VLOOKUP(WEEKDAY(DATE($A$4,$A$5+$A$3-1,Y8),2),Auxiliar!$D$1:$E$7,2,0))","v":"Mar"},{"$f":"IF(Z$8=\"\",\"\",VLOOKUP(WEEKDAY(DATE($A$4,$A$5+$A$3-1,Z8),2),Auxiliar!$D$1:$E$7,2,0))","v":"Mie"},{"$f":"IF(AA$8=\"\",\"\",VLOOKUP(WEEKDAY(DATE($A$4,$A$5+$A$3-1,AA8),2),Auxiliar!$D$1:$E$7,2,0))","v":"Jue"},{"$f":"IF(AB$8=\"\",\"\",VLOOKUP(WEEKDAY(DATE($A$4,$A$5+$A$3-1,AB8),2),Auxiliar!$D$1:$E$7,2,0))","v":"Vie"},{"$f":"IF(AC$8=\"\",\"\",VLOOKUP(WEEKDAY(DATE($A$4,$A$5+$A$3-1,AC8),2),Auxiliar!$D$1:$E$7,2,0))","v":"Sab"},{"$f":"IF(AD$8=\"\",\"\",VLOOKUP(WEEKDAY(DATE($A$4,$A$5+$A$3-1,AD8),2),Auxiliar!$D$1:$E$7,2,0))","v":"Dom"},{"$f":"IF(AE$8=\"\",\"\",VLOOKUP(WEEKDAY(DATE($A$4,$A$5+$A$3-1,AE8),2),Auxiliar!$D$1:$E$7,2,0))","v":"Lun"},{"$f":"IF(AF$8=\"\",\"\",VLOOKUP(WEEKDAY(DATE($A$4,$A$5+$A$3-1,AF8),2),Auxiliar!$D$1:$E$7,2,0))","v":"Mar"},{"$f":"IF(AG$8=\"\",\"\",VLOOKUP(WEEKDAY(DATE($A$4,$A$5+$A$3-1,AG8),2),Auxiliar!$D$1:$E$7,2,0))","v":""},{"$f":"IF(AH$8=\"\",\"\",VLOOKUP(WEEKDAY(DATE($A$4,$A$5+$A$3-1,AH8),2),Auxiliar!$D$1:$E$7,2,0))","v":""},{"$f":"IF(AI$8=\"\",\"\",VLOOKUP(WEEKDAY(DATE($A$4,$A$5+$A$3-1,AI8),2),Auxiliar!$D$1:$E$7,2,0))","v":""},{"$f":"IF(AJ$8=\"\",\"\",VLOOKUP(WEEKDAY(DATE($A$4,$A$5+$A$3-1,AJ8),2),Auxiliar!$D$1:$E$7,2,0))","v":""},{"$f":"IF(AK$8=\"\",\"\",VLOOKUP(WEEKDAY(DATE($A$4,$A$5+$A$3-1,AK8),2),Auxiliar!$D$1:$E$7,2,0))","v":""},{"$f":"IF(AL$8=\"\",\"\",VLOOKUP(WEEKDAY(DATE($A$4,$A$5+$A$3-1,AL8),2),Auxiliar!$D$1:$E$7,2,0))","v":""},{"$f":"IF(AM$8=\"\",\"\",VLOOKUP(WEEKDAY(DATE($A$4,$A$5+$A$3-1,AM8),2),Auxiliar!$D$1:$E$7,2,0))","v":""},{"$f":"IF(AN$8=\"\",\"\",VLOOKUP(WEEKDAY(DATE($A$4,$A$5+$A$3-1,AN8),2),Auxiliar!$D$1:$E$7,2,0))","v":""},{"$f":"IF(AO$8=\"\",\"\",VLOOKUP(WEEKDAY(DATE($A$4,$A$5+$A$3-1,AO8),2),Auxiliar!$D$1:$E$7,2,0))","v":""},{"$f":"IF(AP$8=\"\",\"\",VLOOKUP(WEEKDAY(DATE($A$4,$A$5+$A$3-1,AP8),2),Auxiliar!$D$1:$E$7,2,0))","v":""},{"$f":"IF(AQ$8=\"\",\"\",VLOOKUP(WEEKDAY(DATE($A$4,$A$5+$A$3-1,AQ8),2),Auxiliar!$D$1:$E$7,2,0))","v":""},{"$f":"IF(AR$8=\"\",\"\",VLOOKUP(WEEKDAY(DATE($A$4,$A$5+$A$3-1,AR8),2),Auxiliar!$D$1:$E$7,2,0))","v":""},{"$f":"IF(AS$8=\"\",\"\",VLOOKUP(WEEKDAY(DATE($A$4,$A$5+$A$3-1,AS8),2),Auxiliar!$D$1:$E$7,2,0))","v":""},{"$f":"IF(AT$8=\"\",\"\",VLOOKUP(WEEKDAY(DATE($A$4,$A$5+$A$3-1,AT8),2),Auxiliar!$D$1:$E$7,2,0))","v":""},{"$f":"IF(AU$8=\"\",\"\",VLOOKUP(WEEKDAY(DATE($A$4,$A$5+$A$3-1,AU8),2),Auxiliar!$D$1:$E$7,2,0))","v":""},{"$f":"IF(AV$8=\"\",\"\",VLOOKUP(WEEKDAY(DATE($A$4,$A$5+$A$3-1,AV8),2),Auxiliar!$D$1:$E$7,2,0))","v":""},{"$f":"IF(AW$8=\"\",\"\",VLOOKUP(WEEKDAY(DATE($A$4,$A$5+$A$3-1,AW8),2),Auxiliar!$D$1:$E$7,2,0))","v":""},{"$f":"IF(AX$8=\"\",\"\",VLOOKUP(WEEKDAY(DATE($A$4,$A$5+$A$3-1,AX8),2),Auxiliar!$D$1:$E$7,2,0))","v":""},{"$f":"IF(AY$8=\"\",\"\",VLOOKUP(WEEKDAY(DATE($A$4,$A$5+$A$3-1,AY8),2),Auxiliar!$D$1:$E$7,2,0))","v":""},{"$f":"IF(AZ$8=\"\",\"\",VLOOKUP(WEEKDAY(DATE($A$4,$A$5+$A$3-1,AZ8),2),Auxiliar!$D$1:$E$7,2,0))","v":""},{"$f":"IF(BA$8=\"\",\"\",VLOOKUP(WEEKDAY(DATE($A$4,$A$5+$A$3-1,BA8),2),Auxiliar!$D$1:$E$7,2,0))","v":""},{"$f":"IF(BB$8=\"\",\"\",VLOOKUP(WEEKDAY(DATE($A$4,$A$5+$A$3-1,BB8),2),Auxiliar!$D$1:$E$7,2,0))","v":""},{"$f":"IF(BC$8=\"\",\"\",VLOOKUP(WEEKDAY(DATE($A$4,$A$5+$A$3-1,BC8),2),Auxiliar!$D$1:$E$7,2,0))","v":""},{"$f":"IF(BD$8=\"\",\"\",VLOOKUP(WEEKDAY(DATE($A$4,$A$5+$A$3-1,BD8),2),Auxiliar!$D$1:$E$7,2,0))","v":""},{"$f":"IF(BE$8=\"\",\"\",VLOOKUP(WEEKDAY(DATE($A$4,$A$5+$A$3-1,BE8),2),Auxiliar!$D$1:$E$7,2,0))","v":""},{"$f":"IF(BF$8=\"\",\"\",VLOOKUP(WEEKDAY(DATE($A$4,$A$5+$A$3-1,BF8),2),Auxiliar!$D$1:$E$7,2,0))","v":""},{"$f":"IF(BG$8=\"\",\"\",VLOOKUP(WEEKDAY(DATE($A$4,$A$5+$A$3-1,BG8),2),Auxiliar!$D$1:$E$7,2,0))","v":""},{"$f":"IF(BH$8=\"\",\"\",VLOOKUP(WEEKDAY(DATE($A$4,$A$5+$A$3-1,BH8),2),Auxiliar!$D$1:$E$7,2,0))","v":""},{"$f":"IF(BI$8=\"\",\"\",VLOOKUP(WEEKDAY(DATE($A$4,$A$5+$A$3-1,BI8),2),Auxiliar!$D$1:$E$7,2,0))","v":""},{"$f":"IF(BJ$8=\"\",\"\",VLOOKUP(WEEKDAY(DATE($A$4,$A$5+$A$3-1,BJ8),2),Auxiliar!$D$1:$E$7,2,0))","v":""},{"$f":"IF(BK$8=\"\",\"\",VLOOKUP(WEEKDAY(DATE($A$4,$A$5+$A$3-1,BK8),2),Auxiliar!$D$1:$E$7,2,0))","v":""},{"$f":"IF(BL$8=\"\",\"\",VLOOKUP(WEEKDAY(DATE($A$4,$A$5+$A$3-1,BL8),2),Auxiliar!$D$1:$E$7,2,0))","v":""},{"$f":"IF(BM$8=\"\",\"\",VLOOKUP(WEEKDAY(DATE($A$4,$A$5+$A$3-1,BM8),2),Auxiliar!$D$1:$E$7,2,0))","v":""},{"$f":"IF(BN$8=\"\",\"\",VLOOKUP(WEEKDAY(DATE($A$4,$A$5+$A$3-1,BN8),2),Auxiliar!$D$1:$E$7,2,0))","v":""},{"$f":"IF(BO$8=\"\",\"\",VLOOKUP(WEEKDAY(DATE($A$4,$A$5+$A$3-1,BO8),2),Auxiliar!$D$1:$E$7,2,0))","v":""},{"$f":"IF(BP$8=\"\",\"\",VLOOKUP(WEEKDAY(DATE($A$4,$A$5+$A$3-1,BP8),2),Auxiliar!$D$1:$E$7,2,0))","v":""},{"$f":"IF(BQ$8=\"\",\"\",VLOOKUP(WEEKDAY(DATE($A$4,$A$5+$A$3-1,BQ8),2),Auxiliar!$D$1:$E$7,2,0))","v":""},{"$f":"IF(BR$8=\"\",\"\",VLOOKUP(WEEKDAY(DATE($A$4,$A$5+$A$3-1,BR8),2),Auxiliar!$D$1:$E$7,2,0))","v":""},{"$f":"IF(BS$8=\"\",\"\",VLOOKUP(WEEKDAY(DATE($A$4,$A$5+$A$3-1,BS8),2),Auxiliar!$D$1:$E$7,2,0))","v":""},{"$f":"IF(BT$8=\"\",\"\",VLOOKUP(WEEKDAY(DATE($A$4,$A$5+$A$3-1,BT8),2),Auxiliar!$D$1:$E$7,2,0))","v":""},{"$f":"IF(BU$8=\"\",\"\",VLOOKUP(WEEKDAY(DATE($A$4,$A$5+$A$3-1,BU8),2),Auxiliar!$D$1:$E$7,2,0))","v":""},{"$f":"IF(BV$8=\"\",\"\",VLOOKUP(WEEKDAY(DATE($A$4,$A$5+$A$3-1,BV8),2),Auxiliar!$D$1:$E$7,2,0))","v":""},{"$f":"IF(BW$8=\"\",\"\",VLOOKUP(WEEKDAY(DATE($A$4,$A$5+$A$3-1,BW8),2),Auxiliar!$D$1:$E$7,2,0))","v":""},{"$f":"IF(BX$8=\"\",\"\",VLOOKUP(WEEKDAY(DATE($A$4,$A$5+$A$3-1,BX8),2),Auxiliar!$D$1:$E$7,2,0))","v":""},{"$f":"IF(BY$8=\"\",\"\",VLOOKUP(WEEKDAY(DATE($A$4,$A$5+$A$3-1,BY8),2),Auxiliar!$D$1:$E$7,2,0))","v":""},{"$f":"IF(BZ$8=\"\",\"\",VLOOKUP(WEEKDAY(DATE($A$4,$A$5+$A$3-1,BZ8),2),Auxiliar!$D$1:$E$7,2,0))","v":""},{"$f":"IF(CA$8=\"\",\"\",VLOOKUP(WEEKDAY(DATE($A$4,$A$5+$A$3-1,CA8),2),Auxiliar!$D$1:$E$7,2,0))","v":""},{"$f":"IF(CB$8=\"\",\"\",VLOOKUP(WEEKDAY(DATE($A$4,$A$5+$A$3-1,CB8),2),Auxiliar!$D$1:$E$7,2,0))","v":""},{"$f":"IF(CC$8=\"\",\"\",VLOOKUP(WEEKDAY(DATE($A$4,$A$5+$A$3-1,CC8),2),Auxiliar!$D$1:$E$7,2,0))","v":""},{"$f":"IF(CD$8=\"\",\"\",VLOOKUP(WEEKDAY(DATE($A$4,$A$5+$A$3-1,CD8),2),Auxiliar!$D$1:$E$7,2,0))","v":""},{"$f":"IF(CE$8=\"\",\"\",VLOOKUP(WEEKDAY(DATE($A$4,$A$5+$A$3-1,CE8),2),Auxiliar!$D$1:$E$7,2,0))","v":""},{"$f":"IF(CF$8=\"\",\"\",VLOOKUP(WEEKDAY(DATE($A$4,$A$5+$A$3-1,CF8),2),Auxiliar!$D$1:$E$7,2,0))","v":""},{"$f":"IF(CG$8=\"\",\"\",VLOOKUP(WEEKDAY(DATE($A$4,$A$5+$A$3-1,CG8),2),Auxiliar!$D$1:$E$7,2,0))","v":""},{"$f":"IF(CH$8=\"\",\"\",VLOOKUP(WEEKDAY(DATE($A$4,$A$5+$A$3-1,CH8),2),Auxiliar!$D$1:$E$7,2,0))","v":""},{"$f":"IF(CI$8=\"\",\"\",VLOOKUP(WEEKDAY(DATE($A$4,$A$5+$A$3-1,CI8),2),Auxiliar!$D$1:$E$7,2,0))","v":""},{"$f":"IF(CJ$8=\"\",\"\",VLOOKUP(WEEKDAY(DATE($A$4,$A$5+$A$3-1,CJ8),2),Auxiliar!$D$1:$E$7,2,0))","v":""},{"$f":"IF(CK$8=\"\",\"\",VLOOKUP(WEEKDAY(DATE($A$4,$A$5+$A$3-1,CK8),2),Auxiliar!$D$1:$E$7,2,0))","v":""},{"$f":"IF(CL$8=\"\",\"\",VLOOKUP(WEEKDAY(DATE($A$4,$A$5+$A$3-1,CL8),2),Auxiliar!$D$1:$E$7,2,0))","v":""},{"$f":"IF(CM$8=\"\",\"\",VLOOKUP(WEEKDAY(DATE($A$4,$A$5+$A$3-1,CM8),2),Auxiliar!$D$1:$E$7,2,0))","v":""},{"$f":"IF(CN$8=\"\",\"\",VLOOKUP(WEEKDAY(DATE($A$4,$A$5+$A$3-1,CN8),2),Auxiliar!$D$1:$E$7,2,0))","v":""},{"$f":"IF(CO$8=\"\",\"\",VLOOKUP(WEEKDAY(DATE($A$4,$A$5+$A$3-1,CO8),2),Auxiliar!$D$1:$E$7,2,0))","v":""},{"$f":"IF(CP$8=\"\",\"\",VLOOKUP(WEEKDAY(DATE($A$4,$A$5+$A$3-1,CP8),2),Auxiliar!$D$1:$E$7,2,0))","v":""},{"$f":"IF(CQ$8=\"\",\"\",VLOOKUP(WEEKDAY(DATE($A$4,$A$5+$A$3-1,CQ8),2),Auxiliar!$D$1:$E$7,2,0))","v":""},{"$f":"IF(CR$8=\"\",\"\",VLOOKUP(WEEKDAY(DATE($A$4,$A$5+$A$3-1,CR8),2),Auxiliar!$D$1:$E$7,2,0))","v":""},{"$f":"IF(CS$8=\"\",\"\",VLOOKUP(WEEKDAY(DATE($A$4,$A$5+$A$3-1,CS8),2),Auxiliar!$D$1:$E$7,2,0))","v":""},{"$f":"IF(CT$8=\"\",\"\",VLOOKUP(WEEKDAY(DATE($A$4,$A$5+$A$3-1,CT8),2),Auxiliar!$D$1:$E$7,2,0))","v":""},{"$f":"IF(CU$8=\"\",\"\",VLOOKUP(WEEKDAY(DATE($A$4,$A$5+$A$3-1,CU8),2),Auxiliar!$D$1:$E$7,2,0))","v":""},{"$f":"IF(CV$8=\"\",\"\",VLOOKUP(WEEKDAY(DATE($A$4,$A$5+$A$3-1,CV8),2),Auxiliar!$D$1:$E$7,2,0))","v":""},{"$f":"IF(CW$8=\"\",\"\",VLOOKUP(WEEKDAY(DATE($A$4,$A$5+$A$3-1,CW8),2),Auxiliar!$D$1:$E$7,2,0))","v":""},{"$f":"IF(CX$8=\"\",\"\",VLOOKUP(WEEKDAY(DATE($A$4,$A$5+$A$3-1,CX8),2),Auxiliar!$D$1:$E$7,2,0))","v":""},{"$f":"IF(CY$8=\"\",\"\",VLOOKUP(WEEKDAY(DATE($A$4,$A$5+$A$3-1,CY8),2),Auxiliar!$D$1:$E$7,2,0))","v":""},{"$f":"IF(CZ$8=\"\",\"\",VLOOKUP(WEEKDAY(DATE($A$4,$A$5+$A$3-1,CZ8),2),Auxiliar!$D$1:$E$7,2,0))","v":""},{"$f":"IF(DA$8=\"\",\"\",VLOOKUP(WEEKDAY(DATE($A$4,$A$5+$A$3-1,DA8),2),Auxiliar!$D$1:$E$7,2,0))","v":""},{"$f":"IF(DB$8=\"\",\"\",VLOOKUP(WEEKDAY(DATE($A$4,$A$5+$A$3-1,DB8),2),Auxiliar!$D$1:$E$7,2,0))","v":""},{"$f":"IF(DC$8=\"\",\"\",VLOOKUP(WEEKDAY(DATE($A$4,$A$5+$A$3-1,DC8),2),Auxiliar!$D$1:$E$7,2,0))","v":""},{"$f":"IF(DD$8=\"\",\"\",VLOOKUP(WEEKDAY(DATE($A$4,$A$5+$A$3-1,DD8),2),Auxiliar!$D$1:$E$7,2,0))","v":""},{"$f":"IF(DE$8=\"\",\"\",VLOOKUP(WEEKDAY(DATE($A$4,$A$5+$A$3-1,DE8),2),Auxiliar!$D$1:$E$7,2,0))","v":""},{"$f":"IF(DF$8=\"\",\"\",VLOOKUP(WEEKDAY(DATE($A$4,$A$5+$A$3-1,DF8),2),Auxiliar!$D$1:$E$7,2,0))","v":""},{"$f":"IF(DG$8=\"\",\"\",VLOOKUP(WEEKDAY(DATE($A$4,$A$5+$A$3-1,DG8),2),Auxiliar!$D$1:$E$7,2,0))","v":""},{"$f":"IF(DH$8=\"\",\"\",VLOOKUP(WEEKDAY(DATE($A$4,$A$5+$A$3-1,DH8),2),Auxiliar!$D$1:$E$7,2,0))","v":""},{"$f":"IF(DI$8=\"\",\"\",VLOOKUP(WEEKDAY(DATE($A$4,$A$5+$A$3-1,DI8),2),Auxiliar!$D$1:$E$7,2,0))","v":""},{"$f":"IF(DJ$8=\"\",\"\",VLOOKUP(WEEKDAY(DATE($A$4,$A$5+$A$3-1,DJ8),2),Auxiliar!$D$1:$E$7,2,0))","v":""},{"$f":"IF(DK$8=\"\",\"\",VLOOKUP(WEEKDAY(DATE($A$4,$A$5+$A$3-1,DK8),2),Auxiliar!$D$1:$E$7,2,0))","v":""},{"$f":"IF(DL$8=\"\",\"\",VLOOKUP(WEEKDAY(DATE($A$4,$A$5+$A$3-1,DL8),2),Auxiliar!$D$1:$E$7,2,0))","v":""},{"$f":"IF(DM$8=\"\",\"\",VLOOKUP(WEEKDAY(DATE($A$4,$A$5+$A$3-1,DM8),2),Auxiliar!$D$1:$E$7,2,0))","v":""},{"$f":"IF(DN$8=\"\",\"\",VLOOKUP(WEEKDAY(DATE($A$4,$A$5+$A$3-1,DN8),2),Auxiliar!$D$1:$E$7,2,0))","v":""},{"$f":"IF(DO$8=\"\",\"\",VLOOKUP(WEEKDAY(DATE($A$4,$A$5+$A$3-1,DO8),2),Auxiliar!$D$1:$E$7,2,0))","v":""},{"$f":"IF(DP$8=\"\",\"\",VLOOKUP(WEEKDAY(DATE($A$4,$A$5+$A$3-1,DP8),2),Auxiliar!$D$1:$E$7,2,0))","v":""},{"$f":"IF(DQ$8=\"\",\"\",VLOOKUP(WEEKDAY(DATE($A$4,$A$5+$A$3-1,DQ8),2),Auxiliar!$D$1:$E$7,2,0))","v":""},{"$f":"IF(DR$8=\"\",\"\",VLOOKUP(WEEKDAY(DATE($A$4,$A$5+$A$3-1,DR8),2),Auxiliar!$D$1:$E$7,2,0))","v":""},{"$f":"IF(DS$8=\"\",\"\",VLOOKUP(WEEKDAY(DATE($A$4,$A$5+$A$3-1,DS8),2),Auxiliar!$D$1:$E$7,2,0))","v":""},{"$f":"IF(DT$8=\"\",\"\",VLOOKUP(WEEKDAY(DATE($A$4,$A$5+$A$3-1,DT8),2),Auxiliar!$D$1:$E$7,2,0))","v":""},{"$f":"IF(DU$8=\"\",\"\",VLOOKUP(WEEKDAY(DATE($A$4,$A$5+$A$3-1,DU8),2),Auxiliar!$D$1:$E$7,2,0))","v":""},{"$f":"IF(DV$8=\"\",\"\",VLOOKUP(WEEKDAY(DATE($A$4,$A$5+$A$3-1,DV8),2),Auxiliar!$D$1:$E$7,2,0))","v":""},{"$f":"IF(DW$8=\"\",\"\",VLOOKUP(WEEKDAY(DATE($A$4,$A$5+$A$3-1,DW8),2),Auxiliar!$D$1:$E$7,2,0))","v":""},{"$f":"IF(DX$8=\"\",\"\",VLOOKUP(WEEKDAY(DATE($A$4,$A$5+$A$3-1,DX8),2),Auxiliar!$D$1:$E$7,2,0))","v":""},{"$f":"IF(DY$8=\"\",\"\",VLOOKUP(WEEKDAY(DATE($A$4,$A$5+$A$3-1,DY8),2),Auxiliar!$D$1:$E$7,2,0))","v":""},{"$f":"IF(DZ$8=\"\",\"\",VLOOKUP(WEEKDAY(DATE($A$4,$A$5+$A$3-1,DZ8),2),Auxiliar!$D$1:$E$7,2,0))","v":""},{"$f":"IF(EA$8=\"\",\"\",VLOOKUP(WEEKDAY(DATE($A$4,$A$5+$A$3-1,EA8),2),Auxiliar!$D$1:$E$7,2,0))","v":""},{"$f":"IF(EB$8=\"\",\"\",VLOOKUP(WEEKDAY(DATE($A$4,$A$5+$A$3-1,EB8),2),Auxiliar!$D$1:$E$7,2,0))","v":""},{"$f":"IF(EC$8=\"\",\"\",VLOOKUP(WEEKDAY(DATE($A$4,$A$5+$A$3-1,EC8),2),Auxiliar!$D$1:$E$7,2,0))","v":""},{"$f":"IF(ED$8=\"\",\"\",VLOOKUP(WEEKDAY(DATE($A$4,$A$5+$A$3-1,ED8),2),Auxiliar!$D$1:$E$7,2,0))","v":""},{"$f":"IF(EE$8=\"\",\"\",VLOOKUP(WEEKDAY(DATE($A$4,$A$5+$A$3-1,EE8),2),Auxiliar!$D$1:$E$7,2,0))","v":""},{"$f":"IF(EF$8=\"\",\"\",VLOOKUP(WEEKDAY(DATE($A$4,$A$5+$A$3-1,EF8),2),Auxiliar!$D$1:$E$7,2,0))","v":""},{"$f":"IF(EG$8=\"\",\"\",VLOOKUP(WEEKDAY(DATE($A$4,$A$5+$A$3-1,EG8),2),Auxiliar!$D$1:$E$7,2,0))","v":""},{"$f":"IF(EH$8=\"\",\"\",VLOOKUP(WEEKDAY(DATE($A$4,$A$5+$A$3-1,EH8),2),Auxiliar!$D$1:$E$7,2,0))","v":""},{"$f":"IF(EI$8=\"\",\"\",VLOOKUP(WEEKDAY(DATE($A$4,$A$5+$A$3-1,EI8),2),Auxiliar!$D$1:$E$7,2,0))","v":""},{"$f":"IF(EJ$8=\"\",\"\",VLOOKUP(WEEKDAY(DATE($A$4,$A$5+$A$3-1,EJ8),2),Auxiliar!$D$1:$E$7,2,0))","v":""},{"$f":"IF(EK$8=\"\",\"\",VLOOKUP(WEEKDAY(DATE($A$4,$A$5+$A$3-1,EK8),2),Auxiliar!$D$1:$E$7,2,0))","v":""},{"$f":"IF(EL$8=\"\",\"\",VLOOKUP(WEEKDAY(DATE($A$4,$A$5+$A$3-1,EL8),2),Auxiliar!$D$1:$E$7,2,0))","v":""},{"$f":"IF(EM$8=\"\",\"\",VLOOKUP(WEEKDAY(DATE($A$4,$A$5+$A$3-1,EM8),2),Auxiliar!$D$1:$E$7,2,0))","v":""},{"$f":"IF(EN$8=\"\",\"\",VLOOKUP(WEEKDAY(DATE($A$4,$A$5+$A$3-1,EN8),2),Auxiliar!$D$1:$E$7,2,0))","v":""},{"$f":"IF(EO$8=\"\",\"\",VLOOKUP(WEEKDAY(DATE($A$4,$A$5+$A$3-1,EO8),2),Auxiliar!$D$1:$E$7,2,0))","v":""},{"$f":"IF(EP$8=\"\",\"\",VLOOKUP(WEEKDAY(DATE($A$4,$A$5+$A$3-1,EP8),2),Auxiliar!$D$1:$E$7,2,0))","v":""},{"$f":"IF(EQ$8=\"\",\"\",VLOOKUP(WEEKDAY(DATE($A$4,$A$5+$A$3-1,EQ8),2),Auxiliar!$D$1:$E$7,2,0))","v":""},{"$f":"IF(ER$8=\"\",\"\",VLOOKUP(WEEKDAY(DATE($A$4,$A$5+$A$3-1,ER8),2),Auxiliar!$D$1:$E$7,2,0))","v":""},{"$f":"IF(ES$8=\"\",\"\",VLOOKUP(WEEKDAY(DATE($A$4,$A$5+$A$3-1,ES8),2),Auxiliar!$D$1:$E$7,2,0))","v":""},{"$f":"IF(ET$8=\"\",\"\",VLOOKUP(WEEKDAY(DATE($A$4,$A$5+$A$3-1,ET8),2),Auxiliar!$D$1:$E$7,2,0))","v":""},{"$f":"IF(EU$8=\"\",\"\",VLOOKUP(WEEKDAY(DATE($A$4,$A$5+$A$3-1,EU8),2),Auxiliar!$D$1:$E$7,2,0))","v":""},{"$f":"IF(EV$8=\"\",\"\",VLOOKUP(WEEKDAY(DATE($A$4,$A$5+$A$3-1,EV8),2),Auxiliar!$D$1:$E$7,2,0))","v":""},{"$f":"IF(EW$8=\"\",\"\",VLOOKUP(WEEKDAY(DATE($A$4,$A$5+$A$3-1,EW8),2),Auxiliar!$D$1:$E$7,2,0))","v":""},{"$f":"IF(EX$8=\"\",\"\",VLOOKUP(WEEKDAY(DATE($A$4,$A$5+$A$3-1,EX8),2),Auxiliar!$D$1:$E$7,2,0))","v":""},{"$f":"IF(EY$8=\"\",\"\",VLOOKUP(WEEKDAY(DATE($A$4,$A$5+$A$3-1,EY8),2),Auxiliar!$D$1:$E$7,2,0))","v":""},{"$f":"IF(EZ$8=\"\",\"\",VLOOKUP(WEEKDAY(DATE($A$4,$A$5+$A$3-1,EZ8),2),Auxiliar!$D$1:$E$7,2,0))","v":""},{"$f":"IF(FA$8=\"\",\"\",VLOOKUP(WEEKDAY(DATE($A$4,$A$5+$A$3-1,FA8),2),Auxiliar!$D$1:$E$7,2,0))","v":""},{"$f":"IF(FB$8=\"\",\"\",VLOOKUP(WEEKDAY(DATE($A$4,$A$5+$A$3-1,FB8),2),Auxiliar!$D$1:$E$7,2,0))","v":""},{"$f":"IF(FC$8=\"\",\"\",VLOOKUP(WEEKDAY(DATE($A$4,$A$5+$A$3-1,FC8),2),Auxiliar!$D$1:$E$7,2,0))","v":""},{"$f":"IF(FD$8=\"\",\"\",VLOOKUP(WEEKDAY(DATE($A$4,$A$5+$A$3-1,FD8),2),Auxiliar!$D$1:$E$7,2,0))","v":""},{"$f":"IF(FE$8=\"\",\"\",VLOOKUP(WEEKDAY(DATE($A$4,$A$5+$A$3-1,FE8),2),Auxiliar!$D$1:$E$7,2,0))","v":""},{"$f":"IF(FF$8=\"\",\"\",VLOOKUP(WEEKDAY(DATE($A$4,$A$5+$A$3-1,FF8),2),Auxiliar!$D$1:$E$7,2,0))","v":""},{"$f":"IF(FG$8=\"\",\"\",VLOOKUP(WEEKDAY(DATE($A$4,$A$5+$A$3-1,FG8),2),Auxiliar!$D$1:$E$7,2,0))","v":""},{"$f":"IF(FH$8=\"\",\"\",VLOOKUP(WEEKDAY(DATE($A$4,$A$5+$A$3-1,FH8),2),Auxiliar!$D$1:$E$7,2,0))","v":""},{"$f":"IF(FI$8=\"\",\"\",VLOOKUP(WEEKDAY(DATE($A$4,$A$5+$A$3-1,FI8),2),Auxiliar!$D$1:$E$7,2,0))","v":""},{"$f":"IF(FJ$8=\"\",\"\",VLOOKUP(WEEKDAY(DATE($A$4,$A$5+$A$3-1,FJ8),2),Auxiliar!$D$1:$E$7,2,0))","v":""},{"$f":"IF(FK$8=\"\",\"\",VLOOKUP(WEEKDAY(DATE($A$4,$A$5+$A$3-1,FK8),2),Auxiliar!$D$1:$E$7,2,0))","v":""},{"$f":"IF(FL$8=\"\",\"\",VLOOKUP(WEEKDAY(DATE($A$4,$A$5+$A$3-1,FL8),2),Auxiliar!$D$1:$E$7,2,0))","v":""},{"$f":"IF(FM$8=\"\",\"\",VLOOKUP(WEEKDAY(DATE($A$4,$A$5+$A$3-1,FM8),2),Auxiliar!$D$1:$E$7,2,0))","v":""},{"$f":"IF(FN$8=\"\",\"\",VLOOKUP(WEEKDAY(DATE($A$4,$A$5+$A$3-1,FN8),2),Auxiliar!$D$1:$E$7,2,0))","v":""},{"$f":"IF(FO$8=\"\",\"\",VLOOKUP(WEEKDAY(DATE($A$4,$A$5+$A$3-1,FO8),2),Auxiliar!$D$1:$E$7,2,0))","v":""},{"$f":"IF(FP$8=\"\",\"\",VLOOKUP(WEEKDAY(DATE($A$4,$A$5+$A$3-1,FP8),2),Auxiliar!$D$1:$E$7,2,0))","v":""},{"$f":"IF(FQ$8=\"\",\"\",VLOOKUP(WEEKDAY(DATE($A$4,$A$5+$A$3-1,FQ8),2),Auxiliar!$D$1:$E$7,2,0))","v":""},{"$f":"IF(FR$8=\"\",\"\",VLOOKUP(WEEKDAY(DATE($A$4,$A$5+$A$3-1,FR8),2),Auxiliar!$D$1:$E$7,2,0))","v":""},{"$f":"IF(FS$8=\"\",\"\",VLOOKUP(WEEKDAY(DATE($A$4,$A$5+$A$3-1,FS8),2),Auxiliar!$D$1:$E$7,2,0))","v":""},{"$f":"IF(FT$8=\"\",\"\",VLOOKUP(WEEKDAY(DATE($A$4,$A$5+$A$3-1,FT8),2),Auxiliar!$D$1:$E$7,2,0))","v":""},{"$f":"IF(FU$8=\"\",\"\",VLOOKUP(WEEKDAY(DATE($A$4,$A$5+$A$3-1,FU8),2),Auxiliar!$D$1:$E$7,2,0))","v":""},{"$f":"IF(FV$8=\"\",\"\",VLOOKUP(WEEKDAY(DATE($A$4,$A$5+$A$3-1,FV8),2),Auxiliar!$D$1:$E$7,2,0))","v":""},{"$f":"IF(FW$8=\"\",\"\",VLOOKUP(WEEKDAY(DATE($A$4,$A$5+$A$3-1,FW8),2),Auxiliar!$D$1:$E$7,2,0))","v":""},{"$f":"IF(FX$8=\"\",\"\",VLOOKUP(WEEKDAY(DATE($A$4,$A$5+$A$3-1,FX8),2),Auxiliar!$D$1:$E$7,2,0))","v":""},{"$f":"IF(FY$8=\"\",\"\",VLOOKUP(WEEKDAY(DATE($A$4,$A$5+$A$3-1,FY8),2),Auxiliar!$D$1:$E$7,2,0))","v":""},{"$f":"IF(FZ$8=\"\",\"\",VLOOKUP(WEEKDAY(DATE($A$4,$A$5+$A$3-1,FZ8),2),Auxiliar!$D$1:$E$7,2,0))","v":""},{"$f":"IF(GA$8=\"\",\"\",VLOOKUP(WEEKDAY(DATE($A$4,$A$5+$A$3-1,GA8),2),Auxiliar!$D$1:$E$7,2,0))","v":""},{"$f":"IF(GB$8=\"\",\"\",VLOOKUP(WEEKDAY(DATE($A$4,$A$5+$A$3-1,GB8),2),Auxiliar!$D$1:$E$7,2,0))","v":""},{"$f":"IF(GC$8=\"\",\"\",VLOOKUP(WEEKDAY(DATE($A$4,$A$5+$A$3-1,GC8),2),Auxiliar!$D$1:$E$7,2,0))","v":""},{"$f":"IF(GD$8=\"\",\"\",VLOOKUP(WEEKDAY(DATE($A$4,$A$5+$A$3-1,GD8),2),Auxiliar!$D$1:$E$7,2,0))","v":""},{"$f":"IF(GE$8=\"\",\"\",VLOOKUP(WEEKDAY(DATE($A$4,$A$5+$A$3-1,GE8),2),Auxiliar!$D$1:$E$7,2,0))","v":""},{"$f":"IF(GF$8=\"\",\"\",VLOOKUP(WEEKDAY(DATE($A$4,$A$5+$A$3-1,GF8),2),Auxiliar!$D$1:$E$7,2,0))","v":""},{"$f":"IF(GG$8=\"\",\"\",VLOOKUP(WEEKDAY(DATE($A$4,$A$5+$A$3-1,GG8),2),Auxiliar!$D$1:$E$7,2,0))","v":""},{"$f":"IF(GH$8=\"\",\"\",VLOOKUP(WEEKDAY(DATE($A$4,$A$5+$A$3-1,GH8),2),Auxiliar!$D$1:$E$7,2,0))","v":""},{"$f":"IF(GI$8=\"\",\"\",VLOOKUP(WEEKDAY(DATE($A$4,$A$5+$A$3-1,GI8),2),Auxiliar!$D$1:$E$7,2,0))","v":""},{"$f":"IF(GJ$8=\"\",\"\",VLOOKUP(WEEKDAY(DATE($A$4,$A$5+$A$3-1,GJ8),2),Auxiliar!$D$1:$E$7,2,0))","v":""},{"$f":"IF(GK$8=\"\",\"\",VLOOKUP(WEEKDAY(DATE($A$4,$A$5+$A$3-1,GK8),2),Auxiliar!$D$1:$E$7,2,0))","v":""},{"$f":"IF(GL$8=\"\",\"\",VLOOKUP(WEEKDAY(DATE($A$4,$A$5+$A$3-1,GL8),2),Auxiliar!$D$1:$E$7,2,0))","v":""},{"$f":"IF(GM$8=\"\",\"\",VLOOKUP(WEEKDAY(DATE($A$4,$A$5+$A$3-1,GM8),2),Auxiliar!$D$1:$E$7,2,0))","v":""},{"$f":"IF(GN$8=\"\",\"\",VLOOKUP(WEEKDAY(DATE($A$4,$A$5+$A$3-1,GN8),2),Auxiliar!$D$1:$E$7,2,0))","v":""},{"$f":"IF(GO$8=\"\",\"\",VLOOKUP(WEEKDAY(DATE($A$4,$A$5+$A$3-1,GO8),2),Auxiliar!$D$1:$E$7,2,0))","v":""},{"$f":"IF(GP$8=\"\",\"\",VLOOKUP(WEEKDAY(DATE($A$4,$A$5+$A$3-1,GP8),2),Auxiliar!$D$1:$E$7,2,0))","v":""},{"$f":"IF(GQ$8=\"\",\"\",VLOOKUP(WEEKDAY(DATE($A$4,$A$5+$A$3-1,GQ8),2),Auxiliar!$D$1:$E$7,2,0))","v":""},{"$f":"IF(GR$8=\"\",\"\",VLOOKUP(WEEKDAY(DATE($A$4,$A$5+$A$3-1,GR8),2),Auxiliar!$D$1:$E$7,2,0))","v":""},{"$f":"IF(GS$8=\"\",\"\",VLOOKUP(WEEKDAY(DATE($A$4,$A$5+$A$3-1,GS8),2),Auxiliar!$D$1:$E$7,2,0))","v":""},{"$f":"IF(GT$8=\"\",\"\",VLOOKUP(WEEKDAY(DATE($A$4,$A$5+$A$3-1,GT8),2),Auxiliar!$D$1:$E$7,2,0))","v":""},{"$f":"IF(GU$8=\"\",\"\",VLOOKUP(WEEKDAY(DATE($A$4,$A$5+$A$3-1,GU8),2),Auxiliar!$D$1:$E$7,2,0))","v":""},{"$f":"IF(GV$8=\"\",\"\",VLOOKUP(WEEKDAY(DATE($A$4,$A$5+$A$3-1,GV8),2),Auxiliar!$D$1:$E$7,2,0))","v":""},{"$f":"IF(GW$8=\"\",\"\",VLOOKUP(WEEKDAY(DATE($A$4,$A$5+$A$3-1,GW8),2),Auxiliar!$D$1:$E$7,2,0))","v":""},{"$f":"IF(GX$8=\"\",\"\",VLOOKUP(WEEKDAY(DATE($A$4,$A$5+$A$3-1,GX8),2),Auxiliar!$D$1:$E$7,2,0))","v":""},{"$f":"IF(GY$8=\"\",\"\",VLOOKUP(WEEKDAY(DATE($A$4,$A$5+$A$3-1,GY8),2),Auxiliar!$D$1:$E$7,2,0))","v":""},{"$f":"IF(GZ$8=\"\",\"\",VLOOKUP(WEEKDAY(DATE($A$4,$A$5+$A$3-1,GZ8),2),Auxiliar!$D$1:$E$7,2,0))","v":""},{"$f":"IF(HA$8=\"\",\"\",VLOOKUP(WEEKDAY(DATE($A$4,$A$5+$A$3-1,HA8),2),Auxiliar!$D$1:$E$7,2,0))","v":""},{"$f":"IF(HB$8=\"\",\"\",VLOOKUP(WEEKDAY(DATE($A$4,$A$5+$A$3-1,HB8),2),Auxiliar!$D$1:$E$7,2,0))","v":""},{"$f":"IF(HC$8=\"\",\"\",VLOOKUP(WEEKDAY(DATE($A$4,$A$5+$A$3-1,HC8),2),Auxiliar!$D$1:$E$7,2,0))","v":""},{"$f":"IF(HD$8=\"\",\"\",VLOOKUP(WEEKDAY(DATE($A$4,$A$5+$A$3-1,HD8),2),Auxiliar!$D$1:$E$7,2,0))","v":""},{"$f":"IF(HE$8=\"\",\"\",VLOOKUP(WEEKDAY(DATE($A$4,$A$5+$A$3-1,HE8),2),Auxiliar!$D$1:$E$7,2,0))","v":""},{"$f":"IF(HF$8=\"\",\"\",VLOOKUP(WEEKDAY(DATE($A$4,$A$5+$A$3-1,HF8),2),Auxiliar!$D$1:$E$7,2,0))","v":""},{"$f":"IF(HG$8=\"\",\"\",VLOOKUP(WEEKDAY(DATE($A$4,$A$5+$A$3-1,HG8),2),Auxiliar!$D$1:$E$7,2,0))","v":""},{"$f":"IF(HH$8=\"\",\"\",VLOOKUP(WEEKDAY(DATE($A$4,$A$5+$A$3-1,HH8),2),Auxiliar!$D$1:$E$7,2,0))","v":""},{"$f":"IF(HI$8=\"\",\"\",VLOOKUP(WEEKDAY(DATE($A$4,$A$5+$A$3-1,HI8),2),Auxiliar!$D$1:$E$7,2,0))","v":""},{"$f":"IF(HJ$8=\"\",\"\",VLOOKUP(WEEKDAY(DATE($A$4,$A$5+$A$3-1,HJ8),2),Auxiliar!$D$1:$E$7,2,0))","v":""},{"$f":"IF(HK$8=\"\",\"\",VLOOKUP(WEEKDAY(DATE($A$4,$A$5+$A$3-1,HK8),2),Auxiliar!$D$1:$E$7,2,0))","v":""},{"$f":"IF(HL$8=\"\",\"\",VLOOKUP(WEEKDAY(DATE($A$4,$A$5+$A$3-1,HL8),2),Auxiliar!$D$1:$E$7,2,0))","v":""},{"$f":"IF(HM$8=\"\",\"\",VLOOKUP(WEEKDAY(DATE($A$4,$A$5+$A$3-1,HM8),2),Auxiliar!$D$1:$E$7,2,0))","v":""},{"$f":"IF(HN$8=\"\",\"\",VLOOKUP(WEEKDAY(DATE($A$4,$A$5+$A$3-1,HN8),2),Auxiliar!$D$1:$E$7,2,0))","v":""},{"$f":"IF(HO$8=\"\",\"\",VLOOKUP(WEEKDAY(DATE($A$4,$A$5+$A$3-1,HO8),2),Auxiliar!$D$1:$E$7,2,0))","v":""},{"$f":"IF(HP$8=\"\",\"\",VLOOKUP(WEEKDAY(DATE($A$4,$A$5+$A$3-1,HP8),2),Auxiliar!$D$1:$E$7,2,0))","v":""},{"$f":"IF(HQ$8=\"\",\"\",VLOOKUP(WEEKDAY(DATE($A$4,$A$5+$A$3-1,HQ8),2),Auxiliar!$D$1:$E$7,2,0))","v":""},{"$f":"IF(HR$8=\"\",\"\",VLOOKUP(WEEKDAY(DATE($A$4,$A$5+$A$3-1,HR8),2),Auxiliar!$D$1:$E$7,2,0))","v":""},{"$f":"IF(HS$8=\"\",\"\",VLOOKUP(WEEKDAY(DATE($A$4,$A$5+$A$3-1,HS8),2),Auxiliar!$D$1:$E$7,2,0))","v":""},{"$f":"IF(HT$8=\"\",\"\",VLOOKUP(WEEKDAY(DATE($A$4,$A$5+$A$3-1,HT8),2),Auxiliar!$D$1:$E$7,2,0))","v":""},{"$f":"IF(HU$8=\"\",\"\",VLOOKUP(WEEKDAY(DATE($A$4,$A$5+$A$3-1,HU8),2),Auxiliar!$D$1:$E$7,2,0))","v":""},{"$f":"IF(HV$8=\"\",\"\",VLOOKUP(WEEKDAY(DATE($A$4,$A$5+$A$3-1,HV8),2),Auxiliar!$D$1:$E$7,2,0))","v":""},{"$f":"IF(HW$8=\"\",\"\",VLOOKUP(WEEKDAY(DATE($A$4,$A$5+$A$3-1,HW8),2),Auxiliar!$D$1:$E$7,2,0))","v":""},{"$f":"IF(HX$8=\"\",\"\",VLOOKUP(WEEKDAY(DATE($A$4,$A$5+$A$3-1,HX8),2),Auxiliar!$D$1:$E$7,2,0))","v":""},{"$f":"IF(HY$8=\"\",\"\",VLOOKUP(WEEKDAY(DATE($A$4,$A$5+$A$3-1,HY8),2),Auxiliar!$D$1:$E$7,2,0))","v":""},{"$f":"IF(HZ$8=\"\",\"\",VLOOKUP(WEEKDAY(DATE($A$4,$A$5+$A$3-1,HZ8),2),Auxiliar!$D$1:$E$7,2,0))","v":""},{"$f":"IF(IA$8=\"\",\"\",VLOOKUP(WEEKDAY(DATE($A$4,$A$5+$A$3-1,IA8),2),Auxiliar!$D$1:$E$7,2,0))","v":""},{"$f":"IF(IB$8=\"\",\"\",VLOOKUP(WEEKDAY(DATE($A$4,$A$5+$A$3-1,IB8),2),Auxiliar!$D$1:$E$7,2,0))","v":""},{"$f":"IF(IC$8=\"\",\"\",VLOOKUP(WEEKDAY(DATE($A$4,$A$5+$A$3-1,IC8),2),Auxiliar!$D$1:$E$7,2,0))","v":""},{"$f":"IF(ID$8=\"\",\"\",VLOOKUP(WEEKDAY(DATE($A$4,$A$5+$A$3-1,ID8),2),Auxiliar!$D$1:$E$7,2,0))","v":""},{"$f":"IF(IE$8=\"\",\"\",VLOOKUP(WEEKDAY(DATE($A$4,$A$5+$A$3-1,IE8),2),Auxiliar!$D$1:$E$7,2,0))","v":""},{"$f":"IF(IF$8=\"\",\"\",VLOOKUP(WEEKDAY(DATE($A$4,$A$5+$A$3-1,IF8),2),Auxiliar!$D$1:$E$7,2,0))","v":""},{"$f":"IF(IG$8=\"\",\"\",VLOOKUP(WEEKDAY(DATE($A$4,$A$5+$A$3-1,IG8),2),Auxiliar!$D$1:$E$7,2,0))","v":""},{"$f":"IF(IH$8=\"\",\"\",VLOOKUP(WEEKDAY(DATE($A$4,$A$5+$A$3-1,IH8),2),Auxiliar!$D$1:$E$7,2,0))","v":""},{"$f":"IF(II$8=\"\",\"\",VLOOKUP(WEEKDAY(DATE($A$4,$A$5+$A$3-1,II8),2),Auxiliar!$D$1:$E$7,2,0))","v":""},{"$f":"IF(IJ$8=\"\",\"\",VLOOKUP(WEEKDAY(DATE($A$4,$A$5+$A$3-1,IJ8),2),Auxiliar!$D$1:$E$7,2,0))","v":""},{"$f":"IF(IK$8=\"\",\"\",VLOOKUP(WEEKDAY(DATE($A$4,$A$5+$A$3-1,IK8),2),Auxiliar!$D$1:$E$7,2,0))","v":""},{"$f":"IF(IL$8=\"\",\"\",VLOOKUP(WEEKDAY(DATE($A$4,$A$5+$A$3-1,IL8),2),Auxiliar!$D$1:$E$7,2,0))","v":""},{"$f":"IF(IM$8=\"\",\"\",VLOOKUP(WEEKDAY(DATE($A$4,$A$5+$A$3-1,IM8),2),Auxiliar!$D$1:$E$7,2,0))","v":""},{"$f":"IF(IN$8=\"\",\"\",VLOOKUP(WEEKDAY(DATE($A$4,$A$5+$A$3-1,IN8),2),Auxiliar!$D$1:$E$7,2,0))","v":""},{"$f":"IF(IO$8=\"\",\"\",VLOOKUP(WEEKDAY(DATE($A$4,$A$5+$A$3-1,IO8),2),Auxiliar!$D$1:$E$7,2,0))","v":""},{"$f":"IF(IP$8=\"\",\"\",VLOOKUP(WEEKDAY(DATE($A$4,$A$5+$A$3-1,IP8),2),Auxiliar!$D$1:$E$7,2,0))","v":""},{"$f":"IF(IQ$8=\"\",\"\",VLOOKUP(WEEKDAY(DATE($A$4,$A$5+$A$3-1,IQ8),2),Auxiliar!$D$1:$E$7,2,0))","v":""},{"$f":"IF(IR$8=\"\",\"\",VLOOKUP(WEEKDAY(DATE($A$4,$A$5+$A$3-1,IR8),2),Auxiliar!$D$1:$E$7,2,0))","v":""},{"$f":"IF(IS$8=\"\",\"\",VLOOKUP(WEEKDAY(DATE($A$4,$A$5+$A$3-1,IS8),2),Auxiliar!$D$1:$E$7,2,0))","v":""},{"$f":"IF(IT$8=\"\",\"\",VLOOKUP(WEEKDAY(DATE($A$4,$A$5+$A$3-1,IT8),2),Auxiliar!$D$1:$E$7,2,0))","v":""},{"$f":"IF(IU$8=\"\",\"\",VLOOKUP(WEEKDAY(DATE($A$4,$A$5+$A$3-1,IU8),2),Auxiliar!$D$1:$E$7,2,0))","v":""},{"$f":"IF(IV$8=\"\",\"\",VLOOKUP(WEEKDAY(DATE($A$4,$A$5+$A$3-1,IV8),2),Auxiliar!$D$1:$E$7,2,0))","v":""},{"$f":"IF(IW$8=\"\",\"\",VLOOKUP(WEEKDAY(DATE($A$4,$A$5+$A$3-1,IW8),2),Auxiliar!$D$1:$E$7,2,0))","v":""},{"$f":"IF(IX$8=\"\",\"\",VLOOKUP(WEEKDAY(DATE($A$4,$A$5+$A$3-1,IX8),2),Auxiliar!$D$1:$E$7,2,0))","v":""},{"$f":"IF(IY$8=\"\",\"\",VLOOKUP(WEEKDAY(DATE($A$4,$A$5+$A$3-1,IY8),2),Auxiliar!$D$1:$E$7,2,0))","v":""},{"$f":"IF(IZ$8=\"\",\"\",VLOOKUP(WEEKDAY(DATE($A$4,$A$5+$A$3-1,IZ8),2),Auxiliar!$D$1:$E$7,2,0))","v":""},{"$f":"IF(JA$8=\"\",\"\",VLOOKUP(WEEKDAY(DATE($A$4,$A$5+$A$3-1,JA8),2),Auxiliar!$D$1:$E$7,2,0))","v":""},{"$f":"IF(JB$8=\"\",\"\",VLOOKUP(WEEKDAY(DATE($A$4,$A$5+$A$3-1,JB8),2),Auxiliar!$D$1:$E$7,2,0))","v":""},{"$f":"IF(JC$8=\"\",\"\",VLOOKUP(WEEKDAY(DATE($A$4,$A$5+$A$3-1,JC8),2),Auxiliar!$D$1:$E$7,2,0))","v":""},{"$f":"IF(JD$8=\"\",\"\",VLOOKUP(WEEKDAY(DATE($A$4,$A$5+$A$3-1,JD8),2),Auxiliar!$D$1:$E$7,2,0))","v":""},{"$f":"IF(JE$8=\"\",\"\",VLOOKUP(WEEKDAY(DATE($A$4,$A$5+$A$3-1,JE8),2),Auxiliar!$D$1:$E$7,2,0))","v":""},{"$f":"IF(JF$8=\"\",\"\",VLOOKUP(WEEKDAY(DATE($A$4,$A$5+$A$3-1,JF8),2),Auxiliar!$D$1:$E$7,2,0))","v":""},{"$f":"IF(JG$8=\"\",\"\",VLOOKUP(WEEKDAY(DATE($A$4,$A$5+$A$3-1,JG8),2),Auxiliar!$D$1:$E$7,2,0))","v":""},{"$f":"IF(JH$8=\"\",\"\",VLOOKUP(WEEKDAY(DATE($A$4,$A$5+$A$3-1,JH8),2),Auxiliar!$D$1:$E$7,2,0))","v":""},{"$f":"IF(JI$8=\"\",\"\",VLOOKUP(WEEKDAY(DATE($A$4,$A$5+$A$3-1,JI8),2),Auxiliar!$D$1:$E$7,2,0))","v":""},{"$f":"IF(JJ$8=\"\",\"\",VLOOKUP(WEEKDAY(DATE($A$4,$A$5+$A$3-1,JJ8),2),Auxiliar!$D$1:$E$7,2,0))","v":""},{"$f":"IF(JK$8=\"\",\"\",VLOOKUP(WEEKDAY(DATE($A$4,$A$5+$A$3-1,JK8),2),Auxiliar!$D$1:$E$7,2,0))","v":""},{"$f":"IF(JL$8=\"\",\"\",VLOOKUP(WEEKDAY(DATE($A$4,$A$5+$A$3-1,JL8),2),Auxiliar!$D$1:$E$7,2,0))","v":""},{"$f":"IF(JM$8=\"\",\"\",VLOOKUP(WEEKDAY(DATE($A$4,$A$5+$A$3-1,JM8),2),Auxiliar!$D$1:$E$7,2,0))","v":""},{"$f":"IF(JN$8=\"\",\"\",VLOOKUP(WEEKDAY(DATE($A$4,$A$5+$A$3-1,JN8),2),Auxiliar!$D$1:$E$7,2,0))","v":""},{"$f":"IF(JO$8=\"\",\"\",VLOOKUP(WEEKDAY(DATE($A$4,$A$5+$A$3-1,JO8),2),Auxiliar!$D$1:$E$7,2,0))","v":""},{"$f":"IF(JP$8=\"\",\"\",VLOOKUP(WEEKDAY(DATE($A$4,$A$5+$A$3-1,JP8),2),Auxiliar!$D$1:$E$7,2,0))","v":""},{"$f":"IF(JQ$8=\"\",\"\",VLOOKUP(WEEKDAY(DATE($A$4,$A$5+$A$3-1,JQ8),2),Auxiliar!$D$1:$E$7,2,0))","v":""},{"$f":"IF(JR$8=\"\",\"\",VLOOKUP(WEEKDAY(DATE($A$4,$A$5+$A$3-1,JR8),2),Auxiliar!$D$1:$E$7,2,0))","v":""},{"$f":"IF(JS$8=\"\",\"\",VLOOKUP(WEEKDAY(DATE($A$4,$A$5+$A$3-1,JS8),2),Auxiliar!$D$1:$E$7,2,0))","v":""},{"$f":"IF(JT$8=\"\",\"\",VLOOKUP(WEEKDAY(DATE($A$4,$A$5+$A$3-1,JT8),2),Auxiliar!$D$1:$E$7,2,0))","v":""},{"$f":"IF(JU$8=\"\",\"\",VLOOKUP(WEEKDAY(DATE($A$4,$A$5+$A$3-1,JU8),2),Auxiliar!$D$1:$E$7,2,0))","v":""},{"$f":"IF(JV$8=\"\",\"\",VLOOKUP(WEEKDAY(DATE($A$4,$A$5+$A$3-1,JV8),2),Auxiliar!$D$1:$E$7,2,0))","v":""},{"$f":"IF(JW$8=\"\",\"\",VLOOKUP(WEEKDAY(DATE($A$4,$A$5+$A$3-1,JW8),2),Auxiliar!$D$1:$E$7,2,0))","v":""},{"$f":"IF(JX$8=\"\",\"\",VLOOKUP(WEEKDAY(DATE($A$4,$A$5+$A$3-1,JX8),2),Auxiliar!$D$1:$E$7,2,0))","v":""},{"$f":"IF(JY$8=\"\",\"\",VLOOKUP(WEEKDAY(DATE($A$4,$A$5+$A$3-1,JY8),2),Auxiliar!$D$1:$E$7,2,0))","v":""},{"$f":"IF(JZ$8=\"\",\"\",VLOOKUP(WEEKDAY(DATE($A$4,$A$5+$A$3-1,JZ8),2),Auxiliar!$D$1:$E$7,2,0))","v":""},{"$f":"IF(KA$8=\"\",\"\",VLOOKUP(WEEKDAY(DATE($A$4,$A$5+$A$3-1,KA8),2),Auxiliar!$D$1:$E$7,2,0))","v":""},{"$f":"IF(KB$8=\"\",\"\",VLOOKUP(WEEKDAY(DATE($A$4,$A$5+$A$3-1,KB8),2),Auxiliar!$D$1:$E$7,2,0))","v":""},{"$f":"IF(KC$8=\"\",\"\",VLOOKUP(WEEKDAY(DATE($A$4,$A$5+$A$3-1,KC8),2),Auxiliar!$D$1:$E$7,2,0))","v":""},{"$f":"IF(KD$8=\"\",\"\",VLOOKUP(WEEKDAY(DATE($A$4,$A$5+$A$3-1,KD8),2),Auxiliar!$D$1:$E$7,2,0))","v":""},{"$f":"IF(KE$8=\"\",\"\",VLOOKUP(WEEKDAY(DATE($A$4,$A$5+$A$3-1,KE8),2),Auxiliar!$D$1:$E$7,2,0))","v":""},{"$f":"IF(KF$8=\"\",\"\",VLOOKUP(WEEKDAY(DATE($A$4,$A$5+$A$3-1,KF8),2),Auxiliar!$D$1:$E$7,2,0))","v":""},{"$f":"IF(KG$8=\"\",\"\",VLOOKUP(WEEKDAY(DATE($A$4,$A$5+$A$3-1,KG8),2),Auxiliar!$D$1:$E$7,2,0))","v":""},{"$f":"IF(KH$8=\"\",\"\",VLOOKUP(WEEKDAY(DATE($A$4,$A$5+$A$3-1,KH8),2),Auxiliar!$D$1:$E$7,2,0))","v":""},{"$f":"IF(KI$8=\"\",\"\",VLOOKUP(WEEKDAY(DATE($A$4,$A$5+$A$3-1,KI8),2),Auxiliar!$D$1:$E$7,2,0))","v":""},{"$f":"IF(KJ$8=\"\",\"\",VLOOKUP(WEEKDAY(DATE($A$4,$A$5+$A$3-1,KJ8),2),Auxiliar!$D$1:$E$7,2,0))","v":""},{"$f":"IF(KK$8=\"\",\"\",VLOOKUP(WEEKDAY(DATE($A$4,$A$5+$A$3-1,KK8),2),Auxiliar!$D$1:$E$7,2,0))","v":""},{"$f":"IF(KL$8=\"\",\"\",VLOOKUP(WEEKDAY(DATE($A$4,$A$5+$A$3-1,KL8),2),Auxiliar!$D$1:$E$7,2,0))","v":""},{"$f":"IF(KM$8=\"\",\"\",VLOOKUP(WEEKDAY(DATE($A$4,$A$5+$A$3-1,KM8),2),Auxiliar!$D$1:$E$7,2,0))","v":""},{"$f":"IF(KN$8=\"\",\"\",VLOOKUP(WEEKDAY(DATE($A$4,$A$5+$A$3-1,KN8),2),Auxiliar!$D$1:$E$7,2,0))","v":""},{"$f":"IF(KO$8=\"\",\"\",VLOOKUP(WEEKDAY(DATE($A$4,$A$5+$A$3-1,KO8),2),Auxiliar!$D$1:$E$7,2,0))","v":""},{"$f":"IF(KP$8=\"\",\"\",VLOOKUP(WEEKDAY(DATE($A$4,$A$5+$A$3-1,KP8),2),Auxiliar!$D$1:$E$7,2,0))","v":""},{"$f":"IF(KQ$8=\"\",\"\",VLOOKUP(WEEKDAY(DATE($A$4,$A$5+$A$3-1,KQ8),2),Auxiliar!$D$1:$E$7,2,0))","v":""},{"$f":"IF(KR$8=\"\",\"\",VLOOKUP(WEEKDAY(DATE($A$4,$A$5+$A$3-1,KR8),2),Auxiliar!$D$1:$E$7,2,0))","v":""},{"$f":"IF(KS$8=\"\",\"\",VLOOKUP(WEEKDAY(DATE($A$4,$A$5+$A$3-1,KS8),2),Auxiliar!$D$1:$E$7,2,0))","v":""},{"$f":"IF(KT$8=\"\",\"\",VLOOKUP(WEEKDAY(DATE($A$4,$A$5+$A$3-1,KT8),2),Auxiliar!$D$1:$E$7,2,0))","v":""},{"$f":"IF(KU$8=\"\",\"\",VLOOKUP(WEEKDAY(DATE($A$4,$A$5+$A$3-1,KU8),2),Auxiliar!$D$1:$E$7,2,0))","v":""},{"$f":"IF(KV$8=\"\",\"\",VLOOKUP(WEEKDAY(DATE($A$4,$A$5+$A$3-1,KV8),2),Auxiliar!$D$1:$E$7,2,0))","v":""},{"$f":"IF(KW$8=\"\",\"\",VLOOKUP(WEEKDAY(DATE($A$4,$A$5+$A$3-1,KW8),2),Auxiliar!$D$1:$E$7,2,0))","v":""},{"$f":"IF(KX$8=\"\",\"\",VLOOKUP(WEEKDAY(DATE($A$4,$A$5+$A$3-1,KX8),2),Auxiliar!$D$1:$E$7,2,0))","v":""},{"$f":"IF(KY$8=\"\",\"\",VLOOKUP(WEEKDAY(DATE($A$4,$A$5+$A$3-1,KY8),2),Auxiliar!$D$1:$E$7,2,0))","v":""},{"$f":"IF(KZ$8=\"\",\"\",VLOOKUP(WEEKDAY(DATE($A$4,$A$5+$A$3-1,KZ8),2),Auxiliar!$D$1:$E$7,2,0))","v":""},{"$f":"IF(LA$8=\"\",\"\",VLOOKUP(WEEKDAY(DATE($A$4,$A$5+$A$3-1,LA8),2),Auxiliar!$D$1:$E$7,2,0))","v":""},{"$f":"IF(LB$8=\"\",\"\",VLOOKUP(WEEKDAY(DATE($A$4,$A$5+$A$3-1,LB8),2),Auxiliar!$D$1:$E$7,2,0))","v":""},{"$f":"IF(LC$8=\"\",\"\",VLOOKUP(WEEKDAY(DATE($A$4,$A$5+$A$3-1,LC8),2),Auxiliar!$D$1:$E$7,2,0))","v":""},{"$f":"IF(LD$8=\"\",\"\",VLOOKUP(WEEKDAY(DATE($A$4,$A$5+$A$3-1,LD8),2),Auxiliar!$D$1:$E$7,2,0))","v":""},{"$f":"IF(LE$8=\"\",\"\",VLOOKUP(WEEKDAY(DATE($A$4,$A$5+$A$3-1,LE8),2),Auxiliar!$D$1:$E$7,2,0))","v":""},{"$f":"IF(LF$8=\"\",\"\",VLOOKUP(WEEKDAY(DATE($A$4,$A$5+$A$3-1,LF8),2),Auxiliar!$D$1:$E$7,2,0))","v":""},{"$f":"IF(LG$8=\"\",\"\",VLOOKUP(WEEKDAY(DATE($A$4,$A$5+$A$3-1,LG8),2),Auxiliar!$D$1:$E$7,2,0))","v":""},{"$f":"IF(LH$8=\"\",\"\",VLOOKUP(WEEKDAY(DATE($A$4,$A$5+$A$3-1,LH8),2),Auxiliar!$D$1:$E$7,2,0))","v":""},{"$f":"IF(LI$8=\"\",\"\",VLOOKUP(WEEKDAY(DATE($A$4,$A$5+$A$3-1,LI8),2),Auxiliar!$D$1:$E$7,2,0))","v":""},{"$f":"IF(LJ$8=\"\",\"\",VLOOKUP(WEEKDAY(DATE($A$4,$A$5+$A$3-1,LJ8),2),Auxiliar!$D$1:$E$7,2,0))","v":""},{"$f":"IF(LK$8=\"\",\"\",VLOOKUP(WEEKDAY(DATE($A$4,$A$5+$A$3-1,LK8),2),Auxiliar!$D$1:$E$7,2,0))","v":""},{"$f":"IF(LL$8=\"\",\"\",VLOOKUP(WEEKDAY(DATE($A$4,$A$5+$A$3-1,LL8),2),Auxiliar!$D$1:$E$7,2,0))","v":""},{"$f":"IF(LM$8=\"\",\"\",VLOOKUP(WEEKDAY(DATE($A$4,$A$5+$A$3-1,LM8),2),Auxiliar!$D$1:$E$7,2,0))","v":""},{"$f":"IF(LN$8=\"\",\"\",VLOOKUP(WEEKDAY(DATE($A$4,$A$5+$A$3-1,LN8),2),Auxiliar!$D$1:$E$7,2,0))","v":""},{"$f":"IF(LO$8=\"\",\"\",VLOOKUP(WEEKDAY(DATE($A$4,$A$5+$A$3-1,LO8),2),Auxiliar!$D$1:$E$7,2,0))","v":""},{"$f":"IF(LP$8=\"\",\"\",VLOOKUP(WEEKDAY(DATE($A$4,$A$5+$A$3-1,LP8),2),Auxiliar!$D$1:$E$7,2,0))","v":""},{"$f":"IF(LQ$8=\"\",\"\",VLOOKUP(WEEKDAY(DATE($A$4,$A$5+$A$3-1,LQ8),2),Auxiliar!$D$1:$E$7,2,0))","v":""},{"$f":"IF(LR$8=\"\",\"\",VLOOKUP(WEEKDAY(DATE($A$4,$A$5+$A$3-1,LR8),2),Auxiliar!$D$1:$E$7,2,0))","v":""},{"$f":"IF(LS$8=\"\",\"\",VLOOKUP(WEEKDAY(DATE($A$4,$A$5+$A$3-1,LS8),2),Auxiliar!$D$1:$E$7,2,0))","v":""},{"$f":"IF(LT$8=\"\",\"\",VLOOKUP(WEEKDAY(DATE($A$4,$A$5+$A$3-1,LT8),2),Auxiliar!$D$1:$E$7,2,0))","v":""},{"$f":"IF(LU$8=\"\",\"\",VLOOKUP(WEEKDAY(DATE($A$4,$A$5+$A$3-1,LU8),2),Auxiliar!$D$1:$E$7,2,0))","v":""},{"$f":"IF(LV$8=\"\",\"\",VLOOKUP(WEEKDAY(DATE($A$4,$A$5+$A$3-1,LV8),2),Auxiliar!$D$1:$E$7,2,0))","v":""},{"$f":"IF(LW$8=\"\",\"\",VLOOKUP(WEEKDAY(DATE($A$4,$A$5+$A$3-1,LW8),2),Auxiliar!$D$1:$E$7,2,0))","v":""},{"$f":"IF(LX$8=\"\",\"\",VLOOKUP(WEEKDAY(DATE($A$4,$A$5+$A$3-1,LX8),2),Auxiliar!$D$1:$E$7,2,0))","v":""},{"$f":"IF(LY$8=\"\",\"\",VLOOKUP(WEEKDAY(DATE($A$4,$A$5+$A$3-1,LY8),2),Auxiliar!$D$1:$E$7,2,0))","v":""},{"$f":"IF(LZ$8=\"\",\"\",VLOOKUP(WEEKDAY(DATE($A$4,$A$5+$A$3-1,LZ8),2),Auxiliar!$D$1:$E$7,2,0))","v":""},{"$f":"IF(MA$8=\"\",\"\",VLOOKUP(WEEKDAY(DATE($A$4,$A$5+$A$3-1,MA8),2),Auxiliar!$D$1:$E$7,2,0))","v":""},{"$f":"IF(MB$8=\"\",\"\",VLOOKUP(WEEKDAY(DATE($A$4,$A$5+$A$3-1,MB8),2),Auxiliar!$D$1:$E$7,2,0))","v":""},{"$f":"IF(MC$8=\"\",\"\",VLOOKUP(WEEKDAY(DATE($A$4,$A$5+$A$3-1,MC8),2),Auxiliar!$D$1:$E$7,2,0))","v":""},{"$f":"IF(MD$8=\"\",\"\",VLOOKUP(WEEKDAY(DATE($A$4,$A$5+$A$3-1,MD8),2),Auxiliar!$D$1:$E$7,2,0))","v":""},{"$f":"IF(ME$8=\"\",\"\",VLOOKUP(WEEKDAY(DATE($A$4,$A$5+$A$3-1,ME8),2),Auxiliar!$D$1:$E$7,2,0))","v":""},{"$f":"IF(MF$8=\"\",\"\",VLOOKUP(WEEKDAY(DATE($A$4,$A$5+$A$3-1,MF8),2),Auxiliar!$D$1:$E$7,2,0))","v":""},{"$f":"IF(MG$8=\"\",\"\",VLOOKUP(WEEKDAY(DATE($A$4,$A$5+$A$3-1,MG8),2),Auxiliar!$D$1:$E$7,2,0))","v":""},{"$f":"IF(MH$8=\"\",\"\",VLOOKUP(WEEKDAY(DATE($A$4,$A$5+$A$3-1,MH8),2),Auxiliar!$D$1:$E$7,2,0))","v":""},{"$f":"IF(MI$8=\"\",\"\",VLOOKUP(WEEKDAY(DATE($A$4,$A$5+$A$3-1,MI8),2),Auxiliar!$D$1:$E$7,2,0))","v":""},{"$f":"IF(MJ$8=\"\",\"\",VLOOKUP(WEEKDAY(DATE($A$4,$A$5+$A$3-1,MJ8),2),Auxiliar!$D$1:$E$7,2,0))","v":""},{"$f":"IF(MK$8=\"\",\"\",VLOOKUP(WEEKDAY(DATE($A$4,$A$5+$A$3-1,MK8),2),Auxiliar!$D$1:$E$7,2,0))","v":""},{"$f":"IF(ML$8=\"\",\"\",VLOOKUP(WEEKDAY(DATE($A$4,$A$5+$A$3-1,ML8),2),Auxiliar!$D$1:$E$7,2,0))","v":""},{"$f":"IF(MM$8=\"\",\"\",VLOOKUP(WEEKDAY(DATE($A$4,$A$5+$A$3-1,MM8),2),Auxiliar!$D$1:$E$7,2,0))","v":""},{"$f":"IF(MN$8=\"\",\"\",VLOOKUP(WEEKDAY(DATE($A$4,$A$5+$A$3-1,MN8),2),Auxiliar!$D$1:$E$7,2,0))","v":""},{"$f":"IF(MO$8=\"\",\"\",VLOOKUP(WEEKDAY(DATE($A$4,$A$5+$A$3-1,MO8),2),Auxiliar!$D$1:$E$7,2,0))","v":""},{"$f":"IF(MP$8=\"\",\"\",VLOOKUP(WEEKDAY(DATE($A$4,$A$5+$A$3-1,MP8),2),Auxiliar!$D$1:$E$7,2,0))","v":""},{"$f":"IF(MQ$8=\"\",\"\",VLOOKUP(WEEKDAY(DATE($A$4,$A$5+$A$3-1,MQ8),2),Auxiliar!$D$1:$E$7,2,0))","v":""},{"$f":"IF(MR$8=\"\",\"\",VLOOKUP(WEEKDAY(DATE($A$4,$A$5+$A$3-1,MR8),2),Auxiliar!$D$1:$E$7,2,0))","v":""},{"$f":"IF(MS$8=\"\",\"\",VLOOKUP(WEEKDAY(DATE($A$4,$A$5+$A$3-1,MS8),2),Auxiliar!$D$1:$E$7,2,0))","v":""},{"$f":"IF(MT$8=\"\",\"\",VLOOKUP(WEEKDAY(DATE($A$4,$A$5+$A$3-1,MT8),2),Auxiliar!$D$1:$E$7,2,0))","v":""},{"$f":"IF(MU$8=\"\",\"\",VLOOKUP(WEEKDAY(DATE($A$4,$A$5+$A$3-1,MU8),2),Auxiliar!$D$1:$E$7,2,0))","v":""},{"$f":"IF(MV$8=\"\",\"\",VLOOKUP(WEEKDAY(DATE($A$4,$A$5+$A$3-1,MV8),2),Auxiliar!$D$1:$E$7,2,0))","v":""},{"$f":"IF(MW$8=\"\",\"\",VLOOKUP(WEEKDAY(DATE($A$4,$A$5+$A$3-1,MW8),2),Auxiliar!$D$1:$E$7,2,0))","v":""},{"$f":"IF(MX$8=\"\",\"\",VLOOKUP(WEEKDAY(DATE($A$4,$A$5+$A$3-1,MX8),2),Auxiliar!$D$1:$E$7,2,0))","v":""},{"$f":"IF(MY$8=\"\",\"\",VLOOKUP(WEEKDAY(DATE($A$4,$A$5+$A$3-1,MY8),2),Auxiliar!$D$1:$E$7,2,0))","v":""},{"$f":"IF(MZ$8=\"\",\"\",VLOOKUP(WEEKDAY(DATE($A$4,$A$5+$A$3-1,MZ8),2),Auxiliar!$D$1:$E$7,2,0))","v":""},{"$f":"IF(NA$8=\"\",\"\",VLOOKUP(WEEKDAY(DATE($A$4,$A$5+$A$3-1,NA8),2),Auxiliar!$D$1:$E$7,2,0))","v":""},{"$f":"IF(NB$8=\"\",\"\",VLOOKUP(WEEKDAY(DATE($A$4,$A$5+$A$3-1,NB8),2),Auxiliar!$D$1:$E$7,2,0))","v":""},{"$f":"IF(NC$8=\"\",\"\",VLOOKUP(WEEKDAY(DATE($A$4,$A$5+$A$3-1,NC8),2),Auxiliar!$D$1:$E$7,2,0))","v":""},{"$f":"IF(ND$8=\"\",\"\",VLOOKUP(WEEKDAY(DATE($A$4,$A$5+$A$3-1,ND8),2),Auxiliar!$D$1:$E$7,2,0))","v":""},{"$f":"IF(NE$8=\"\",\"\",VLOOKUP(WEEKDAY(DATE($A$4,$A$5+$A$3-1,NE8),2),Auxiliar!$D$1:$E$7,2,0))","v":""},{"$f":"IF(NF$8=\"\",\"\",VLOOKUP(WEEKDAY(DATE($A$4,$A$5+$A$3-1,NF8),2),Auxiliar!$D$1:$E$7,2,0))","v":""},{"$f":"IF(NG$8=\"\",\"\",VLOOKUP(WEEKDAY(DATE($A$4,$A$5+$A$3-1,NG8),2),Auxiliar!$D$1:$E$7,2,0))","v":""},{"$f":"IF(NH$8=\"\",\"\",VLOOKUP(WEEKDAY(DATE($A$4,$A$5+$A$3-1,NH8),2),Auxiliar!$D$1:$E$7,2,0))","v":""},{"$f":"IF(NI$8=\"\",\"\",VLOOKUP(WEEKDAY(DATE($A$4,$A$5+$A$3-1,NI8),2),Auxiliar!$D$1:$E$7,2,0))","v":""}]
["López",null,null,null,null,null,null,null,null,null,null,null,null,null,null,null,null,null,null,null,null,null,null,null,null,null,null,null,null,null,null,null,null,null,null,null,null,null,null,null,null,null,null,null,null,null,null,null,null,null,null,null,null,null,null,null,null,null,null,null,null,null,null,null,null,null,null,null,null,null,null,null,null,null,null,null,null,null,null,null,null,null,null,null,null,null,null,null,null,null,null,null,null,null,null,null,null,null,null,null,null,null,null,null,null,null,null,null,null,null,null,null,null,null,null,null,null,null,null,null,null,null,null,null,null,null,null,null,null,null,null,null,null,null,null,null,null,null,null,null,null,null,null,null,null,null,null,null,null,null,null,null,null,null,null,null,null,null,null,null,null,null,null,null,null,null,null,null,null,null,null,null,null,null,null,null,null,null,null,null,null,null,null,null,null,null,null,null,null,null,null,null,null,null,null,null,null,null,null,null,null,null,null,null,null,null,null,null,null,null,null,null,null,null,null,null,null,null,null,null,null,null,null,null,null,null,null,null,null,null,null,null,null,null,null,null,null,null,null,null,null,null,null,null,null,null,null,null,null,null,null,null,null,null,null,null,null,null,null,null,null,null,null,null,null,null,null,null,null,null,null,null,null,null,null,null,null,null,null,null,null,null,null,null,null,null,null,null,null,null,null,null,null,null,null,null,null,null,null,null,null,null,null,null,null,null,null,null,null,null,null,null,null,null,null,null,null,null,null,null,null,null,null,null,null,null,null,null,null,null,null,null,null,null,null,null,null,null,null,null,null,null,null,null,null,null,null,null,null,null,null,null,null,null,null,null,null,null,null,null,null,null,null,null,null,null,null,null,null,null,null,null,null,{"$f":"SUMPRODUCT((OFFSET($A10,0,31*($A$5-1)+1,1,31)<>\"\")*(IF(OFFSET($A10,0,31*($A$5-1)+1,1,31)=$NK$6,0.5,1)*(OFFSET($A$6,0,31*($A$5-1)+1,1,31))))","v":0},{"$f":"SUMPRODUCT((OFFSET($A10,0,1,1,372)<>\"\")*(IF(OFFSET($A10,0,1,1,372)=$NK$6,0.5,1)*(OFFSET($A$6,0,1,1,372))))","v":0},15,{"$f":"NL10-NK10","v":15},{"$f":"SUMPRODUCT((OFFSET($A10,0,1,1,372)<>\"\")*(OFFSET($A$6,0,1,1,372))*((OFFSET($A10,0,1,1,372))=NN$8))","v":0},{"$f":"SUMPRODUCT((OFFSET($A10,0,1,1,372)<>\"\")*(OFFSET($A$6,0,1,1,372))*((OFFSET($A10,0,1,1,372))=NO$8))","v":0},0,0,0]
["Rodríguez",null,null,null,null,null,null,null,null,null,null,null,null,null,null,null,null,null,null,null,null,null,null,null,null,null,null,null,null,null,null,null,null,null,null,null,null,null,null,null,null,null,null,null,null,null,null,null,null,null,null,null,null,null,null,null,null,null,null,null,null,null,null,null,null,null,null,null,null,null,null,null,null,null,null,null,null,null,null,null,null,null,null,null,null,null,null,null,null,null,null,null,null,null,null,null,null,null,null,null,null,null,null,null,null,null,null,null,null,null,null,null,null,null,null,null,null,null,null,null,null,null,null,null,null,null,null,null,null,null,null,null,null,null,null,null,null,null,null,null,null,null,null,null,null,null,null,null,null,null,null,null,null,null,null,null,null,null,null,null,null,null,null,null,null,null,null,null,null,null,null,null,null,null,null,null,null,null,null,null,null,null,null,null,null,null,null,null,null,null,null,null,null,null,null,null,null,null,null,null,null,null,null,null,null,null,null,null,null,null,null,null,null,null,null,null,null,null,null,null,null,null,null,null,null,null,null,null,null,null,null,null,null,null,null,null,null,null,null,null,null,null,null,null,null,null,null,null,null,null,null,null,null,null,null,null,null,null,null,null,null,null,null,null,null,null,null,null,null,null,null,null,null,null,null,null,null,null,null,null,null,null,null,null,null,null,null,null,null,null,null,null,null,null,null,null,null,null,null,null,null,null,null,null,null,null,null,null,null,null,null,null,null,null,null,null,null,null,null,null,null,null,null,null,null,null,null,null,null,null,null,null,null,null,null,null,null,null,null,null,null,null,null,null,null,null,null,null,null,null,null,null,null,null,null,null,null,null,null,null,null,null,null,null,null,null,null,null,null,null,null,null,null,{"$f":"SUMPRODUCT((OFFSET($A11,0,31*($A$5-1)+1,1,31)<>\"\")*(IF(OFFSET($A11,0,31*($A$5-1)+1,1,31)=$NK$6,0.5,1)*(OFFSET($A$6,0,31*($A$5-1)+1,1,31))))","v":0},{"$f":"SUMPRODUCT((OFFSET($A11,0,1,1,372)<>\"\")*(IF(OFFSET($A11,0,1,1,372)=$NK$6,0.5,1)*(OFFSET($A$6,0,1,1,372))))","v":0},10,{"$f":"NL11-NK11","v":10},{"$f":"SUMPRODUCT((OFFSET($A11,0,1,1,372)<>\"\")*(OFFSET($A$6,0,1,1,372))*((OFFSET($A11,0,1,1,372))=NN$8))","v":0},0,0,0,0]
["Márquez",null,null,null,null,null,null,null,null,null,null,null,null,null,null,null,null,null,null,null,null,null,null,null,null,null,null,null,null,null,null,null,null,null,null,null,null,null,null,null,null,null,null,null,null,null,null,null,null,null,null,null,null,null,null,null,null,null,null,null,null,null,null,null,null,null,null,null,null,null,null,null,null,null,null,null,null,null,null,null,null,null,null,null,null,null,null,null,null,null,null,null,null,null,null,null,null,null,null,null,null,null,null,null,null,null,null,null,null,null,null,null,null,null,null,null,null,null,null,null,null,null,null,null,null,null,null,null,null,null,null,null,null,null,null,null,null,null,null,null,null,null,null,null,null,null,null,null,null,null,null,null,null,null,null,null,null,null,null,null,null,null,null,null,null,null,null,null,null,null,null,null,null,null,null,null,null,null,null,null,null,null,null,null,null,null,null,null,null,null,null,null,null,null,null,null,null,null,null,null,null,null,null,null,null,null,null,null,null,null,null,null,null,null,null,null,null,null,null,null,null,null,null,null,null,null,null,null,null,null,null,null,null,null,null,null,null,null,null,null,null,null,null,null,null,null,null,null,null,null,null,null,null,null,null,null,null,null,null,null,null,null,null,null,null,null,null,null,null,null,null,null,null,null,null,null,null,null,null,null,null,null,null,null,null,null,null,null,null,null,null,null,null,null,null,null,null,null,null,null,null,null,null,null,null,null,null,null,null,null,null,null,null,null,null,null,null,null,null,null,null,null,null,null,null,null,null,null,null,null,null,null,null,null,null,null,null,null,null,null,null,null,null,null,null,null,null,null,null,null,null,null,null,null,null,null,null,null,null,null,null,null,null,null,null,null,null,null,null,null,null,null,null,{"$f":"SUMPRODUCT((OFFSET($A12,0,31*($A$5-1)+1,1,31)<>\"\")*(IF(OFFSET($A12,0,31*($A$5-1)+1,1,31)=$NK$6,0.5,1)*(OFFSET($A$6,0,31*($A$5-1)+1,1,31))))","v":0},{"$f":"SUMPRODUCT((OFFSET($A12,0,1,1,372)<>\"\")*(IF(OFFSET($A12,0,1,1,372)=$NK$6,0.5,1)*(OFFSET($A$6,0,1,1,372))))","v":0},20,20,0,0,0,0,0]
["Gutierrez",null,null,null,null,null,null,null,null,null,null,null,null,null,null,null,null,null,null,null,null,null,null,null,null,null,null,null,null,null,null,null,null,null,null,null,null,null,null,null,null,null,null,null,null,null,null,null,null,null,null,null,null,null,null,null,null,null,null,null,null,null,null,null,null,null,null,null,null,null,null,null,null,null,null,null,null,null,null,null,null,null,null,null,null,null,null,null,null,null,null,null,null,null,null,null,null,null,null,null,null,null,null,null,null,null,null,null,null,null,null,null,null,null,null,null,null,null,null,null,null,null,null,null,null,null,null,null,null,null,null,null,null,null,null,null,null,null,null,null,null,null,null,null,null,null,null,null,null,null,null,null,null,null,null,null,null,null,null,null,null,null,null,null,null,null,null,null,null,null,null,null,null,null,null,null,null,null,null,null,null,null,null,null,null,null,null,null,null,null,null,null,null,null,null,null,null,null,null,null,null,null,null,null,null,null,null,null,null,null,null,null,null,null,null,null,null,null,null,null,null,null,null,null,null,null,null,null,null,null,null,null,null,null,null,null,null,null,null,null,null,null,null,null,null,null,null,null,null,null,null,null,null,null,null,null,null,null,null,null,null,null,null,null,null,null,null,null,null,null,null,null,null,null,null,null,null,null,null,null,null,null,null,null,null,null,null,null,null,null,null,null,null,null,null,null,null,null,null,null,null,null,null,null,null,null,null,null,null,null,null,null,null,null,null,null,null,null,null,null,null,null,null,null,null,null,null,null,null,null,null,null,null,null,null,null,null,null,null,null,null,null,null,null,null,null,null,null,null,null,null,null,null,null,null,null,null,null,null,null,null,null,null,null,null,null,null,null,null,null,null,null,null,{"$f":"SUMPRODUCT((OFFSET($A13,0,31*($A$5-1)+1,1,31)<>\"\")*(IF(OFFSET($A13,0,31*($A$5-1)+1,1,31)=$NK$6,0.5,1)*(OFFSET($A$6,0,31*($A$5-1)+1,1,31))))","v":0},{"$f":"SUMPRODUCT((OFFSET($A13,0,1,1,372)<>\"\")*(IF(OFFSET($A13,0,1,1,372)=$NK$6,0.5,1)*(OFFSET($A$6,0,1,1,372))))","v":0},15,15,0,0,0,0,0]
[null,null,null,null,null,null,null,null,null,null,null,null,null,null,null,null,null,null,null,null,null,null,null,null,null,null,null,null,null,null,null,null,null,null,null,null,null,null,null,null,null,null,null,null,null,null,null,null,null,null,null,null,null,null,null,null,null,null,null,null,null,null,null,null,null,null,null,null,null,null,null,null,null,null,null,null,null,null,null,null,null,null,null,null,null,null,null,null,null,null,null,null,null,null,null,null,null,null,null,null,null,null,null,null,null,null,null,null,null,null,null,null,null,null,null,null,null,null,null,null,null,null,null,null,null,null,null,null,null,null,null,null,null,null,null,null,null,null,null,null,null,null,null,null,null,null,null,null,null,null,null,null,null,null,null,null,null,null,null,null,null,null,null,null,null,null,null,null,null,null,null,null,null,null,null,null,null,null,null,null,null,null,null,null,null,null,null,null,null,null,null,null,null,null,null,null,null,null,null,null,null,null,null,null,null,null,null,null,null,null,null,null,null,null,null,null,null,null,null,null,null,null,null,null,null,null,null,null,null,null,null,null,null,null,null,null,null,null,null,null,null,null,null,null,null,null,null,null,null,null,null,null,null,null,null,null,null,null,null,null,null,null,null,null,null,null,null,null,null,null,null,null,null,null,null,null,null,null,null,null,null,null,null,null,null,null,null,null,null,null,null,null,null,null,null,null,null,null,null,null,null,null,null,null,null,null,null,null,null,null,null,null,null,null,null,null,null,null,null,null,null,null,null,null,null,null,null,null,null,null,null,null,null,null,null,null,null,null,null,null,null,null,null,null,null,null,null,null,null,null,null,null,null,null,null,null,null,null,null,null,null,null,null,null,null,null,null,null,null,null,null,null,null,{"$f":"SUMPRODUCT((OFFSET($A14,0,31*($A$5-1)+1,1,31)<>\"\")*(IF(OFFSET($A14,0,31*($A$5-1)+1,1,31)=$NK$6,0.5,1)*(OFFSET($A$6,0,31*($A$5-1)+1,1,31))))","v":0},{"$f":"SUMPRODUCT((OFFSET($A14,0,1,1,372)<>\"\")*(IF(OFFSET($A14,0,1,1,372)=$NK$6,0.5,1)*(OFFSET($A$6,0,1,1,372))))","v":0},null,0,0,0,0,0,0]
[null,null,null,null,null,null,null,null,null,null,null,null,null,null,null,null,null,null,null,null,null,null,null,null,null,null,null,null,null,null,null,null,null,null,null,null,null,null,null,null,null,null,null,null,null,null,null,null,null,null,null,null,null,null,null,null,null,null,null,null,null,null,null,null,null,null,null,null,null,null,null,null,null,null,null,null,null,null,null,null,null,null,null,null,null,null,null,null,null,null,null,null,null,null,null,null,null,null,null,null,null,null,null,null,null,null,null,null,null,null,null,null,null,null,null,null,null,null,null,null,null,null,null,null,null,null,null,null,null,null,null,null,null,null,null,null,null,null,null,null,null,null,null,null,null,null,null,null,null,null,null,null,null,null,null,null,null,null,null,null,null,null,null,null,null,null,null,null,null,null,null,null,null,null,null,null,null,null,null,null,null,null,null,null,null,null,null,null,null,null,null,null,null,null,null,null,null,null,null,null,null,null,null,null,null,null,null,null,null,null,null,null,null,null,null,null,null,null,null,null,null,null,null,null,null,null,null,null,null,null,null,null,null,null,null,null,null,null,null,null,null,null,null,null,null,null,null,null,null,null,null,null,null,null,null,null,null,null,null,null,null,null,null,null,null,null,null,null,null,null,null,null,null,null,null,null,null,null,null,null,null,null,null,null,null,null,null,null,null,null,null,null,null,null,null,null,null,null,null,null,null,null,null,null,null,null,null,null,null,null,null,null,null,null,null,null,null,null,null,null,null,null,null,null,null,null,null,null,null,null,null,null,null,null,null,null,null,null,null,null,null,null,null,null,null,null,null,null,null,null,null,null,null,null,null,null,null,null,null,null,null,null,null,null,null,null,null,null,null,null,null,null,null,{"$f":"SUMPRODUCT((OFFSET($A15,0,31*($A$5-1)+1,1,31)<>\"\")*(IF(OFFSET($A15,0,31*($A$5-1)+1,1,31)=$NK$6,0.5,1)*(OFFSET($A$6,0,31*($A$5-1)+1,1,31))))","v":0},{"$f":"SUMPRODUCT((OFFSET($A15,0,1,1,372)<>\"\")*(IF(OFFSET($A15,0,1,1,372)=$NK$6,0.5,1)*(OFFSET($A$6,0,1,1,372))))","v":0},null,0,0,0,0,0,0]
[null,null,null,null,null,null,null,null,null,null,null,null,null,null,null,null,null,null,null,null,null,null,null,null,null,null,null,null,null,null,null,null,null,null,null,null,null,null,null,null,null,null,null,null,null,null,null,null,null,null,null,null,null,null,null,null,null,null,null,null,null,null,null,null,null,null,null,null,null,null,null,null,null,null,null,null,null,null,null,null,null,null,null,null,null,null,null,null,null,null,null,null,null,null,null,null,null,null,null,null,null,null,null,null,null,null,null,null,null,null,null,null,null,null,null,null,null,null,null,null,null,null,null,null,null,null,null,null,null,null,null,null,null,null,null,null,null,null,null,null,null,null,null,null,null,null,null,null,null,null,null,null,null,null,null,null,null,null,null,null,null,null,null,null,null,null,null,null,null,null,null,null,null,null,null,null,null,null,null,null,null,null,null,null,null,null,null,null,null,null,null,null,null,null,null,null,null,null,null,null,null,null,null,null,null,null,null,null,null,null,null,null,null,null,null,null,null,null,null,null,null,null,null,null,null,null,null,null,null,null,null,null,null,null,null,null,null,null,null,null,null,null,null,null,null,null,null,null,null,null,null,null,null,null,null,null,null,null,null,null,null,null,null,null,null,null,null,null,null,null,null,null,null,null,null,null,null,null,null,null,null,null,null,null,null,null,null,null,null,null,null,null,null,null,null,null,null,null,null,null,null,null,null,null,null,null,null,null,null,null,null,null,null,null,null,null,null,null,null,null,null,null,null,null,null,null,null,null,null,null,null,null,null,null,null,null,null,null,null,null,null,null,null,null,null,null,null,null,null,null,null,null,null,null,null,null,null,null,null,null,null,null,null,null,null,null,null,null,null,null,null,null,null,{"$f":"SUMPRODUCT((OFFSET($A16,0,31*($A$5-1)+1,1,31)<>\"\")*(IF(OFFSET($A16,0,31*($A$5-1)+1,1,31)=$NK$6,0.5,1)*(OFFSET($A$6,0,31*($A$5-1)+1,1,31))))","v":0},{"$f":"SUMPRODUCT((OFFSET($A16,0,1,1,372)<>\"\")*(IF(OFFSET($A16,0,1,1,372)=$NK$6,0.5,1)*(OFFSET($A$6,0,1,1,372))))","v":0},null,0,0,0,0,0,0]
[null,null,null,null,null,null,null,null,null,null,null,null,null,null,null,null,null,null,null,null,null,null,null,null,null,null,null,null,null,null,null,null,null,null,null,null,null,null,null,null,null,null,null,null,null,null,null,null,null,null,null,null,null,null,null,null,null,null,null,null,null,null,null,null,null,null,null,null,null,null,null,null,null,null,null,null,null,null,null,null,null,null,null,null,null,null,null,null,null,null,null,null,null,null,null,null,null,null,null,null,null,null,null,null,null,null,null,null,null,null,null,null,null,null,null,null,null,null,null,null,null,null,null,null,null,null,null,null,null,null,null,null,null,null,null,null,null,null,null,null,null,null,null,null,null,null,null,null,null,null,null,null,null,null,null,null,null,null,null,null,null,null,null,null,null,null,null,null,null,null,null,null,null,null,null,null,null,null,null,null,null,null,null,null,null,null,null,null,null,null,null,null,null,null,null,null,null,null,null,null,null,null,null,null,null,null,null,null,null,null,null,null,null,null,null,null,null,null,null,null,null,null,null,null,null,null,null,null,null,null,null,null,null,null,null,null,null,null,null,null,null,null,null,null,null,null,null,null,null,null,null,null,null,null,null,null,null,null,null,null,null,null,null,null,null,null,null,null,null,null,null,null,null,null,null,null,null,null,null,null,null,null,null,null,null,null,null,null,null,null,null,null,null,null,null,null,null,null,null,null,null,null,null,null,null,null,null,null,null,null,null,null,null,null,null,null,null,null,null,null,null,null,null,null,null,null,null,null,null,null,null,null,null,null,null,null,null,null,null,null,null,null,null,null,null,null,null,null,null,null,null,null,null,null,null,null,null,null,null,null,null,null,null,null,null,null,null,null,null,null,null,null,null,{"$f":"SUMPRODUCT((OFFSET($A17,0,31*($A$5-1)+1,1,31)<>\"\")*(IF(OFFSET($A17,0,31*($A$5-1)+1,1,31)=$NK$6,0.5,1)*(OFFSET($A$6,0,31*($A$5-1)+1,1,31))))","v":0},{"$f":"SUMPRODUCT((OFFSET($A17,0,1,1,372)<>\"\")*(IF(OFFSET($A17,0,1,1,372)=$NK$6,0.5,1)*(OFFSET($A$6,0,1,1,372))))","v":0},null,0,0,0,0,0,0]
[null,null,null,null,null,null,null,null,null,null,null,null,null,null,null,null,null,null,null,null,null,null,null,null,null,null,null,null,null,null,null,null,null,null,null,null,null,null,null,null,null,null,null,null,null,null,null,null,null,null,null,null,null,null,null,null,null,null,null,null,null,null,null,null,null,null,null,null,null,null,null,null,null,null,null,null,null,null,null,null,null,null,null,null,null,null,null,null,null,null,null,null,null,null,null,null,null,null,null,null,null,null,null,null,null,null,null,null,null,null,null,null,null,null,null,null,null,null,null,null,null,null,null,null,null,null,null,null,null,null,null,null,null,null,null,null,null,null,null,null,null,null,null,null,null,null,null,null,null,null,null,null,null,null,null,null,null,null,null,null,null,null,null,null,null,null,null,null,null,null,null,null,null,null,null,null,null,null,null,null,null,null,null,null,null,null,null,null,null,null,null,null,null,null,null,null,null,null,null,null,null,null,null,null,null,null,null,null,null,null,null,null,null,null,null,null,null,null,null,null,null,null,null,null,null,null,null,null,null,null,null,null,null,null,null,null,null,null,null,null,null,null,null,null,null,null,null,null,null,null,null,null,null,null,null,null,null,null,null,null,null,null,null,null,null,null,null,null,null,null,null,null,null,null,null,null,null,null,null,null,null,null,null,null,null,null,null,null,null,null,null,null,null,null,null,null,null,null,null,null,null,null,null,null,null,null,null,null,null,null,null,null,null,null,null,null,null,null,null,null,null,null,null,null,null,null,null,null,null,null,null,null,null,null,null,null,null,null,null,null,null,null,null,null,null,null,null,null,null,null,null,null,null,null,null,null,null,null,null,null,null,null,null,null,null,null,null,null,null,null,null,null,null,{"$f":"SUMPRODUCT((OFFSET($A18,0,31*($A$5-1)+1,1,31)<>\"\")*(IF(OFFSET($A18,0,31*($A$5-1)+1,1,31)=$NK$6,0.5,1)*(OFFSET($A$6,0,31*($A$5-1)+1,1,31))))","v":0},{"$f":"SUMPRODUCT((OFFSET($A18,0,1,1,372)<>\"\")*(IF(OFFSET($A18,0,1,1,372)=$NK$6,0.5,1)*(OFFSET($A$6,0,1,1,372))))","v":0},null,0,0,0,0,0,0]
[null,null,null,null,null,null,null,null,null,null,null,null,null,null,null,null,null,null,null,null,null,null,null,null,null,null,null,null,null,null,null,null,null,null,null,null,null,null,null,null,null,null,null,null,null,null,null,null,null,null,null,null,null,null,null,null,null,null,null,null,null,null,null,null,null,null,null,null,null,null,null,null,null,null,null,null,null,null,null,null,null,null,null,null,null,null,null,null,null,null,null,null,null,null,null,null,null,null,null,null,null,null,null,null,null,null,null,null,null,null,null,null,null,null,null,null,null,null,null,null,null,null,null,null,null,null,null,null,null,null,null,null,null,null,null,null,null,null,null,null,null,null,null,null,null,null,null,null,null,null,null,null,null,null,null,null,null,null,null,null,null,null,null,null,null,null,null,null,null,null,null,null,null,null,null,null,null,null,null,null,null,null,null,null,null,null,null,null,null,null,null,null,null,null,null,null,null,null,null,null,null,null,null,null,null,null,null,null,null,null,null,null,null,null,null,null,null,null,null,null,null,null,null,null,null,null,null,null,null,null,null,null,null,null,null,null,null,null,null,null,null,null,null,null,null,null,null,null,null,null,null,null,null,null,null,null,null,null,null,null,null,null,null,null,null,null,null,null,null,null,null,null,null,null,null,null,null,null,null,null,null,null,null,null,null,null,null,null,null,null,null,null,null,null,null,null,null,null,null,null,null,null,null,null,null,null,null,null,null,null,null,null,null,null,null,null,null,null,null,null,null,null,null,null,null,null,null,null,null,null,null,null,null,null,null,null,null,null,null,null,null,null,null,null,null,null,null,null,null,null,null,null,null,null,null,null,null,null,null,null,null,null,null,null,null,null,null,null,null,null,null,null,null,{"$f":"SUMPRODUCT((OFFSET($A19,0,31*($A$5-1)+1,1,31)<>\"\")*(IF(OFFSET($A19,0,31*($A$5-1)+1,1,31)=$NK$6,0.5,1)*(OFFSET($A$6,0,31*($A$5-1)+1,1,31))))","v":0},{"$f":"SUMPRODUCT((OFFSET($A19,0,1,1,372)<>\"\")*(IF(OFFSET($A19,0,1,1,372)=$NK$6,0.5,1)*(OFFSET($A$6,0,1,1,372))))","v":0},null,0,0,0,0,0,0]
[null,null,null,null,null,null,null,null,null,null,null,null,null,null,null,null,null,null,null,null,null,null,null,null,null,null,null,null,null,null,null,null,null,null,null,null,null,null,null,null,null,null,null,null,null,null,null,null,null,null,null,null,null,null,null,null,null,null,null,null,null,null,null,null,null,null,null,null,null,null,null,null,null,null,null,null,null,null,null,null,null,null,null,null,null,null,null,null,null,null,null,null,null,null,null,null,null,null,null,null,null,null,null,null,null,null,null,null,null,null,null,null,null,null,null,null,null,null,null,null,null,null,null,null,null,null,null,null,null,null,null,null,null,null,null,null,null,null,null,null,null,null,null,null,null,null,null,null,null,null,null,null,null,null,null,null,null,null,null,null,null,null,null,null,null,null,null,null,null,null,null,null,null,null,null,null,null,null,null,null,null,null,null,null,null,null,null,null,null,null,null,null,null,null,null,null,null,null,null,null,null,null,null,null,null,null,null,null,null,null,null,null,null,null,null,null,null,null,null,null,null,null,null,null,null,null,null,null,null,null,null,null,null,null,null,null,null,null,null,null,null,null,null,null,null,null,null,null,null,null,null,null,null,null,null,null,null,null,null,null,null,null,null,null,null,null,null,null,null,null,null,null,null,null,null,null,null,null,null,null,null,null,null,null,null,null,null,null,null,null,null,null,null,null,null,null,null,null,null,null,null,null,null,null,null,null,null,null,null,null,null,null,null,null,null,null,null,null,null,null,null,null,null,null,null,null,null,null,null,null,null,null,null,null,null,null,null,null,null,null,null,null,null,null,null,null,null,null,null,null,null,null,null,null,null,null,null,null,null,null,null,null,null,null,null,null,null,null,null,null,null,null,null,{"$f":"SUMPRODUCT((OFFSET($A20,0,31*($A$5-1)+1,1,31)<>\"\")*(IF(OFFSET($A20,0,31*($A$5-1)+1,1,31)=$NK$6,0.5,1)*(OFFSET($A$6,0,31*($A$5-1)+1,1,31))))","v":0},{"$f":"SUMPRODUCT((OFFSET($A20,0,1,1,372)<>\"\")*(IF(OFFSET($A20,0,1,1,372)=$NK$6,0.5,1)*(OFFSET($A$6,0,1,1,372))))","v":0},null,0,{"$f":"SUMPRODUCT((OFFSET($A20,0,1,1,372)<>\"\")*(OFFSET($A$6,0,1,1,372))*((OFFSET($A20,0,1,1,372))=NN$8))","v":0},0,0,0,0]
[null,null,null,null,null,null,null,null,null,null,null,null,null,null,null,null,null,null,null,null,null,null,null,null,null,null,null,null,null,null,null,null,null,null,null,null,null,null,null,null,null,null,null,null,null,null,null,null,null,null,null,null,null,null,null,null,null,null,null,null,null,null,null,null,null,null,null,null,null,null,null,null,null,null,null,null,null,null,null,null,null,null,null,null,null,null,null,null,null,null,null,null,null,null,null,null,null,null,null,null,null,null,null,null,null,null,null,null,null,null,null,null,null,null,null,null,null,null,null,null,null,null,null,null,null,null,null,null,null,null,null,null,null,null,null,null,null,null,null,null,null,null,null,null,null,null,null,null,null,null,null,null,null,null,null,null,null,null,null,null,null,null,null,null,null,null,null,null,null,null,null,null,null,null,null,null,null,null,null,null,null,null,null,null,null,null,null,null,null,null,null,null,null,null,null,null,null,null,null,null,null,null,null,null,null,null,null,null,null,null,null,null,null,null,null,null,null,null,null,null,null,null,null,null,null,null,null,null,null,null,null,null,null,null,null,null,null,null,null,null,null,null,null,null,null,null,null,null,null,null,null,null,null,null,null,null,null,null,null,null,null,null,null,null,null,null,null,null,null,null,null,null,null,null,null,null,null,null,null,null,null,null,null,null,null,null,null,null,null,null,null,null,null,null,null,null,null,null,null,null,null,null,null,null,null,null,null,null,null,null,null,null,null,null,null,null,null,null,null,null,null,null,null,null,null,null,null,null,null,null,null,null,null,null,null,null,null,null,null,null,null,null,null,null,null,null,null,null,null,null,null,null,null,null,null,null,null,null,null,null,null,null,null,null,null,null,null,null,null,null,null,null,null,{"$f":"SUMPRODUCT((OFFSET($A21,0,31*($A$5-1)+1,1,31)<>\"\")*(IF(OFFSET($A21,0,31*($A$5-1)+1,1,31)=$NK$6,0.5,1)*(OFFSET($A$6,0,31*($A$5-1)+1,1,31))))","v":0},{"$f":"SUMPRODUCT((OFFSET($A21,0,1,1,372)<>\"\")*(IF(OFFSET($A21,0,1,1,372)=$NK$6,0.5,1)*(OFFSET($A$6,0,1,1,372))))","v":0},null,0,0,0,0,0,0]
[null,null,null,null,null,null,null,null,null,null,null,null,null,null,null,null,null,null,null,null,null,null,null,null,null,null,null,null,null,null,null,null,null,null,null,null,null,null,null,null,null,null,null,null,null,null,null,null,null,null,null,null,null,null,null,null,null,null,null,null,null,null,null,null,null,null,null,null,null,null,null,null,null,null,null,null,null,null,null,null,null,null,null,null,null,null,null,null,null,null,null,null,null,null,null,null,null,null,null,null,null,null,null,null,null,null,null,null,null,null,null,null,null,null,null,null,null,null,null,null,null,null,null,null,null,null,null,null,null,null,null,null,null,null,null,null,null,null,null,null,null,null,null,null,null,null,null,null,null,null,null,null,null,null,null,null,null,null,null,null,null,null,null,null,null,null,null,null,null,null,null,null,null,null,null,null,null,null,null,null,null,null,null,null,null,null,null,null,null,null,null,null,null,null,null,null,null,null,null,null,null,null,null,null,null,null,null,null,null,null,null,null,null,null,null,null,null,null,null,null,null,null,null,null,null,null,null,null,null,null,null,null,null,null,null,null,null,null,null,null,null,null,null,null,null,null,null,null,null,null,null,null,null,null,null,null,null,null,null,null,null,null,null,null,null,null,null,null,null,null,null,null,null,null,null,null,null,null,null,null,null,null,null,null,null,null,null,null,null,null,null,null,null,null,null,null,null,null,null,null,null,null,null,null,null,null,null,null,null,null,null,null,null,null,null,null,null,null,null,null,null,null,null,null,null,null,null,null,null,null,null,null,null,null,null,null,null,null,null,null,null,null,null,null,null,null,null,null,null,null,null,null,null,null,null,null,null,null,null,null,null,null,null,null,null,null,null,null,null,null,null,null,null,{"$f":"SUMPRODUCT((OFFSET($A22,0,31*($A$5-1)+1,1,31)<>\"\")*(IF(OFFSET($A22,0,31*($A$5-1)+1,1,31)=$NK$6,0.5,1)*(OFFSET($A$6,0,31*($A$5-1)+1,1,31))))","v":0},{"$f":"SUMPRODUCT((OFFSET($A22,0,1,1,372)<>\"\")*(IF(OFFSET($A22,0,1,1,372)=$NK$6,0.5,1)*(OFFSET($A$6,0,1,1,372))))","v":0},null,0,0,0,0,0,0]
[null,null,null,null,null,null,null,null,null,null,null,null,null,null,null,null,null,null,null,null,null,null,null,null,null,null,null,null,null,null,null,null,null,null,null,null,null,null,null,null,null,null,null,null,null,null,null,null,null,null,null,null,null,null,null,null,null,null,null,null,null,null,null,null,null,null,null,null,null,null,null,null,null,null,null,null,null,null,null,null,null,null,null,null,null,null,null,null,null,null,null,null,null,null,null,null,null,null,null,null,null,null,null,null,null,null,null,null,null,null,null,null,null,null,null,null,null,null,null,null,null,null,null,null,null,null,null,null,null,null,null,null,null,null,null,null,null,null,null,null,null,null,null,null,null,null,null,null,null,null,null,null,null,null,null,null,null,null,null,null,null,null,null,null,null,null,null,null,null,null,null,null,null,null,null,null,null,null,null,null,null,null,null,null,null,null,null,null,null,null,null,null,null,null,null,null,null,null,null,null,null,null,null,null,null,null,null,null,null,null,null,null,null,null,null,null,null,null,null,null,null,null,null,null,null,null,null,null,null,null,null,null,null,null,null,null,null,null,null,null,null,null,null,null,null,null,null,null,null,null,null,null,null,null,null,null,null,null,null,null,null,null,null,null,null,null,null,null,null,null,null,null,null,null,null,null,null,null,null,null,null,null,null,null,null,null,null,null,null,null,null,null,null,null,null,null,null,null,null,null,null,null,null,null,null,null,null,null,null,null,null,null,null,null,null,null,null,null,null,null,null,null,null,null,null,null,null,null,null,null,null,null,null,null,null,null,null,null,null,null,null,null,null,null,null,null,null,null,null,null,null,null,null,null,null,null,null,null,null,null,null,null,null,null,null,null,null,null,null,null,null,null,null,{"$f":"SUMPRODUCT((OFFSET($A23,0,31*($A$5-1)+1,1,31)<>\"\")*(IF(OFFSET($A23,0,31*($A$5-1)+1,1,31)=$NK$6,0.5,1)*(OFFSET($A$6,0,31*($A$5-1)+1,1,31))))","v":0},{"$f":"SUMPRODUCT((OFFSET($A23,0,1,1,372)<>\"\")*(IF(OFFSET($A23,0,1,1,372)=$NK$6,0.5,1)*(OFFSET($A$6,0,1,1,372))))","v":0},null,0,0,0,0,0,0]
[null,null,null,null,null,null,null,null,null,null,null,null,null,null,null,null,null,null,null,null,null,null,null,null,null,null,null,null,null,null,null,null,null,null,null,null,null,null,null,null,null,null,null,null,null,null,null,null,null,null,null,null,null,null,null,null,null,null,null,null,null,null,null,null,null,null,null,null,null,null,null,null,null,null,null,null,null,null,null,null,null,null,null,null,null,null,null,null,null,null,null,null,null,null,null,null,null,null,null,null,null,null,null,null,null,null,null,null,null,null,null,null,null,null,null,null,null,null,null,null,null,null,null,null,null,null,null,null,null,null,null,null,null,null,null,null,null,null,null,null,null,null,null,null,null,null,null,null,null,null,null,null,null,null,null,null,null,null,null,null,null,null,null,null,null,null,null,null,null,null,null,null,null,null,null,null,null,null,null,null,null,null,null,null,null,null,null,null,null,null,null,null,null,null,null,null,null,null,null,null,null,null,null,null,null,null,null,null,null,null,null,null,null,null,null,null,null,null,null,null,null,null,null,null,null,null,null,null,null,null,null,null,null,null,null,null,null,null,null,null,null,null,null,null,null,null,null,null,null,null,null,null,null,null,null,null,null,null,null,null,null,null,null,null,null,null,null,null,null,null,null,null,null,null,null,null,null,null,null,null,null,null,null,null,null,null,null,null,null,null,null,null,null,null,null,null,null,null,null,null,null,null,null,null,null,null,null,null,null,null,null,null,null,null,null,null,null,null,null,null,null,null,null,null,null,null,null,null,null,null,null,null,null,null,null,null,null,null,null,null,null,null,null,null,null,null,null,null,null,null,null,null,null,null,null,null,null,null,null,null,null,null,null,null,null,null,null,null,null,null,null,null,null,{"$f":"SUMPRODUCT((OFFSET($A24,0,31*($A$5-1)+1,1,31)<>\"\")*(IF(OFFSET($A24,0,31*($A$5-1)+1,1,31)=$NK$6,0.5,1)*(OFFSET($A$6,0,31*($A$5-1)+1,1,31))))","v":0},{"$f":"SUMPRODUCT((OFFSET($A24,0,1,1,372)<>\"\")*(IF(OFFSET($A24,0,1,1,372)=$NK$6,0.5,1)*(OFFSET($A$6,0,1,1,372))))","v":0},null,0,0,0,0,0,0]
[null,null,null,null,null,null,null,null,null,null,null,null,null,null,null,null,null,null,null,null,null,null,null,null,null,null,null,null,null,null,null,null,null,null,null,null,null,null,null,null,null,null,null,null,null,null,null,null,null,null,null,null,null,null,null,null,null,null,null,null,null,null,null,null,null,null,null,null,null,null,null,null,null,null,null,null,null,null,null,null,null,null,null,null,null,null,null,null,null,null,null,null,null,null,null,null,null,null,null,null,null,null,null,null,null,null,null,null,null,null,null,null,null,null,null,null,null,null,null,null,null,null,null,null,null,null,null,null,null,null,null,null,null,null,null,null,null,null,null,null,null,null,null,null,null,null,null,null,null,null,null,null,null,null,null,null,null,null,null,null,null,null,null,null,null,null,null,null,null,null,null,null,null,null,null,null,null,null,null,null,null,null,null,null,null,null,null,null,null,null,null,null,null,null,null,null,null,null,null,null,null,null,null,null,null,null,null,null,null,null,null,null,null,null,null,null,null,null,null,null,null,null,null,null,null,null,null,null,null,null,null,null,null,null,null,null,null,null,null,null,null,null,null,null,null,null,null,null,null,null,null,null,null,null,null,null,null,null,null,null,null,null,null,null,null,null,null,null,null,null,null,null,null,null,null,null,null,null,null,null,null,null,null,null,null,null,null,null,null,null,null,null,null,null,null,null,null,null,null,null,null,null,null,null,null,null,null,null,null,null,null,null,null,null,null,null,null,null,null,null,null,null,null,null,null,null,null,null,null,null,null,null,null,null,null,null,null,null,null,null,null,null,null,null,null,null,null,null,null,null,null,null,null,null,null,null,null,null,null,null,null,null,null,null,null,null,null,null,null,null,null,null,null,{"$f":"SUMPRODUCT((OFFSET($A25,0,31*($A$5-1)+1,1,31)<>\"\")*(IF(OFFSET($A25,0,31*($A$5-1)+1,1,31)=$NK$6,0.5,1)*(OFFSET($A$6,0,31*($A$5-1)+1,1,31))))","v":0},{"$f":"SUMPRODUCT((OFFSET($A25,0,1,1,372)<>\"\")*(IF(OFFSET($A25,0,1,1,372)=$NK$6,0.5,1)*(OFFSET($A$6,0,1,1,372))))","v":0},null,0,0,0,0,0,0]
[null,null,null,null,null,null,null,null,null,null,null,null,null,null,null,null,null,null,null,null,null,null,null,null,null,null,null,null,null,null,null,null,null,null,null,null,null,null,null,null,null,null,null,null,null,null,null,null,null,null,null,null,null,null,null,null,null,null,null,null,null,null,null,null,null,null,null,null,null,null,null,null,null,null,null,null,null,null,null,null,null,null,null,null,null,null,null,null,null,null,null,null,null,null,null,null,null,null,null,null,null,null,null,null,null,null,null,null,null,null,null,null,null,null,null,null,null,null,null,null,null,null,null,null,null,null,null,null,null,null,null,null,null,null,null,null,null,null,null,null,null,null,null,null,null,null,null,null,null,null,null,null,null,null,null,null,null,null,null,null,null,null,null,null,null,null,null,null,null,null,null,null,null,null,null,null,null,null,null,null,null,null,null,null,null,null,null,null,null,null,null,null,null,null,null,null,null,null,null,null,null,null,null,null,null,null,null,null,null,null,null,null,null,null,null,null,null,null,null,null,null,null,null,null,null,null,null,null,null,null,null,null,null,null,null,null,null,null,null,null,null,null,null,null,null,null,null,null,null,null,null,null,null,null,null,null,null,null,null,null,null,null,null,null,null,null,null,null,null,null,null,null,null,null,null,null,null,null,null,null,null,null,null,null,null,null,null,null,null,null,null,null,null,null,null,null,null,null,null,null,null,null,null,null,null,null,null,null,null,null,null,null,null,null,null,null,null,null,null,null,null,null,null,null,null,null,null,null,null,null,null,null,null,null,null,null,null,null,null,null,null,null,null,null,null,null,null,null,null,null,null,null,null,null,null,null,null,null,null,null,null,null,null,null,null,null,null,null,null,null,null,null,null,{"$f":"SUMPRODUCT((OFFSET($A26,0,31*($A$5-1)+1,1,31)<>\"\")*(IF(OFFSET($A26,0,31*($A$5-1)+1,1,31)=$NK$6,0.5,1)*(OFFSET($A$6,0,31*($A$5-1)+1,1,31))))","v":0},{"$f":"SUMPRODUCT((OFFSET($A26,0,1,1,372)<>\"\")*(IF(OFFSET($A26,0,1,1,372)=$NK$6,0.5,1)*(OFFSET($A$6,0,1,1,372))))","v":0},null,0,0,0,0,0,0]
[null,null,null,null,null,null,null,null,null,null,null,null,null,null,null,null,null,null,null,null,null,null,null,null,null,null,null,null,null,null,null,null,null,null,null,null,null,null,null,null,null,null,null,null,null,null,null,null,null,null,null,null,null,null,null,null,null,null,null,null,null,null,null,null,null,null,null,null,null,null,null,null,null,null,null,null,null,null,null,null,null,null,null,null,null,null,null,null,null,null,null,null,null,null,null,null,null,null,null,null,null,null,null,null,null,null,null,null,null,null,null,null,null,null,null,null,null,null,null,null,null,null,null,null,null,null,null,null,null,null,null,null,null,null,null,null,null,null,null,null,null,null,null,null,null,null,null,null,null,null,null,null,null,null,null,null,null,null,null,null,null,null,null,null,null,null,null,null,null,null,null,null,null,null,null,null,null,null,null,null,null,null,null,null,null,null,null,null,null,null,null,null,null,null,null,null,null,null,null,null,null,null,null,null,null,null,null,null,null,null,null,null,null,null,null,null,null,null,null,null,null,null,null,null,null,null,null,null,null,null,null,null,null,null,null,null,null,null,null,null,null,null,null,null,null,null,null,null,null,null,null,null,null,null,null,null,null,null,null,null,null,null,null,null,null,null,null,null,null,null,null,null,null,null,null,null,null,null,null,null,null,null,null,null,null,null,null,null,null,null,null,null,null,null,null,null,null,null,null,null,null,null,null,null,null,null,null,null,null,null,null,null,null,null,null,null,null,null,null,null,null,null,null,null,null,null,null,null,null,null,null,null,null,null,null,null,null,null,null,null,null,null,null,null,null,null,null,null,null,null,null,null,null,null,null,null,null,null,null,null,null,null,null,null,null,null,null,null,null,null,null,null,null,{"$f":"SUMPRODUCT((OFFSET($A27,0,31*($A$5-1)+1,1,31)<>\"\")*(IF(OFFSET($A27,0,31*($A$5-1)+1,1,31)=$NK$6,0.5,1)*(OFFSET($A$6,0,31*($A$5-1)+1,1,31))))","v":0},{"$f":"SUMPRODUCT((OFFSET($A27,0,1,1,372)<>\"\")*(IF(OFFSET($A27,0,1,1,372)=$NK$6,0.5,1)*(OFFSET($A$6,0,1,1,372))))","v":0},null,0,0,0,0,0,0]
[null,null,null,null,null,null,null,null,null,null,null,null,null,null,null,null,null,null,null,null,null,null,null,null,null,null,null,null,null,null,null,null,null,null,null,null,null,null,null,null,null,null,null,null,null,null,null,null,null,null,null,null,null,null,null,null,null,null,null,null,null,null,null,null,null,null,null,null,null,null,null,null,null,null,null,null,null,null,null,null,null,null,null,null,null,null,null,null,null,null,null,null,null,null,null,null,null,null,null,null,null,null,null,null,null,null,null,null,null,null,null,null,null,null,null,null,null,null,null,null,null,null,null,null,null,null,null,null,null,null,null,null,null,null,null,null,null,null,null,null,null,null,null,null,null,null,null,null,null,null,null,null,null,null,null,null,null,null,null,null,null,null,null,null,null,null,null,null,null,null,null,null,null,null,null,null,null,null,null,null,null,null,null,null,null,null,null,null,null,null,null,null,null,null,null,null,null,null,null,null,null,null,null,null,null,null,null,null,null,null,null,null,null,null,null,null,null,null,null,null,null,null,null,null,null,null,null,null,null,null,null,null,null,null,null,null,null,null,null,null,null,null,null,null,null,null,null,null,null,null,null,null,null,null,null,null,null,null,null,null,null,null,null,null,null,null,null,null,null,null,null,null,null,null,null,null,null,null,null,null,null,null,null,null,null,null,null,null,null,null,null,null,null,null,null,null,null,null,null,null,null,null,null,null,null,null,null,null,null,null,null,null,null,null,null,null,null,null,null,null,null,null,null,null,null,null,null,null,null,null,null,null,null,null,null,null,null,null,null,null,null,null,null,null,null,null,null,null,null,null,null,null,null,null,null,null,null,null,null,null,null,null,null,null,null,null,null,null,null,null,null,null,null,{"$f":"SUMPRODUCT((OFFSET($A28,0,31*($A$5-1)+1,1,31)<>\"\")*(IF(OFFSET($A28,0,31*($A$5-1)+1,1,31)=$NK$6,0.5,1)*(OFFSET($A$6,0,31*($A$5-1)+1,1,31))))","v":0},{"$f":"SUMPRODUCT((OFFSET($A28,0,1,1,372)<>\"\")*(IF(OFFSET($A28,0,1,1,372)=$NK$6,0.5,1)*(OFFSET($A$6,0,1,1,372))))","v":0},null,0,0,0,0,0,0]
[null,null,null,null,null,null,null,null,null,null,null,null,null,null,null,null,null,null,null,null,null,null,null,null,null,null,null,null,null,null,null,null,null,null,null,null,null,null,null,null,null,null,null,null,null,null,null,null,null,null,null,null,null,null,null,null,null,null,null,null,null,null,null,null,null,null,null,null,null,null,null,null,null,null,null,null,null,null,null,null,null,null,null,null,null,null,null,null,null,null,null,null,null,null,null,null,null,null,null,null,null,null,null,null,null,null,null,null,null,null,null,null,null,null,null,null,null,null,null,null,null,null,null,null,null,null,null,null,null,null,null,null,null,null,null,null,null,null,null,null,null,null,null,null,null,null,null,null,null,null,null,null,null,null,null,null,null,null,null,null,null,null,null,null,null,null,null,null,null,null,null,null,null,null,null,null,null,null,null,null,null,null,null,null,null,null,null,null,null,null,null,null,null,null,null,null,null,null,null,null,null,null,null,null,null,null,null,null,null,null,null,null,null,null,null,null,null,null,null,null,null,null,null,null,null,null,null,null,null,null,null,null,null,null,null,null,null,null,null,null,null,null,null,null,null,null,null,null,null,null,null,null,null,null,null,null,null,null,null,null,null,null,null,null,null,null,null,null,null,null,null,null,null,null,null,null,null,null,null,null,null,null,null,null,null,null,null,null,null,null,null,null,null,null,null,null,null,null,null,null,null,null,null,null,null,null,null,null,null,null,null,null,null,null,null,null,null,null,null,null,null,null,null,null,null,null,null,null,null,null,null,null,null,null,null,null,null,null,null,null,null,null,null,null,null,null,null,null,null,null,null,null,null,null,null,null,null,null,null,null,null,null,null,null,null,null,null,null,null,null,null,null,null,{"$f":"SUMPRODUCT((OFFSET($A29,0,31*($A$5-1)+1,1,31)<>\"\")*(IF(OFFSET($A29,0,31*($A$5-1)+1,1,31)=$NK$6,0.5,1)*(OFFSET($A$6,0,31*($A$5-1)+1,1,31))))","v":0},{"$f":"SUMPRODUCT((OFFSET($A29,0,1,1,372)<>\"\")*(IF(OFFSET($A29,0,1,1,372)=$NK$6,0.5,1)*(OFFSET($A$6,0,1,1,372))))","v":0},null,0,0,0,0,0,0]
[null,null,null,null,null,null,null,null,null,null,null,null,null,null,null,null,null,null,null,null,null,null,null,null,null,null,null,null,null,null,null,null,null,null,null,null,null,null,null,null,null,null,null,null,null,null,null,null,null,null,null,null,null,null,null,null,null,null,null,null,null,null,null,null,null,null,null,null,null,null,null,null,null,null,null,null,null,null,null,null,null,null,null,null,null,null,null,null,null,null,null,null,null,null,null,null,null,null,null,null,null,null,null,null,null,null,null,null,null,null,null,null,null,null,null,null,null,null,null,null,null,null,null,null,null,null,null,null,null,null,null,null,null,null,null,null,null,null,null,null,null,null,null,null,null,null,null,null,null,null,null,null,null,null,null,null,null,null,null,null,null,null,null,null,null,null,null,null,null,null,null,null,null,null,null,null,null,null,null,null,null,null,null,null,null,null,null,null,null,null,null,null,null,null,null,null,null,null,null,null,null,null,null,null,null,null,null,null,null,null,null,null,null,null,null,null,null,null,null,null,null,null,null,null,null,null,null,null,null,null,null,null,null,null,null,null,null,null,null,null,null,null,null,null,null,null,null,null,null,null,null,null,null,null,null,null,null,null,null,null,null,null,null,null,null,null,null,null,null,null,null,null,null,null,null,null,null,null,null,null,null,null,null,null,null,null,null,null,null,null,null,null,null,null,null,null,null,null,null,null,null,null,null,null,null,null,null,null,null,null,null,null,null,null,null,null,null,null,null,null,null,null,null,null,null,null,null,null,null,null,null,null,null,null,null,null,null,null,null,null,null,null,null,null,null,null,null,null,null,null,null,null,null,null,null,null,null,null,null,null,null,null,null,null,null,null,null,null,null,null,null,null,null,{"$f":"SUMPRODUCT((OFFSET($A30,0,31*($A$5-1)+1,1,31)<>\"\")*(IF(OFFSET($A30,0,31*($A$5-1)+1,1,31)=$NK$6,0.5,1)*(OFFSET($A$6,0,31*($A$5-1)+1,1,31))))","v":0},{"$f":"SUMPRODUCT((OFFSET($A30,0,1,1,372)<>\"\")*(IF(OFFSET($A30,0,1,1,372)=$NK$6,0.5,1)*(OFFSET($A$6,0,1,1,372))))","v":0},null,0,0,0,0,0,0]
[null,null,null,null,null,null,null,null,null,null,null,null,null,null,null,null,null,null,null,null,null,null,null,null,null,null,null,null,null,null,null,null,null,null,null,null,null,null,null,null,null,null,null,null,null,null,null,null,null,null,null,null,null,null,null,null,null,null,null,null,null,null,null,null,null,null,null,null,null,null,null,null,null,null,null,null,null,null,null,null,null,null,null,null,null,null,null,null,null,null,null,null,null,null,null,null,null,null,null,null,null,null,null,null,null,null,null,null,null,null,null,null,null,null,null,null,null,null,null,null,null,null,null,null,null,null,null,null,null,null,null,null,null,null,null,null,null,null,null,null,null,null,null,null,null,null,null,null,null,null,null,null,null,null,null,null,null,null,null,null,null,null,null,null,null,null,null,null,null,null,null,null,null,null,null,null,null,null,null,null,null,null,null,null,null,null,null,null,null,null,null,null,null,null,null,null,null,null,null,null,null,null,null,null,null,null,null,null,null,null,null,null,null,null,null,null,null,null,null,null,null,null,null,null,null,null,null,null,null,null,null,null,null,null,null,null,null,null,null,null,null,null,null,null,null,null,null,null,null,null,null,null,null,null,null,null,null,null,null,null,null,null,null,null,null,null,null,null,null,null,null,null,null,null,null,null,null,null,null,null,null,null,null,null,null,null,null,null,null,null,null,null,null,null,null,null,null,null,null,null,null,null,null,null,null,null,null,null,null,null,null,null,null,null,null,null,null,null,null,null,null,null,null,null,null,null,null,null,null,null,null,null,null,null,null,null,null,null,null,null,null,null,null,null,null,null,null,null,null,null,null,null,null,null,null,null,null,null,null,null,null,null,null,null,null,null,null,null,null,null,null,null,null,{"$f":"SUMPRODUCT((OFFSET($A31,0,31*($A$5-1)+1,1,31)<>\"\")*(IF(OFFSET($A31,0,31*($A$5-1)+1,1,31)=$NK$6,0.5,1)*(OFFSET($A$6,0,31*($A$5-1)+1,1,31))))","v":0},{"$f":"SUMPRODUCT((OFFSET($A31,0,1,1,372)<>\"\")*(IF(OFFSET($A31,0,1,1,372)=$NK$6,0.5,1)*(OFFSET($A$6,0,1,1,372))))","v":0},null,0,0,0,0,0,0]
[null,null,null,null,null,null,null,null,null,null,null,null,null,null,null,null,null,null,null,null,null,null,null,null,null,null,null,null,null,null,null,null,null,null,null,null,null,null,null,null,null,null,null,null,null,null,null,null,null,null,null,null,null,null,null,null,null,null,null,null,null,null,null,null,null,null,null,null,null,null,null,null,null,null,null,null,null,null,null,null,null,null,null,null,null,null,null,null,null,null,null,null,null,null,null,null,null,null,null,null,null,null,null,null,null,null,null,null,null,null,null,null,null,null,null,null,null,null,null,null,null,null,null,null,null,null,null,null,null,null,null,null,null,null,null,null,null,null,null,null,null,null,null,null,null,null,null,null,null,null,null,null,null,null,null,null,null,null,null,null,null,null,null,null,null,null,null,null,null,null,null,null,null,null,null,null,null,null,null,null,null,null,null,null,null,null,null,null,null,null,null,null,null,null,null,null,null,null,null,null,null,null,null,null,null,null,null,null,null,null,null,null,null,null,null,null,null,null,null,null,null,null,null,null,null,null,null,null,null,null,null,null,null,null,null,null,null,null,null,null,null,null,null,null,null,null,null,null,null,null,null,null,null,null,null,null,null,null,null,null,null,null,null,null,null,null,null,null,null,null,null,null,null,null,null,null,null,null,null,null,null,null,null,null,null,null,null,null,null,null,null,null,null,null,null,null,null,null,null,null,null,null,null,null,null,null,null,null,null,null,null,null,null,null,null,null,null,null,null,null,null,null,null,null,null,null,null,null,null,null,null,null,null,null,null,null,null,null,null,null,null,null,null,null,null,null,null,null,null,null,null,null,null,null,null,null,null,null,null,null,null,null,null,null,null,null,null,null,null,null,null,null,null,{"$f":"SUMPRODUCT((OFFSET($A32,0,31*($A$5-1)+1,1,31)<>\"\")*(IF(OFFSET($A32,0,31*($A$5-1)+1,1,31)=$NK$6,0.5,1)*(OFFSET($A$6,0,31*($A$5-1)+1,1,31))))","v":0},{"$f":"SUMPRODUCT((OFFSET($A32,0,1,1,372)<>\"\")*(IF(OFFSET($A32,0,1,1,372)=$NK$6,0.5,1)*(OFFSET($A$6,0,1,1,372))))","v":0},null,0,0,0,0,0,0]
[null,null,null,null,null,null,null,null,null,null,null,null,null,null,null,null,null,null,null,null,null,null,null,null,null,null,null,null,null,null,null,null,null,null,null,null,null,null,null,null,null,null,null,null,null,null,null,null,null,null,null,null,null,null,null,null,null,null,null,null,null,null,null,null,null,null,null,null,null,null,null,null,null,null,null,null,null,null,null,null,null,null,null,null,null,null,null,null,null,null,null,null,null,null,null,null,null,null,null,null,null,null,null,null,null,null,null,null,null,null,null,null,null,null,null,null,null,null,null,null,null,null,null,null,null,null,null,null,null,null,null,null,null,null,null,null,null,null,null,null,null,null,null,null,null,null,null,null,null,null,null,null,null,null,null,null,null,null,null,null,null,null,null,null,null,null,null,null,null,null,null,null,null,null,null,null,null,null,null,null,null,null,null,null,null,null,null,null,null,null,null,null,null,null,null,null,null,null,null,null,null,null,null,null,null,null,null,null,null,null,null,null,null,null,null,null,null,null,null,null,null,null,null,null,null,null,null,null,null,null,null,null,null,null,null,null,null,null,null,null,null,null,null,null,null,null,null,null,null,null,null,null,null,null,null,null,null,null,null,null,null,null,null,null,null,null,null,null,null,null,null,null,null,null,null,null,null,null,null,null,null,null,null,null,null,null,null,null,null,null,null,null,null,null,null,null,null,null,null,null,null,null,null,null,null,null,null,null,null,null,null,null,null,null,null,null,null,null,null,null,null,null,null,null,null,null,null,null,null,null,null,null,null,null,null,null,null,null,null,null,null,null,null,null,null,null,null,null,null,null,null,null,null,null,null,null,null,null,null,null,null,null,null,null,null,null,null,null,null,null,null,null,null,{"$f":"SUMPRODUCT((OFFSET($A33,0,31*($A$5-1)+1,1,31)<>\"\")*(IF(OFFSET($A33,0,31*($A$5-1)+1,1,31)=$NK$6,0.5,1)*(OFFSET($A$6,0,31*($A$5-1)+1,1,31))))","v":0},{"$f":"SUMPRODUCT((OFFSET($A33,0,1,1,372)<>\"\")*(IF(OFFSET($A33,0,1,1,372)=$NK$6,0.5,1)*(OFFSET($A$6,0,1,1,372))))","v":0},null,0,0,0,0,0,0]
[null,null,null,null,null,null,null,null,null,null,null,null,null,null,null,null,null,null,null,null,null,null,null,null,null,null,null,null,null,null,null,null,null,null,null,null,null,null,null,null,null,null,null,null,null,null,null,null,null,null,null,null,null,null,null,null,null,null,null,null,null,null,null,null,null,null,null,null,null,null,null,null,null,null,null,null,null,null,null,null,null,null,null,null,null,null,null,null,null,null,null,null,null,null,null,null,null,null,null,null,null,null,null,null,null,null,null,null,null,null,null,null,null,null,null,null,null,null,null,null,null,null,null,null,null,null,null,null,null,null,null,null,null,null,null,null,null,null,null,null,null,null,null,null,null,null,null,null,null,null,null,null,null,null,null,null,null,null,null,null,null,null,null,null,null,null,null,null,null,null,null,null,null,null,null,null,null,null,null,null,null,null,null,null,null,null,null,null,null,null,null,null,null,null,null,null,null,null,null,null,null,null,null,null,null,null,null,null,null,null,null,null,null,null,null,null,null,null,null,null,null,null,null,null,null,null,null,null,null,null,null,null,null,null,null,null,null,null,null,null,null,null,null,null,null,null,null,null,null,null,null,null,null,null,null,null,null,null,null,null,null,null,null,null,null,null,null,null,null,null,null,null,null,null,null,null,null,null,null,null,null,null,null,null,null,null,null,null,null,null,null,null,null,null,null,null,null,null,null,null,null,null,null,null,null,null,null,null,null,null,null,null,null,null,null,null,null,null,null,null,null,null,null,null,null,null,null,null,null,null,null,null,null,null,null,null,null,null,null,null,null,null,null,null,null,null,null,null,null,null,null,null,null,null,null,null,null,null,null,null,null,null,null,null,null,null,null,null,null,null,null,null,null,{"$f":"SUMPRODUCT((OFFSET($A34,0,31*($A$5-1)+1,1,31)<>\"\")*(IF(OFFSET($A34,0,31*($A$5-1)+1,1,31)=$NK$6,0.5,1)*(OFFSET($A$6,0,31*($A$5-1)+1,1,31))))","v":0},{"$f":"SUMPRODUCT((OFFSET($A34,0,1,1,372)<>\"\")*(IF(OFFSET($A34,0,1,1,372)=$NK$6,0.5,1)*(OFFSET($A$6,0,1,1,372))))","v":0},null,0,0,0,0,0,0]
[null,null,null,null,null,null,null,null,null,null,null,null,null,null,null,null,null,null,null,null,null,null,null,null,null,null,null,null,null,null,null,null,null,null,null,null,null,null,null,null,null,null,null,null,null,null,null,null,null,null,null,null,null,null,null,null,null,null,null,null,null,null,null,null,null,null,null,null,null,null,null,null,null,null,null,null,null,null,null,null,null,null,null,null,null,null,null,null,null,null,null,null,null,null,null,null,null,null,null,null,null,null,null,null,null,null,null,null,null,null,null,null,null,null,null,null,null,null,null,null,null,null,null,null,null,null,null,null,null,null,null,null,null,null,null,null,null,null,null,null,null,null,null,null,null,null,null,null,null,null,null,null,null,null,null,null,null,null,null,null,null,null,null,null,null,null,null,null,null,null,null,null,null,null,null,null,null,null,null,null,null,null,null,null,null,null,null,null,null,null,null,null,null,null,null,null,null,null,null,null,null,null,null,null,null,null,null,null,null,null,null,null,null,null,null,null,null,null,null,null,null,null,null,null,null,null,null,null,null,null,null,null,null,null,null,null,null,null,null,null,null,null,null,null,null,null,null,null,null,null,null,null,null,null,null,null,null,null,null,null,null,null,null,null,null,null,null,null,null,null,null,null,null,null,null,null,null,null,null,null,null,null,null,null,null,null,null,null,null,null,null,null,null,null,null,null,null,null,null,null,null,null,null,null,null,null,null,null,null,null,null,null,null,null,null,null,null,null,null,null,null,null,null,null,null,null,null,null,null,null,null,null,null,null,null,null,null,null,null,null,null,null,null,null,null,null,null,null,null,null,null,null,null,null,null,null,null,null,null,null,null,null,null,null,null,null,null,null,null,null,null,null,null,{"$f":"SUMPRODUCT((OFFSET($A35,0,31*($A$5-1)+1,1,31)<>\"\")*(IF(OFFSET($A35,0,31*($A$5-1)+1,1,31)=$NK$6,0.5,1)*(OFFSET($A$6,0,31*($A$5-1)+1,1,31))))","v":0},{"$f":"SUMPRODUCT((OFFSET($A35,0,1,1,372)<>\"\")*(IF(OFFSET($A35,0,1,1,372)=$NK$6,0.5,1)*(OFFSET($A$6,0,1,1,372))))","v":0},null,0,0,0,0,0,0]
[null,null,null,null,null,null,null,null,null,null,null,null,null,null,null,null,null,null,null,null,null,null,null,null,null,null,null,null,null,null,null,null,null,null,null,null,null,null,null,null,null,null,null,null,null,null,null,null,null,null,null,null,null,null,null,null,null,null,null,null,null,null,null,null,null,null,null,null,null,null,null,null,null,null,null,null,null,null,null,null,null,null,null,null,null,null,null,null,null,null,null,null,null,null,null,null,null,null,null,null,null,null,null,null,null,null,null,null,null,null,null,null,null,null,null,null,null,null,null,null,null,null,null,null,null,null,null,null,null,null,null,null,null,null,null,null,null,null,null,null,null,null,null,null,null,null,null,null,null,null,null,null,null,null,null,null,null,null,null,null,null,null,null,null,null,null,null,null,null,null,null,null,null,null,null,null,null,null,null,null,null,null,null,null,null,null,null,null,null,null,null,null,null,null,null,null,null,null,null,null,null,null,null,null,null,null,null,null,null,null,null,null,null,null,null,null,null,null,null,null,null,null,null,null,null,null,null,null,null,null,null,null,null,null,null,null,null,null,null,null,null,null,null,null,null,null,null,null,null,null,null,null,null,null,null,null,null,null,null,null,null,null,null,null,null,null,null,null,null,null,null,null,null,null,null,null,null,null,null,null,null,null,null,null,null,null,null,null,null,null,null,null,null,null,null,null,null,null,null,null,null,null,null,null,null,null,null,null,null,null,null,null,null,null,null,null,null,null,null,null,null,null,null,null,null,null,null,null,null,null,null,null,null,null,null,null,null,null,null,null,null,null,null,null,null,null,null,null,null,null,null,null,null,null,null,null,null,null,null,null,null,null,null,null,null,null,null,null,null,null,null,null,null,{"$f":"SUMPRODUCT((OFFSET($A36,0,31*($A$5-1)+1,1,31)<>\"\")*(IF(OFFSET($A36,0,31*($A$5-1)+1,1,31)=$NK$6,0.5,1)*(OFFSET($A$6,0,31*($A$5-1)+1,1,31))))","v":0},{"$f":"SUMPRODUCT((OFFSET($A36,0,1,1,372)<>\"\")*(IF(OFFSET($A36,0,1,1,372)=$NK$6,0.5,1)*(OFFSET($A$6,0,1,1,372))))","v":0},null,0,0,0,0,0,0]
[null,null,null,null,null,null,null,null,null,null,null,null,null,null,null,null,null,null,null,null,null,null,null,null,null,null,null,null,null,null,null,null,null,null,null,null,null,null,null,null,null,null,null,null,null,null,null,null,null,null,null,null,null,null,null,null,null,null,null,null,null,null,null,null,null,null,null,null,null,null,null,null,null,null,null,null,null,null,null,null,null,null,null,null,null,null,null,null,null,null,null,null,null,null,null,null,null,null,null,null,null,null,null,null,null,null,null,null,null,null,null,null,null,null,null,null,null,null,null,null,null,null,null,null,null,null,null,null,null,null,null,null,null,null,null,null,null,null,null,null,null,null,null,null,null,null,null,null,null,null,null,null,null,null,null,null,null,null,null,null,null,null,null,null,null,null,null,null,null,null,null,null,null,null,null,null,null,null,null,null,null,null,null,null,null,null,null,null,null,null,null,null,null,null,null,null,null,null,null,null,null,null,null,null,null,null,null,null,null,null,null,null,null,null,null,null,null,null,null,null,null,null,null,null,null,null,null,null,null,null,null,null,null,null,null,null,null,null,null,null,null,null,null,null,null,null,null,null,null,null,null,null,null,null,null,null,null,null,null,null,null,null,null,null,null,null,null,null,null,null,null,null,null,null,null,null,null,null,null,null,null,null,null,null,null,null,null,null,null,null,null,null,null,null,null,null,null,null,null,null,null,null,null,null,null,null,null,null,null,null,null,null,null,null,null,null,null,null,null,null,null,null,null,null,null,null,null,null,null,null,null,null,null,null,null,null,null,null,null,null,null,null,null,null,null,null,null,null,null,null,null,null,null,null,null,null,null,null,null,null,null,null,null,null,null,null,null,null,null,null,null,null,null,{"$f":"SUMPRODUCT((OFFSET($A37,0,31*($A$5-1)+1,1,31)<>\"\")*(IF(OFFSET($A37,0,31*($A$5-1)+1,1,31)=$NK$6,0.5,1)*(OFFSET($A$6,0,31*($A$5-1)+1,1,31))))","v":0},{"$f":"SUMPRODUCT((OFFSET($A37,0,1,1,372)<>\"\")*(IF(OFFSET($A37,0,1,1,372)=$NK$6,0.5,1)*(OFFSET($A$6,0,1,1,372))))","v":0},null,0,0,0,0,0,0]
[null,null,null,null,null,null,null,null,null,null,null,null,null,null,null,null,null,null,null,null,null,null,null,null,null,null,null,null,null,null,null,null,null,null,null,null,null,null,null,null,null,null,null,null,null,null,null,null,null,null,null,null,null,null,null,null,null,null,null,null,null,null,null,null,null,null,null,null,null,null,null,null,null,null,null,null,null,null,null,null,null,null,null,null,null,null,null,null,null,null,null,null,null,null,null,null,null,null,null,null,null,null,null,null,null,null,null,null,null,null,null,null,null,null,null,null,null,null,null,null,null,null,null,null,null,null,null,null,null,null,null,null,null,null,null,null,null,null,null,null,null,null,null,null,null,null,null,null,null,null,null,null,null,null,null,null,null,null,null,null,null,null,null,null,null,null,null,null,null,null,null,null,null,null,null,null,null,null,null,null,null,null,null,null,null,null,null,null,null,null,null,null,null,null,null,null,null,null,null,null,null,null,null,null,null,null,null,null,null,null,null,null,null,null,null,null,null,null,null,null,null,null,null,null,null,null,null,null,null,null,null,null,null,null,null,null,null,null,null,null,null,null,null,null,null,null,null,null,null,null,null,null,null,null,null,null,null,null,null,null,null,null,null,null,null,null,null,null,null,null,null,null,null,null,null,null,null,null,null,null,null,null,null,null,null,null,null,null,null,null,null,null,null,null,null,null,null,null,null,null,null,null,null,null,null,null,null,null,null,null,null,null,null,null,null,null,null,null,null,null,null,null,null,null,null,null,null,null,null,null,null,null,null,null,null,null,null,null,null,null,null,null,null,null,null,null,null,null,null,null,null,null,null,null,null,null,null,null,null,null,null,null,null,null,null,null,null,null,null,null,null,null,null,{"$f":"SUMPRODUCT((OFFSET($A38,0,31*($A$5-1)+1,1,31)<>\"\")*(IF(OFFSET($A38,0,31*($A$5-1)+1,1,31)=$NK$6,0.5,1)*(OFFSET($A$6,0,31*($A$5-1)+1,1,31))))","v":0},{"$f":"SUMPRODUCT((OFFSET($A38,0,1,1,372)<>\"\")*(IF(OFFSET($A38,0,1,1,372)=$NK$6,0.5,1)*(OFFSET($A$6,0,1,1,372))))","v":0},null,0,0,0,0,0,0]
[null,null,null,null,null,null,null,null,null,null,null,null,null,null,null,null,null,null,null,null,null,null,null,null,null,null,null,null,null,null,null,null,null,null,null,null,null,null,null,null,null,null,null,null,null,null,null,null,null,null,null,null,null,null,null,null,null,null,null,null,null,null,null,null,null,null,null,null,null,null,null,null,null,null,null,null,null,null,null,null,null,null,null,null,null,null,null,null,null,null,null,null,null,null,null,null,null,null,null,null,null,null,null,null,null,null,null,null,null,null,null,null,null,null,null,null,null,null,null,null,null,null,null,null,null,null,null,null,null,null,null,null,null,null,null,null,null,null,null,null,null,null,null,null,null,null,null,null,null,null,null,null,null,null,null,null,null,null,null,null,null,null,null,null,null,null,null,null,null,null,null,null,null,null,null,null,null,null,null,null,null,null,null,null,null,null,null,null,null,null,null,null,null,null,null,null,null,null,null,null,null,null,null,null,null,null,null,null,null,null,null,null,null,null,null,null,null,null,null,null,null,null,null,null,null,null,null,null,null,null,null,null,null,null,null,null,null,null,null,null,null,null,null,null,null,null,null,null,null,null,null,null,null,null,null,null,null,null,null,null,null,null,null,null,null,null,null,null,null,null,null,null,null,null,null,null,null,null,null,null,null,null,null,null,null,null,null,null,null,null,null,null,null,null,null,null,null,null,null,null,null,null,null,null,null,null,null,null,null,null,null,null,null,null,null,null,null,null,null,null,null,null,null,null,null,null,null,null,null,null,null,null,null,null,null,null,null,null,null,null,null,null,null,null,null,null,null,null,null,null,null,null,null,null,null,null,null,null,null,null,null,null,null,null,null,null,null,null,null,null,null,null,null,{"$f":"SUMPRODUCT((OFFSET($A39,0,31*($A$5-1)+1,1,31)<>\"\")*(IF(OFFSET($A39,0,31*($A$5-1)+1,1,31)=$NK$6,0.5,1)*(OFFSET($A$6,0,31*($A$5-1)+1,1,31))))","v":0},{"$f":"SUMPRODUCT((OFFSET($A39,0,1,1,372)<>\"\")*(IF(OFFSET($A39,0,1,1,372)=$NK$6,0.5,1)*(OFFSET($A$6,0,1,1,372))))","v":0},null,0,0,0,0,0,0]
[null,null,null,null,null,null,null,null,null,null,null,null,null,null,null,null,null,null,null,null,null,null,null,null,null,null,null,null,null,null,null,null,null,null,null,null,null,null,null,null,null,null,null,null,null,null,null,null,null,null,null,null,null,null,null,null,null,null,null,null,null,null,null,null,null,null,null,null,null,null,null,null,null,null,null,null,null,null,null,null,null,null,null,null,null,null,null,null,null,null,null,null,null,null,null,null,null,null,null,null,null,null,null,null,null,null,null,null,null,null,null,null,null,null,null,null,null,null,null,null,null,null,null,null,null,null,null,null,null,null,null,null,null,null,null,null,null,null,null,null,null,null,null,null,null,null,null,null,null,null,null,null,null,null,null,null,null,null,null,null,null,null,null,null,null,null,null,null,null,null,null,null,null,null,null,null,null,null,null,null,null,null,null,null,null,null,null,null,null,null,null,null,null,null,null,null,null,null,null,null,null,null,null,null,null,null,null,null,null,null,null,null,null,null,null,null,null,null,null,null,null,null,null,null,null,null,null,null,null,null,null,null,null,null,null,null,null,null,null,null,null,null,null,null,null,null,null,null,null,null,null,null,null,null,null,null,null,null,null,null,null,null,null,null,null,null,null,null,null,null,null,null,null,null,null,null,null,null,null,null,null,null,null,null,null,null,null,null,null,null,null,null,null,null,null,null,null,null,null,null,null,null,null,null,null,null,null,null,null,null,null,null,null,null,null,null,null,null,null,null,null,null,null,null,null,null,null,null,null,null,null,null,null,null,null,null,null,null,null,null,null,null,null,null,null,null,null,null,null,null,null,null,null,null,null,null,null,null,null,null,null,null,null,null,null,null,null,null,null,null,null,null,null,{"$f":"SUMPRODUCT((OFFSET($A40,0,31*($A$5-1)+1,1,31)<>\"\")*(IF(OFFSET($A40,0,31*($A$5-1)+1,1,31)=$NK$6,0.5,1)*(OFFSET($A$6,0,31*($A$5-1)+1,1,31))))","v":0},{"$f":"SUMPRODUCT((OFFSET($A40,0,1,1,372)<>\"\")*(IF(OFFSET($A40,0,1,1,372)=$NK$6,0.5,1)*(OFFSET($A$6,0,1,1,372))))","v":0},null,0,{"$f":"SUMPRODUCT((OFFSET($A40,0,1,1,372)<>\"\")*(OFFSET($A$6,0,1,1,372))*((OFFSET($A40,0,1,1,372))=NN$8))","v":0},0,0,0,0]
[null,null,null,null,null,null,null,null,null,null,null,null,null,null,null,null,null,null,null,null,null,null,null,null,null,null,null,null,null,null,null,null,null,null,null,null,null,null,null,null,null,null,null,null,null,null,null,null,null,null,null,null,null,null,null,null,null,null,null,null,null,null,null,null,null,null,null,null,null,null,null,null,null,null,null,null,null,null,null,null,null,null,null,null,null,null,null,null,null,null,null,null,null,null,null,null,null,null,null,null,null,null,null,null,null,null,null,null,null,null,null,null,null,null,null,null,null,null,null,null,null,null,null,null,null,null,null,null,null,null,null,null,null,null,null,null,null,null,null,null,null,null,null,null,null,null,null,null,null,null,null,null,null,null,null,null,null,null,null,null,null,null,null,null,null,null,null,null,null,null,null,null,null,null,null,null,null,null,null,null,null,null,null,null,null,null,null,null,null,null,null,null,null,null,null,null,null,null,null,null,null,null,null,null,null,null,null,null,null,null,null,null,null,null,null,null,null,null,null,null,null,null,null,null,null,null,null,null,null,null,null,null,null,null,null,null,null,null,null,null,null,null,null,null,null,null,null,null,null,null,null,null,null,null,null,null,null,null,null,null,null,null,null,null,null,null,null,null,null,null,null,null,null,null,null,null,null,null,null,null,null,null,null,null,null,null,null,null,null,null,null,null,null,null,null,null,null,null,null,null,null,null,null,null,null,null,null,null,null,null,null,null,null,null,null,null,null,null,null,null,null,null,null,null,null,null,null,null,null,null,null,null,null,null,null,null,null,null,null,null,null,null,null,null,null,null,null,null,null,null,null,null,null,null,null,null,null,null,null,null,null,null,null,null,null,null,null,null,null,null,null,null,null,{"$f":"SUMPRODUCT((OFFSET($A41,0,31*($A$5-1)+1,1,31)<>\"\")*(IF(OFFSET($A41,0,31*($A$5-1)+1,1,31)=$NK$6,0.5,1)*(OFFSET($A$6,0,31*($A$5-1)+1,1,31))))","v":0},{"$f":"SUMPRODUCT((OFFSET($A41,0,1,1,372)<>\"\")*(IF(OFFSET($A41,0,1,1,372)=$NK$6,0.5,1)*(OFFSET($A$6,0,1,1,372))))","v":0},null,0,0,0,0,0,0]
[null,null,null,null,null,null,null,null,null,null,null,null,null,null,null,null,null,null,null,null,null,null,null,null,null,null,null,null,null,null,null,null,null,null,null,null,null,null,null,null,null,null,null,null,null,null,null,null,null,null,null,null,null,null,null,null,null,null,null,null,null,null,null,null,null,null,null,null,null,null,null,null,null,null,null,null,null,null,null,null,null,null,null,null,null,null,null,null,null,null,null,null,null,null,null,null,null,null,null,null,null,null,null,null,null,null,null,null,null,null,null,null,null,null,null,null,null,null,null,null,null,null,null,null,null,null,null,null,null,null,null,null,null,null,null,null,null,null,null,null,null,null,null,null,null,null,null,null,null,null,null,null,null,null,null,null,null,null,null,null,null,null,null,null,null,null,null,null,null,null,null,null,null,null,null,null,null,null,null,null,null,null,null,null,null,null,null,null,null,null,null,null,null,null,null,null,null,null,null,null,null,null,null,null,null,null,null,null,null,null,null,null,null,null,null,null,null,null,null,null,null,null,null,null,null,null,null,null,null,null,null,null,null,null,null,null,null,null,null,null,null,null,null,null,null,null,null,null,null,null,null,null,null,null,null,null,null,null,null,null,null,null,null,null,null,null,null,null,null,null,null,null,null,null,null,null,null,null,null,null,null,null,null,null,null,null,null,null,null,null,null,null,null,null,null,null,null,null,null,null,null,null,null,null,null,null,null,null,null,null,null,null,null,null,null,null,null,null,null,null,null,null,null,null,null,null,null,null,null,null,null,null,null,null,null,null,null,null,null,null,null,null,null,null,null,null,null,null,null,null,null,null,null,null,null,null,null,null,null,null,null,null,null,null,null,null,null,null,null,null,null,null,null,{"$f":"SUMPRODUCT((OFFSET($A42,0,31*($A$5-1)+1,1,31)<>\"\")*(IF(OFFSET($A42,0,31*($A$5-1)+1,1,31)=$NK$6,0.5,1)*(OFFSET($A$6,0,31*($A$5-1)+1,1,31))))","v":0},{"$f":"SUMPRODUCT((OFFSET($A42,0,1,1,372)<>\"\")*(IF(OFFSET($A42,0,1,1,372)=$NK$6,0.5,1)*(OFFSET($A$6,0,1,1,372))))","v":0},null,0,0,0,0,0,0]
[null,null,null,null,null,null,null,null,null,null,null,null,null,null,null,null,null,null,null,null,null,null,null,null,null,null,null,null,null,null,null,null,null,null,null,null,null,null,null,null,null,null,null,null,null,null,null,null,null,null,null,null,null,null,null,null,null,null,null,null,null,null,null,null,null,null,null,null,null,null,null,null,null,null,null,null,null,null,null,null,null,null,null,null,null,null,null,null,null,null,null,null,null,null,null,null,null,null,null,null,null,null,null,null,null,null,null,null,null,null,null,null,null,null,null,null,null,null,null,null,null,null,null,null,null,null,null,null,null,null,null,null,null,null,null,null,null,null,null,null,null,null,null,null,null,null,null,null,null,null,null,null,null,null,null,null,null,null,null,null,null,null,null,null,null,null,null,null,null,null,null,null,null,null,null,null,null,null,null,null,null,null,null,null,null,null,null,null,null,null,null,null,null,null,null,null,null,null,null,null,null,null,null,null,null,null,null,null,null,null,null,null,null,null,null,null,null,null,null,null,null,null,null,null,null,null,null,null,null,null,null,null,null,null,null,null,null,null,null,null,null,null,null,null,null,null,null,null,null,null,null,null,null,null,null,null,null,null,null,null,null,null,null,null,null,null,null,null,null,null,null,null,null,null,null,null,null,null,null,null,null,null,null,null,null,null,null,null,null,null,null,null,null,null,null,null,null,null,null,null,null,null,null,null,null,null,null,null,null,null,null,null,null,null,null,null,null,null,null,null,null,null,null,null,null,null,null,null,null,null,null,null,null,null,null,null,null,null,null,null,null,null,null,null,null,null,null,null,null,null,null,null,null,null,null,null,null,null,null,null,null,null,null,null,null,null,null,null,null,null,null,null,null,{"$f":"SUMPRODUCT((OFFSET($A43,0,31*($A$5-1)+1,1,31)<>\"\")*(IF(OFFSET($A43,0,31*($A$5-1)+1,1,31)=$NK$6,0.5,1)*(OFFSET($A$6,0,31*($A$5-1)+1,1,31))))","v":0},{"$f":"SUMPRODUCT((OFFSET($A43,0,1,1,372)<>\"\")*(IF(OFFSET($A43,0,1,1,372)=$NK$6,0.5,1)*(OFFSET($A$6,0,1,1,372))))","v":0},null,0,0,0,0,0,0]
[null,null,null,null,null,null,null,null,null,null,null,null,null,null,null,null,null,null,null,null,null,null,null,null,null,null,null,null,null,null,null,null,null,null,null,null,null,null,null,null,null,null,null,null,null,null,null,null,null,null,null,null,null,null,null,null,null,null,null,null,null,null,null,null,null,null,null,null,null,null,null,null,null,null,null,null,null,null,null,null,null,null,null,null,null,null,null,null,null,null,null,null,null,null,null,null,null,null,null,null,null,null,null,null,null,null,null,null,null,null,null,null,null,null,null,null,null,null,null,null,null,null,null,null,null,null,null,null,null,null,null,null,null,null,null,null,null,null,null,null,null,null,null,null,null,null,null,null,null,null,null,null,null,null,null,null,null,null,null,null,null,null,null,null,null,null,null,null,null,null,null,null,null,null,null,null,null,null,null,null,null,null,null,null,null,null,null,null,null,null,null,null,null,null,null,null,null,null,null,null,null,null,null,null,null,null,null,null,null,null,null,null,null,null,null,null,null,null,null,null,null,null,null,null,null,null,null,null,null,null,null,null,null,null,null,null,null,null,null,null,null,null,null,null,null,null,null,null,null,null,null,null,null,null,null,null,null,null,null,null,null,null,null,null,null,null,null,null,null,null,null,null,null,null,null,null,null,null,null,null,null,null,null,null,null,null,null,null,null,null,null,null,null,null,null,null,null,null,null,null,null,null,null,null,null,null,null,null,null,null,null,null,null,null,null,null,null,null,null,null,null,null,null,null,null,null,null,null,null,null,null,null,null,null,null,null,null,null,null,null,null,null,null,null,null,null,null,null,null,null,null,null,null,null,null,null,null,null,null,null,null,null,null,null,null,null,null,null,null,null,null,null,null,{"$f":"SUMPRODUCT((OFFSET($A44,0,31*($A$5-1)+1,1,31)<>\"\")*(IF(OFFSET($A44,0,31*($A$5-1)+1,1,31)=$NK$6,0.5,1)*(OFFSET($A$6,0,31*($A$5-1)+1,1,31))))","v":0},{"$f":"SUMPRODUCT((OFFSET($A44,0,1,1,372)<>\"\")*(IF(OFFSET($A44,0,1,1,372)=$NK$6,0.5,1)*(OFFSET($A$6,0,1,1,372))))","v":0},null,0,0,0,0,0,0]
[null,null,null,null,null,null,null,null,null,null,null,null,null,null,null,null,null,null,null,null,null,null,null,null,null,null,null,null,null,null,null,null,null,null,null,null,null,null,null,null,null,null,null,null,null,null,null,null,null,null,null,null,null,null,null,null,null,null,null,null,null,null,null,null,null,null,null,null,null,null,null,null,null,null,null,null,null,null,null,null,null,null,null,null,null,null,null,null,null,null,null,null,null,null,null,null,null,null,null,null,null,null,null,null,null,null,null,null,null,null,null,null,null,null,null,null,null,null,null,null,null,null,null,null,null,null,null,null,null,null,null,null,null,null,null,null,null,null,null,null,null,null,null,null,null,null,null,null,null,null,null,null,null,null,null,null,null,null,null,null,null,null,null,null,null,null,null,null,null,null,null,null,null,null,null,null,null,null,null,null,null,null,null,null,null,null,null,null,null,null,null,null,null,null,null,null,null,null,null,null,null,null,null,null,null,null,null,null,null,null,null,null,null,null,null,null,null,null,null,null,null,null,null,null,null,null,null,null,null,null,null,null,null,null,null,null,null,null,null,null,null,null,null,null,null,null,null,null,null,null,null,null,null,null,null,null,null,null,null,null,null,null,null,null,null,null,null,null,null,null,null,null,null,null,null,null,null,null,null,null,null,null,null,null,null,null,null,null,null,null,null,null,null,null,null,null,null,null,null,null,null,null,null,null,null,null,null,null,null,null,null,null,null,null,null,null,null,null,null,null,null,null,null,null,null,null,null,null,null,null,null,null,null,null,null,null,null,null,null,null,null,null,null,null,null,null,null,null,null,null,null,null,null,null,null,null,null,null,null,null,null,null,null,null,null,null,null,null,null,null,null,null,null,{"$f":"SUMPRODUCT((OFFSET($A45,0,31*($A$5-1)+1,1,31)<>\"\")*(IF(OFFSET($A45,0,31*($A$5-1)+1,1,31)=$NK$6,0.5,1)*(OFFSET($A$6,0,31*($A$5-1)+1,1,31))))","v":0},{"$f":"SUMPRODUCT((OFFSET($A45,0,1,1,372)<>\"\")*(IF(OFFSET($A45,0,1,1,372)=$NK$6,0.5,1)*(OFFSET($A$6,0,1,1,372))))","v":0},null,0,0,0,0,0,0]
[null,null,null,null,null,null,null,null,null,null,null,null,null,null,null,null,null,null,null,null,null,null,null,null,null,null,null,null,null,null,null,null,null,null,null,null,null,null,null,null,null,null,null,null,null,null,null,null,null,null,null,null,null,null,null,null,null,null,null,null,null,null,null,null,null,null,null,null,null,null,null,null,null,null,null,null,null,null,null,null,null,null,null,null,null,null,null,null,null,null,null,null,null,null,null,null,null,null,null,null,null,null,null,null,null,null,null,null,null,null,null,null,null,null,null,null,null,null,null,null,null,null,null,null,null,null,null,null,null,null,null,null,null,null,null,null,null,null,null,null,null,null,null,null,null,null,null,null,null,null,null,null,null,null,null,null,null,null,null,null,null,null,null,null,null,null,null,null,null,null,null,null,null,null,null,null,null,null,null,null,null,null,null,null,null,null,null,null,null,null,null,null,null,null,null,null,null,null,null,null,null,null,null,null,null,null,null,null,null,null,null,null,null,null,null,null,null,null,null,null,null,null,null,null,null,null,null,null,null,null,null,null,null,null,null,null,null,null,null,null,null,null,null,null,null,null,null,null,null,null,null,null,null,null,null,null,null,null,null,null,null,null,null,null,null,null,null,null,null,null,null,null,null,null,null,null,null,null,null,null,null,null,null,null,null,null,null,null,null,null,null,null,null,null,null,null,null,null,null,null,null,null,null,null,null,null,null,null,null,null,null,null,null,null,null,null,null,null,null,null,null,null,null,null,null,null,null,null,null,null,null,null,null,null,null,null,null,null,null,null,null,null,null,null,null,null,null,null,null,null,null,null,null,null,null,null,null,null,null,null,null,null,null,null,null,null,null,null,null,null,null,null,null,{"$f":"SUMPRODUCT((OFFSET($A46,0,31*($A$5-1)+1,1,31)<>\"\")*(IF(OFFSET($A46,0,31*($A$5-1)+1,1,31)=$NK$6,0.5,1)*(OFFSET($A$6,0,31*($A$5-1)+1,1,31))))","v":0},{"$f":"SUMPRODUCT((OFFSET($A46,0,1,1,372)<>\"\")*(IF(OFFSET($A46,0,1,1,372)=$NK$6,0.5,1)*(OFFSET($A$6,0,1,1,372))))","v":0},null,0,0,0,0,0,0]
[null,null,null,null,null,null,null,null,null,null,null,null,null,null,null,null,null,null,null,null,null,null,null,null,null,null,null,null,null,null,null,null,null,null,null,null,null,null,null,null,null,null,null,null,null,null,null,null,null,null,null,null,null,null,null,null,null,null,null,null,null,null,null,null,null,null,null,null,null,null,null,null,null,null,null,null,null,null,null,null,null,null,null,null,null,null,null,null,null,null,null,null,null,null,null,null,null,null,null,null,null,null,null,null,null,null,null,null,null,null,null,null,null,null,null,null,null,null,null,null,null,null,null,null,null,null,null,null,null,null,null,null,null,null,null,null,null,null,null,null,null,null,null,null,null,null,null,null,null,null,null,null,null,null,null,null,null,null,null,null,null,null,null,null,null,null,null,null,null,null,null,null,null,null,null,null,null,null,null,null,null,null,null,null,null,null,null,null,null,null,null,null,null,null,null,null,null,null,null,null,null,null,null,null,null,null,null,null,null,null,null,null,null,null,null,null,null,null,null,null,null,null,null,null,null,null,null,null,null,null,null,null,null,null,null,null,null,null,null,null,null,null,null,null,null,null,null,null,null,null,null,null,null,null,null,null,null,null,null,null,null,null,null,null,null,null,null,null,null,null,null,null,null,null,null,null,null,null,null,null,null,null,null,null,null,null,null,null,null,null,null,null,null,null,null,null,null,null,null,null,null,null,null,null,null,null,null,null,null,null,null,null,null,null,null,null,null,null,null,null,null,null,null,null,null,null,null,null,null,null,null,null,null,null,null,null,null,null,null,null,null,null,null,null,null,null,null,null,null,null,null,null,null,null,null,null,null,null,null,null,null,null,null,null,null,null,null,null,null,null,null,null,null,{"$f":"SUMPRODUCT((OFFSET($A47,0,31*($A$5-1)+1,1,31)<>\"\")*(IF(OFFSET($A47,0,31*($A$5-1)+1,1,31)=$NK$6,0.5,1)*(OFFSET($A$6,0,31*($A$5-1)+1,1,31))))","v":0},{"$f":"SUMPRODUCT((OFFSET($A47,0,1,1,372)<>\"\")*(IF(OFFSET($A47,0,1,1,372)=$NK$6,0.5,1)*(OFFSET($A$6,0,1,1,372))))","v":0},null,0,0,0,0,0,0]
[null,null,null,null,null,null,null,null,null,null,null,null,null,null,null,null,null,null,null,null,null,null,null,null,null,null,null,null,null,null,null,null,null,null,null,null,null,null,null,null,null,null,null,null,null,null,null,null,null,null,null,null,null,null,null,null,null,null,null,null,null,null,null,null,null,null,null,null,null,null,null,null,null,null,null,null,null,null,null,null,null,null,null,null,null,null,null,null,null,null,null,null,null,null,null,null,null,null,null,null,null,null,null,null,null,null,null,null,null,null,null,null,null,null,null,null,null,null,null,null,null,null,null,null,null,null,null,null,null,null,null,null,null,null,null,null,null,null,null,null,null,null,null,null,null,null,null,null,null,null,null,null,null,null,null,null,null,null,null,null,null,null,null,null,null,null,null,null,null,null,null,null,null,null,null,null,null,null,null,null,null,null,null,null,null,null,null,null,null,null,null,null,null,null,null,null,null,null,null,null,null,null,null,null,null,null,null,null,null,null,null,null,null,null,null,null,null,null,null,null,null,null,null,null,null,null,null,null,null,null,null,null,null,null,null,null,null,null,null,null,null,null,null,null,null,null,null,null,null,null,null,null,null,null,null,null,null,null,null,null,null,null,null,null,null,null,null,null,null,null,null,null,null,null,null,null,null,null,null,null,null,null,null,null,null,null,null,null,null,null,null,null,null,null,null,null,null,null,null,null,null,null,null,null,null,null,null,null,null,null,null,null,null,null,null,null,null,null,null,null,null,null,null,null,null,null,null,null,null,null,null,null,null,null,null,null,null,null,null,null,null,null,null,null,null,null,null,null,null,null,null,null,null,null,null,null,null,null,null,null,null,null,null,null,null,null,null,null,null,null,null,null,null,{"$f":"SUMPRODUCT((OFFSET($A48,0,31*($A$5-1)+1,1,31)<>\"\")*(IF(OFFSET($A48,0,31*($A$5-1)+1,1,31)=$NK$6,0.5,1)*(OFFSET($A$6,0,31*($A$5-1)+1,1,31))))","v":0},{"$f":"SUMPRODUCT((OFFSET($A48,0,1,1,372)<>\"\")*(IF(OFFSET($A48,0,1,1,372)=$NK$6,0.5,1)*(OFFSET($A$6,0,1,1,372))))","v":0},null,0,0,0,0,0,0]
[null,null,null,null,null,null,null,null,null,null,null,null,null,null,null,null,null,null,null,null,null,null,null,null,null,null,null,null,null,null,null,null,null,null,null,null,null,null,null,null,null,null,null,null,null,null,null,null,null,null,null,null,null,null,null,null,null,null,null,null,null,null,null,null,null,null,null,null,null,null,null,null,null,null,null,null,null,null,null,null,null,null,null,null,null,null,null,null,null,null,null,null,null,null,null,null,null,null,null,null,null,null,null,null,null,null,null,null,null,null,null,null,null,null,null,null,null,null,null,null,null,null,null,null,null,null,null,null,null,null,null,null,null,null,null,null,null,null,null,null,null,null,null,null,null,null,null,null,null,null,null,null,null,null,null,null,null,null,null,null,null,null,null,null,null,null,null,null,null,null,null,null,null,null,null,null,null,null,null,null,null,null,null,null,null,null,null,null,null,null,null,null,null,null,null,null,null,null,null,null,null,null,null,null,null,null,null,null,null,null,null,null,null,null,null,null,null,null,null,null,null,null,null,null,null,null,null,null,null,null,null,null,null,null,null,null,null,null,null,null,null,null,null,null,null,null,null,null,null,null,null,null,null,null,null,null,null,null,null,null,null,null,null,null,null,null,null,null,null,null,null,null,null,null,null,null,null,null,null,null,null,null,null,null,null,null,null,null,null,null,null,null,null,null,null,null,null,null,null,null,null,null,null,null,null,null,null,null,null,null,null,null,null,null,null,null,null,null,null,null,null,null,null,null,null,null,null,null,null,null,null,null,null,null,null,null,null,null,null,null,null,null,null,null,null,null,null,null,null,null,null,null,null,null,null,null,null,null,null,null,null,null,null,null,null,null,null,null,null,null,null,null,null,{"$f":"SUMPRODUCT((OFFSET($A49,0,31*($A$5-1)+1,1,31)<>\"\")*(IF(OFFSET($A49,0,31*($A$5-1)+1,1,31)=$NK$6,0.5,1)*(OFFSET($A$6,0,31*($A$5-1)+1,1,31))))","v":0},{"$f":"SUMPRODUCT((OFFSET($A49,0,1,1,372)<>\"\")*(IF(OFFSET($A49,0,1,1,372)=$NK$6,0.5,1)*(OFFSET($A$6,0,1,1,372))))","v":0},null,0,0,0,0,0,0]
[null,null,null,null,null,null,null,null,null,null,null,null,null,null,null,null,null,null,null,null,null,null,null,null,null,null,null,null,null,null,null,null,null,null,null,null,null,null,null,null,null,null,null,null,null,null,null,null,null,null,null,null,null,null,null,null,null,null,null,null,null,null,null,null,null,null,null,null,null,null,null,null,null,null,null,null,null,null,null,null,null,null,null,null,null,null,null,null,null,null,null,null,null,null,null,null,null,null,null,null,null,null,null,null,null,null,null,null,null,null,null,null,null,null,null,null,null,null,null,null,null,null,null,null,null,null,null,null,null,null,null,null,null,null,null,null,null,null,null,null,null,null,null,null,null,null,null,null,null,null,null,null,null,null,null,null,null,null,null,null,null,null,null,null,null,null,null,null,null,null,null,null,null,null,null,null,null,null,null,null,null,null,null,null,null,null,null,null,null,null,null,null,null,null,null,null,null,null,null,null,null,null,null,null,null,null,null,null,null,null,null,null,null,null,null,null,null,null,null,null,null,null,null,null,null,null,null,null,null,null,null,null,null,null,null,null,null,null,null,null,null,null,null,null,null,null,null,null,null,null,null,null,null,null,null,null,null,null,null,null,null,null,null,null,null,null,null,null,null,null,null,null,null,null,null,null,null,null,null,null,null,null,null,null,null,null,null,null,null,null,null,null,null,null,null,null,null,null,null,null,null,null,null,null,null,null,null,null,null,null,null,null,null,null,null,null,null,null,null,null,null,null,null,null,null,null,null,null,null,null,null,null,null,null,null,null,null,null,null,null,null,null,null,null,null,null,null,null,null,null,null,null,null,null,null,null,null,null,null,null,null,null,null,null,null,null,null,null,null,null,null,null,null,{"$f":"SUMPRODUCT((OFFSET($A50,0,31*($A$5-1)+1,1,31)<>\"\")*(IF(OFFSET($A50,0,31*($A$5-1)+1,1,31)=$NK$6,0.5,1)*(OFFSET($A$6,0,31*($A$5-1)+1,1,31))))","v":0},{"$f":"SUMPRODUCT((OFFSET($A50,0,1,1,372)<>\"\")*(IF(OFFSET($A50,0,1,1,372)=$NK$6,0.5,1)*(OFFSET($A$6,0,1,1,372))))","v":0},null,0,{"$f":"SUMPRODUCT((OFFSET($A50,0,1,1,372)<>\"\")*(OFFSET($A$6,0,1,1,372))*((OFFSET($A50,0,1,1,372))=NN$8))","v":0},0,0,0,0]
[null,null,null,null,null,null,null,null,null,null,null,null,null,null,null,null,null,null,null,null,null,null,null,null,null,null,null,null,null,null,null,null,null,null,null,null,null,null,null,null,null,null,null,null,null,null,null,null,null,null,null,null,null,null,null,null,null,null,null,null,null,null,null,null,null,null,null,null,null,null,null,null,null,null,null,null,null,null,null,null,null,null,null,null,null,null,null,null,null,null,null,null,null,null,null,null,null,null,null,null,null,null,null,null,null,null,null,null,null,null,null,null,null,null,null,null,null,null,null,null,null,null,null,null,null,null,null,null,null,null,null,null,null,null,null,null,null,null,null,null,null,null,null,null,null,null,null,null,null,null,null,null,null,null,null,null,null,null,null,null,null,null,null,null,null,null,null,null,null,null,null,null,null,null,null,null,null,null,null,null,null,null,null,null,null,null,null,null,null,null,null,null,null,null,null,null,null,null,null,null,null,null,null,null,null,null,null,null,null,null,null,null,null,null,null,null,null,null,null,null,null,null,null,null,null,null,null,null,null,null,null,null,null,null,null,null,null,null,null,null,null,null,null,null,null,null,null,null,null,null,null,null,null,null,null,null,null,null,null,null,null,null,null,null,null,null,null,null,null,null,null,null,null,null,null,null,null,null,null,null,null,null,null,null,null,null,null,null,null,null,null,null,null,null,null,null,null,null,null,null,null,null,null,null,null,null,null,null,null,null,null,null,null,null,null,null,null,null,null,null,null,null,null,null,null,null,null,null,null,null,null,null,null,null,null,null,null,null,null,null,null,null,null,null,null,null,null,null,null,null,null,null,null,null,null,null,null,null,null,null,null,null,null,null,null,null,null,null,null,null,null,null,null,{"$f":"SUMPRODUCT((OFFSET($A51,0,31*($A$5-1)+1,1,31)<>\"\")*(IF(OFFSET($A51,0,31*($A$5-1)+1,1,31)=$NK$6,0.5,1)*(OFFSET($A$6,0,31*($A$5-1)+1,1,31))))","v":0},{"$f":"SUMPRODUCT((OFFSET($A51,0,1,1,372)<>\"\")*(IF(OFFSET($A51,0,1,1,372)=$NK$6,0.5,1)*(OFFSET($A$6,0,1,1,372))))","v":0},null,0,0,0,0,0,0]
[null,null,null,null,null,null,null,null,null,null,null,null,null,null,null,null,null,null,null,null,null,null,null,null,null,null,null,null,null,null,null,null,null,null,null,null,null,null,null,null,null,null,null,null,null,null,null,null,null,null,null,null,null,null,null,null,null,null,null,null,null,null,null,null,null,null,null,null,null,null,null,null,null,null,null,null,null,null,null,null,null,null,null,null,null,null,null,null,null,null,null,null,null,null,null,null,null,null,null,null,null,null,null,null,null,null,null,null,null,null,null,null,null,null,null,null,null,null,null,null,null,null,null,null,null,null,null,null,null,null,null,null,null,null,null,null,null,null,null,null,null,null,null,null,null,null,null,null,null,null,null,null,null,null,null,null,null,null,null,null,null,null,null,null,null,null,null,null,null,null,null,null,null,null,null,null,null,null,null,null,null,null,null,null,null,null,null,null,null,null,null,null,null,null,null,null,null,null,null,null,null,null,null,null,null,null,null,null,null,null,null,null,null,null,null,null,null,null,null,null,null,null,null,null,null,null,null,null,null,null,null,null,null,null,null,null,null,null,null,null,null,null,null,null,null,null,null,null,null,null,null,null,null,null,null,null,null,null,null,null,null,null,null,null,null,null,null,null,null,null,null,null,null,null,null,null,null,null,null,null,null,null,null,null,null,null,null,null,null,null,null,null,null,null,null,null,null,null,null,null,null,null,null,null,null,null,null,null,null,null,null,null,null,null,null,null,null,null,null,null,null,null,null,null,null,null,null,null,null,null,null,null,null,null,null,null,null,null,null,null,null,null,null,null,null,null,null,null,null,null,null,null,null,null,null,null,null,null,null,null,null,null,null,null,null,null,null,null,null,null,null,null,null,{"$f":"SUMPRODUCT((OFFSET($A52,0,31*($A$5-1)+1,1,31)<>\"\")*(IF(OFFSET($A52,0,31*($A$5-1)+1,1,31)=$NK$6,0.5,1)*(OFFSET($A$6,0,31*($A$5-1)+1,1,31))))","v":0},{"$f":"SUMPRODUCT((OFFSET($A52,0,1,1,372)<>\"\")*(IF(OFFSET($A52,0,1,1,372)=$NK$6,0.5,1)*(OFFSET($A$6,0,1,1,372))))","v":0},null,0,0,0,0,0,0]
[null,null,null,null,null,null,null,null,null,null,null,null,null,null,null,null,null,null,null,null,null,null,null,null,null,null,null,null,null,null,null,null,null,null,null,null,null,null,null,null,null,null,null,null,null,null,null,null,null,null,null,null,null,null,null,null,null,null,null,null,null,null,null,null,null,null,null,null,null,null,null,null,null,null,null,null,null,null,null,null,null,null,null,null,null,null,null,null,null,null,null,null,null,null,null,null,null,null,null,null,null,null,null,null,null,null,null,null,null,null,null,null,null,null,null,null,null,null,null,null,null,null,null,null,null,null,null,null,null,null,null,null,null,null,null,null,null,null,null,null,null,null,null,null,null,null,null,null,null,null,null,null,null,null,null,null,null,null,null,null,null,null,null,null,null,null,null,null,null,null,null,null,null,null,null,null,null,null,null,null,null,null,null,null,null,null,null,null,null,null,null,null,null,null,null,null,null,null,null,null,null,null,null,null,null,null,null,null,null,null,null,null,null,null,null,null,null,null,null,null,null,null,null,null,null,null,null,null,null,null,null,null,null,null,null,null,null,null,null,null,null,null,null,null,null,null,null,null,null,null,null,null,null,null,null,null,null,null,null,null,null,null,null,null,null,null,null,null,null,null,null,null,null,null,null,null,null,null,null,null,null,null,null,null,null,null,null,null,null,null,null,null,null,null,null,null,null,null,null,null,null,null,null,null,null,null,null,null,null,null,null,null,null,null,null,null,null,null,null,null,null,null,null,null,null,null,null,null,null,null,null,null,null,null,null,null,null,null,null,null,null,null,null,null,null,null,null,null,null,null,null,null,null,null,null,null,null,null,null,null,null,null,null,null,null,null,null,null,null,null,null,null,null,{"$f":"SUMPRODUCT((OFFSET($A53,0,31*($A$5-1)+1,1,31)<>\"\")*(IF(OFFSET($A53,0,31*($A$5-1)+1,1,31)=$NK$6,0.5,1)*(OFFSET($A$6,0,31*($A$5-1)+1,1,31))))","v":0},{"$f":"SUMPRODUCT((OFFSET($A53,0,1,1,372)<>\"\")*(IF(OFFSET($A53,0,1,1,372)=$NK$6,0.5,1)*(OFFSET($A$6,0,1,1,372))))","v":0},null,0,0,0,0,0,0]
[null,null,null,null,null,null,null,null,null,null,null,null,null,null,null,null,null,null,null,null,null,null,null,null,null,null,null,null,null,null,null,null,null,null,null,null,null,null,null,null,null,null,null,null,null,null,null,null,null,null,null,null,null,null,null,null,null,null,null,null,null,null,null,null,null,null,null,null,null,null,null,null,null,null,null,null,null,null,null,null,null,null,null,null,null,null,null,null,null,null,null,null,null,null,null,null,null,null,null,null,null,null,null,null,null,null,null,null,null,null,null,null,null,null,null,null,null,null,null,null,null,null,null,null,null,null,null,null,null,null,null,null,null,null,null,null,null,null,null,null,null,null,null,null,null,null,null,null,null,null,null,null,null,null,null,null,null,null,null,null,null,null,null,null,null,null,null,null,null,null,null,null,null,null,null,null,null,null,null,null,null,null,null,null,null,null,null,null,null,null,null,null,null,null,null,null,null,null,null,null,null,null,null,null,null,null,null,null,null,null,null,null,null,null,null,null,null,null,null,null,null,null,null,null,null,null,null,null,null,null,null,null,null,null,null,null,null,null,null,null,null,null,null,null,null,null,null,null,null,null,null,null,null,null,null,null,null,null,null,null,null,null,null,null,null,null,null,null,null,null,null,null,null,null,null,null,null,null,null,null,null,null,null,null,null,null,null,null,null,null,null,null,null,null,null,null,null,null,null,null,null,null,null,null,null,null,null,null,null,null,null,null,null,null,null,null,null,null,null,null,null,null,null,null,null,null,null,null,null,null,null,null,null,null,null,null,null,null,null,null,null,null,null,null,null,null,null,null,null,null,null,null,null,null,null,null,null,null,null,null,null,null,null,null,null,null,null,null,null,null,null,null,null,{"$f":"SUMPRODUCT((OFFSET($A54,0,31*($A$5-1)+1,1,31)<>\"\")*(IF(OFFSET($A54,0,31*($A$5-1)+1,1,31)=$NK$6,0.5,1)*(OFFSET($A$6,0,31*($A$5-1)+1,1,31))))","v":0},{"$f":"SUMPRODUCT((OFFSET($A54,0,1,1,372)<>\"\")*(IF(OFFSET($A54,0,1,1,372)=$NK$6,0.5,1)*(OFFSET($A$6,0,1,1,372))))","v":0},null,0,0,0,0,0,0]
[null,null,null,null,null,null,null,null,null,null,null,null,null,null,null,null,null,null,null,null,null,null,null,null,null,null,null,null,null,null,null,null,null,null,null,null,null,null,null,null,null,null,null,null,null,null,null,null,null,null,null,null,null,null,null,null,null,null,null,null,null,null,null,null,null,null,null,null,null,null,null,null,null,null,null,null,null,null,null,null,null,null,null,null,null,null,null,null,null,null,null,null,null,null,null,null,null,null,null,null,null,null,null,null,null,null,null,null,null,null,null,null,null,null,null,null,null,null,null,null,null,null,null,null,null,null,null,null,null,null,null,null,null,null,null,null,null,null,null,null,null,null,null,null,null,null,null,null,null,null,null,null,null,null,null,null,null,null,null,null,null,null,null,null,null,null,null,null,null,null,null,null,null,null,null,null,null,null,null,null,null,null,null,null,null,null,null,null,null,null,null,null,null,null,null,null,null,null,null,null,null,null,null,null,null,null,null,null,null,null,null,null,null,null,null,null,null,null,null,null,null,null,null,null,null,null,null,null,null,null,null,null,null,null,null,null,null,null,null,null,null,null,null,null,null,null,null,null,null,null,null,null,null,null,null,null,null,null,null,null,null,null,null,null,null,null,null,null,null,null,null,null,null,null,null,null,null,null,null,null,null,null,null,null,null,null,null,null,null,null,null,null,null,null,null,null,null,null,null,null,null,null,null,null,null,null,null,null,null,null,null,null,null,null,null,null,null,null,null,null,null,null,null,null,null,null,null,null,null,null,null,null,null,null,null,null,null,null,null,null,null,null,null,null,null,null,null,null,null,null,null,null,null,null,null,null,null,null,null,null,null,null,null,null,null,null,null,null,null,null,null,null,null,{"$f":"SUMPRODUCT((OFFSET($A55,0,31*($A$5-1)+1,1,31)<>\"\")*(IF(OFFSET($A55,0,31*($A$5-1)+1,1,31)=$NK$6,0.5,1)*(OFFSET($A$6,0,31*($A$5-1)+1,1,31))))","v":0},{"$f":"SUMPRODUCT((OFFSET($A55,0,1,1,372)<>\"\")*(IF(OFFSET($A55,0,1,1,372)=$NK$6,0.5,1)*(OFFSET($A$6,0,1,1,372))))","v":0},null,0,0,0,0,0,0]

{"sheet":"Auxiliar","index":2,"n_rows":12,"n_cols":8,"rows_kept":12,"cut":false,"hidden":true,"merged":[]}
["Enero",1,null,1,"Lun",null,{"$f":"INDEX($A$1:$A$12,MATCH('Dias tomados'!$A$3+'Dias tomados'!$A$5-1,Auxiliar!$B$1:$B$12,0))","v":"Enero"}]
["Febrero",2,null,2,"Mar",null,{"$f":"INDEX($A$1:$A$12,MATCH('Dias tomados'!$A$3+'Dias tomados'!$A$5-1,Auxiliar!$B$1:$B$12,0))","v":"Enero"}]
["Marzo",3,null,3,"Mie"]
["Abril",4,null,4,"Jue",null,null,"Elija el mes y el año que empezará a completar"]
["Mayo",5,null,5,"Vie"]
["Junio",6,null,6,"Sab"]
["Julio",7,null,7,"Dom"]
["Agosto",8]
["Septiembre",9]
["Octubre",10]
["Noviembre",11]
["Diciembre",12]

{"sheet":"Fiestas y días laborables","index":3,"n_rows":9,"n_cols":5,"rows_kept":9,"cut":false,"hidden":false,"merged":[[1,3,1,4]]}
[]
["Feriado","Fecha",null,"Días Laborables"]
["Año Nuevo","2017-01-01",null,"Lun","Si"]
[null,null,null,"Mar","Si"]
[null,null,null,"Mie","Si"]
[null,null,null,"Jue","Si"]
[null,null,null,"Vie","Si"]
[null,null,null,"Sab","No"]
[null,null,null,"Dom","No"]